{"text_format":"1","workbook":"xlsx","n_sheets":14,"sheets":["0. Intro","Inputs","BOM","Ctrl_Lists","Ctrl_Selections","Ctrl_Deductions","Ctrl_Recommendations","Calc_Torque","Ctrl_Limitations","PriceList_AU_hide","ToDo","ChangeLog","Ctrl_SpringData_excl","Calc_Reference_excl"],"not_rendered":{"charts":0,"images":4,"macros":1,"external_links":2,"defined_names":207,"comments":7,"pivot_tables":0},"unopened":[],"bounds":{"document_bytes":16777216,"sheet_cells":100000,"rows_first":2000,"rows_last":500,"rows_between":2000,"halvings":0,"cell_chars":16384,"cell_head_chars":4096},"cells_cut":0,"cells_raw":0,"read":"whole","date_system":"1900"}

{"sheet":"0. Intro","index":0,"n_rows":27,"n_cols":5,"rows_kept":27,"cut":false,"hidden":false,"merged":[[3,1,5,16]]}
[]
[null,"If you are seeing this page, it means Excel Macro's have not been enabled. "]
[]
[null,"Excel Macros provide improved functionality for this file, and it will not work properly unless they are enabled. "]
[]
[]
[]
[null,"This may be caused by one of the following warnings:"]
[null,null,"Follow the steps below each warning to enable Macros."]
[]
[]
[]
[]
[]
[null,null,"Simply click 'Enable Content'"]
[]
[]
[]
[]
[]
[]
[null,null,"Find out more here: ",null,"https://docs.microsoft.com/en-us/deployoffice/security/internet-macros-blocked#remove-mark-of-the-web-from-a-file"]
[]
[null,null,"1. Close workbook"]
[null,null,"2. Right click on the Excel file and click 'Properties'"]
[null,null,"3. Tick 'Unblock' and click 'OK'"]
[null,null,"4. Re-open file"]

{"sheet":"Inputs","index":1,"n_rows":58,"n_cols":23,"rows_kept":58,"cut":false,"hidden":false,"merged":[[43,17,43,21],[47,18,47,19],[54,17,54,22],[52,17,52,22],[53,17,53,22],[44,18,44,19],[46,18,46,19],[51,18,51,21],[50,18,50,21]]}
[1,1,"1",1,1,1,1,1,1,1,1,"1",1,1,1,1]
["macro disabled",false]
["Row # of First Flag",null,{"$f":"ROW(INDEX(A7:OFFSET(A7,options_count-1,0),MATCH(FALSE,ISBLANK(A7:OFFSET(A7,options_count-1,0)),0)))","v":9}]
["Number of Options",null,{"$f":"COUNTA(R7:R40)","v":33},null,null,null,null,null,"is open but not extreme",null,null,null,null,null,null,null,null,null,null,null,null,"Release"]
[{"$f":"SUM(A7:OFFSET(A7,options_count-1,0))","v":17},{"$f":"COUNTIF(B7:OFFSET(B7,options_count-1,0),1)","v":0},{"$f":"SUM(C7:OFFSET(C7,options_count-1,0))","v":6},null,null,null,null,null,null,null,null,null,null,null,{"$f":"\"Col: \" &COLUMN(O6)","v":"Col: 15"},null,null,null,null,null,null,null,"Last Updated: 16-Jan-2025"]
["Must Fill Flag","Check error Flag","Check Fill Flag","Condition_1",null,"Condition_2",null,"Optional?","Enter Precedent 1 ",null,"Check For_1","Enter Precedent 2","Check For_2","Row Outcome*","WarningCol",null,null,"OPTIONS","INPUT",null,"INSTRUCTIONS",null,"COMMENTS "]
[null,null,null,"i_SystemType",null,"i_InstallationType",null,null,null,null,null,null,null,null,null,null,null,"Customer's Name",null,null,"← Enter Name (Optional)"]
[null,null,null,null,null,null,null,null,null,null,null,null,null,null,null,null,null,"Customer's Job Number",null,null,"← Enter Job Number (Optional)"]
[1,null,{"$f":"IF(AND(LEN(S9)>0,N9<>\"HIDE\"),1,0)","v":0},null,null,null,null,null,null,null,null,null,null,null,null,null,null,"Region",null,{"$f":"HYPERLINK(\"#\"&ADDRESS(ROW(),COLUMN()-1),CHAR(128))","v":"€"},"← Select Region (AU/US)",null,{"$f":"IF(i_Location=\"\",\"Please select a Region.\",\"\")","v":"Please select a Region."}]
[1,null,{"$f":"IF(AND(LEN(S10)>0,N10<>\"HIDE\"),1,0)","v":0},null,null,null,null,null,null,null,null,null,null,null,null,null,null,"Units",null,{"$f":"HYPERLINK(\"#\"&ADDRESS(ROW(),COLUMN()-1),CHAR(128))","v":"€"},"← Select Units (Metric/Imperial)"]
[null,null,null,null,null,null,null,null,null,null,null,null,null,"HIDE",null,null,null,"Fabric",null,{"$f":"HYPERLINK(\"#\"&ADDRESS(ROW(),COLUMN()-1),CHAR(128))","v":"€"},"← Select Fabric"]
[1,null,{"$f":"IF(AND(S12>0,N12<>\"HIDE\"),1,0)","v":0},null,null,null,null,null,null,null,null,null,null,null,{"$f":"IFERROR(IF(SEARCH(\"Warning\",W12)>0,1,0),0)","v":0},null,null,"Blind Width",null,null,{"$f":"_xlfn.IFNA(\"← Enter Total Blind Width (\"&INDEX(T_UnitSelection[Units],MATCH(i_Units,T_UnitSelection[UnitSelection],0))&\")\",\"← Enter Blind Width\")","v":"← Enter Blind Width"},null,{"$f":"IFERROR(IF(SUM(Ctrl_Recommendations!$T$13:$T$14)>0,INDEX(Ctrl_Recommendations!$W$13:$W$14,MATCH(1,Ctrl_Recommendations!$T$13:$T$14)),\"\"),\"\")","v":""}]
[{"$f":"IF(N13=\"HIDE\",0,1)","v":1},null,{"$f":"IF(AND(S13>0,N13<>\"HIDE\"),1,0)","v":0},null,null,null,null,null,null,null,null,null,null,{"$f":"IF(ISNUMBER(SEARCH(K13,INDIRECT(I13))),\"HIDE\",\"SHOW\")","v":"SHOW"},{"$f":"IFERROR(IF(SEARCH(\"Warning\",W13)>0,1,0),0)","v":0},null,null,"Blind Drop",null,null,{"$f":"_xlfn.IFNA(\"← Enter Total Blind Drop (\"&INDEX(T_UnitSelection[Units],MATCH(i_Units,T_UnitSelection[UnitSelection],0))&\")\",\"← Enter Blind Drop\")","v":"← Enter Blind Drop"},null,{"$f":"IFERROR(IF(w_BlindDrop>0,INDEX(Ctrl_Recommendations!$W$6:$W$8,MATCH(\"on\",Ctrl_Recommendations!$V$6:$V$8,0)),\"\"),\"\")","v":""}]
[{"$f":"IF(N14=\"HIDE\",0,1)","v":0},null,{"$f":"IF(AND(LEN(S14)>0,N14<>\"HIDE\"),1,0)","v":0},null,null,null,null,null,null,null,null,null,null,"HIDE",{"$f":"IFERROR(IF(SEARCH(\"Warning\",W14)>0,1,0),0)","v":0},null,null,"System Type",null,{"$f":"HYPERLINK(\"#\"&ADDRESS(ROW(),COLUMN()-1),CHAR(128))","v":"€"},{"$f":"\"← Select \"&R14","v":"← Select System Type"},null,{"$f":"IFERROR(IF(AND(i_Tube<>\"\",i_SystemType<>\"\",w_MaxArea=\"On\"),OFFSET(w_MaxArea,0,1,),\"\"),\"\")","v":""}]
[{"$f":"IF(N15=\"HIDE\",0,1)","v":1},null,0,null,null,null,null,null,null,null,null,null,null,null,{"$f":"IFERROR(IF(SEARCH(\"Warning\",W15)>0,1,0),0)","v":0},null,null,"Installation Type",null,{"$f":"HYPERLINK(\"#\"&ADDRESS(ROW(),COLUMN()-1),CHAR(128))","v":"€"},"← Select Installation Type"]
[{"$f":"IF(N16=\"HIDE\",0,1)","v":0},null,{"$f":"IF(AND(LEN(S16)>0,N16<>\"HIDE\"),1,0)","v":0},null,null,null,null,null,null,null,null,null,null,"HIDE",null,null,null,"Bracket Fix Orientation",null,"€",{"$f":"\"← Select \"&R16","v":"← Select Bracket Fix Orientation"}]
[{"$f":"IF(N17=\"HIDE\",0,1)","v":1},null,{"$f":"IF(AND(LEN(S17)>0,N17<>\"HIDE\"),1,0)","v":0},{"$f":"IFERROR(IF(FIND(\"EXTREME\",i_SystemType)>0,\"\",i_SystemType),i_SystemType)","v":0},null,null,null,null,null,null,null,null,null,"SHOW",null,null,null,"Open Bracket Style",null,"€","← Select Open Bracket Style"]
[{"$f":"IF(N18=\"HIDE\",0,1)","v":1},null,0,{"$f":"IFERROR(IF(FIND(\"EXTREME\",i_SystemType)>0,\"\",i_SystemType),i_SystemType)","v":0},null,null,null,null,null,null,null,null,null,{"$f":"IF(ISNUMBER(SEARCH(\"Opulence\",i_OpenBktStyle))=TRUE,\"HIDE\",\"SHOW\")","v":"SHOW"},null,null,null,"Open Bracket Covers",null,"€","← Select Open Bracket Covers"]
[{"$f":"IF(N19=\"HIDE\",0,1)","v":0},null,{"$f":"IF(AND(LEN(S19)>0,N19<>\"HIDE\"),1,0)","v":0},null,null,null,null,null,null,null,null,null,null,{"$f":"IF(ISNUMBER(SEARCH(K19,INDIRECT(I19))),\"SHOW\",\"HIDE\")","v":"HIDE"},null,null,null,"Wire Guide Top Terminal",null,"€","← Select Wire Guide Top Terminal"]
[1,null,0,null,null,null,null,null,null,null,null,null,null,null,{"$f":"IFERROR(IF(SEARCH(\"Warning\",W20)>0,1,0),0)","v":0},null,null,"Spring Size",null,{"$f":"HYPERLINK(\"#\"&ADDRESS(ROW(),COLUMN()-1),CHAR(128))","v":"€"},"← Select Spring Size",null,"Refer to support material & calculators for spring selection guidance."]
[{"$f":"IF(N21=\"HIDE\",0,1)","v":1},null,{"$f":"IF(AND(LEN(S21)>0,N21<>\"HIDE\"),1,0)","v":0},null,null,null,null,null,null,null,null,null,null,null,{"$f":"IFERROR(IF(SEARCH(\"Warning\",W21)>0,1,0),0)","v":0},null,null,"Tube",null,"€",{"$f":"\"← Select \"&R21","v":"← Select Tube"}]
[{"$f":"IF(N22=\"HIDE\",0,1)","v":1},null,{"$f":"IF(AND(LEN(S22)>0,N22<>\"HIDE\"),1,0)","v":0},null,null,null,null,null,null,null,null,null,null,{"$f":"IF(ISNUMBER(SEARCH(K22,INDIRECT(I22))),\"HIDE\",\"SHOW\")","v":"SHOW"},null,null,null,"Idler Type",null,{"$f":"HYPERLINK(\"#\"&ADDRESS(ROW(),COLUMN()-1),CHAR(128))","v":"€"},{"$f":"\"← Select \"&R22","v":"← Select Idler Type"}]
[{"$f":"IF(N23=\"HIDE\",0,1)","v":0},null,{"$f":"IF(AND(H23=1,N23=\"SHOW\"),1,IF(AND(LEN(S23)>0,N23<>\"HIDE\"),1,0))","v":0},null,null,null,null,1,"i_motor",null,"AUTOMATE",null,null,{"$f":"IF(ISNUMBER(SEARCH(K23,INDIRECT(I23))),\"SHOW\",\"HIDE\")","v":"HIDE"},null,null,null,"Remote",null,{"$f":"HYPERLINK(\"#\"&ADDRESS(ROW(),COLUMN()-1),CHAR(128))","v":"€"},{"$f":"\"← Select \"&R23","v":"← Select Remote"}]
[0,null,{"$f":"IF(AND(H24=1,N24=\"SHOW\"),1,IF(AND(LEN(S24)>0,N24<>\"HIDE\"),1,0))","v":0},null,null,null,null,1,"i_motor",null,"AUTOMATE",null,null,{"$f":"IF(ISNUMBER(SEARCH(K24,INDIRECT(I24))),\"SHOW\",\"HIDE\")","v":"HIDE"},null,null,null,"Sensor",null,{"$f":"HYPERLINK(\"#\"&ADDRESS(ROW(),COLUMN()-1),CHAR(128))","v":"€"},{"$f":"\"← Select \"&R24","v":"← Select Sensor"}]
[{"$f":"IF(N25=\"HIDE\",0,1)","v":0},null,0,null,null,null,null,null,"i_location",null,"AU",null,null,{"$f":"IF(ISNUMBER(SEARCH(K25,INDIRECT(I25))),\"SHOW\",\"HIDE\")","v":"HIDE"},null,null,null,"Tube Extras",null,"€",{"$f":"\"← Select \"&R25","v":"← Select Tube Extras"}]
[{"$f":"IF(N26=\"HIDE\",0,1)","v":1},null,{"$f":"IF(AND(LEN(S26)>0,N26<>\"HIDE\"),1,0)","v":0},null,null,null,null,null,null,null,null,null,null,{"$f":"IF(ISNUMBER(SEARCH(K26,INDIRECT(I26))),\"HIDE\",\"SHOW\")","v":"SHOW"},null,null,null,{"$f":"IF(i_Location=\"AU\",\"Bottom Rail\",\"Hem Bar\")","v":"Hem Bar"},null,"€","← Select Hem Bar",null,{"$f":"IF(i_Units=\"Imperial\",\"Recommended target weight: 0.34 lb/ft, add ballast as required.\",\"Recommended target weight: 500 g/m, add ballast as required.\")","v":"Recommended target weight: 500 g/m, add ballast as required."}]
[{"$f":"IF(N27=\"HIDE\",0,1)","v":0},null,{"$f":"IF(AND(H27=1,N27=\"SHOW\"),1,IF(AND(LEN(S27)>0,N27<>\"HIDE\"),1,0))","v":0},null,null,null,null,1,"i_SystemType","!=","Pivot",null,null,"HIDE",null,null,null,{"$f":"IF(i_Location=\"US\",\"Hem Bar Lock\",\"Weight Bar Lock\")","v":"Weight Bar Lock"},null,"€",{"$f":"\"← Select \"&R27","v":"← Select Weight Bar Lock"}]
[{"$f":"IF(N28=\"HIDE\",0,1)","v":0},null,{"$f":"IF(AND(LEN(S28)>0,N28<>\"HIDE\"),1,0)","v":0},null,null,null,null,null,null,null,null,null,null,{"$f":"IF(ISERROR(INDEX(L_wbStrap,1)),\"HIDE\",\"SHOW\")","v":"HIDE"},null,null,null,{"$f":"IF(i_Location=\"US\",\"Hem Bar Spline\",\"Weight Bar Strap\")","v":"Weight Bar Strap"},null,"€",{"$f":"\"← Select \"&R28","v":"← Select Weight Bar Strap"}]
[{"$f":"IF(N29=\"HIDE\",0,1)","v":1},null,{"$f":"IF(AND(H29=1,N29=\"SHOW\"),1,IF(AND(LEN(#REF!)>0,N29<>\"HIDE\"),1,0))","v":1},null,null,null,null,1,null,null,null,null,null,{"$f":"IF(ISNUMBER(SEARCH(K29,INDIRECT(I29))),\"HIDE\",\"SHOW\")","v":"SHOW"},null,null,null,{"$f":"IF(i_Location=\"AU\",\"Bottom Rail Spline Type\",\"Hem Bar Spline Type\")","v":"Hem Bar Spline Type"},null,"€","← Select Hem Bar Spline Type"]
[{"$f":"IF(N30=\"HIDE\",0,1)","v":1},null,{"$f":"IF(AND(H30=1,N30=\"SHOW\"),1,IF(AND(LEN(S30)>0,N30<>\"HIDE\"),1,0))","v":1},null,null,null,null,1,null,null,null,null,null,{"$f":"IF(ISNUMBER(SEARCH(K30,INDIRECT(I30))),\"HIDE\",\"SHOW\")","v":"SHOW"},null,null,null,{"$f":"IF(i_Location=\"US\",\"Bottom Rail Accessories\",\"Weight Bar Accessories\")","v":"Weight Bar Accessories"},null,"€","← Select Weight Bar Accessories"]
[0,null,{"$f":"IF(AND(LEN(S30)>0,N31<>\"HIDE\"),1,0)","v":0},null,null,null,null,null,null,null,null,null,null,"HIDE",null,null,null,"Weight Bar Spline",null,"€","← Select Weight Bar Spline"]
[{"$f":"IF(N32=\"HIDE\",0,1)","v":1},null,{"$f":"IF(AND(H32=1,N32=\"SHOW\"),1,IF(AND(LEN(S32)>0,N32<>\"HIDE\"),1,0))","v":1},null,null,null,null,1,null,null,null,null,null,"SHOW",null,null,null,"Tension Lock",null,"€","← Select Tension Lock"]
[{"$f":"IF(N33=\"HIDE\",0,1)","v":1},null,{"$f":"IF(AND(H33=1,N33=\"SHOW\"),1,IF(AND(LEN(S33)>0,N33<>\"HIDE\"),1,0))","v":1},null,null,null,null,1,null,null,null,null,null,"SHOW",null,null,null,"PreTension Tool",null,"€",{"$f":"\"← Select \"&R33","v":"← Select PreTension Tool"}]
[{"$f":"IF(N34=\"HIDE\",0,1)","v":1},null,{"$f":"IF(AND(H34=1,N34=\"SHOW\"),1,IF(AND(LEN(S34)>0,N34<>\"HIDE\"),1,0))","v":1},null,null,null,null,1,null,null,null,null,null,"SHOW",null,null,null,"Spanner Tool",null,"€",{"$f":"\"← Select \"&R34","v":"← Select Spanner Tool"}]
[0,null,{"$f":"IF(AND(H35=1,N35=\"SHOW\"),1,IF(AND(LEN(S35)>0,N35<>\"HIDE\"),1,0))","v":0},null,null,null,null,1,"i_location",null,"US",null,null,{"$f":"IF(ISNUMBER(SEARCH(K35,INDIRECT(I35))),\"SHOW\",\"HIDE\")","v":"HIDE"},null,null,null,"Control Cap",null,"€","← Select Control Cap"]
[0,null,0,null,null,null,null,null,null,null,null,null,null,"HIDE",null,null,null,"Finish",null,"€",{"$f":"\"← Select \"&R36","v":"← Select Finish"}]
[{"$f":"IF(N37=\"HIDE\",0,1)","v":0},null,{"$f":"IF(AND(H37=1,N37=\"SHOW\"),1,IF(AND(LEN(S37)>0,N37<>\"HIDE\"),1,0))","v":0},null,null,null,null,1,"i_Finish",null,"Powdercoat",null,null,{"$f":"IF(ISNUMBER(SEARCH(K37,INDIRECT(I37))),\"SHOW\",\"HIDE\")","v":"HIDE"},null,null,null,"Colour",null,"€",{"$f":"\"← Select \"&R37","v":"← Select Colour"}]
[1,null,1,null,null,null,null,null,null,null,null,null,null,null,null,null,null,null,0]
[{"$f":"IF(N39=\"HIDE\",0,1)","v":0},null,{"$f":"IF(AND(LEN(S39)>0,N39<>\"HIDE\"),1,0)","v":0},null,null,null,null,null,"i_Location",null,"AU",null,null,{"$f":"IF(SUMPRODUCT(--ISNUMBER(SEARCH(K39,INDIRECT(I39)))),\"SHOW\",\"HIDE\")","v":"HIDE"},null,null,null,"HARDWARE DISCOUNT",0,null,"← Enter Discount %"]
[{"$f":"IF(N40=\"HIDE\",0,1)","v":0},null,{"$f":"IF(AND(LEN(S40)>0,N40<>\"HIDE\"),1,0)","v":0},null,null,null,null,null,null,null,null,null,null,"HIDE",null,null,null,"AUTOMATE DISCOUNT",0,null,"← Enter Discount %"]
[null,null,null,null,null,null,null,null,"i_Location",null,"AU",null,null,{"$f":"IF(SUMPRODUCT(--ISNUMBER(SEARCH(K41,INDIRECT(I41)))),\"SHOW\",\"HIDE\")","v":"HIDE"},null,null,null,"SHOW PRICING","Yes",null,"← Select if pricing is to be shown on BOM"]
[0,null,0,null,null,null,null,null,null,null,null,null,null,"HIDE",null,null,null,"SYSTEM QTY",1,null,"← Enter QTY Required"]
[]
[null,null,null,null,null,null,null,null,null,null,null,null,null,"HIDE",null,null,null,"CALCULATOR"]
[null,null,null,null,null,null,null,null,null,null,null,null,null,"HIDE",null,null,null,"Booster Pre-turns",{"$f":"IF(i_ControlType=\"Spring\",Calc_Reference_excl!BA38,\"\")","v":""},null,"Turns"]
[null,null,null,null,null,null,null,null,null,null,null,null,null,"HIDE",null,null,null,"Motor cycle time (1-way)",null,null,"sec"]
[null,null,null,null,null,null,null,null,null,null,null,null,null,"HIDE",null,null,null,"Tube Deflection",{"$f":"(5/384)*((g*(Fabric_Density*o_BlindDropm+Tube_UnitMass+wb_UnitMass)*o_BlindWidthm^4)/Tube_IE)*1000","v":{"$error":"#REF!"}},null,"mm"]
[null,null,null,null,null,null,null,null,null,null,null,null,null,"HIDE",null,null,null,"Roll Diameter",null,null,"mm",null,"including zip (if applicable) - data bar needs to be box/open bracket limit"]
[null,null,null,null,null,null,null,null,null,null,null,null,null,"SHOW"]
[null,null,null,null,null,null,null,null,null,null,null,null,null,null,null,null,null,"LEGEND","INSTRUCTIONS"]
[null,null,null,null,null,null,null,null,null,null,null,null,null,null,null,null,null,"OPTIONAL FIELD","STEP 1: In order to obtain cutting lists, ensure all required fields are filled in"]
["Row # of First Option",null,{"$f":"ROW(R7)","v":7},null,null,null,null,null,null,null,null,null,null,null,null,null,null,"REQUIRED FIELD","STEP 2: Once Inputs are completed, click SUBMIT button to generate Bill of Materials & Cutting List",null,null,null,"For other fabrics, refer to Pre-tension Charts for Booster and Pre-turn recommendations."]
["Row # of Last Option",null,{"$f":"ROW(i_Finish)","v":36}]
[null,null,null,null,null,null,null,null,null,null,null,null,null,null,null,null,null,"NOTE: Microsoft Excel 2016 or later required for complete functionality. MACROS MUST BE ENABLED."]
[null,null,null,null,null,null,null,null,null,null,null,null,{"$f":"IF(SUM(O9:O39)>=1,\"Warnings\",\"No Warnings\")","v":"No Warnings"},null,null,null,null,"DISCLAIMER: Rollease Acmeda has used reasonable care in preparing the information included in this workbook, but makes no representations or warranties as to the completeness or accuracy of the information. Information is supplied upon the condition that the persons receiving the information will make their own determination as to is suitability for their purposes prior to use. Rollease Acmeda assumes no liability whatsoever for any damages incurred by you resulting from errors in or omissions from the information included herein. The pricing tool is an indicative estimation only based on selections and does not account for indicidental wastage. Rollease Acmeda reserves the right to make changes without further notice to any products to improve the reliability, function or design."]
[]
[null,null,"={IF(SUMPRODUCT(--ISNUMBER(SEARCH(E42,INDIRECT(D42)))),\"HIDE\",\"SHOW\")}"]
[null,null,"=IF(AND(ISNUMBER(SEARCH(K20,@INDIRECT(I20))),(D20=@INDIRECT($D$7))),\"SHOW\",\"HIDE\")"]

{"sheet":"BOM","index":2,"n_rows":262,"n_cols":86,"rows_kept":262,"cut":false,"hidden":true,"merged":[[8,77,9,77],[8,68,9,68],[8,75,9,75],[8,74,9,74],[8,76,9,76],[91,73,92,73],[91,71,92,71],[8,72,9,72],[91,72,92,72],[8,73,9,73],[8,71,9,71],[2,2,6,2],[2,25,6,25],[2,33,6,33],[8,26,8,31],[9,13,9,14],[9,15,9,16],[8,3,8,23],[9,3,9,4],[9,5,9,6],[9,7,9,8],[9,9,9,10],[9,11,9,12],[9,17,9,18],[9,19,9,20],[9,21,9,22],[13,34,13,42],[8,34,8,48],[8,58,9,58],[8,57,9,57],[8,56,9,56],[8,54,9,54],[9,45,10,45],[91,56,92,56],[91,54,92,54],[8,64,9,64],[8,70,9,70],[8,63,9,63],[8,65,9,65],[8,59,9,59],[8,60,9,60],[8,61,9,61],[8,66,9,66],[8,62,9,62],[8,67,9,67],[8,69,9,69]]}
["HIDE","HIDE","HIDE","HIDE","HIDE","HIDE","HIDE","HIDE","HIDE","HIDE","HIDE","HIDE","HIDE","HIDE","HIDE","HIDE","HIDE","HIDE","HIDE","HIDE","HIDE","HIDE","HIDE","HIDE","HIDE","HIDE","HIDE","HIDE","HIDE","HIDE","HIDE","HIDE","HIDE","HIDE","HIDE","HIDE","HIDE","HIDE","HIDE","HIDE","HIDE","HIDE","HIDE","HIDE","HIDE","HIDE","HIDE","HIDE","HIDE","HIDE","HIDE","HIDE","HIDE","HIDE","HIDE",null,null,null,"HIDE","HIDE","HIDE","HIDE","HIDE","HIDE",{"$f":"IF(i_Units=\"Metric\",\"SHOW\",\"HIDE\")","v":"HIDE"},{"$f":"IF(i_Units=\"Imperial\",\"SHOW\",\"HIDE\")","v":"HIDE"},null,"HIDE","HIDE","HIDE","HIDE","HIDE","HIDE",null,"HIDE","HIDE","HIDE",{"$f":"IF(AND(i_Pricing=\"Yes\",i_Location=\"AU\"),\"SHOW\",\"HIDE\")","v":"HIDE"},null,"HIDE","HIDE","HIDE","HIDE","HIDE","HIDE","HIDE"]
[null,null,null,null,null,null,null,null,null,null,null,null,null,null,null,null,null,null,null,null,null,null,null,null,null,null,null,null,null,null,null,null,null,null,null,null,null,null,null,null,null,null,null,null,null,null,null,null,null,null,"SHOW"]
[null,null,"CONDITIONS",null,null,null,null,null,null,null,null,null,null,null,null,null,null,null,null,null,null,null,null,null,null,"QTY",null,null,null,null,null,null,null,"COLOURS",null,null,null,null,null,null,null,null,null,null,null,null,null,null,null,null,"SHOW",null,null,null,null,null,null,"Customers Name:",null,null,null,null,null,null,{"$f":"IF(i_CustName=0,\"\",i_CustName)","v":""},{"$f":"IF(i_CustName=0,\"\",i_CustName)","v":""}]
[null,null,null,null,null,null,null,null,null,null,null,null,null,null,null,null,null,null,null,null,null,null,null,null,null,null,null,null,null,null,null,null,null,null,null,null,null,null,null,null,null,null,null,null,null,null,null,null,null,null,"SHOW",null,null,null,null,null,null,"Job Number:",null,null,null,null,null,null,{"$f":"IF(i_JobNumber=0,\"\",i_JobNumber)","v":""},{"$f":"IF(i_JobNumber=0,\"\",i_JobNumber)","v":""}]
[null,null,null,null,null,null,null,null,null,null,null,null,null,null,null,null,null,null,null,null,null,null,null,null,null,null,null,null,null,null,null,null,null,null,null,null,null,null,null,null,null,null,null,null,null,null,null,null,null,null,"SHOW",null,null,null,null,null,null,"Blind Width:",null,null,null,null,null,null,{"$f":"o_Widthmm","v":0},{"$f":"TEXT(o_Widthin,\"0\"&IF(ABS(o_Widthin-ROUND(o_Widthin,0))>1/32,\"-0/\"&CHOOSE(ROUND(MOD(o_Widthin,1)*16,0),16,8,16,4,16,8,16,2,16,8,16,4,16,8,16),\"\"))","v":"0"},{"$f":"INDEX(T_UnitSelection[Units],MATCH(i_Units,T_UnitSelection[UnitSelection],0))","v":{"$error":"#N/A"}}]
[null,null,null,null,null,null,null,null,null,null,null,null,null,null,null,null,null,null,null,null,null,null,null,null,null,null,null,null,null,null,null,null,null,null,null,null,null,null,null,null,null,null,null,null,null,null,null,null,null,null,"SHOW",null,null,null,null,null,null,"Blind Drop:",null,null,null,null,null,null,{"$f":"o_Dropmm","v":0},{"$f":"TEXT(o_Dropin,\"0\"&IF(ABS(o_Dropin-ROUND(o_Dropin,0))>1/32,\"-0/\"&CHOOSE(ROUND(MOD(o_Dropin,1)*16,0),16,8,16,4,16,8,16,2,16,8,16,4,16,8,16),\"\"))","v":"0"},{"$f":"INDEX(T_UnitSelection[Units],MATCH(i_Units,T_UnitSelection[UnitSelection],0))","v":{"$error":"#N/A"}}]
[null,null,null,null,null,null,null,null,null,null,null,null,null,null,null,null,null,null,null,null,null,null,null,null,null,null,null,null,null,null,null,null,null,null,null,null,null,null,null,null,null,null,null,null,null,null,null,null,null,null,"SHOW",null,null,null,null,null,{"$f":"i_OpenBktStyle&\", \"&MID(i_ControlType,19,30)&\", \"&i_Tube&\" Tube, \"&i_IdlerType&\", \"&i_WeightBar","v":", ,  Tube, , "}]
[null,null,null,null,null,null,null,null,null,null,null,null,null,null,null,null,null,null,null,null,null,null,null,null,null,null,null,null,null,null,null,null,null,null,null,null,null,null,null,null,null,null,null,null,null,null,null,null,null,null,"SHOW"]
[null,null,null,"ROW HIDE/SHOW CONDITIONS",null,null,null,null,null,null,null,null,null,null,null,null,null,null,null,null,null,null,null,null,null,null,"QTY Modifiers",null,null,null,null,null,null,null,"Colour Selection",null,null,null,null,null,null,null,null,null,null,null,null,null,null,null,"SHOW",null,null,null,"PART NUMBER for NAV costs",null,"PART NUMBER","DESCRIPTION","Std Lengths (meters)","CutList?","Deduction Type","Deduction Lookup","Deduc Type","Cut length (mm)","CUT LENGTH\n(mm)","CUT LENGTH (in)","U.O.M","Supplied UOM","secondary UoM","UoM SWAP?","Discount","QTY (Base)","QTY / SYSTEM","Total QTY","unit/metre lookup cost",{"$f":"\"LINE COST\n(\"&i_Currency&\")\"","v":{"$error":"#N/A"}},{"$f":"\"$ Discount (\"&i_Currency&\")\"","v":{"$error":"#N/A"}},{"$f":"\"LINE COST\n(\"&i_Currency&\")\"","v":{"$error":"#N/A"}}]
[null,null,"RowCtrl","Condition_1",null,"Condition_2",null,"Condition_3",null,"Condition_4",null,"Condition_5",null,"Condition_6",null,"Condition_7",null,"Condition_8",null,"Condition_9",null,"Condition_10",null,null,null,null,"Links","Distance","Other Rules_1","Other Rules_x","QTY Factor.","Comments",null,null,null,null,null,null,null,null,null,null,null,null,"System Default",null,null,null,null,null,"SHOW",null,null,null,null,null,null,null,null,null,null,null,null,null,null,null,null,null,null,null,null,null,null,null,"COST $$$"]
[null,null,null,null,null,null,null,null,null,null,null,null,null,null,null,null,null,null,null,null,null,null,null,null,null,null,null,null,null,null,null,null,null,null,"Fallback ",null,null,null,null,null,null,null,null,null,"Black",null,null,null,null,null,{"$f":"IF(AND(ISBLANK(BC11),ISBLANK(C11)),\"HIDE\",_xlfn.SWITCH(PRODUCT(C11:Z11,B11),2,\"HEADING\",1,\"SHOW\",0,\"HIDE\"))","v":"HIDE"}]
[null,"2=heading",null,null,null,null,null,null,null,null,null,null,null,null,null,null,null,null,null,null,null,null,null,null,null,null,null,"i_Width","i_Drop",null,null,null,null,null,"Colour",null,null,null,null,null,null,null,null,null,null,null,null,null,null,null,{"$f":"IF(AND(ISBLANK(BC12),ISBLANK(C12)),\"HIDE\",_xlfn.SWITCH(PRODUCT(C12:Z12,B12),2,\"HEADING\",1,\"SHOW\",0,\"HIDE\"))","v":"HIDE"},null,null,null,null,null,null,null,null,null,null,null,null,null,"&\" (x\"&BT17&\")\""]
[null,null,null,null,null,null,null,null,null,null,null,null,null,null,null,null,null,null,null,null,null,null,null,null,null,null,null,{"$f":"IF(i_Units=\"Metric\",i_Width,CONVERT(i_Width,\"in\",\"mm\"))","v":0},{"$f":"IF(i_Units=\"Metric\",i_Drop,CONVERT(i_Drop,\"in\",\"mm\"))","v":0},null,null,null,null,null,1,2,3,4,5,6,7,8,9,null,null,null,null,null,null,null,{"$f":"IF(AND(ISBLANK(BC13),ISBLANK(C13)),\"HIDE\",_xlfn.SWITCH(PRODUCT(C13:Z13,B13),2,\"HEADING\",1,\"SHOW\",0,\"HIDE\"))","v":"HIDE"},null,null,null,null,null,null,null,null,null,null,null,null,null,"mm","in"]
[null,null,null,null,null,null,null,null,null,null,null,null,null,null,null,null,null,null,null,null,null,null,null,null,null,null,null,null,null,null,null,null,null,null,"COLOUR OPTIONS",null,null,null,null,null,null,null,null,"LOC.","DEFAULT","Col_IN Selec",null,"Col_OUT Desc","Col_OUT Code",null,{"$f":"IF(AND(ISBLANK(BC14),ISBLANK(C14)),\"HIDE\",_xlfn.SWITCH(PRODUCT(C14:Z14,B14),2,\"HEADING\",1,\"SHOW\",0,\"HIDE\"))","v":"HIDE"},null,null,null,null,null,null,null,null,null,null,null,null,null,"potential QTY column"]
[null,2,{"$f":"C16","v":0},null,null,null,null,null,null,null,null,null,null,null,null,null,null,null,null,null,null,null,null,null,null,null,null,null,null,null,{"$f":"IFERROR(IF(AND(AA15=\"Y\",PRODUCT(AB15:AD15)=0),o_nScreens,IF(PRODUCT(AB15:AD15)=0,\"\",PRODUCT(AB15:AD15))),\"\")","v":""},null,null,null,null,null,null,null,null,null,null,null,null,null,{"$f":"IF(ISNUMBER(FIND(\"x\",BE15)),IFERROR(INDEX(AI15:AQ15,0,MATCH(AT15,AI15:AQ15,0)),IF(AI15<>\"\",AI15,i_DefaultColour)),\"\")","v":""},null,null,{"$f":"IF(ISNUMBER(FIND(\"x\",BE15)),IFERROR(INDEX(AI15:AQ15,0,MATCH(AT15,AI15:AQ15,0)),AS15),\"\")","v":""},{"$f":"IF(ISNUMBER(FIND(\"x\",BE15)),IFERROR(INDEX(INDIRECT(\"T_FinishColour[ColourCode-\"&IF(ISNUMBER(FIND(\"xxx\",BE15)),\"xxx\",IF(ISNUMBER(FIND(\"xx\",BE15)),\"xx\",\"error\"))&AR15&\"]\"),MATCH(AV15,T_FinishColour[Finish / Colour],0)),\"\"),\"\")","v":""},null,{"$f":"IF(AND(ISBLANK(BC15),ISBLANK(C15)),\"HIDE\",_xlfn.SWITCH(PRODUCT(C15:Z15,B15),2,\"HEADING\",1,\"SHOW\",0,\"HIDE\"))","v":"HIDE"},null,null,null,{"$f":"_xlfn.IFNA(SUBSTITUTE(IF(AR15=\"AU\",SUBSTITUTE(BE15,\"xxx\",AW15),SUBSTITUTE(SUBSTITUTE(BE15,\"xx\",AW15),\"x\",\"\")),\"LLL\",\"580\"),BE15)","v":""},null,null,null,null,{"$f":"IF(ISBLANK(BO15),\"\",IF(OR(BO15=L_Units),\"Y\",\"N\"))","v":""},null,{"$f":"IFERROR(_xlfn.SINGLE(IF(BH15=\"Y\",((INDEX(#REF!,MATCH(BI15,#REF!,0),0))),\"\")),\"\")","v":""},null,{"$f":"IFERROR(IF(BH15=\"Y\",INDIRECT(BK15)-BJ15,\"\"),\"\")","v":""},{"$f":"IFERROR(IF(BH15=\"Y\",BL15,\"\"),\"\")","v":""},{"$f":"IFERROR(IF(BH15=\"Y\",TEXT(BL15/25.4,\"0\"&IF(ABS(BL15/25.4-ROUND(BL15/25.4,0))>1/32,\"-0/\"&CHOOSE(ROUND(MOD(BL15/25.4,1)*16,0),16,8,16,4,16,8,16,2,16,8,16,4,16,8,16),\"\")),\"\"),\"\")","v":""},null,{"$f":"IFERROR(IF(ISBLANK(BC15),\"\",INDEX(T_NAV_AU[Base Unit of Measure],MATCH(BC15,T_NAV_AU[No.],0))),\"\")","v":""},null,null,null,null,{"$f":"IF(ISBLANK(BT15),\"\",PRODUCT(AE15,BT15))","v":""},{"$f":"IF(ISBLANK(BT15),\"\",PRODUCT(AE15,BT15,i_systemQTY))","v":""},{"$f":"IFERROR(INDEX(INDIRECT(\"T_NAV_\"&i_Location&\"[\"&i_Location&\"]\"),MATCH(1,--(BC15=INDIRECT(\"T_NAV_\"&i_Location&\"[No.]\"))*--((INDIRECT(\"T_NAV_\"&i_Location&\"[\"&i_Location&\"]\"))<>\"\"),0))/IF(AND(BQ15=\"METRE\",BG15<>\"\",BR15=\"\"),BG15,1),\"\")","v":""},{"$f":"IFERROR(IF(AND(AY15=\"SHOW\",BW15<>\"\"),BW15*BV15*IF(AND(BM15<>\"\",OR(BP15=\"LENGTH\",BP15=\"METRE\",BP15=\"ROLL\")),(BL15/1000),1),\"\"),\"\")","v":""},{"$f":"IF(BX15<>\"\",(INDIRECT(\"i_\"&BS15&\"discount\"))*BX15,\"\")","v":""},{"$f":"IFERROR(IF(BX15<>\"\",BX15-BY15,\"\"),\"\")","v":""}]
[null,2,{"$f":"IF(COUNTIF(AY17:AY22,\"SHOW\")>0,1,0)","v":0},"i_InstallationType",null,"i_OpenBktCovers",null,"i_OpenBktStyle",null,null,null,null,null,null,null,null,null,null,null,null,null,null,null,null,null,null,null,null,null,null,"",null,null,null,null,null,null,null,null,null,null,null,null,null,{"$f":"IF(ISNUMBER(FIND(\"x\",BE16)),IFERROR(INDEX(AI16:AQ16,0,MATCH(AT16,AI16:AQ16,0)),IF(AI16<>\"\",AI16,i_DefaultColour)),\"\")","v":""},null,null,{"$f":"IF(ISNUMBER(FIND(\"x\",BE16)),IFERROR(INDEX(AI16:AQ16,0,MATCH(AT16,AI16:AQ16,0)),AS16),\"\")","v":""},{"$f":"IF(ISNUMBER(FIND(\"x\",BE16)),IFERROR(INDEX(INDIRECT(\"T_FinishColour[ColourCode-\"&IF(ISNUMBER(FIND(\"xxx\",BE16)),\"xxx\",IF(ISNUMBER(FIND(\"xx\",BE16)),\"xx\",\"error\"))&AR16&\"]\"),MATCH(AV16,T_FinishColour[Finish / Colour],0)),\"\"),\"\")","v":""},null,{"$f":"IF(AND(ISBLANK(BC16),ISBLANK(C16)),\"HIDE\",_xlfn.SWITCH(PRODUCT(C16:Z16,B16),2,\"HEADING\",1,\"SHOW\",0,\"HIDE\"))","v":"HIDE"},null,null,null,{"$f":"_xlfn.IFNA(SUBSTITUTE(IF(AR16=\"AU\",SUBSTITUTE(BE16,\"xxx\",AW16),SUBSTITUTE(SUBSTITUTE(BE16,\"xx\",AW16),\"x\",\"\")),\"LLL\",\"580\"),BE16)","v":"BRACKETS"},null,"BRACKETS",null,null,null,null,{"$f":"IFERROR(_xlfn.SINGLE(IF(BH16=\"Y\",((INDEX(#REF!,MATCH(BI16,#REF!,0),0))),\"\")),\"\")","v":""},null,"","","",null,{"$f":"IFERROR(IF(ISBLANK(BC16),\"\",INDEX(T_NAV_AU[Base Unit of Measure],MATCH(BC16,T_NAV_AU[No.],0))),\"\")","v":""},null,null,null,null,"","",{"$f":"IFERROR(INDEX(INDIRECT(\"T_NAV_\"&i_Location&\"[\"&i_Location&\"]\"),MATCH(1,--(BC16=INDIRECT(\"T_NAV_\"&i_Location&\"[No.]\"))*--((INDIRECT(\"T_NAV_\"&i_Location&\"[\"&i_Location&\"]\"))<>\"\"),0))/IF(AND(BQ16=\"METRE\",BG16<>\"\",BR16=\"\"),BG16,1),\"\")","v":""},"","",""]
[null,null,null,"Open",{"$f":"IFERROR(IF(ISBLANK(D17),\"\",IF(FIND(D17,INDIRECT($D$16))>0,1,0)),0)","v":0},null,{"$f":"IFERROR(IF(ISBLANK(F17),\"\",IF(FIND(F17,INDIRECT($F$16))>0,1,0)),0)","v":""},"1.5\"",{"$f":"IFERROR(IF(ISBLANK(H17),\"\",IF(FIND(H17,INDIRECT($H$16))>0,1,0)),0)","v":0},null,null,null,null,null,null,null,null,null,null,null,null,null,null,null,null,null,null,null,null,null,"",null,null,null,"White",null,null,null,null,null,null,null,null,"AU","White",{"$f":"i_Finish","v":0},null,"White",{"$f":"IF(ISNUMBER(FIND(\"x\",BE17)),IFERROR(INDEX(INDIRECT(\"T_FinishColour[ColourCode-\"&IF(ISNUMBER(FIND(\"xxx\",BE17)),\"xxx\",IF(ISNUMBER(FIND(\"xx\",BE17)),\"xx\",\"error\"))&AR17&\"]\"),MATCH(AV17,T_FinishColour[Finish / Colour],0)),\"\"),\"\")","v":""},null,{"$f":"IF(AND(ISBLANK(BC17),ISBLANK(C17)),\"HIDE\",_xlfn.SWITCH(PRODUCT(C17:Z17,B17),2,\"HEADING\",1,\"SHOW\",0,\"HIDE\"))","v":"HIDE"},null,null,null,{"$f":"_xlfn.IFNA(SUBSTITUTE(IF(AR17=\"AU\",SUBSTITUTE(BE17,\"xxx\",AW17),SUBSTITUTE(SUBSTITUTE(BE17,\"xx\",AW17),\"x\",\"\")),\"LLL\",BG17*100),BE17)","v":"SLB660xx"},null,"SLB660xx","Skyline 1.5\" Brackets",null,{"$f":"IF(ISBLANK(BO17),\"\",IF(OR(BO17=L_Units),\"Y\",\"N\"))","v":"N"},null,{"$f":"IFERROR(_xlfn.SINGLE(IF(BH17=\"Y\",((INDEX(#REF!,MATCH(BI17,#REF!,0),0))),\"\")),\"\")","v":""},null,"","","","Piece",{"$f":"IFERROR(IF(ISBLANK(BC17),\"\",INDEX(T_NAV_AU[Base Unit of Measure],MATCH(BC17,T_NAV_AU[No.],0))),\"\")","v":""},null,null,"HW",2,2,2,{"$f":"IFERROR(INDEX(INDIRECT(\"T_NAV_\"&i_Location&\"[\"&i_Location&\"]\"),MATCH(1,--(BC17=INDIRECT(\"T_NAV_\"&i_Location&\"[No.]\"))*--((INDIRECT(\"T_NAV_\"&i_Location&\"[\"&i_Location&\"]\"))<>\"\"),0))/IF(AND(BQ17=\"METRE\",BG17<>\"\",BR17=\"\"),BG17,1),\"\")","v":""},"","",""]
[null,null,null,"Open",0,"Yes",{"$f":"IFERROR(IF(ISBLANK(F18),\"\",IF(FIND(F18,INDIRECT($F$16))>0,1,0)),0)","v":0},"1.5\"",0,null,null,null,null,null,null,null,null,null,null,null,null,null,null,null,null,null,null,null,null,null,"",null,null,null,"White",null,null,null,null,null,null,null,null,"AU",{"$f":"IF(ISNUMBER(FIND(\"x\",BE18)),IFERROR(INDEX(AI18:AQ18,0,MATCH(AT18,AI18:AQ18,0)),IF(AI18<>\"\",AI18,i_DefaultColour)),\"\")","v":"White"},0,null,{"$f":"IF(ISNUMBER(FIND(\"x\",BE18)),IFERROR(INDEX(AI18:AQ18,0,MATCH(AT18,AI18:AQ18,0)),AS18),\"\")","v":"White"},{"$f":"IF(ISNUMBER(FIND(\"x\",BE18)),IFERROR(INDEX(INDIRECT(\"T_FinishColour[ColourCode-\"&IF(ISNUMBER(FIND(\"xxx\",BE18)),\"xxx\",IF(ISNUMBER(FIND(\"xx\",BE18)),\"xx\",\"error\"))&AR18&\"]\"),MATCH(AV18,T_FinishColour[Finish / Colour],0)),\"\"),\"\")","v":""},null,{"$f":"IF(AND(ISBLANK(BC18),ISBLANK(C18)),\"HIDE\",_xlfn.SWITCH(PRODUCT(C18:Z18,B18),2,\"HEADING\",1,\"SHOW\",0,\"HIDE\"))","v":"HIDE"},null,null,null,{"$f":"_xlfn.IFNA(SUBSTITUTE(IF(AR18=\"AU\",SUBSTITUTE(BE18,\"xxx\",AW18),SUBSTITUTE(SUBSTITUTE(BE18,\"xx\",AW18),\"x\",\"\")),\"LLL\",BG18*100),BE18)","v":"SLBCxx"},null,"SLBCxx","Skyline 1.5\" Bracket Covers",null,{"$f":"IF(ISBLANK(BO18),\"\",IF(OR(BO18=L_Units),\"Y\",\"N\"))","v":"N"},null,{"$f":"IFERROR(_xlfn.SINGLE(IF(BH18=\"Y\",((INDEX(#REF!,MATCH(BI18,#REF!,0),0))),\"\")),\"\")","v":""},null,{"$f":"IFERROR(IF(BH18=\"Y\",INDIRECT(BK18)-BJ18,\"\"),\"\")","v":""},{"$f":"IFERROR(IF(BH18=\"Y\",BL18,\"\"),\"\")","v":""},{"$f":"IFERROR(IF(BH18=\"Y\",TEXT(BL18/25.4,\"0\"&IF(ABS(BL18/25.4-ROUND(BL18/25.4,0))>1/32,\"-0/\"&CHOOSE(ROUND(MOD(BL18/25.4,1)*16,0),16,8,16,4,16,8,16,2,16,8,16,4,16,8,16),\"\")),\"\"),\"\")","v":""},"Piece",{"$f":"IFERROR(IF(ISBLANK(BC18),\"\",INDEX(T_NAV_AU[Base Unit of Measure],MATCH(BC18,T_NAV_AU[No.],0))),\"\")","v":""},null,null,"HW",2,{"$f":"IF(ISBLANK(BT18),\"\",PRODUCT(AE18,BT18))","v":2},{"$f":"IF(ISBLANK(BT18),\"\",PRODUCT(AE18,BT18,i_systemQTY))","v":2},{"$f":"IFERROR(INDEX(INDIRECT(\"T_NAV_\"&i_Location&\"[\"&i_Location&\"]\"),MATCH(1,--(BC18=INDIRECT(\"T_NAV_\"&i_Location&\"[No.]\"))*--((INDIRECT(\"T_NAV_\"&i_Location&\"[\"&i_Location&\"]\"))<>\"\"),0))/IF(AND(BQ18=\"METRE\",BG18<>\"\",BR18=\"\"),BG18,1),\"\")","v":""},{"$f":"IFERROR(IF(AND(AY18=\"SHOW\",BW18<>\"\"),BW18*BV18*IF(AND(BM18<>\"\",OR(BP18=\"LENGTH\",BP18=\"METRE\",BP18=\"ROLL\")),(BL18/1000),1),\"\"),\"\")","v":""},{"$f":"IF(BX18<>\"\",(INDIRECT(\"i_\"&BS18&\"discount\"))*BX18,\"\")","v":""},{"$f":"IFERROR(IF(BX18<>\"\",BX18-BY18,\"\"),\"\")","v":""}]
[null,null,null,"Open",0,null,{"$f":"IFERROR(IF(ISBLANK(F19),\"\",IF(FIND(F19,INDIRECT($F$16))>0,1,0)),0)","v":""},"LX",{"$f":"IFERROR(IF(ISBLANK(H19),\"\",IF(FIND(H19,INDIRECT($H$16))>0,1,0)),0)","v":0},null,null,null,null,null,null,null,null,null,null,null,null,null,null,null,null,null,null,null,null,null,"",null,null,null,"White",null,null,null,null,null,null,null,null,"AU","White",0,null,"White",{"$f":"IF(ISNUMBER(FIND(\"x\",BE19)),IFERROR(INDEX(INDIRECT(\"T_FinishColour[ColourCode-\"&IF(ISNUMBER(FIND(\"xxx\",BE19)),\"xxx\",IF(ISNUMBER(FIND(\"xx\",BE19)),\"xx\",\"error\"))&AR19&\"]\"),MATCH(AV19,T_FinishColour[Finish / Colour],0)),\"\"),\"\")","v":"069"},null,{"$f":"IF(AND(ISBLANK(BC19),ISBLANK(C19)),\"HIDE\",_xlfn.SWITCH(PRODUCT(C19:Z19,B19),2,\"HEADING\",1,\"SHOW\",0,\"HIDE\"))","v":"HIDE"},null,null,null,{"$f":"_xlfn.IFNA(SUBSTITUTE(IF(AR19=\"AU\",SUBSTITUTE(BE19,\"xxx\",AW19),SUBSTITUTE(SUBSTITUTE(BE19,\"xx\",AW19),\"x\",\"\")),\"LLL\",BG19*100),BE19)","v":"SL01-0306-069040"},null,"SL01-0306-xxx040","LX Skyline Brackets",null,{"$f":"IF(ISBLANK(BO19),\"\",IF(OR(BO19=L_Units),\"Y\",\"N\"))","v":"N"},null,{"$f":"IFERROR(_xlfn.SINGLE(IF(BH19=\"Y\",((INDEX(#REF!,MATCH(BI19,#REF!,0),0))),\"\")),\"\")","v":""},null,"","","","Piece",{"$f":"IFERROR(IF(ISBLANK(BC19),\"\",INDEX(T_NAV_AU[Base Unit of Measure],MATCH(BC19,T_NAV_AU[No.],0))),\"\")","v":"PIECE"},null,null,"HW",2,2,2,{"$f":"IFERROR(INDEX(INDIRECT(\"T_NAV_\"&i_Location&\"[\"&i_Location&\"]\"),MATCH(1,--(BC19=INDIRECT(\"T_NAV_\"&i_Location&\"[No.]\"))*--((INDIRECT(\"T_NAV_\"&i_Location&\"[\"&i_Location&\"]\"))<>\"\"),0))/IF(AND(BQ19=\"METRE\",BG19<>\"\",BR19=\"\"),BG19,1),\"\")","v":""},"","",""]
[null,null,null,"Open",0,null,null,"Opulence Round Skyline",{"$f":"IFERROR(IF(ISBLANK(H20),\"\",IF(FIND(H20,INDIRECT($H$16))>0,1,0)),0)","v":0},null,null,null,null,null,null,null,null,null,null,null,null,null,null,null,null,null,null,null,null,null,null,null,null,null,"White",null,null,null,null,null,null,null,null,"AU",{"$f":"IF(ISNUMBER(FIND(\"x\",BE20)),IFERROR(INDEX(AI20:AQ20,0,MATCH(AT20,AI20:AQ20,0)),IF(AI20<>\"\",AI20,i_DefaultColour)),\"\")","v":"White"},0,null,{"$f":"IF(ISNUMBER(FIND(\"x\",BE20)),IFERROR(INDEX(AI20:AQ20,0,MATCH(AT20,AI20:AQ20,0)),AS20),\"\")","v":"White"},{"$f":"IF(ISNUMBER(FIND(\"x\",BE20)),IFERROR(INDEX(INDIRECT(\"T_FinishColour[ColourCode-\"&IF(ISNUMBER(FIND(\"xxx\",BE20)),\"xxx\",IF(ISNUMBER(FIND(\"xx\",BE20)),\"xx\",\"error\"))&AR20&\"]\"),MATCH(AV20,T_FinishColour[Finish / Colour],0)),\"\"),\"\")","v":"069"},null,{"$f":"IF(AND(ISBLANK(BC20),ISBLANK(C20)),\"HIDE\",_xlfn.SWITCH(PRODUCT(C20:Z20,B20),2,\"HEADING\",1,\"SHOW\",0,\"HIDE\"))","v":"HIDE"},null,null,null,{"$f":"_xlfn.IFNA(SUBSTITUTE(IF(AR20=\"AU\",SUBSTITUTE(BE20,\"xxx\",AW20),SUBSTITUTE(SUBSTITUTE(BE20,\"xx\",AW20),\"x\",\"\")),\"LLL\",BG20*100),BE20)","v":"SL01-9013-069045"},null,"SL01-9013-xxx045","Skyline Opulence Round Bracket with Cover",null,{"$f":"IF(ISBLANK(BO20),\"\",IF(OR(BO20=L_Units),\"Y\",\"N\"))","v":"N"},null,null,null,null,null,null,"Piece",null,null,null,"HW",2,{"$f":"IF(ISBLANK(BT20),\"\",PRODUCT(AE20,BT20))","v":2},{"$f":"IF(ISBLANK(BT20),\"\",PRODUCT(AE20,BT20,i_systemQTY))","v":2}]
[null,null,null,"Open",0,null,null,"Opulence Square Skyline",0,null,null,null,null,null,null,null,null,null,null,null,null,null,null,null,null,null,null,null,null,null,null,null,null,null,"White",null,null,null,null,null,null,null,null,"AU","White",0,null,"White",{"$f":"IF(ISNUMBER(FIND(\"x\",BE21)),IFERROR(INDEX(INDIRECT(\"T_FinishColour[ColourCode-\"&IF(ISNUMBER(FIND(\"xxx\",BE21)),\"xxx\",IF(ISNUMBER(FIND(\"xx\",BE21)),\"xx\",\"error\"))&AR21&\"]\"),MATCH(AV21,T_FinishColour[Finish / Colour],0)),\"\"),\"\")","v":"069"},null,{"$f":"IF(AND(ISBLANK(BC21),ISBLANK(C21)),\"HIDE\",_xlfn.SWITCH(PRODUCT(C21:Z21,B21),2,\"HEADING\",1,\"SHOW\",0,\"HIDE\"))","v":"HIDE"},null,null,null,"SL01-9023-069045",null,"SL01-9023-xxx045","Skyline Opulence Square Bracket with Cover",null,{"$f":"IF(ISBLANK(BO21),\"\",IF(OR(BO21=L_Units),\"Y\",\"N\"))","v":"N"},null,null,null,null,null,null,"Piece",null,null,null,"HW",2,2,2]
[null,null,null,"Open",0,"Yes",{"$f":"IFERROR(IF(ISBLANK(F22),\"\",IF(FIND(F22,INDIRECT($F$16))>0,1,0)),0)","v":0},"LX",0,null,null,null,null,null,null,null,null,null,null,null,null,null,null,null,null,null,null,null,null,null,"",null,null,null,"White",null,null,null,null,null,null,null,null,"AU",{"$f":"IF(ISNUMBER(FIND(\"x\",BE22)),IFERROR(INDEX(AI22:AQ22,0,MATCH(AT22,AI22:AQ22,0)),IF(AI22<>\"\",AI22,i_DefaultColour)),\"\")","v":"White"},0,null,{"$f":"IF(ISNUMBER(FIND(\"x\",BE22)),IFERROR(INDEX(AI22:AQ22,0,MATCH(AT22,AI22:AQ22,0)),AS22),\"\")","v":"White"},{"$f":"IF(ISNUMBER(FIND(\"x\",BE22)),IFERROR(INDEX(INDIRECT(\"T_FinishColour[ColourCode-\"&IF(ISNUMBER(FIND(\"xxx\",BE22)),\"xxx\",IF(ISNUMBER(FIND(\"xx\",BE22)),\"xx\",\"error\"))&AR22&\"]\"),MATCH(AV22,T_FinishColour[Finish / Colour],0)),\"\"),\"\")","v":"069"},null,{"$f":"IF(AND(ISBLANK(BC22),ISBLANK(C22)),\"HIDE\",_xlfn.SWITCH(PRODUCT(C22:Z22,B22),2,\"HEADING\",1,\"SHOW\",0,\"HIDE\"))","v":"HIDE"},null,null,null,{"$f":"_xlfn.IFNA(SUBSTITUTE(IF(AR22=\"AU\",SUBSTITUTE(BE22,\"xxx\",AW22),SUBSTITUTE(SUBSTITUTE(BE22,\"xx\",AW22),\"x\",\"\")),\"LLL\",BG22*100),BE22)","v":"RB08-4151-069040"},null,"RB08-4151-xxx040","LX Bracket Covers",null,{"$f":"IF(ISBLANK(BO22),\"\",IF(OR(BO22=L_Units),\"Y\",\"N\"))","v":"N"},null,{"$f":"IFERROR(_xlfn.SINGLE(IF(BH22=\"Y\",((INDEX(#REF!,MATCH(BI22,#REF!,0),0))),\"\")),\"\")","v":""},null,{"$f":"IFERROR(IF(BH22=\"Y\",INDIRECT(BK22)-BJ22,\"\"),\"\")","v":""},{"$f":"IFERROR(IF(BH22=\"Y\",BL22,\"\"),\"\")","v":""},{"$f":"IFERROR(IF(BH22=\"Y\",TEXT(BL22/25.4,\"0\"&IF(ABS(BL22/25.4-ROUND(BL22/25.4,0))>1/32,\"-0/\"&CHOOSE(ROUND(MOD(BL22/25.4,1)*16,0),16,8,16,4,16,8,16,2,16,8,16,4,16,8,16),\"\")),\"\"),\"\")","v":""},"Pair",{"$f":"IFERROR(IF(ISBLANK(BC22),\"\",INDEX(T_NAV_AU[Base Unit of Measure],MATCH(BC22,T_NAV_AU[No.],0))),\"\")","v":"PAIR"},null,null,"HW",1,{"$f":"IF(ISBLANK(BT22),\"\",PRODUCT(AE22,BT22))","v":1},{"$f":"IF(ISBLANK(BT22),\"\",PRODUCT(AE22,BT22,i_systemQTY))","v":1},{"$f":"IFERROR(INDEX(INDIRECT(\"T_NAV_\"&i_Location&\"[\"&i_Location&\"]\"),MATCH(1,--(BC22=INDIRECT(\"T_NAV_\"&i_Location&\"[No.]\"))*--((INDIRECT(\"T_NAV_\"&i_Location&\"[\"&i_Location&\"]\"))<>\"\"),0))/IF(AND(BQ22=\"METRE\",BG22<>\"\",BR22=\"\"),BG22,1),\"\")","v":""},{"$f":"IFERROR(IF(AND(AY22=\"SHOW\",BW22<>\"\"),BW22*BV22*IF(AND(BM22<>\"\",OR(BP22=\"LENGTH\",BP22=\"METRE\",BP22=\"ROLL\")),(BL22/1000),1),\"\"),\"\")","v":""},{"$f":"IF(BX22<>\"\",(INDIRECT(\"i_\"&BS22&\"discount\"))*BX22,\"\")","v":""},{"$f":"IFERROR(IF(BX22<>\"\",BX22-BY22,\"\"),\"\")","v":""}]
[null,2,{"$f":"C24","v":0},null,null,null,null,null,null,null,null,null,null,null,null,null,null,null,null,null,null,null,null,null,null,null,null,null,null,null,"",null,null,null,null,null,null,null,null,null,null,null,null,null,"",null,null,"",{"$f":"IF(ISNUMBER(FIND(\"x\",BE23)),IFERROR(INDEX(INDIRECT(\"T_FinishColour[ColourCode-\"&IF(ISNUMBER(FIND(\"xxx\",BE23)),\"xxx\",IF(ISNUMBER(FIND(\"xx\",BE23)),\"xx\",\"error\"))&AR23&\"]\"),MATCH(AV23,T_FinishColour[Finish / Colour],0)),\"\"),\"\")","v":""},null,{"$f":"IF(AND(ISBLANK(BC23),ISBLANK(C23)),\"HIDE\",_xlfn.SWITCH(PRODUCT(C23:Z23,B23),2,\"HEADING\",1,\"SHOW\",0,\"HIDE\"))","v":"HIDE"},null,null,null,{"$f":"_xlfn.IFNA(SUBSTITUTE(IF(AR23=\"AU\",SUBSTITUTE(BE23,\"xxx\",AW23),SUBSTITUTE(SUBSTITUTE(BE23,\"xx\",AW23),\"x\",\"\")),\"LLL\",\"580\"),BE23)","v":""},null,null,null,null,{"$f":"IF(ISBLANK(BO23),\"\",IF(OR(BO23=L_Units),\"Y\",\"N\"))","v":""},null,{"$f":"IFERROR(_xlfn.SINGLE(IF(BH23=\"Y\",((INDEX(#REF!,MATCH(BI23,#REF!,0),0))),\"\")),\"\")","v":""},null,{"$f":"IFERROR(IF(BH23=\"Y\",INDIRECT(BK23)-BJ23,\"\"),\"\")","v":""},"","",null,{"$f":"IFERROR(IF(ISBLANK(BC23),\"\",INDEX(T_NAV_AU[Base Unit of Measure],MATCH(BC23,T_NAV_AU[No.],0))),\"\")","v":""},null,null,null,null,"","",{"$f":"IFERROR(INDEX(INDIRECT(\"T_NAV_\"&i_Location&\"[\"&i_Location&\"]\"),MATCH(1,--(BC23=INDIRECT(\"T_NAV_\"&i_Location&\"[No.]\"))*--((INDIRECT(\"T_NAV_\"&i_Location&\"[\"&i_Location&\"]\"))<>\"\"),0))/IF(AND(BQ23=\"METRE\",BG23<>\"\",BR23=\"\"),BG23,1),\"\")","v":""},{"$f":"IFERROR(IF(AND(AY23=\"SHOW\",BW23<>\"\"),BW23*BV23*IF(AND(BM23<>\"\",OR(BP23=\"LENGTH\",BP23=\"METRE\",BP23=\"ROLL\")),(BL23/1000),1),\"\"),\"\")","v":""},{"$f":"IF(BX23<>\"\",(INDIRECT(\"i_\"&BS23&\"discount\"))*BX23,\"\")","v":""},{"$f":"IFERROR(IF(BX23<>\"\",BX23-BY23,\"\"),\"\")","v":""}]
[null,2,{"$f":"IF(COUNTIF(AY25:AY40,\"SHOW\")>0,1,0)","v":0},"i_ControlType",null,"i_Tube",null,null,null,null,null,null,null,null,null,null,null,null,null,null,null,null,null,null,null,null,null,null,null,null,"",null,null,null,null,null,null,null,null,null,null,null,null,null,"",null,null,"",{"$f":"IF(ISNUMBER(FIND(\"x\",BE24)),IFERROR(INDEX(INDIRECT(\"T_FinishColour[ColourCode-\"&IF(ISNUMBER(FIND(\"xxx\",BE24)),\"xxx\",IF(ISNUMBER(FIND(\"xx\",BE24)),\"xx\",\"error\"))&AR24&\"]\"),MATCH(AV24,T_FinishColour[Finish / Colour],0)),\"\"),\"\")","v":""},null,{"$f":"IF(AND(ISBLANK(BC24),ISBLANK(C24)),\"HIDE\",_xlfn.SWITCH(PRODUCT(C24:Z24,B24),2,\"HEADING\",1,\"SHOW\",0,\"HIDE\"))","v":"HIDE"},null,null,null,"EASY SPRING AIR",null,"EASY SPRING AIR",null,null,null,null,{"$f":"IFERROR(_xlfn.SINGLE(IF(BH24=\"Y\",((INDEX(#REF!,MATCH(BI24,#REF!,0),0))),\"\")),\"\")","v":""},null,"","","",null,{"$f":"IFERROR(IF(ISBLANK(BC24),\"\",INDEX(T_NAV_AU[Base Unit of Measure],MATCH(BC24,T_NAV_AU[No.],0))),\"\")","v":""},null,null,null,null,"",{"$f":"IF(ISBLANK(BT24),\"\",PRODUCT(AE24,BT24,i_systemQTY))","v":""},{"$f":"IFERROR(INDEX(INDIRECT(\"T_NAV_\"&i_Location&\"[\"&i_Location&\"]\"),MATCH(1,--(BC24=INDIRECT(\"T_NAV_\"&i_Location&\"[No.]\"))*--((INDIRECT(\"T_NAV_\"&i_Location&\"[\"&i_Location&\"]\"))<>\"\"),0))/IF(AND(BQ24=\"METRE\",BG24<>\"\",BR24=\"\"),BG24,1),\"\")","v":""},"","",""]
[null,null,null,"MICRO",{"$f":"IFERROR(IF(ISBLANK(D25),\"\",IF(FIND(D25,INDIRECT($D$24))>0,1,0)),0)","v":0},"\"",{"$f":"IFERROR(IF(ISBLANK(F25),\"\",IF(FIND(F25,INDIRECT($F$24))>0,1,0)),0)","v":0},null,{"$f":"IFERROR(IF(ISBLANK(H25),\"\",IF(FIND(H25,INDIRECT($H$24))>0,1,0)),0)","v":""},null,{"$f":"IFERROR(IF(ISBLANK(J25),\"\",IF(FIND(J25,INDIRECT($J$24))>0,1,0)),0)","v":""},null,{"$f":"IFERROR(IF(ISBLANK(L25),\"\",IF(FIND(L25,INDIRECT($L$24))>0,1,0)),0)","v":""},null,null,null,null,null,null,null,null,null,null,null,null,null,null,null,null,null,"",null,null,null,"White",null,null,null,null,null,null,null,null,"AU",{"$f":"IF(ISNUMBER(FIND(\"x\",BE25)),IFERROR(INDEX(AI25:AQ25,0,MATCH(AT25,AI25:AQ25,0)),IF(AI25<>\"\",AI25,i_DefaultColour)),\"\")","v":"White"},{"$f":"i_Finish","v":0},null,{"$f":"IF(ISNUMBER(FIND(\"x\",BE25)),IFERROR(INDEX(AI25:AQ25,0,MATCH(AT25,AI25:AQ25,0)),AS25),\"\")","v":"White"},{"$f":"IF(ISNUMBER(FIND(\"x\",BE25)),IFERROR(INDEX(INDIRECT(\"T_FinishColour[ColourCode-\"&IF(ISNUMBER(FIND(\"xxx\",BE25)),\"xxx\",IF(ISNUMBER(FIND(\"xx\",BE25)),\"xx\",\"error\"))&AR25&\"]\"),MATCH(AV25,T_FinishColour[Finish / Colour],0)),\"\"),\"\")","v":"069"},null,{"$f":"IF(AND(ISBLANK(BC25),ISBLANK(C25)),\"HIDE\",_xlfn.SWITCH(PRODUCT(C25:Z25,B25),2,\"HEADING\",1,\"SHOW\",0,\"HIDE\"))","v":"HIDE"},null,null,null,"RB12-3828-069038",null,"RB12-3828-xxx038","Easy Spring Air MICRO w. Adjust - 1.5\" LH",null,{"$f":"IF(ISBLANK(BO25),\"\",IF(OR(BO25=L_Units),\"Y\",\"N\"))","v":"N"},null,{"$f":"IFERROR(_xlfn.SINGLE(IF(BH25=\"Y\",((INDEX(#REF!,MATCH(BI25,#REF!,0),0))),\"\")),\"\")","v":""},null,"",{"$f":"IFERROR(IF(BH25=\"Y\",BL25,\"\"),\"\")","v":""},{"$f":"IFERROR(IF(BH25=\"Y\",TEXT(BL25/25.4,\"0\"&IF(ABS(BL25/25.4-ROUND(BL25/25.4,0))>1/32,\"-0/\"&CHOOSE(ROUND(MOD(BL25/25.4,1)*16,0),16,8,16,4,16,8,16,2,16,8,16,4,16,8,16),\"\")),\"\"),\"\")","v":""},"Piece",{"$f":"IFERROR(IF(ISBLANK(BC25),\"\",INDEX(T_NAV_AU[Base Unit of Measure],MATCH(BC25,T_NAV_AU[No.],0))),\"\")","v":""},null,null,"HW",1,1,1,{"$f":"IFERROR(INDEX(INDIRECT(\"T_NAV_\"&i_Location&\"[\"&i_Location&\"]\"),MATCH(1,--(BC25=INDIRECT(\"T_NAV_\"&i_Location&\"[No.]\"))*--((INDIRECT(\"T_NAV_\"&i_Location&\"[\"&i_Location&\"]\"))<>\"\"),0))/IF(AND(BQ25=\"METRE\",BG25<>\"\",BR25=\"\"),BG25,1),\"\")","v":""},"","",""]
[null,null,null,"SMALL",{"$f":"IFERROR(IF(ISBLANK(D26),\"\",IF(FIND(D26,INDIRECT($D$24))>0,1,0)),0)","v":0},"\"",{"$f":"IFERROR(IF(ISBLANK(F26),\"\",IF(FIND(F26,INDIRECT($F$24))>0,1,0)),0)","v":0},null,"",null,"",null,"",null,null,null,null,null,null,null,null,null,null,null,null,null,null,null,null,null,"",null,null,null,"White",null,null,null,null,null,null,null,null,"AU",{"$f":"IF(ISNUMBER(FIND(\"x\",BE26)),IFERROR(INDEX(AI26:AQ26,0,MATCH(AT26,AI26:AQ26,0)),IF(AI26<>\"\",AI26,i_DefaultColour)),\"\")","v":"White"},0,null,{"$f":"IF(ISNUMBER(FIND(\"x\",BE26)),IFERROR(INDEX(AI26:AQ26,0,MATCH(AT26,AI26:AQ26,0)),AS26),\"\")","v":"White"},{"$f":"IF(ISNUMBER(FIND(\"x\",BE26)),IFERROR(INDEX(INDIRECT(\"T_FinishColour[ColourCode-\"&IF(ISNUMBER(FIND(\"xxx\",BE26)),\"xxx\",IF(ISNUMBER(FIND(\"xx\",BE26)),\"xx\",\"error\"))&AR26&\"]\"),MATCH(AV26,T_FinishColour[Finish / Colour],0)),\"\"),\"\")","v":"069"},null,{"$f":"IF(AND(ISBLANK(BC26),ISBLANK(C26)),\"HIDE\",_xlfn.SWITCH(PRODUCT(C26:Z26,B26),2,\"HEADING\",1,\"SHOW\",0,\"HIDE\"))","v":"HIDE"},null,null,null,{"$f":"_xlfn.IFNA(SUBSTITUTE(IF(AR26=\"AU\",SUBSTITUTE(BE26,\"xxx\",AW26),SUBSTITUTE(SUBSTITUTE(BE26,\"xx\",AW26),\"x\",\"\")),\"LLL\",\"580\"),BE26)","v":"RB12-3829-069038"},null,"RB12-3829-xxx038","Easy Spring Air SMALL w. Adjust - 1.5\" LH",null,{"$f":"IF(ISBLANK(BO26),\"\",IF(OR(BO26=L_Units),\"Y\",\"N\"))","v":"N"},null,{"$f":"IFERROR(_xlfn.SINGLE(IF(BH26=\"Y\",((INDEX(#REF!,MATCH(BI26,#REF!,0),0))),\"\")),\"\")","v":""},null,{"$f":"IFERROR(IF(BH26=\"Y\",INDIRECT(BK26)-BJ26,\"\"),\"\")","v":""},{"$f":"IFERROR(IF(BH26=\"Y\",BL26,\"\"),\"\")","v":""},{"$f":"IFERROR(IF(BH26=\"Y\",TEXT(BL26/25.4,\"0\"&IF(ABS(BL26/25.4-ROUND(BL26/25.4,0))>1/32,\"-0/\"&CHOOSE(ROUND(MOD(BL26/25.4,1)*16,0),16,8,16,4,16,8,16,2,16,8,16,4,16,8,16),\"\")),\"\"),\"\")","v":""},"Piece",{"$f":"IFERROR(IF(ISBLANK(BC26),\"\",INDEX(T_NAV_AU[Base Unit of Measure],MATCH(BC26,T_NAV_AU[No.],0))),\"\")","v":""},null,null,"HW",1,{"$f":"IF(ISBLANK(BT26),\"\",PRODUCT(AE26,BT26))","v":1},{"$f":"IF(ISBLANK(BT26),\"\",PRODUCT(AE26,BT26,i_systemQTY))","v":1},{"$f":"IFERROR(INDEX(INDIRECT(\"T_NAV_\"&i_Location&\"[\"&i_Location&\"]\"),MATCH(1,--(BC26=INDIRECT(\"T_NAV_\"&i_Location&\"[No.]\"))*--((INDIRECT(\"T_NAV_\"&i_Location&\"[\"&i_Location&\"]\"))<>\"\"),0))/IF(AND(BQ26=\"METRE\",BG26<>\"\",BR26=\"\"),BG26,1),\"\")","v":""},{"$f":"IFERROR(IF(AND(AY26=\"SHOW\",BW26<>\"\"),BW26*BV26*IF(AND(BM26<>\"\",OR(BP26=\"LENGTH\",BP26=\"METRE\",BP26=\"ROLL\")),(BL26/1000),1),\"\"),\"\")","v":""},{"$f":"IF(BX26<>\"\",(INDIRECT(\"i_\"&BS26&\"discount\"))*BX26,\"\")","v":""},{"$f":"IFERROR(IF(BX26<>\"\",BX26-BY26,\"\"),\"\")","v":""}]
[null,null,null,"MINI",0,"\"",{"$f":"IFERROR(IF(ISBLANK(F27),\"\",IF(FIND(F27,INDIRECT($F$24))>0,1,0)),0)","v":0},null,"",null,"",null,"",null,null,null,null,null,null,null,null,null,null,null,null,null,null,null,null,null,"",null,null,null,"White",null,null,null,null,null,null,null,null,"AU","White",0,null,"White",{"$f":"IF(ISNUMBER(FIND(\"x\",BE27)),IFERROR(INDEX(INDIRECT(\"T_FinishColour[ColourCode-\"&IF(ISNUMBER(FIND(\"xxx\",BE27)),\"xxx\",IF(ISNUMBER(FIND(\"xx\",BE27)),\"xx\",\"error\"))&AR27&\"]\"),MATCH(AV27,T_FinishColour[Finish / Colour],0)),\"\"),\"\")","v":"069"},null,{"$f":"IF(AND(ISBLANK(BC27),ISBLANK(C27)),\"HIDE\",_xlfn.SWITCH(PRODUCT(C27:Z27,B27),2,\"HEADING\",1,\"SHOW\",0,\"HIDE\"))","v":"HIDE"},null,null,null,"RB12-3831-069038",null,"RB12-3831-xxx038","Easy Spring Air MINI w. Adjust - 1.5\" LH",null,{"$f":"IF(ISBLANK(BO27),\"\",IF(OR(BO27=L_Units),\"Y\",\"N\"))","v":"N"},null,{"$f":"IFERROR(_xlfn.SINGLE(IF(BH27=\"Y\",((INDEX(#REF!,MATCH(BI27,#REF!,0),0))),\"\")),\"\")","v":""},null,"","","","Piece",{"$f":"IFERROR(IF(ISBLANK(BC27),\"\",INDEX(T_NAV_AU[Base Unit of Measure],MATCH(BC27,T_NAV_AU[No.],0))),\"\")","v":""},null,null,"HW",1,1,1,{"$f":"IFERROR(INDEX(INDIRECT(\"T_NAV_\"&i_Location&\"[\"&i_Location&\"]\"),MATCH(1,--(BC27=INDIRECT(\"T_NAV_\"&i_Location&\"[No.]\"))*--((INDIRECT(\"T_NAV_\"&i_Location&\"[\"&i_Location&\"]\"))<>\"\"),0))/IF(AND(BQ27=\"METRE\",BG27<>\"\",BR27=\"\"),BG27,1),\"\")","v":""},"","",""]
[null,null,null,"LIGHT",{"$f":"IFERROR(IF(ISBLANK(D28),\"\",IF(FIND(D28,INDIRECT($D$24))>0,1,0)),0)","v":0},"\"",0,null,"",null,"",null,"",null,null,null,null,null,null,null,null,null,null,null,null,null,null,null,null,null,"",null,null,null,"White",null,null,null,null,null,null,null,null,"AU","White",0,null,"White",{"$f":"IF(ISNUMBER(FIND(\"x\",BE28)),IFERROR(INDEX(INDIRECT(\"T_FinishColour[ColourCode-\"&IF(ISNUMBER(FIND(\"xxx\",BE28)),\"xxx\",IF(ISNUMBER(FIND(\"xx\",BE28)),\"xx\",\"error\"))&AR28&\"]\"),MATCH(AV28,T_FinishColour[Finish / Colour],0)),\"\"),\"\")","v":"069"},null,{"$f":"IF(AND(ISBLANK(BC28),ISBLANK(C28)),\"HIDE\",_xlfn.SWITCH(PRODUCT(C28:Z28,B28),2,\"HEADING\",1,\"SHOW\",0,\"HIDE\"))","v":"HIDE"},null,null,null,"RB12-3832-069038",null,"RB12-3832-xxx038","Easy Spring Air LIGHT w. Adjust - 1.5\" LH",null,{"$f":"IF(ISBLANK(BO28),\"\",IF(OR(BO28=L_Units),\"Y\",\"N\"))","v":"N"},null,{"$f":"IFERROR(_xlfn.SINGLE(IF(BH28=\"Y\",((INDEX(#REF!,MATCH(BI28,#REF!,0),0))),\"\")),\"\")","v":""},null,"","","","Piece",{"$f":"IFERROR(IF(ISBLANK(BC28),\"\",INDEX(T_NAV_AU[Base Unit of Measure],MATCH(BC28,T_NAV_AU[No.],0))),\"\")","v":""},null,null,"HW",1,1,1,{"$f":"IFERROR(INDEX(INDIRECT(\"T_NAV_\"&i_Location&\"[\"&i_Location&\"]\"),MATCH(1,--(BC28=INDIRECT(\"T_NAV_\"&i_Location&\"[No.]\"))*--((INDIRECT(\"T_NAV_\"&i_Location&\"[\"&i_Location&\"]\"))<>\"\"),0))/IF(AND(BQ28=\"METRE\",BG28<>\"\",BR28=\"\"),BG28,1),\"\")","v":""},"","",""]
[null,null,null,"MED",0,"\"",0,null,"",null,"",null,"",null,null,null,null,null,null,null,null,null,null,null,null,null,null,null,null,null,"",null,null,null,"White",null,null,null,null,null,null,null,null,"AU","White",0,null,"White",{"$f":"IF(ISNUMBER(FIND(\"x\",BE29)),IFERROR(INDEX(INDIRECT(\"T_FinishColour[ColourCode-\"&IF(ISNUMBER(FIND(\"xxx\",BE29)),\"xxx\",IF(ISNUMBER(FIND(\"xx\",BE29)),\"xx\",\"error\"))&AR29&\"]\"),MATCH(AV29,T_FinishColour[Finish / Colour],0)),\"\"),\"\")","v":"069"},null,{"$f":"IF(AND(ISBLANK(BC29),ISBLANK(C29)),\"HIDE\",_xlfn.SWITCH(PRODUCT(C29:Z29,B29),2,\"HEADING\",1,\"SHOW\",0,\"HIDE\"))","v":"HIDE"},null,null,null,"RB12-3833-069038",null,"RB12-3833-xxx038","Easy Spring Air MEDIUM w. Adjust - 1.5\" LH",null,{"$f":"IF(ISBLANK(BO29),\"\",IF(OR(BO29=L_Units),\"Y\",\"N\"))","v":"N"},null,{"$f":"IFERROR(_xlfn.SINGLE(IF(BH29=\"Y\",((INDEX(#REF!,MATCH(BI29,#REF!,0),0))),\"\")),\"\")","v":""},null,"","","","Piece",{"$f":"IFERROR(IF(ISBLANK(BC29),\"\",INDEX(T_NAV_AU[Base Unit of Measure],MATCH(BC29,T_NAV_AU[No.],0))),\"\")","v":""},null,null,"HW",1,{"$f":"IF(ISBLANK(BT29),\"\",PRODUCT(AE29,BT29))","v":1},1,{"$f":"IFERROR(INDEX(INDIRECT(\"T_NAV_\"&i_Location&\"[\"&i_Location&\"]\"),MATCH(1,--(BC29=INDIRECT(\"T_NAV_\"&i_Location&\"[No.]\"))*--((INDIRECT(\"T_NAV_\"&i_Location&\"[\"&i_Location&\"]\"))<>\"\"),0))/IF(AND(BQ29=\"METRE\",BG29<>\"\",BR29=\"\"),BG29,1),\"\")","v":""},"","",""]
[null,null,null,"HEAVY",{"$f":"IFERROR(IF(ISBLANK(D30),\"\",IF(FIND(D30,INDIRECT($D$24))>0,1,0)),0)","v":0},"\"",0,null,"",null,"",null,"",null,null,null,null,null,null,null,null,null,null,null,null,null,null,null,null,null,"",null,null,null,"White",null,null,null,null,null,null,null,null,"AU","White",0,null,"White",{"$f":"IF(ISNUMBER(FIND(\"x\",BE30)),IFERROR(INDEX(INDIRECT(\"T_FinishColour[ColourCode-\"&IF(ISNUMBER(FIND(\"xxx\",BE30)),\"xxx\",IF(ISNUMBER(FIND(\"xx\",BE30)),\"xx\",\"error\"))&AR30&\"]\"),MATCH(AV30,T_FinishColour[Finish / Colour],0)),\"\"),\"\")","v":"069"},null,{"$f":"IF(AND(ISBLANK(BC30),ISBLANK(C30)),\"HIDE\",_xlfn.SWITCH(PRODUCT(C30:Z30,B30),2,\"HEADING\",1,\"SHOW\",0,\"HIDE\"))","v":"HIDE"},null,null,null,"RB12-3834-069038",null,"RB12-3834-xxx038","Easy Spring Air HEAVY w. Adjust - 1.5\" LH",null,{"$f":"IF(ISBLANK(BO30),\"\",IF(OR(BO30=L_Units),\"Y\",\"N\"))","v":"N"},null,{"$f":"IFERROR(_xlfn.SINGLE(IF(BH30=\"Y\",((INDEX(#REF!,MATCH(BI30,#REF!,0),0))),\"\")),\"\")","v":""},null,"","","","Piece",{"$f":"IFERROR(IF(ISBLANK(BC30),\"\",INDEX(T_NAV_AU[Base Unit of Measure],MATCH(BC30,T_NAV_AU[No.],0))),\"\")","v":""},null,null,"HW",1,1,1,{"$f":"IFERROR(INDEX(INDIRECT(\"T_NAV_\"&i_Location&\"[\"&i_Location&\"]\"),MATCH(1,--(BC30=INDIRECT(\"T_NAV_\"&i_Location&\"[No.]\"))*--((INDIRECT(\"T_NAV_\"&i_Location&\"[\"&i_Location&\"]\"))<>\"\"),0))/IF(AND(BQ30=\"METRE\",BG30<>\"\",BR30=\"\"),BG30,1),\"\")","v":""},"","",""]
[null,null,null,null,{"$f":"IFERROR(IF(ISBLANK(D31),\"\",IF(FIND(D31,INDIRECT($D$24))>0,1,0)),0)","v":""},"2\"",{"$f":"IFERROR(IF(ISBLANK(F31),\"\",IF(FIND(F31,INDIRECT($F$24))>0,1,0)),0)","v":0},null,null,null,null,null,null,null,null,null,null,null,null,null,null,null,null,null,null,null,null,null,null,null,{"$f":"IFERROR(IF(AND(AA31=\"Y\",PRODUCT(AB31:AD31)=0),o_nScreens,IF(PRODUCT(AB31:AD31)=0,\"\",PRODUCT(AB31:AD31))),\"\")","v":""},null,null,null,"White","Black",null,null,null,null,null,null,null,"AU","White",null,null,"White",{"$f":"IF(ISNUMBER(FIND(\"x\",BE31)),IFERROR(INDEX(INDIRECT(\"T_FinishColour[ColourCode-\"&IF(ISNUMBER(FIND(\"xxx\",BE31)),\"xxx\",IF(ISNUMBER(FIND(\"xx\",BE31)),\"xx\",\"error\"))&AR31&\"]\"),MATCH(AV31,T_FinishColour[Finish / Colour],0)),\"\"),\"\")","v":"069"},null,{"$f":"IF(AND(ISBLANK(BC31),ISBLANK(C31)),\"HIDE\",_xlfn.SWITCH(PRODUCT(C31:Z31,B31),2,\"HEADING\",1,\"SHOW\",0,\"HIDE\"))","v":"HIDE"},null,null,null,"RS01-0107-069050",null,"RS01-0107-xxx050","Easy Spring Air Adapter kit, 2\" ",null,"N",null,null,null,"","","","Piece",{"$f":"IFERROR(IF(ISBLANK(BC31),\"\",INDEX(T_NAV_AU[Base Unit of Measure],MATCH(BC31,T_NAV_AU[No.],0))),\"\")","v":""},null,null,"HW",1,1,1,{"$f":"IFERROR(INDEX(INDIRECT(\"T_NAV_\"&i_Location&\"[\"&i_Location&\"]\"),MATCH(1,--(BC31=INDIRECT(\"T_NAV_\"&i_Location&\"[No.]\"))*--((INDIRECT(\"T_NAV_\"&i_Location&\"[\"&i_Location&\"]\"))<>\"\"),0))/IF(AND(BQ31=\"METRE\",BG31<>\"\",BR31=\"\"),BG31,1),\"\")","v":""},{"$f":"IFERROR(IF(AND(AY31=\"SHOW\",BW31<>\"\"),BW31*BV31*IF(AND(BM31<>\"\",OR(BP31=\"LENGTH\",BP31=\"METRE\",BP31=\"ROLL\")),(BL31/1000),1),\"\"),\"\")","v":""},{"$f":"IF(BX31<>\"\",(INDIRECT(\"i_\"&BS31&\"discount\"))*BX31,\"\")","v":""},{"$f":"IFERROR(IF(BX31<>\"\",BX31-BY31,\"\"),\"\")","v":""}]
[null,null,null,"MICRO",0,"S45",0,null,null,null,null,null,null,null,null,null,null,null,null,null,null,null,null,null,null,null,null,null,null,null,{"$f":"IFERROR(IF(AND(AA32=\"Y\",PRODUCT(AB32:AD32)=0),o_nScreens,IF(PRODUCT(AB32:AD32)=0,\"\",PRODUCT(AB32:AD32))),\"\")","v":""},null,null,null,"White",null,null,null,null,null,null,null,null,"AU","White",null,null,"White",{"$f":"IF(ISNUMBER(FIND(\"x\",BE32)),IFERROR(INDEX(INDIRECT(\"T_FinishColour[ColourCode-\"&IF(ISNUMBER(FIND(\"xxx\",BE32)),\"xxx\",IF(ISNUMBER(FIND(\"xx\",BE32)),\"xx\",\"error\"))&AR32&\"]\"),MATCH(AV32,T_FinishColour[Finish / Colour],0)),\"\"),\"\")","v":"069"},null,{"$f":"IF(AND(ISBLANK(BC32),ISBLANK(C32)),\"HIDE\",_xlfn.SWITCH(PRODUCT(C32:Z32,B32),2,\"HEADING\",1,\"SHOW\",0,\"HIDE\"))","v":"HIDE"},null,null,null,{"$f":"_xlfn.IFNA(SUBSTITUTE(IF(AR32=\"AU\",SUBSTITUTE(BE32,\"xxx\",AW32),SUBSTITUTE(SUBSTITUTE(BE32,\"xx\",AW32),\"x\",\"\")),\"LLL\",\"580\"),BE32)","v":"RB12-4528-069045"},null,"RB12-4528-xxx045","Easy Spring Air MICRO w. Adjust - S45 LH",null,"N",null,null,null,{"$f":"IFERROR(IF(BH32=\"Y\",INDIRECT(BK32)-BJ32,\"\"),\"\")","v":""},{"$f":"IFERROR(IF(BH32=\"Y\",BL32,\"\"),\"\")","v":""},{"$f":"IFERROR(IF(BH32=\"Y\",TEXT(BL32/25.4,\"0\"&IF(ABS(BL32/25.4-ROUND(BL32/25.4,0))>1/32,\"-0/\"&CHOOSE(ROUND(MOD(BL32/25.4,1)*16,0),16,8,16,4,16,8,16,2,16,8,16,4,16,8,16),\"\")),\"\"),\"\")","v":""},"Piece",{"$f":"IFERROR(IF(ISBLANK(BC32),\"\",INDEX(T_NAV_AU[Base Unit of Measure],MATCH(BC32,T_NAV_AU[No.],0))),\"\")","v":"PIECE"},null,null,"HW",1,{"$f":"IF(ISBLANK(BT32),\"\",PRODUCT(AE32,BT32))","v":1},{"$f":"IF(ISBLANK(BT32),\"\",PRODUCT(AE32,BT32,i_systemQTY))","v":1},{"$f":"IFERROR(INDEX(INDIRECT(\"T_NAV_\"&i_Location&\"[\"&i_Location&\"]\"),MATCH(1,--(BC32=INDIRECT(\"T_NAV_\"&i_Location&\"[No.]\"))*--((INDIRECT(\"T_NAV_\"&i_Location&\"[\"&i_Location&\"]\"))<>\"\"),0))/IF(AND(BQ32=\"METRE\",BG32<>\"\",BR32=\"\"),BG32,1),\"\")","v":""},{"$f":"IFERROR(IF(AND(AY32=\"SHOW\",BW32<>\"\"),BW32*BV32*IF(AND(BM32<>\"\",OR(BP32=\"LENGTH\",BP32=\"METRE\",BP32=\"ROLL\")),(BL32/1000),1),\"\"),\"\")","v":""},{"$f":"IF(BX32<>\"\",(INDIRECT(\"i_\"&BS32&\"discount\"))*BX32,\"\")","v":""},{"$f":"IFERROR(IF(BX32<>\"\",BX32-BY32,\"\"),\"\")","v":""}]
[null,null,null,"SMALL",0,"S45",0,null,null,null,null,null,null,null,null,null,null,null,null,null,null,null,null,null,null,null,null,null,null,null,{"$f":"IFERROR(IF(AND(AA33=\"Y\",PRODUCT(AB33:AD33)=0),o_nScreens,IF(PRODUCT(AB33:AD33)=0,\"\",PRODUCT(AB33:AD33))),\"\")","v":""},null,null,null,"White",null,null,null,null,null,null,null,null,"AU","White",null,null,"White",{"$f":"IF(ISNUMBER(FIND(\"x\",BE33)),IFERROR(INDEX(INDIRECT(\"T_FinishColour[ColourCode-\"&IF(ISNUMBER(FIND(\"xxx\",BE33)),\"xxx\",IF(ISNUMBER(FIND(\"xx\",BE33)),\"xx\",\"error\"))&AR33&\"]\"),MATCH(AV33,T_FinishColour[Finish / Colour],0)),\"\"),\"\")","v":"069"},null,{"$f":"IF(AND(ISBLANK(BC33),ISBLANK(C33)),\"HIDE\",_xlfn.SWITCH(PRODUCT(C33:Z33,B33),2,\"HEADING\",1,\"SHOW\",0,\"HIDE\"))","v":"HIDE"},null,null,null,"RB12-4529-069045",null,"RB12-4529-xxx045","Easy Spring Air SMALL w. Adjust - S45 LH",null,"N",null,null,null,{"$f":"IFERROR(IF(BH33=\"Y\",INDIRECT(BK33)-BJ33,\"\"),\"\")","v":""},{"$f":"IFERROR(IF(BH33=\"Y\",BL33,\"\"),\"\")","v":""},{"$f":"IFERROR(IF(BH33=\"Y\",TEXT(BL33/25.4,\"0\"&IF(ABS(BL33/25.4-ROUND(BL33/25.4,0))>1/32,\"-0/\"&CHOOSE(ROUND(MOD(BL33/25.4,1)*16,0),16,8,16,4,16,8,16,2,16,8,16,4,16,8,16),\"\")),\"\"),\"\")","v":""},"Piece",{"$f":"IFERROR(IF(ISBLANK(BC33),\"\",INDEX(T_NAV_AU[Base Unit of Measure],MATCH(BC33,T_NAV_AU[No.],0))),\"\")","v":"PIECE"},null,null,"HW",1,1,{"$f":"IF(ISBLANK(BT33),\"\",PRODUCT(AE33,BT33,i_systemQTY))","v":1},{"$f":"IFERROR(INDEX(INDIRECT(\"T_NAV_\"&i_Location&\"[\"&i_Location&\"]\"),MATCH(1,--(BC33=INDIRECT(\"T_NAV_\"&i_Location&\"[No.]\"))*--((INDIRECT(\"T_NAV_\"&i_Location&\"[\"&i_Location&\"]\"))<>\"\"),0))/IF(AND(BQ33=\"METRE\",BG33<>\"\",BR33=\"\"),BG33,1),\"\")","v":""},{"$f":"IFERROR(IF(AND(AY33=\"SHOW\",BW33<>\"\"),BW33*BV33*IF(AND(BM33<>\"\",OR(BP33=\"LENGTH\",BP33=\"METRE\",BP33=\"ROLL\")),(BL33/1000),1),\"\"),\"\")","v":""},{"$f":"IF(BX33<>\"\",(INDIRECT(\"i_\"&BS33&\"discount\"))*BX33,\"\")","v":""},{"$f":"IFERROR(IF(BX33<>\"\",BX33-BY33,\"\"),\"\")","v":""}]
[null,null,null,"MINI",0,"S45",0,null,null,null,null,null,null,null,null,null,null,null,null,null,null,null,null,null,null,null,null,null,null,null,"",null,null,null,"White",null,null,null,null,null,null,null,null,"AU","White",null,null,"White",{"$f":"IF(ISNUMBER(FIND(\"x\",BE34)),IFERROR(INDEX(INDIRECT(\"T_FinishColour[ColourCode-\"&IF(ISNUMBER(FIND(\"xxx\",BE34)),\"xxx\",IF(ISNUMBER(FIND(\"xx\",BE34)),\"xx\",\"error\"))&AR34&\"]\"),MATCH(AV34,T_FinishColour[Finish / Colour],0)),\"\"),\"\")","v":"069"},null,{"$f":"IF(AND(ISBLANK(BC34),ISBLANK(C34)),\"HIDE\",_xlfn.SWITCH(PRODUCT(C34:Z34,B34),2,\"HEADING\",1,\"SHOW\",0,\"HIDE\"))","v":"HIDE"},null,null,null,"RB12-4531-069045",null,"RB12-4531-xxx045","Easy Spring Air MINI w. Adjust - S45 LH",null,"N",null,null,null,"","","","Piece",{"$f":"IFERROR(IF(ISBLANK(BC34),\"\",INDEX(T_NAV_AU[Base Unit of Measure],MATCH(BC34,T_NAV_AU[No.],0))),\"\")","v":"PIECE"},null,null,"HW",1,{"$f":"IF(ISBLANK(BT34),\"\",PRODUCT(AE34,BT34))","v":1},1,{"$f":"IFERROR(INDEX(INDIRECT(\"T_NAV_\"&i_Location&\"[\"&i_Location&\"]\"),MATCH(1,--(BC34=INDIRECT(\"T_NAV_\"&i_Location&\"[No.]\"))*--((INDIRECT(\"T_NAV_\"&i_Location&\"[\"&i_Location&\"]\"))<>\"\"),0))/IF(AND(BQ34=\"METRE\",BG34<>\"\",BR34=\"\"),BG34,1),\"\")","v":""},"","",""]
[null,null,null,"LIGHT",0,"S45",0,null,null,null,null,null,null,null,null,null,null,null,null,null,null,null,null,null,null,null,null,null,null,null,"",null,null,null,"White",null,null,null,null,null,null,null,null,"AU","White",null,null,"White",{"$f":"IF(ISNUMBER(FIND(\"x\",BE35)),IFERROR(INDEX(INDIRECT(\"T_FinishColour[ColourCode-\"&IF(ISNUMBER(FIND(\"xxx\",BE35)),\"xxx\",IF(ISNUMBER(FIND(\"xx\",BE35)),\"xx\",\"error\"))&AR35&\"]\"),MATCH(AV35,T_FinishColour[Finish / Colour],0)),\"\"),\"\")","v":"069"},null,{"$f":"IF(AND(ISBLANK(BC35),ISBLANK(C35)),\"HIDE\",_xlfn.SWITCH(PRODUCT(C35:Z35,B35),2,\"HEADING\",1,\"SHOW\",0,\"HIDE\"))","v":"HIDE"},null,null,null,"RB12-4532-069045",null,"RB12-4532-xxx045","Easy Spring Air LIGHT w. Adjust - S45 LH",null,"N",null,null,null,"","","","Piece",{"$f":"IFERROR(IF(ISBLANK(BC35),\"\",INDEX(T_NAV_AU[Base Unit of Measure],MATCH(BC35,T_NAV_AU[No.],0))),\"\")","v":"PIECE"},null,null,"HW",1,1,1,{"$f":"IFERROR(INDEX(INDIRECT(\"T_NAV_\"&i_Location&\"[\"&i_Location&\"]\"),MATCH(1,--(BC35=INDIRECT(\"T_NAV_\"&i_Location&\"[No.]\"))*--((INDIRECT(\"T_NAV_\"&i_Location&\"[\"&i_Location&\"]\"))<>\"\"),0))/IF(AND(BQ35=\"METRE\",BG35<>\"\",BR35=\"\"),BG35,1),\"\")","v":""},"","",""]
[null,null,null,"MED",0,"S45",0,null,null,null,null,null,null,null,null,null,null,null,null,null,null,null,null,null,null,null,null,null,null,null,"",null,null,null,"White",null,null,null,null,null,null,null,null,"AU","White",null,null,"White",{"$f":"IF(ISNUMBER(FIND(\"x\",BE36)),IFERROR(INDEX(INDIRECT(\"T_FinishColour[ColourCode-\"&IF(ISNUMBER(FIND(\"xxx\",BE36)),\"xxx\",IF(ISNUMBER(FIND(\"xx\",BE36)),\"xx\",\"error\"))&AR36&\"]\"),MATCH(AV36,T_FinishColour[Finish / Colour],0)),\"\"),\"\")","v":"069"},null,{"$f":"IF(AND(ISBLANK(BC36),ISBLANK(C36)),\"HIDE\",_xlfn.SWITCH(PRODUCT(C36:Z36,B36),2,\"HEADING\",1,\"SHOW\",0,\"HIDE\"))","v":"HIDE"},null,null,null,"RB12-4533-069045",null,"RB12-4533-xxx045","Easy Spring Air MEDIUM w. Adjust - S45 LH",null,"N",null,null,null,"","","","Piece",{"$f":"IFERROR(IF(ISBLANK(BC36),\"\",INDEX(T_NAV_AU[Base Unit of Measure],MATCH(BC36,T_NAV_AU[No.],0))),\"\")","v":"PIECE"},null,null,"HW",1,1,1,{"$f":"IFERROR(INDEX(INDIRECT(\"T_NAV_\"&i_Location&\"[\"&i_Location&\"]\"),MATCH(1,--(BC36=INDIRECT(\"T_NAV_\"&i_Location&\"[No.]\"))*--((INDIRECT(\"T_NAV_\"&i_Location&\"[\"&i_Location&\"]\"))<>\"\"),0))/IF(AND(BQ36=\"METRE\",BG36<>\"\",BR36=\"\"),BG36,1),\"\")","v":""},"","",""]
[null,null,null,"HEAVY",0,"S45",{"$f":"IFERROR(IF(ISBLANK(F37),\"\",IF(FIND(F37,INDIRECT($F$24))>0,1,0)),0)","v":0},null,null,null,null,null,null,null,null,null,null,null,null,null,null,null,null,null,null,null,null,null,null,null,"",null,null,null,"White",null,null,null,null,null,null,null,null,"AU","White",null,null,"White",{"$f":"IF(ISNUMBER(FIND(\"x\",BE37)),IFERROR(INDEX(INDIRECT(\"T_FinishColour[ColourCode-\"&IF(ISNUMBER(FIND(\"xxx\",BE37)),\"xxx\",IF(ISNUMBER(FIND(\"xx\",BE37)),\"xx\",\"error\"))&AR37&\"]\"),MATCH(AV37,T_FinishColour[Finish / Colour],0)),\"\"),\"\")","v":"069"},null,{"$f":"IF(AND(ISBLANK(BC37),ISBLANK(C37)),\"HIDE\",_xlfn.SWITCH(PRODUCT(C37:Z37,B37),2,\"HEADING\",1,\"SHOW\",0,\"HIDE\"))","v":"HIDE"},null,null,null,"RB12-4534-069045",null,"RB12-4534-xxx045","Easy Spring Air HEAVY w. Adjust - S45 LH",null,"N",null,null,null,"","","","Piece",{"$f":"IFERROR(IF(ISBLANK(BC37),\"\",INDEX(T_NAV_AU[Base Unit of Measure],MATCH(BC37,T_NAV_AU[No.],0))),\"\")","v":"PIECE"},null,null,"HW",1,1,1,{"$f":"IFERROR(INDEX(INDIRECT(\"T_NAV_\"&i_Location&\"[\"&i_Location&\"]\"),MATCH(1,--(BC37=INDIRECT(\"T_NAV_\"&i_Location&\"[No.]\"))*--((INDIRECT(\"T_NAV_\"&i_Location&\"[\"&i_Location&\"]\"))<>\"\"),0))/IF(AND(BQ37=\"METRE\",BG37<>\"\",BR37=\"\"),BG37,1),\"\")","v":""},"","",""]
[null,null,null,null,"",null,"",null,null,null,null,null,null,null,null,null,null,null,null,null,null,null,null,null,null,null,null,null,null,null,"",null,null,null,"White",null,null,null,null,null,null,null,null,"AU","",null,null,"",{"$f":"IF(ISNUMBER(FIND(\"x\",BE38)),IFERROR(INDEX(INDIRECT(\"T_FinishColour[ColourCode-\"&IF(ISNUMBER(FIND(\"xxx\",BE38)),\"xxx\",IF(ISNUMBER(FIND(\"xx\",BE38)),\"xx\",\"error\"))&AR38&\"]\"),MATCH(AV38,T_FinishColour[Finish / Colour],0)),\"\"),\"\")","v":""},null,{"$f":"IF(AND(ISBLANK(BC38),ISBLANK(C38)),\"HIDE\",_xlfn.SWITCH(PRODUCT(C38:Z38,B38),2,\"HEADING\",1,\"SHOW\",0,\"HIDE\"))","v":"HIDE"},null,null,null,null,null,null,null,null,"N",null,null,null,"","","","Piece",{"$f":"IFERROR(IF(ISBLANK(BC38),\"\",INDEX(T_NAV_AU[Base Unit of Measure],MATCH(BC38,T_NAV_AU[No.],0))),\"\")","v":""},null,null,"HW",1,1,1,{"$f":"IFERROR(INDEX(INDIRECT(\"T_NAV_\"&i_Location&\"[\"&i_Location&\"]\"),MATCH(1,--(BC38=INDIRECT(\"T_NAV_\"&i_Location&\"[No.]\"))*--((INDIRECT(\"T_NAV_\"&i_Location&\"[\"&i_Location&\"]\"))<>\"\"),0))/IF(AND(BQ38=\"METRE\",BG38<>\"\",BR38=\"\"),BG38,1),\"\")","v":""},"","",""]
[null,null,null,null,"",null,"",null,null,null,null,null,null,null,null,null,null,null,null,null,null,null,null,null,null,null,null,null,null,null,"",null,null,null,null,null,null,null,null,null,null,null,null,"AU","",null,null,"White",{"$f":"IF(ISNUMBER(FIND(\"x\",BE39)),IFERROR(INDEX(INDIRECT(\"T_FinishColour[ColourCode-\"&IF(ISNUMBER(FIND(\"xxx\",BE39)),\"xxx\",IF(ISNUMBER(FIND(\"xx\",BE39)),\"xx\",\"error\"))&AR39&\"]\"),MATCH(AV39,T_FinishColour[Finish / Colour],0)),\"\"),\"\")","v":""},null,{"$f":"IF(AND(ISBLANK(BC39),ISBLANK(C39)),\"HIDE\",_xlfn.SWITCH(PRODUCT(C39:Z39,B39),2,\"HEADING\",1,\"SHOW\",0,\"HIDE\"))","v":"HIDE"},null,null,null,null,null,null,null,null,"N",null,null,null,"","","","Piece",{"$f":"IFERROR(IF(ISBLANK(BC39),\"\",INDEX(T_NAV_AU[Base Unit of Measure],MATCH(BC39,T_NAV_AU[No.],0))),\"\")","v":""},null,null,"HW",1,1,1,{"$f":"IFERROR(INDEX(INDIRECT(\"T_NAV_\"&i_Location&\"[\"&i_Location&\"]\"),MATCH(1,--(BC39=INDIRECT(\"T_NAV_\"&i_Location&\"[No.]\"))*--((INDIRECT(\"T_NAV_\"&i_Location&\"[\"&i_Location&\"]\"))<>\"\"),0))/IF(AND(BQ39=\"METRE\",BG39<>\"\",BR39=\"\"),BG39,1),\"\")","v":""},"","",""]
[null,null,null,null,"",null,"",null,null,null,null,null,null,null,null,null,null,null,null,null,null,null,null,null,null,null,null,null,null,null,"",null,null,null,null,null,null,null,null,null,null,null,null,"AU","",null,null,"White",{"$f":"IF(ISNUMBER(FIND(\"x\",BE40)),IFERROR(INDEX(INDIRECT(\"T_FinishColour[ColourCode-\"&IF(ISNUMBER(FIND(\"xxx\",BE40)),\"xxx\",IF(ISNUMBER(FIND(\"xx\",BE40)),\"xx\",\"error\"))&AR40&\"]\"),MATCH(AV40,T_FinishColour[Finish / Colour],0)),\"\"),\"\")","v":""},null,{"$f":"IF(AND(ISBLANK(BC40),ISBLANK(C40)),\"HIDE\",_xlfn.SWITCH(PRODUCT(C40:Z40,B40),2,\"HEADING\",1,\"SHOW\",0,\"HIDE\"))","v":"HIDE"},null,null,null,null,null,null,null,null,"N",null,null,null,"","","","Piece",{"$f":"IFERROR(IF(ISBLANK(BC40),\"\",INDEX(T_NAV_AU[Base Unit of Measure],MATCH(BC40,T_NAV_AU[No.],0))),\"\")","v":""},null,null,"HW",1,1,1,{"$f":"IFERROR(INDEX(INDIRECT(\"T_NAV_\"&i_Location&\"[\"&i_Location&\"]\"),MATCH(1,--(BC40=INDIRECT(\"T_NAV_\"&i_Location&\"[No.]\"))*--((INDIRECT(\"T_NAV_\"&i_Location&\"[\"&i_Location&\"]\"))<>\"\"),0))/IF(AND(BQ40=\"METRE\",BG40<>\"\",BR40=\"\"),BG40,1),\"\")","v":""},"","",""]
[null,2,{"$f":"C42","v":0},null,null,null,null,null,null,null,null,null,null,null,null,null,null,null,null,null,null,null,null,null,null,null,null,null,null,null,"",null,null,null,null,null,null,null,null,null,null,null,null,null,{"$f":"IF(ISNUMBER(FIND(\"x\",BE41)),IFERROR(INDEX(AI41:AQ41,0,MATCH(AT41,AI41:AQ41,0)),IF(AI41<>\"\",AI41,i_DefaultColour)),\"\")","v":""},null,null,{"$f":"IF(ISNUMBER(FIND(\"x\",BE41)),IFERROR(INDEX(AI41:AQ41,0,MATCH(AT41,AI41:AQ41,0)),AS41),\"\")","v":""},{"$f":"IF(ISNUMBER(FIND(\"x\",BE41)),IFERROR(INDEX(INDIRECT(\"T_FinishColour[ColourCode-\"&IF(ISNUMBER(FIND(\"xxx\",BE41)),\"xxx\",IF(ISNUMBER(FIND(\"xx\",BE41)),\"xx\",\"error\"))&AR41&\"]\"),MATCH(AV41,T_FinishColour[Finish / Colour],0)),\"\"),\"\")","v":""},null,{"$f":"IF(AND(ISBLANK(BC41),ISBLANK(C41)),\"HIDE\",_xlfn.SWITCH(PRODUCT(C41:Z41,B41),2,\"HEADING\",1,\"SHOW\",0,\"HIDE\"))","v":"HIDE"},null,null,null,{"$f":"_xlfn.IFNA(SUBSTITUTE(IF(AR41=\"AU\",SUBSTITUTE(BE41,\"xxx\",AW41),SUBSTITUTE(SUBSTITUTE(BE41,\"xx\",AW41),\"x\",\"\")),\"LLL\",\"580\"),BE41)","v":""},null,null,null,null,null,null,{"$f":"IFERROR(_xlfn.SINGLE(IF(BH41=\"Y\",((INDEX(#REF!,MATCH(BI41,#REF!,0),0))),\"\")),\"\")","v":""},null,{"$f":"IFERROR(IF(BH41=\"Y\",INDIRECT(BK41)-BJ41,\"\"),\"\")","v":""},{"$f":"IFERROR(IF(BH41=\"Y\",BL41,\"\"),\"\")","v":""},{"$f":"IFERROR(IF(BH41=\"Y\",TEXT(BL41/25.4,\"0\"&IF(ABS(BL41/25.4-ROUND(BL41/25.4,0))>1/32,\"-0/\"&CHOOSE(ROUND(MOD(BL41/25.4,1)*16,0),16,8,16,4,16,8,16,2,16,8,16,4,16,8,16),\"\")),\"\"),\"\")","v":""},null,{"$f":"IFERROR(IF(ISBLANK(BC41),\"\",INDEX(T_NAV_AU[Base Unit of Measure],MATCH(BC41,T_NAV_AU[No.],0))),\"\")","v":""},null,null,null,null,{"$f":"IF(ISBLANK(BT41),\"\",PRODUCT(AE41,BT41))","v":""},{"$f":"IF(ISBLANK(BT41),\"\",PRODUCT(AE41,BT41,i_systemQTY))","v":""},{"$f":"IFERROR(INDEX(INDIRECT(\"T_NAV_\"&i_Location&\"[\"&i_Location&\"]\"),MATCH(1,--(BC41=INDIRECT(\"T_NAV_\"&i_Location&\"[No.]\"))*--((INDIRECT(\"T_NAV_\"&i_Location&\"[\"&i_Location&\"]\"))<>\"\"),0))/IF(AND(BQ41=\"METRE\",BG41<>\"\",BR41=\"\"),BG41,1),\"\")","v":""},{"$f":"IFERROR(IF(AND(AY41=\"SHOW\",BW41<>\"\"),BW41*BV41*IF(AND(BM41<>\"\",OR(BP41=\"LENGTH\",BP41=\"METRE\",BP41=\"ROLL\")),(BL41/1000),1),\"\"),\"\")","v":""},{"$f":"IF(BX41<>\"\",(INDIRECT(\"i_\"&BS41&\"discount\"))*BX41,\"\")","v":""},{"$f":"IFERROR(IF(BX41<>\"\",BX41-BY41,\"\"),\"\")","v":""}]
[null,2,{"$f":"IF(COUNTIF(AY43:AY50,\"SHOW\")>0,1,0)","v":0},"i_Tube",null,"i_IdlerType",null,null,null,null,null,null,null,null,null,null,null,null,null,null,null,null,null,null,null,null,null,null,null,null,"",null,null,null,null,null,null,null,null,null,null,null,null,null,{"$f":"IF(ISNUMBER(FIND(\"x\",BE42)),IFERROR(INDEX(AI42:AQ42,0,MATCH(AT42,AI42:AQ42,0)),IF(AI42<>\"\",AI42,i_DefaultColour)),\"\")","v":""},null,null,{"$f":"IF(ISNUMBER(FIND(\"x\",BE42)),IFERROR(INDEX(AI42:AQ42,0,MATCH(AT42,AI42:AQ42,0)),AS42),\"\")","v":""},{"$f":"IF(ISNUMBER(FIND(\"x\",BE42)),IFERROR(INDEX(INDIRECT(\"T_FinishColour[ColourCode-\"&IF(ISNUMBER(FIND(\"xxx\",BE42)),\"xxx\",IF(ISNUMBER(FIND(\"xx\",BE42)),\"xx\",\"error\"))&AR42&\"]\"),MATCH(AV42,T_FinishColour[Finish / Colour],0)),\"\"),\"\")","v":""},null,{"$f":"IF(AND(ISBLANK(BC42),ISBLANK(C42)),\"HIDE\",_xlfn.SWITCH(PRODUCT(C42:Z42,B42),2,\"HEADING\",1,\"SHOW\",0,\"HIDE\"))","v":"HIDE"},null,null,null,"IDLER",null,"IDLER",null,null,null,null,{"$f":"IFERROR(_xlfn.SINGLE(IF(BH42=\"Y\",((INDEX(#REF!,MATCH(BI42,#REF!,0),0))),\"\")),\"\")","v":""},null,{"$f":"IFERROR(IF(BH42=\"Y\",INDIRECT(BK42)-BJ42,\"\"),\"\")","v":""},{"$f":"IFERROR(IF(BH42=\"Y\",BL42,\"\"),\"\")","v":""},{"$f":"IFERROR(IF(BH42=\"Y\",TEXT(BL42/25.4,\"0\"&IF(ABS(BL42/25.4-ROUND(BL42/25.4,0))>1/32,\"-0/\"&CHOOSE(ROUND(MOD(BL42/25.4,1)*16,0),16,8,16,4,16,8,16,2,16,8,16,4,16,8,16),\"\")),\"\"),\"\")","v":""},null,{"$f":"IFERROR(IF(ISBLANK(BC42),\"\",INDEX(T_NAV_AU[Base Unit of Measure],MATCH(BC42,T_NAV_AU[No.],0))),\"\")","v":""},null,null,null,null,{"$f":"IF(ISBLANK(BT42),\"\",PRODUCT(AE42,BT42))","v":""},{"$f":"IF(ISBLANK(BT42),\"\",PRODUCT(AE42,BT42,i_systemQTY))","v":""},{"$f":"IFERROR(INDEX(INDIRECT(\"T_NAV_\"&i_Location&\"[\"&i_Location&\"]\"),MATCH(1,--(BC42=INDIRECT(\"T_NAV_\"&i_Location&\"[No.]\"))*--((INDIRECT(\"T_NAV_\"&i_Location&\"[\"&i_Location&\"]\"))<>\"\"),0))/IF(AND(BQ42=\"METRE\",BG42<>\"\",BR42=\"\"),BG42,1),\"\")","v":""},{"$f":"IFERROR(IF(AND(AY42=\"SHOW\",BW42<>\"\"),BW42*BV42*IF(AND(BM42<>\"\",OR(BP42=\"LENGTH\",BP42=\"METRE\",BP42=\"ROLL\")),(BL42/1000),1),\"\"),\"\")","v":""},{"$f":"IF(BX42<>\"\",(INDIRECT(\"i_\"&BS42&\"discount\"))*BX42,\"\")","v":""},{"$f":"IFERROR(IF(BX42<>\"\",BX42-BY42,\"\"),\"\")","v":""}]
[null,null,null,null,{"$f":"IFERROR(IF(ISBLANK(D43),\"\",IF(FIND(D43,INDIRECT($D$42))>0,1,0)),0)","v":""},"Skyline Pin End",{"$f":"IFERROR(IF(ISBLANK(F43),\"\",IF(FIND(F43,INDIRECT($F$42))>0,1,0)),0)","v":0},null,{"$f":"IFERROR(IF(ISBLANK(H43),\"\",IF(FIND(H43,INDIRECT($H$42))>0,1,0)),0)","v":""},null,{"$f":"IFERROR(IF(ISBLANK(J43),\"\",IF(FIND(J43,INDIRECT($J$42))>0,1,0)),0)","v":""},null,{"$f":"IFERROR(IF(ISBLANK(L43),\"\",IF(FIND(L43,INDIRECT($L$42))>0,1,0)),0)","v":""},null,{"$f":"IFERROR(IF(ISBLANK(N43),\"\",IF(FIND(N43,INDIRECT($N$42))>0,1,0)),0)","v":""},null,{"$f":"IFERROR(IF(ISBLANK(P43),\"\",IF(FIND(P43,INDIRECT($P$42))>0,1,0)),0)","v":""},null,{"$f":"IFERROR(IF(ISBLANK(R43),\"\",IF(FIND(R43,INDIRECT($R$42))>0,1,0)),0)","v":""},null,{"$f":"IFERROR(IF(ISBLANK(T43),\"\",IF(FIND(T43,INDIRECT($T$42))>0,1,0)),0)","v":""},null,{"$f":"IFERROR(IF(ISBLANK(V43),\"\",IF(FIND(V43,INDIRECT($V$42))>0,1,0)),0)","v":""},null,null,null,null,null,null,null,"",null,null,null,null,null,null,null,null,null,null,null,null,"AU",{"$f":"IF(ISNUMBER(FIND(\"x\",BE43)),IFERROR(INDEX(AI43:AQ43,0,MATCH(AT43,AI43:AQ43,0)),IF(AI43<>\"\",AI43,i_DefaultColour)),\"\")","v":"Black"},{"$f":"i_Finish","v":0},null,{"$f":"IF(ISNUMBER(FIND(\"x\",BE43)),IFERROR(INDEX(AI43:AQ43,0,MATCH(AT43,AI43:AQ43,0)),AS43),\"\")","v":"Black"},{"$f":"IF(ISNUMBER(FIND(\"x\",BE43)),IFERROR(INDEX(INDIRECT(\"T_FinishColour[ColourCode-\"&IF(ISNUMBER(FIND(\"xxx\",BE43)),\"xxx\",IF(ISNUMBER(FIND(\"xx\",BE43)),\"xx\",\"error\"))&AR43&\"]\"),MATCH(AV43,T_FinishColour[Finish / Colour],0)),\"\"),\"\")","v":""},null,{"$f":"IF(AND(ISBLANK(BC43),ISBLANK(C43)),\"HIDE\",_xlfn.SWITCH(PRODUCT(C43:Z43,B43),2,\"HEADING\",1,\"SHOW\",0,\"HIDE\"))","v":"HIDE"},null,null,null,"SLPEV653xx",null,"SLPEV653xx","Skyline Pin End 1.5\"",null,{"$f":"IF(ISBLANK(BO43),\"\",IF(OR(BO43=L_Units),\"Y\",\"N\"))","v":"N"},null,{"$f":"IFERROR(_xlfn.SINGLE(IF(BH43=\"Y\",((INDEX(#REF!,MATCH(BI43,#REF!,0),0))),\"\")),\"\")","v":""},null,{"$f":"IFERROR(IF(BH43=\"Y\",INDIRECT(BK43)-BJ43,\"\"),\"\")","v":""},{"$f":"IFERROR(IF(BH43=\"Y\",BL43,\"\"),\"\")","v":""},{"$f":"IFERROR(IF(BH43=\"Y\",TEXT(BL43/25.4,\"0\"&IF(ABS(BL43/25.4-ROUND(BL43/25.4,0))>1/32,\"-0/\"&CHOOSE(ROUND(MOD(BL43/25.4,1)*16,0),16,8,16,4,16,8,16,2,16,8,16,4,16,8,16),\"\")),\"\"),\"\")","v":""},"Piece",{"$f":"IFERROR(IF(ISBLANK(BC43),\"\",INDEX(T_NAV_AU[Base Unit of Measure],MATCH(BC43,T_NAV_AU[No.],0))),\"\")","v":""},null,null,"HW",1,{"$f":"IF(ISBLANK(BT43),\"\",PRODUCT(AE43,BT43))","v":1},{"$f":"IF(ISBLANK(BT43),\"\",PRODUCT(AE43,BT43,i_systemQTY))","v":1},{"$f":"IFERROR(INDEX(INDIRECT(\"T_NAV_\"&i_Location&\"[\"&i_Location&\"]\"),MATCH(1,--(BC43=INDIRECT(\"T_NAV_\"&i_Location&\"[No.]\"))*--((INDIRECT(\"T_NAV_\"&i_Location&\"[\"&i_Location&\"]\"))<>\"\"),0))/IF(AND(BQ43=\"METRE\",BG43<>\"\",BR43=\"\"),BG43,1),\"\")","v":""},{"$f":"IFERROR(IF(AND(AY43=\"SHOW\",BW43<>\"\"),BW43*BV43*IF(AND(BM43<>\"\",OR(BP43=\"LENGTH\",BP43=\"METRE\",BP43=\"ROLL\")),(BL43/1000),1),\"\"),\"\")","v":""},{"$f":"IF(BX43<>\"\",(INDIRECT(\"i_\"&BS43&\"discount\"))*BX43,\"\")","v":""},{"$f":"IFERROR(IF(BX43<>\"\",BX43-BY43,\"\"),\"\")","v":""}]
[null,null,null,null,"","Heavy",{"$f":"IFERROR(IF(ISBLANK(F44),\"\",IF(FIND(F44,INDIRECT($F$42))>0,1,0)),0)","v":0},null,"",null,{"$f":"IFERROR(IF(ISBLANK(J44),\"\",IF(FIND(J44,INDIRECT($J$42))>0,1,0)),0)","v":""},null,{"$f":"IFERROR(IF(ISBLANK(L44),\"\",IF(FIND(L44,INDIRECT($L$42))>0,1,0)),0)","v":""},null,{"$f":"IFERROR(IF(ISBLANK(N44),\"\",IF(FIND(N44,INDIRECT($N$42))>0,1,0)),0)","v":""},null,{"$f":"IFERROR(IF(ISBLANK(P44),\"\",IF(FIND(P44,INDIRECT($P$42))>0,1,0)),0)","v":""},null,{"$f":"IFERROR(IF(ISBLANK(R44),\"\",IF(FIND(R44,INDIRECT($R$42))>0,1,0)),0)","v":""},null,{"$f":"IFERROR(IF(ISBLANK(T44),\"\",IF(FIND(T44,INDIRECT($T$42))>0,1,0)),0)","v":""},null,{"$f":"IFERROR(IF(ISBLANK(V44),\"\",IF(FIND(V44,INDIRECT($V$42))>0,1,0)),0)","v":""},null,null,null,null,null,null,null,"",null,null,null,null,null,null,null,null,null,null,null,null,"AU",{"$f":"IF(ISNUMBER(FIND(\"x\",BE44)),IFERROR(INDEX(AI44:AQ44,0,MATCH(AT44,AI44:AQ44,0)),IF(AI44<>\"\",AI44,i_DefaultColour)),\"\")","v":"Black"},{"$f":"i_Finish","v":0},null,{"$f":"IF(ISNUMBER(FIND(\"x\",BE44)),IFERROR(INDEX(AI44:AQ44,0,MATCH(AT44,AI44:AQ44,0)),AS44),\"\")","v":"Black"},{"$f":"IF(ISNUMBER(FIND(\"x\",BE44)),IFERROR(INDEX(INDIRECT(\"T_FinishColour[ColourCode-\"&IF(ISNUMBER(FIND(\"xxx\",BE44)),\"xxx\",IF(ISNUMBER(FIND(\"xx\",BE44)),\"xx\",\"error\"))&AR44&\"]\"),MATCH(AV44,T_FinishColour[Finish / Colour],0)),\"\"),\"\")","v":""},null,{"$f":"IF(AND(ISBLANK(BC44),ISBLANK(C44)),\"HIDE\",_xlfn.SWITCH(PRODUCT(C44:Z44,B44),2,\"HEADING\",1,\"SHOW\",0,\"HIDE\"))","v":"HIDE"},null,null,null,"SLPEHD53xx",null,"SLPEHD53xx","Skyline Heavy Duty Pin End 1.5\"",null,{"$f":"IF(ISBLANK(BO44),\"\",IF(OR(BO44=L_Units),\"Y\",\"N\"))","v":"N"},null,{"$f":"IFERROR(_xlfn.SINGLE(IF(BH44=\"Y\",((INDEX(#REF!,MATCH(BI44,#REF!,0),0))),\"\")),\"\")","v":""},null,{"$f":"IFERROR(IF(BH44=\"Y\",INDIRECT(BK44)-BJ44,\"\"),\"\")","v":""},{"$f":"IFERROR(IF(BH44=\"Y\",BL44,\"\"),\"\")","v":""},{"$f":"IFERROR(IF(BH44=\"Y\",TEXT(BL44/25.4,\"0\"&IF(ABS(BL44/25.4-ROUND(BL44/25.4,0))>1/32,\"-0/\"&CHOOSE(ROUND(MOD(BL44/25.4,1)*16,0),16,8,16,4,16,8,16,2,16,8,16,4,16,8,16),\"\")),\"\"),\"\")","v":""},"Piece",{"$f":"IFERROR(IF(ISBLANK(BC44),\"\",INDEX(T_NAV_AU[Base Unit of Measure],MATCH(BC44,T_NAV_AU[No.],0))),\"\")","v":""},null,null,"HW",1,{"$f":"IF(ISBLANK(BT44),\"\",PRODUCT(AE44,BT44))","v":1},{"$f":"IF(ISBLANK(BT44),\"\",PRODUCT(AE44,BT44,i_systemQTY))","v":1},{"$f":"IFERROR(INDEX(INDIRECT(\"T_NAV_\"&i_Location&\"[\"&i_Location&\"]\"),MATCH(1,--(BC44=INDIRECT(\"T_NAV_\"&i_Location&\"[No.]\"))*--((INDIRECT(\"T_NAV_\"&i_Location&\"[\"&i_Location&\"]\"))<>\"\"),0))/IF(AND(BQ44=\"METRE\",BG44<>\"\",BR44=\"\"),BG44,1),\"\")","v":""},{"$f":"IFERROR(IF(AND(AY44=\"SHOW\",BW44<>\"\"),BW44*BV44*IF(AND(BM44<>\"\",OR(BP44=\"LENGTH\",BP44=\"METRE\",BP44=\"ROLL\")),(BL44/1000),1),\"\"),\"\")","v":""},{"$f":"IF(BX44<>\"\",(INDIRECT(\"i_\"&BS44&\"discount\"))*BX44,\"\")","v":""},{"$f":"IFERROR(IF(BX44<>\"\",BX44-BY44,\"\"),\"\")","v":""}]
[null,null,null,"1.5\"",0,"Limiter - Single Stop | STD",{"$f":"IFERROR(IF(ISBLANK(F45),\"\",IF(FIND(F45,INDIRECT($F$42))>0,1,0)),0)","v":0},null,"",null,{"$f":"IFERROR(IF(ISBLANK(J45),\"\",IF(FIND(J45,INDIRECT($J$42))>0,1,0)),0)","v":""},null,{"$f":"IFERROR(IF(ISBLANK(L45),\"\",IF(FIND(L45,INDIRECT($L$42))>0,1,0)),0)","v":""},null,{"$f":"IFERROR(IF(ISBLANK(N45),\"\",IF(FIND(N45,INDIRECT($N$42))>0,1,0)),0)","v":""},null,{"$f":"IFERROR(IF(ISBLANK(P45),\"\",IF(FIND(P45,INDIRECT($P$42))>0,1,0)),0)","v":""},null,{"$f":"IFERROR(IF(ISBLANK(R45),\"\",IF(FIND(R45,INDIRECT($R$42))>0,1,0)),0)","v":""},null,{"$f":"IFERROR(IF(ISBLANK(T45),\"\",IF(FIND(T45,INDIRECT($T$42))>0,1,0)),0)","v":""},null,{"$f":"IFERROR(IF(ISBLANK(V45),\"\",IF(FIND(V45,INDIRECT($V$42))>0,1,0)),0)","v":""},null,null,null,null,null,null,null,"",null,null,null,null,null,null,null,null,null,null,null,null,"AU",{"$f":"IF(ISNUMBER(FIND(\"x\",BE45)),IFERROR(INDEX(AI45:AQ45,0,MATCH(AT45,AI45:AQ45,0)),IF(AI45<>\"\",AI45,i_DefaultColour)),\"\")","v":""},{"$f":"i_Finish","v":0},null,{"$f":"IF(ISNUMBER(FIND(\"x\",BE45)),IFERROR(INDEX(AI45:AQ45,0,MATCH(AT45,AI45:AQ45,0)),AS45),\"\")","v":""},{"$f":"IF(ISNUMBER(FIND(\"x\",BE45)),IFERROR(INDEX(INDIRECT(\"T_FinishColour[ColourCode-\"&IF(ISNUMBER(FIND(\"xxx\",BE45)),\"xxx\",IF(ISNUMBER(FIND(\"xx\",BE45)),\"xx\",\"error\"))&AR45&\"]\"),MATCH(AV45,T_FinishColour[Finish / Colour],0)),\"\"),\"\")","v":""},null,{"$f":"IF(AND(ISBLANK(BC45),ISBLANK(C45)),\"HIDE\",_xlfn.SWITCH(PRODUCT(C45:Z45,B45),2,\"HEADING\",1,\"SHOW\",0,\"HIDE\"))","v":"HIDE"},null,null,null,"RB12-6101-069038",null,"RB12-6101-069038","Limiter - Single Stop | STD 1.5\"",null,{"$f":"IF(ISBLANK(BO45),\"\",IF(OR(BO45=L_Units),\"Y\",\"N\"))","v":"N"},null,{"$f":"IFERROR(_xlfn.SINGLE(IF(BH45=\"Y\",((INDEX(#REF!,MATCH(BI45,#REF!,0),0))),\"\")),\"\")","v":""},null,{"$f":"IFERROR(IF(BH45=\"Y\",INDIRECT(BK45)-BJ45,\"\"),\"\")","v":""},{"$f":"IFERROR(IF(BH45=\"Y\",BL45,\"\"),\"\")","v":""},{"$f":"IFERROR(IF(BH45=\"Y\",TEXT(BL45/25.4,\"0\"&IF(ABS(BL45/25.4-ROUND(BL45/25.4,0))>1/32,\"-0/\"&CHOOSE(ROUND(MOD(BL45/25.4,1)*16,0),16,8,16,4,16,8,16,2,16,8,16,4,16,8,16),\"\")),\"\"),\"\")","v":""},"Piece",{"$f":"IFERROR(IF(ISBLANK(BC45),\"\",INDEX(T_NAV_AU[Base Unit of Measure],MATCH(BC45,T_NAV_AU[No.],0))),\"\")","v":"PIECE"},null,null,"HW",1,{"$f":"IF(ISBLANK(BT45),\"\",PRODUCT(AE45,BT45))","v":1},{"$f":"IF(ISBLANK(BT45),\"\",PRODUCT(AE45,BT45,i_systemQTY))","v":1},{"$f":"IFERROR(INDEX(INDIRECT(\"T_NAV_\"&i_Location&\"[\"&i_Location&\"]\"),MATCH(1,--(BC45=INDIRECT(\"T_NAV_\"&i_Location&\"[No.]\"))*--((INDIRECT(\"T_NAV_\"&i_Location&\"[\"&i_Location&\"]\"))<>\"\"),0))/IF(AND(BQ45=\"METRE\",BG45<>\"\",BR45=\"\"),BG45,1),\"\")","v":""},{"$f":"IFERROR(IF(AND(AY45=\"SHOW\",BW45<>\"\"),BW45*BV45*IF(AND(BM45<>\"\",OR(BP45=\"LENGTH\",BP45=\"METRE\",BP45=\"ROLL\")),(BL45/1000),1),\"\"),\"\")","v":""},{"$f":"IF(BX45<>\"\",(INDIRECT(\"i_\"&BS45&\"discount\"))*BX45,\"\")","v":""},{"$f":"IFERROR(IF(BX45<>\"\",BX45-BY45,\"\"),\"\")","v":""}]
[null,null,null,"1.5\"",0,"Limiter - Single Stop | COMPACT",{"$f":"IFERROR(IF(ISBLANK(F46),\"\",IF(FIND(F46,INDIRECT($F$42))>0,1,0)),0)","v":0},null,"",null,null,null,null,null,null,null,null,null,null,null,null,null,null,null,null,null,null,null,null,null,null,null,null,null,null,null,null,null,null,null,null,null,null,"AU",null,null,null,null,null,null,{"$f":"IF(AND(ISBLANK(BC46),ISBLANK(C46)),\"HIDE\",_xlfn.SWITCH(PRODUCT(C46:Z46,B46),2,\"HEADING\",1,\"SHOW\",0,\"HIDE\"))","v":"HIDE"},null,null,null,"RB12-6102-069038",null,"RB12-6102-069038","Limiter - Single Stop | COMPACT 1.5\"",null,"N",null,null,null,{"$f":"IFERROR(IF(BH46=\"Y\",INDIRECT(BK46)-BJ46,\"\"),\"\")","v":""},{"$f":"IFERROR(IF(BH46=\"Y\",BL46,\"\"),\"\")","v":""},{"$f":"IFERROR(IF(BH46=\"Y\",TEXT(BL46/25.4,\"0\"&IF(ABS(BL46/25.4-ROUND(BL46/25.4,0))>1/32,\"-0/\"&CHOOSE(ROUND(MOD(BL46/25.4,1)*16,0),16,8,16,4,16,8,16,2,16,8,16,4,16,8,16),\"\")),\"\"),\"\")","v":""},"Piece",{"$f":"IFERROR(IF(ISBLANK(BC46),\"\",INDEX(T_NAV_AU[Base Unit of Measure],MATCH(BC46,T_NAV_AU[No.],0))),\"\")","v":"PIECE"},null,null,"HW",1,{"$f":"IF(ISBLANK(BT46),\"\",PRODUCT(AE46,BT46))","v":1},{"$f":"IF(ISBLANK(BT46),\"\",PRODUCT(AE46,BT46,i_systemQTY))","v":1},{"$f":"IFERROR(INDEX(INDIRECT(\"T_NAV_\"&i_Location&\"[\"&i_Location&\"]\"),MATCH(1,--(BC46=INDIRECT(\"T_NAV_\"&i_Location&\"[No.]\"))*--((INDIRECT(\"T_NAV_\"&i_Location&\"[\"&i_Location&\"]\"))<>\"\"),0))/IF(AND(BQ46=\"METRE\",BG46<>\"\",BR46=\"\"),BG46,1),\"\")","v":""},{"$f":"IFERROR(IF(AND(AY46=\"SHOW\",BW46<>\"\"),BW46*BV46*IF(AND(BM46<>\"\",OR(BP46=\"LENGTH\",BP46=\"METRE\",BP46=\"ROLL\")),(BL46/1000),1),\"\"),\"\")","v":""},{"$f":"IF(BX46<>\"\",(INDIRECT(\"i_\"&BS46&\"discount\"))*BX46,\"\")","v":""},{"$f":"IFERROR(IF(BX46<>\"\",BX46-BY46,\"\"),\"\")","v":""}]
[null,null,null,"S45",0,"Limiter - Single Stop | STD",{"$f":"IFERROR(IF(ISBLANK(F47),\"\",IF(FIND(F47,INDIRECT($F$42))>0,1,0)),0)","v":0},null,"",null,null,null,null,null,null,null,null,null,null,null,null,null,null,null,null,null,null,null,null,null,null,null,null,null,null,null,null,null,null,null,null,null,null,"AU",null,null,null,null,null,null,{"$f":"IF(AND(ISBLANK(BC47),ISBLANK(C47)),\"HIDE\",_xlfn.SWITCH(PRODUCT(C47:Z47,B47),2,\"HEADING\",1,\"SHOW\",0,\"HIDE\"))","v":"HIDE"},null,null,null,{"$f":"_xlfn.IFNA(SUBSTITUTE(IF(AR47=\"AU\",SUBSTITUTE(BE47,\"xxx\",AW47),SUBSTITUTE(SUBSTITUTE(BE47,\"xx\",AW47),\"x\",\"\")),\"LLL\",\"580\"),BE47)","v":"RB12-6101-069045"},null,"RB12-6101-069045","Limiter - Single Stop | STD S45",null,"N",null,null,null,{"$f":"IFERROR(IF(BH47=\"Y\",INDIRECT(BK47)-BJ47,\"\"),\"\")","v":""},{"$f":"IFERROR(IF(BH47=\"Y\",BL47,\"\"),\"\")","v":""},{"$f":"IFERROR(IF(BH47=\"Y\",TEXT(BL47/25.4,\"0\"&IF(ABS(BL47/25.4-ROUND(BL47/25.4,0))>1/32,\"-0/\"&CHOOSE(ROUND(MOD(BL47/25.4,1)*16,0),16,8,16,4,16,8,16,2,16,8,16,4,16,8,16),\"\")),\"\"),\"\")","v":""},"Piece",{"$f":"IFERROR(IF(ISBLANK(BC47),\"\",INDEX(T_NAV_AU[Base Unit of Measure],MATCH(BC47,T_NAV_AU[No.],0))),\"\")","v":"PIECE"},null,null,"HW",1,{"$f":"IF(ISBLANK(BT47),\"\",PRODUCT(AE47,BT47))","v":1},{"$f":"IF(ISBLANK(BT47),\"\",PRODUCT(AE47,BT47,i_systemQTY))","v":1},{"$f":"IFERROR(INDEX(INDIRECT(\"T_NAV_\"&i_Location&\"[\"&i_Location&\"]\"),MATCH(1,--(BC47=INDIRECT(\"T_NAV_\"&i_Location&\"[No.]\"))*--((INDIRECT(\"T_NAV_\"&i_Location&\"[\"&i_Location&\"]\"))<>\"\"),0))/IF(AND(BQ47=\"METRE\",BG47<>\"\",BR47=\"\"),BG47,1),\"\")","v":""},{"$f":"IFERROR(IF(AND(AY47=\"SHOW\",BW47<>\"\"),BW47*BV47*IF(AND(BM47<>\"\",OR(BP47=\"LENGTH\",BP47=\"METRE\",BP47=\"ROLL\")),(BL47/1000),1),\"\"),\"\")","v":""},{"$f":"IF(BX47<>\"\",(INDIRECT(\"i_\"&BS47&\"discount\"))*BX47,\"\")","v":""},{"$f":"IFERROR(IF(BX47<>\"\",BX47-BY47,\"\"),\"\")","v":""}]
[null,null,null,"S45",0,"Limiter - Single Stop | COMPACT",{"$f":"IFERROR(IF(ISBLANK(F48),\"\",IF(FIND(F48,INDIRECT($F$42))>0,1,0)),0)","v":0},null,"",null,null,null,null,null,null,null,null,null,null,null,null,null,null,null,null,null,null,null,null,null,null,null,null,null,null,null,null,null,null,null,null,null,null,"AU",null,null,null,null,null,null,{"$f":"IF(AND(ISBLANK(BC48),ISBLANK(C48)),\"HIDE\",_xlfn.SWITCH(PRODUCT(C48:Z48,B48),2,\"HEADING\",1,\"SHOW\",0,\"HIDE\"))","v":"HIDE"},null,null,null,{"$f":"_xlfn.IFNA(SUBSTITUTE(IF(AR48=\"AU\",SUBSTITUTE(BE48,\"xxx\",AW48),SUBSTITUTE(SUBSTITUTE(BE48,\"xx\",AW48),\"x\",\"\")),\"LLL\",\"580\"),BE48)","v":"RB12-6102-069045"},null,"RB12-6102-069045","Limiter - Single Stop | COMPACT S45",null,"N",null,null,null,{"$f":"IFERROR(IF(BH48=\"Y\",INDIRECT(BK48)-BJ48,\"\"),\"\")","v":""},{"$f":"IFERROR(IF(BH48=\"Y\",BL48,\"\"),\"\")","v":""},{"$f":"IFERROR(IF(BH48=\"Y\",TEXT(BL48/25.4,\"0\"&IF(ABS(BL48/25.4-ROUND(BL48/25.4,0))>1/32,\"-0/\"&CHOOSE(ROUND(MOD(BL48/25.4,1)*16,0),16,8,16,4,16,8,16,2,16,8,16,4,16,8,16),\"\")),\"\"),\"\")","v":""},"Piece",{"$f":"IFERROR(IF(ISBLANK(BC48),\"\",INDEX(T_NAV_AU[Base Unit of Measure],MATCH(BC48,T_NAV_AU[No.],0))),\"\")","v":"PIECE"},null,null,"HW",1,{"$f":"IF(ISBLANK(BT48),\"\",PRODUCT(AE48,BT48))","v":1},{"$f":"IF(ISBLANK(BT48),\"\",PRODUCT(AE48,BT48,i_systemQTY))","v":1},{"$f":"IFERROR(INDEX(INDIRECT(\"T_NAV_\"&i_Location&\"[\"&i_Location&\"]\"),MATCH(1,--(BC48=INDIRECT(\"T_NAV_\"&i_Location&\"[No.]\"))*--((INDIRECT(\"T_NAV_\"&i_Location&\"[\"&i_Location&\"]\"))<>\"\"),0))/IF(AND(BQ48=\"METRE\",BG48<>\"\",BR48=\"\"),BG48,1),\"\")","v":""},{"$f":"IFERROR(IF(AND(AY48=\"SHOW\",BW48<>\"\"),BW48*BV48*IF(AND(BM48<>\"\",OR(BP48=\"LENGTH\",BP48=\"METRE\",BP48=\"ROLL\")),(BL48/1000),1),\"\"),\"\")","v":""},{"$f":"IF(BX48<>\"\",(INDIRECT(\"i_\"&BS48&\"discount\"))*BX48,\"\")","v":""},{"$f":"IFERROR(IF(BX48<>\"\",BX48-BY48,\"\"),\"\")","v":""}]
[null,null,null,"2\"",0,null,"",null,null,null,null,null,null,null,null,null,null,null,null,null,null,null,null,null,null,null,null,null,null,null,null,null,null,null,null,null,null,null,null,null,null,null,null,null,null,null,null,null,null,null,{"$f":"IF(AND(ISBLANK(BC49),ISBLANK(C49)),\"HIDE\",_xlfn.SWITCH(PRODUCT(C49:Z49,B49),2,\"HEADING\",1,\"SHOW\",0,\"HIDE\"))","v":"HIDE"},null,null,null,"RA2",null,"RA2xx","2\" Adapter",null,"N",null,null,null,{"$f":"IFERROR(IF(BH49=\"Y\",INDIRECT(BK49)-BJ49,\"\"),\"\")","v":""},{"$f":"IFERROR(IF(BH49=\"Y\",BL49,\"\"),\"\")","v":""},{"$f":"IFERROR(IF(BH49=\"Y\",TEXT(BL49/25.4,\"0\"&IF(ABS(BL49/25.4-ROUND(BL49/25.4,0))>1/32,\"-0/\"&CHOOSE(ROUND(MOD(BL49/25.4,1)*16,0),16,8,16,4,16,8,16,2,16,8,16,4,16,8,16),\"\")),\"\"),\"\")","v":""},"Piece",{"$f":"IFERROR(IF(ISBLANK(BC49),\"\",INDEX(T_NAV_AU[Base Unit of Measure],MATCH(BC49,T_NAV_AU[No.],0))),\"\")","v":""},null,null,"HW",1,{"$f":"IF(ISBLANK(BT49),\"\",PRODUCT(AE49,BT49))","v":1},{"$f":"IF(ISBLANK(BT49),\"\",PRODUCT(AE49,BT49,i_systemQTY))","v":1},null,{"$f":"IFERROR(IF(AND(AY49=\"SHOW\",BW49<>\"\"),BW49*BV49*IF(AND(BM49<>\"\",OR(BP49=\"LENGTH\",BP49=\"METRE\",BP49=\"ROLL\")),(BL49/1000),1),\"\"),\"\")","v":""},{"$f":"IF(BX49<>\"\",(INDIRECT(\"i_\"&BS49&\"discount\"))*BX49,\"\")","v":""},{"$f":"IFERROR(IF(BX49<>\"\",BX49-BY49,\"\"),\"\")","v":""}]
[null,null,null,null,null,null,null,null,null,null,null,null,null,null,null,null,null,null,null,null,null,null,null,null,null,null,null,null,null,null,null,null,null,null,null,null,null,null,null,null,null,null,null,null,null,null,null,null,null,null,{"$f":"IF(AND(ISBLANK(BC50),ISBLANK(C50)),\"HIDE\",_xlfn.SWITCH(PRODUCT(C50:Z50,B50),2,\"HEADING\",1,\"SHOW\",0,\"HIDE\"))","v":"HIDE"}]
[null,2,{"$f":"C52","v":0},null,null,null,null,null,null,null,null,null,null,null,null,null,null,null,null,null,null,null,null,null,null,null,null,null,null,null,{"$f":"IFERROR(IF(AND(AA51=\"Y\",PRODUCT(AB51:AD51)=0),o_nScreens,IF(PRODUCT(AB51:AD51)=0,\"\",PRODUCT(AB51:AD51))),\"\")","v":""},null,null,null,null,null,null,null,null,null,null,null,null,null,{"$f":"IF(ISNUMBER(FIND(\"x\",BE51)),IFERROR(INDEX(AI51:AQ51,0,MATCH(AT51,AI51:AQ51,0)),IF(AI51<>\"\",AI51,i_DefaultColour)),\"\")","v":""},null,null,{"$f":"IF(ISNUMBER(FIND(\"x\",BE51)),IFERROR(INDEX(AI51:AQ51,0,MATCH(AT51,AI51:AQ51,0)),AS51),\"\")","v":""},{"$f":"IF(ISNUMBER(FIND(\"x\",BE51)),IFERROR(INDEX(INDIRECT(\"T_FinishColour[ColourCode-\"&IF(ISNUMBER(FIND(\"xxx\",BE51)),\"xxx\",IF(ISNUMBER(FIND(\"xx\",BE51)),\"xx\",\"error\"))&AR51&\"]\"),MATCH(AV51,T_FinishColour[Finish / Colour],0)),\"\"),\"\")","v":""},null,{"$f":"IF(AND(ISBLANK(BC51),ISBLANK(C51)),\"HIDE\",_xlfn.SWITCH(PRODUCT(C51:Z51,B51),2,\"HEADING\",1,\"SHOW\",0,\"HIDE\"))","v":"HIDE"},null,null,null,{"$f":"_xlfn.IFNA(SUBSTITUTE(IF(AR51=\"AU\",SUBSTITUTE(BE51,\"xxx\",AW51),SUBSTITUTE(SUBSTITUTE(BE51,\"xx\",AW51),\"x\",\"\")),\"LLL\",\"580\"),BE51)","v":""},null,null,null,null,{"$f":"IF(ISBLANK(BO51),\"\",IF(OR(BO51=L_Units),\"Y\",\"N\"))","v":""},null,{"$f":"IFERROR(_xlfn.SINGLE(IF(BH51=\"Y\",((INDEX(#REF!,MATCH(BI51,#REF!,0),0))),\"\")),\"\")","v":""},null,{"$f":"IFERROR(IF(BH51=\"Y\",INDIRECT(BK51)-BJ51,\"\"),\"\")","v":""},"","",null,{"$f":"IFERROR(IF(ISBLANK(BC51),\"\",INDEX(T_NAV_AU[Base Unit of Measure],MATCH(BC51,T_NAV_AU[No.],0))),\"\")","v":""},null,null,null,null,"",{"$f":"IF(ISBLANK(BT51),\"\",PRODUCT(AE51,BT51,i_systemQTY))","v":""},{"$f":"IFERROR(INDEX(INDIRECT(\"T_NAV_\"&i_Location&\"[\"&i_Location&\"]\"),MATCH(1,--(BC51=INDIRECT(\"T_NAV_\"&i_Location&\"[No.]\"))*--((INDIRECT(\"T_NAV_\"&i_Location&\"[\"&i_Location&\"]\"))<>\"\"),0))/IF(AND(BQ51=\"METRE\",BG51<>\"\",BR51=\"\"),BG51,1),\"\")","v":""},{"$f":"IFERROR(IF(AND(AY51=\"SHOW\",BW51<>\"\"),BW51*BV51*IF(AND(BM51<>\"\",OR(BP51=\"LENGTH\",BP51=\"METRE\",BP51=\"ROLL\")),(BL51/1000),1),\"\"),\"\")","v":""},{"$f":"IF(BX51<>\"\",(INDIRECT(\"i_\"&BS51&\"discount\"))*BX51,\"\")","v":""},{"$f":"IFERROR(IF(BX51<>\"\",BX51-BY51,\"\"),\"\")","v":""}]
[null,2,{"$f":"IF(COUNTIF(AY53:AY71,\"SHOW\")>0,1,0)","v":0},"i_WeightBar",null,"i_wbSpline",null,"i_wbAccessories",null,"i_wbSplineTape",null,"i_Location",null,"o_widthmm",null,null,null,null,null,null,null,null,null,null,null,null,null,null,null,null,"",null,null,null,null,null,null,null,null,null,null,null,null,null,"",null,null,"",{"$f":"IF(ISNUMBER(FIND(\"x\",BE52)),IFERROR(INDEX(INDIRECT(\"T_FinishColour[ColourCode-\"&IF(ISNUMBER(FIND(\"xxx\",BE52)),\"xxx\",IF(ISNUMBER(FIND(\"xx\",BE52)),\"xx\",\"error\"))&AR52&\"]\"),MATCH(AV52,T_FinishColour[Finish / Colour],0)),\"\"),\"\")","v":""},null,{"$f":"IF(AND(ISBLANK(BC52),ISBLANK(C52)),\"HIDE\",_xlfn.SWITCH(PRODUCT(C52:Z52,B52),2,\"HEADING\",1,\"SHOW\",0,\"HIDE\"))","v":"HIDE"},null,null,null,"BOTTOM RAIL",null,{"$f":"IF(i_Location=\"US\",\"HEM BAR\",\"BOTTOM RAIL\")","v":"BOTTOM RAIL"},null,null,null,null,{"$f":"IFERROR(_xlfn.SINGLE(IF(BH52=\"Y\",((INDEX(#REF!,MATCH(BI52,#REF!,0),0))),\"\")),\"\")","v":""},null,"","","",null,{"$f":"IFERROR(IF(ISBLANK(BC52),\"\",INDEX(T_NAV_AU[Base Unit of Measure],MATCH(BC52,T_NAV_AU[No.],0))),\"\")","v":""},null,null,null,null,"","",{"$f":"IFERROR(INDEX(INDIRECT(\"T_NAV_\"&i_Location&\"[\"&i_Location&\"]\"),MATCH(1,--(BC52=INDIRECT(\"T_NAV_\"&i_Location&\"[No.]\"))*--((INDIRECT(\"T_NAV_\"&i_Location&\"[\"&i_Location&\"]\"))<>\"\"),0))/IF(AND(BQ52=\"METRE\",BG52<>\"\",BR52=\"\"),BG52,1),\"\")","v":""},"","",""]
[null,null,null,"D30",{"$f":"IFERROR(IF(ISBLANK(D53),\"\",IF(FIND(D53,INDIRECT($D$52))>0,1,0)),0)","v":0},null,{"$f":"IFERROR(IF(ISBLANK(F53),\"\",IF(FIND(F53,INDIRECT($F$52))>0,1,0)),0)","v":""},null,{"$f":"IFERROR(IF(ISBLANK(H53),\"\",IF(FIND(H53,INDIRECT($H$52))>0,1,0)),0)","v":""},null,{"$f":"IFERROR(IF(ISBLANK(J53),\"\",IF(FIND(J53,INDIRECT($J$52))>0,1,0)),0)","v":""},null,{"$f":"IFERROR(IF(ISBLANK(L53),\"\",IF(FIND(L53,INDIRECT($L$52))>0,1,0)),0)","v":""},null,null,null,null,null,null,null,null,null,null,null,null,null,null,null,null,null,"",null,null,null,"White","Mill","Anodised",null,null,null,null,null,null,"AU","White",{"$f":"i_Finish","v":0},null,"White",{"$f":"IF(ISNUMBER(FIND(\"x\",BE53)),IFERROR(INDEX(INDIRECT(\"T_FinishColour[ColourCode-\"&IF(ISNUMBER(FIND(\"xxx\",BE53)),\"xxx\",IF(ISNUMBER(FIND(\"xx\",BE53)),\"xx\",\"error\"))&AR53&\"]\"),MATCH(AV53,T_FinishColour[Finish / Colour],0)),\"\"),\"\")","v":"069"},null,{"$f":"IF(AND(ISBLANK(BC53),ISBLANK(C53)),\"HIDE\",_xlfn.SWITCH(PRODUCT(C53:Z53,B53),2,\"HEADING\",1,\"SHOW\",0,\"HIDE\"))","v":"HIDE"},null,null,null,"RB91-1232-069490",null,{"$f":"\"RB91-1232-xxx\"&(BG53*100)","v":"RB91-1232-xxx490"},"D30 Medium Bottom Rail",{"$f":"IF(i_Location=\"AU\",5.8,4.9)","v":4.9000000000000004},{"$f":"IF(ISBLANK(BO53),\"\",IF(OR(BO53=L_Units),\"Y\",\"N\"))","v":{"$error":"#N/A"}},"wb",{"$f":"IFERROR(IF(BH53=\"Y\",((INDEX(T_Deduc18[Deduction],MATCH(BI53,T_Deduc18[Type],0),0))),\"\"),\"\")","v":""},"o_widthmm",{"$f":"IFERROR(IF(BH53=\"Y\",INDIRECT(BK53)-BJ53,\"\"),\"\")","v":""},"",{"$f":"IFERROR(IF(BH53=\"Y\",TEXT(BL53/25.4,\"0\"&IF(ABS(BL53/25.4-ROUND(BL53/25.4,0))>1/32,\"-0/\"&CHOOSE(ROUND(MOD(BL53/25.4,1)*16,0),16,8,16,4,16,8,16,2,16,8,16,4,16,8,16),\"\")),\"\"),\"\")","v":""},{"$f":"INDEX(T_UnitSelection[Units],MATCH(i_Units,T_UnitSelection[UnitSelection],0))","v":{"$error":"#N/A"}},{"$f":"IFERROR(IF(ISBLANK(BC53),\"\",INDEX(T_NAV_AU[Base Unit of Measure],MATCH(BC53,T_NAV_AU[No.],0))),\"\")","v":""},"METRE",null,"HW",1,1,1,{"$f":"IFERROR(INDEX(INDIRECT(\"T_NAV_\"&i_Location&\"[\"&i_Location&\"]\"),MATCH(1,--(BC53=INDIRECT(\"T_NAV_\"&i_Location&\"[No.]\"))*--((INDIRECT(\"T_NAV_\"&i_Location&\"[\"&i_Location&\"]\"))<>\"\"),0))/IF(AND(BQ53=\"METRE\",BG53<>\"\",BR53=\"\"),BG53,1),\"\")","v":""},"","",""]
[null,null,null,"D30",0,null,{"$f":"IFERROR(IF(ISBLANK(F54),\"\",IF(FIND(F54,INDIRECT($F$52))>0,1,0)),0)","v":""},null,{"$f":"IFERROR(IF(ISBLANK(H54),\"\",IF(FIND(H54,INDIRECT($H$52))>0,1,0)),0)","v":""},null,"",null,"",null,null,null,null,null,null,null,null,null,null,null,null,null,null,null,null,null,"",null,null,null,null,null,null,null,null,null,null,null,null,"AU","Black",0,null,"Black",{"$f":"IF(ISNUMBER(FIND(\"x\",BE54)),IFERROR(INDEX(INDIRECT(\"T_FinishColour[ColourCode-\"&IF(ISNUMBER(FIND(\"xxx\",BE54)),\"xxx\",IF(ISNUMBER(FIND(\"xx\",BE54)),\"xx\",\"error\"))&AR54&\"]\"),MATCH(AV54,T_FinishColour[Finish / Colour],0)),\"\"),\"\")","v":"050"},null,{"$f":"IF(AND(ISBLANK(BC54),ISBLANK(C54)),\"HIDE\",_xlfn.SWITCH(PRODUCT(C54:Z54,B54),2,\"HEADING\",1,\"SHOW\",0,\"HIDE\"))","v":"HIDE"},null,null,null,"RB91-2131-050002",null,"RB91-2131-xxx002","D30 Medium Bottom Rail End Caps LH & RH",null,{"$f":"IF(ISBLANK(BO54),\"\",IF(OR(BO54=L_Units),\"Y\",\"N\"))","v":"N"},null,{"$f":"IFERROR(_xlfn.SINGLE(IF(BH54=\"Y\",((INDEX(#REF!,MATCH(BI54,#REF!,0),0))),\"\")),\"\")","v":""},null,"","","","Pair",{"$f":"IFERROR(IF(ISBLANK(BC54),\"\",INDEX(T_NAV_AU[Base Unit of Measure],MATCH(BC54,T_NAV_AU[No.],0))),\"\")","v":"PAIR"},null,null,"HW",1,1,1,{"$f":"IFERROR(INDEX(INDIRECT(\"T_NAV_\"&i_Location&\"[\"&i_Location&\"]\"),MATCH(1,--(BC54=INDIRECT(\"T_NAV_\"&i_Location&\"[No.]\"))*--((INDIRECT(\"T_NAV_\"&i_Location&\"[\"&i_Location&\"]\"))<>\"\"),0))/IF(AND(BQ54=\"METRE\",BG54<>\"\",BR54=\"\"),BG54,1),\"\")","v":""},"","",""]
[null,null,null,"D30",0,"NO",{"$f":"IFERROR(IF(ISBLANK(F55),\"\",IF(FIND(F55,INDIRECT($F$52))>0,1,0)),0)","v":0},null,{"$f":"IFERROR(IF(ISBLANK(H55),\"\",IF(FIND(H55,INDIRECT($H$52))>0,1,0)),0)","v":""},null,"",null,"",null,{"$f":"IFERROR(IF(ISBLANK(N55),\"\",IF(FIND(N55,INDIRECT($N$42))>0,1,0)),0)","v":""},null,{"$f":"IFERROR(IF(ISBLANK(P55),\"\",IF(FIND(P55,INDIRECT($P$42))>0,1,0)),0)","v":""},null,{"$f":"IFERROR(IF(ISBLANK(R55),\"\",IF(FIND(R55,INDIRECT($R$42))>0,1,0)),0)","v":""},null,{"$f":"IFERROR(IF(ISBLANK(T55),\"\",IF(FIND(T55,INDIRECT($T$42))>0,1,0)),0)","v":""},null,{"$f":"IFERROR(IF(ISBLANK(V55),\"\",IF(FIND(V55,INDIRECT($V$42))>0,1,0)),0)","v":""},null,null,null,null,null,null,null,"",null,null,null,"White",null,null,null,null,null,null,null,null,"AU","",0,null,"",{"$f":"IF(ISNUMBER(FIND(\"x\",BE55)),IFERROR(INDEX(INDIRECT(\"T_FinishColour[ColourCode-\"&IF(ISNUMBER(FIND(\"xxx\",BE55)),\"xxx\",IF(ISNUMBER(FIND(\"xx\",BE55)),\"xx\",\"error\"))&AR55&\"]\"),MATCH(AV55,T_FinishColour[Finish / Colour],0)),\"\"),\"\")","v":""},null,{"$f":"IF(AND(ISBLANK(BC55),ISBLANK(C55)),\"HIDE\",_xlfn.SWITCH(PRODUCT(C55:Z55,B55),2,\"HEADING\",1,\"SHOW\",0,\"HIDE\"))","v":"HIDE"},null,null,null,"RB92-1501-001100",null,"RB92-1501-001100","15mm Flat Spline | 100Lm Roll",100,{"$f":"IF(ISBLANK(BO55),\"\",IF(OR(BO55=L_Units),\"Y\",\"N\"))","v":{"$error":"#N/A"}},"wbSeal",{"$f":"IFERROR(IF(BH55=\"Y\",((INDEX(T_Deduc18[Deduction],MATCH(BI55,T_Deduc18[Type],0),0))),\"\"),\"\")","v":""},"o_widthmm",{"$f":"IFERROR(IF(BH55=\"Y\",INDIRECT(BK55)-BJ55,\"\"),\"\")","v":""},"","",{"$f":"INDEX(T_UnitSelection[Units],MATCH(i_Units,T_UnitSelection[UnitSelection],0))","v":{"$error":"#N/A"}},{"$f":"IFERROR(IF(ISBLANK(BC55),\"\",INDEX(T_NAV_AU[Base Unit of Measure],MATCH(BC55,T_NAV_AU[No.],0))),\"\")","v":"ROLL"},"METRE",null,"HW",1,1,{"$f":"IF(ISBLANK(BT55),\"\",PRODUCT(AE55,BT55,i_systemQTY))","v":1},{"$f":"IFERROR(INDEX(INDIRECT(\"T_NAV_\"&i_Location&\"[\"&i_Location&\"]\"),MATCH(1,--(BC55=INDIRECT(\"T_NAV_\"&i_Location&\"[No.]\"))*--((INDIRECT(\"T_NAV_\"&i_Location&\"[\"&i_Location&\"]\"))<>\"\"),0))/IF(AND(BQ55=\"METRE\",BG55<>\"\",BR55=\"\"),BG55,1),\"\")","v":""},"","",""]
[null,null,null,"D30",0,"MP",{"$f":"(IFERROR(IF(ISBLANK(F56),\"\",IF(FIND(F56,INDIRECT($F$52))>0,1,0)),0)+IF(G57=1,-1,0))","v":0},null,{"$f":"IFERROR(IF(ISBLANK(H56),\"\",IF(FIND(H56,INDIRECT($H$52))>0,1,0)),0)","v":""},null,"",null,"",null,null,null,null,null,null,null,null,null,null,null,null,null,null,null,null,null,"",null,null,null,null,null,null,null,null,null,null,null,null,"AU","",0,null,"",{"$f":"IF(ISNUMBER(FIND(\"x\",BE56)),IFERROR(INDEX(INDIRECT(\"T_FinishColour[ColourCode-\"&IF(ISNUMBER(FIND(\"xxx\",BE56)),\"xxx\",IF(ISNUMBER(FIND(\"xx\",BE56)),\"xx\",\"error\"))&AR56&\"]\"),MATCH(AV56,T_FinishColour[Finish / Colour],0)),\"\"),\"\")","v":""},null,{"$f":"IF(AND(ISBLANK(BC56),ISBLANK(C56)),\"HIDE\",_xlfn.SWITCH(PRODUCT(C56:Z56,B56),2,\"HEADING\",1,\"SHOW\",0,\"HIDE\"))","v":"HIDE"},null,null,null,"RB92-1502-001075",null,"RB92-1502-001075","15mm Flat Spline - D/S MP-HR TAPE | 75Lm Roll",75,{"$f":"IF(ISBLANK(BO56),\"\",IF(OR(BO56=L_Units),\"Y\",\"N\"))","v":{"$error":"#N/A"}},"wbSeal",{"$f":"IFERROR(IF(BH56=\"Y\",((INDEX(T_Deduc18[Deduction],MATCH(BI56,T_Deduc18[Type],0),0))),\"\"),\"\")","v":""},"o_widthmm","","","",{"$f":"INDEX(T_UnitSelection[Units],MATCH(i_Units,T_UnitSelection[UnitSelection],0))","v":{"$error":"#N/A"}},{"$f":"IFERROR(IF(ISBLANK(BC56),\"\",INDEX(T_NAV_AU[Base Unit of Measure],MATCH(BC56,T_NAV_AU[No.],0))),\"\")","v":"ROLL"},"METRE",null,"HW",1,1,1,{"$f":"IFERROR(INDEX(INDIRECT(\"T_NAV_\"&i_Location&\"[\"&i_Location&\"]\"),MATCH(1,--(BC56=INDIRECT(\"T_NAV_\"&i_Location&\"[No.]\"))*--((INDIRECT(\"T_NAV_\"&i_Location&\"[\"&i_Location&\"]\"))<>\"\"),0))/IF(AND(BQ56=\"METRE\",BG56<>\"\",BR56=\"\"),BG56,1),\"\")","v":""},"","",""]
[null,null,null,"D30",0,"B/SIDES",{"$f":"IFERROR(IF(ISBLANK(F57),\"\",IF(FIND(F57,INDIRECT($F$52))>0,1,0)),0)","v":0},null,{"$f":"IFERROR(IF(ISBLANK(H57),\"\",IF(FIND(H57,INDIRECT($H$52))>0,1,0)),0)","v":""},null,"",null,"",null,null,null,null,null,null,null,null,null,null,null,null,null,null,null,null,null,"",null,null,null,"White","Black",null,null,null,null,null,null,null,"AU","",0,null,"",{"$f":"IF(ISNUMBER(FIND(\"x\",BE57)),IFERROR(INDEX(INDIRECT(\"T_FinishColour[ColourCode-\"&IF(ISNUMBER(FIND(\"xxx\",BE57)),\"xxx\",IF(ISNUMBER(FIND(\"xx\",BE57)),\"xx\",\"error\"))&AR57&\"]\"),MATCH(AV57,T_FinishColour[Finish / Colour],0)),\"\"),\"\")","v":""},null,{"$f":"IF(AND(ISBLANK(BC57),ISBLANK(C57)),\"HIDE\",_xlfn.SWITCH(PRODUCT(C57:Z57,B57),2,\"HEADING\",1,\"SHOW\",0,\"HIDE\"))","v":"HIDE"},null,null,null,"RB92-1503-001075",null,"RB92-1503-001075","15mm Flat Spline - D/S MP-HR TAPE B/SIDES | 75Lm Roll",75,{"$f":"IF(ISBLANK(BO57),\"\",IF(OR(BO57=L_Units),\"Y\",\"N\"))","v":{"$error":"#N/A"}},"wbSeal",{"$f":"IFERROR(IF(BH57=\"Y\",((INDEX(T_Deduc18[Deduction],MATCH(BI57,T_Deduc18[Type],0),0))),\"\"),\"\")","v":""},"o_widthmm",{"$f":"IFERROR(IF(BH57=\"Y\",INDIRECT(BK57)-BJ57,\"\"),\"\")","v":""},"","",{"$f":"INDEX(T_UnitSelection[Units],MATCH(i_Units,T_UnitSelection[UnitSelection],0))","v":{"$error":"#N/A"}},{"$f":"IFERROR(IF(ISBLANK(BC57),\"\",INDEX(T_NAV_AU[Base Unit of Measure],MATCH(BC57,T_NAV_AU[No.],0))),\"\")","v":"ROLL"},"METRE",null,"HW",1,1,{"$f":"IF(ISBLANK(BT57),\"\",PRODUCT(AE57,BT57,i_systemQTY))","v":1},{"$f":"IFERROR(INDEX(INDIRECT(\"T_NAV_\"&i_Location&\"[\"&i_Location&\"]\"),MATCH(1,--(BC57=INDIRECT(\"T_NAV_\"&i_Location&\"[No.]\"))*--((INDIRECT(\"T_NAV_\"&i_Location&\"[\"&i_Location&\"]\"))<>\"\"),0))/IF(AND(BQ57=\"METRE\",BG57<>\"\",BR57=\"\"),BG57,1),\"\")","v":""},"","",""]
[null,null,null,"Fabric Wrap",0,null,{"$f":"IFERROR(IF(ISBLANK(F58),\"\",IF(FIND(F58,INDIRECT($F$52))>0,1,0)),0)","v":""},null,null,null,null,null,null,null,null,null,null,null,null,null,null,null,null,null,null,null,null,null,null,null,null,null,null,null,"White",null,null,null,null,null,null,null,null,"AU","White",null,null,{"$f":"IF(ISNUMBER(FIND(\"x\",BE58)),IFERROR(INDEX(AI58:AQ58,0,MATCH(AT58,AI58:AQ58,0)),AS58),\"\")","v":"White"},{"$f":"IF(ISNUMBER(FIND(\"x\",BE58)),IFERROR(INDEX(INDIRECT(\"T_FinishColour[ColourCode-\"&IF(ISNUMBER(FIND(\"xxx\",BE58)),\"xxx\",IF(ISNUMBER(FIND(\"xx\",BE58)),\"xx\",\"error\"))&AR58&\"]\"),MATCH(AV58,T_FinishColour[Finish / Colour],0)),\"\"),\"\")","v":"069"},null,{"$f":"IF(AND(ISBLANK(BC58),ISBLANK(C58)),\"HIDE\",_xlfn.SWITCH(PRODUCT(C58:Z58,B58),2,\"HEADING\",1,\"SHOW\",0,\"HIDE\"))","v":"HIDE"},null,null,null,"RB91-1236-069490",null,"RB91-1236-xxx490","Fabric Wrap Hem Bar 16'",4.9000000000000004,"Y","wb",{"$f":"IFERROR(IF(BH58=\"Y\",((INDEX(T_Deduc18[Deduction],MATCH(BI58,T_Deduc18[Type],0),0))),\"\"),\"\")","v":25},"o_widthmm",{"$f":"IFERROR(IF(BH58=\"Y\",INDIRECT(BK58)-BJ58,\"\"),\"\")","v":-25},{"$f":"IFERROR(IF(BH58=\"Y\",BL58,\"\"),\"\")","v":-25},{"$f":"IFERROR(IF(BH58=\"Y\",TEXT(BL58/25.4,\"0\"&IF(ABS(BL58/25.4-ROUND(BL58/25.4,0))>1/32,\"-0/\"&CHOOSE(ROUND(MOD(BL58/25.4,1)*16,0),16,8,16,4,16,8,16,2,16,8,16,4,16,8,16),\"\")),\"\"),\"\")","v":"-1"},{"$f":"INDEX(T_UnitSelection[Units],MATCH(i_Units,T_UnitSelection[UnitSelection],0))","v":{"$error":"#N/A"}},"LENGTH","METRE",null,"HW",1,1,1]
[null,null,null,"Fabric Wrap",0,null,"",null,null,null,null,null,null,null,null,null,null,null,null,null,null,null,null,null,null,null,null,null,null,null,null,null,null,null,"White",null,null,null,null,null,null,null,null,"AU","White",null,null,{"$f":"IF(ISNUMBER(FIND(\"x\",BE59)),IFERROR(INDEX(AI59:AQ59,0,MATCH(AT59,AI59:AQ59,0)),AS59),\"\")","v":"White"},{"$f":"IF(ISNUMBER(FIND(\"x\",BE59)),IFERROR(INDEX(INDIRECT(\"T_FinishColour[ColourCode-\"&IF(ISNUMBER(FIND(\"xxx\",BE59)),\"xxx\",IF(ISNUMBER(FIND(\"xx\",BE59)),\"xx\",\"error\"))&AR59&\"]\"),MATCH(AV59,T_FinishColour[Finish / Colour],0)),\"\"),\"\")","v":"069"},null,{"$f":"IF(AND(ISBLANK(BC59),ISBLANK(C59)),\"HIDE\",_xlfn.SWITCH(PRODUCT(C59:Z59,B59),2,\"HEADING\",1,\"SHOW\",0,\"HIDE\"))","v":"HIDE"},null,null,null,{"$f":"_xlfn.IFNA(SUBSTITUTE(IF(AR59=\"AU\",SUBSTITUTE(BE59,\"xxx\",AW59),SUBSTITUTE(SUBSTITUTE(BE59,\"xx\",AW59),\"x\",\"\")),\"LLL\",\"580\"),BE59)","v":"RB91-2136-069001"},null,"RB91-2136-xxx001","Fabric Wrap Hem Bar End Cap",null,{"$f":"IF(ISBLANK(BO59),\"\",IF(OR(BO59=L_Units),\"Y\",\"N\"))","v":"N"},null,{"$f":"IFERROR(IF(BH59=\"Y\",((INDEX(T_Deduc18[Deduction],MATCH(BI59,T_Deduc18[Type],0),0))),\"\"),\"\")","v":""},null,{"$f":"IFERROR(IF(BH59=\"Y\",(INDIRECT(BK59)-BJ59)/IF(AA59=\"\",1,o_nScreens),\"\"),\"\")","v":""},null,null,"Piece",{"$f":"IFERROR(IF(ISBLANK(BC59),\"\",INDEX([1]!T_NAV[Base Unit of Measure],MATCH(BC59,[1]!T_NAV[No.],0))),\"\")","v":""},null,null,"HW",2,2,2]
[null,null,null,"Fabric Wrap",0,null,"","Handle",{"$f":"IFERROR(IF(ISBLANK(H60),\"\",IF(FIND(H60,INDIRECT($H$52))>0,1,0)),0)","v":0},null,null,null,null,null,null,null,null,null,null,null,null,null,null,null,null,null,null,null,null,null,null,null,null,null,null,null,null,null,null,null,null,null,null,null,null,null,null,null,null,null,{"$f":"IF(AND(ISBLANK(BC60),ISBLANK(C60)),\"HIDE\",_xlfn.SWITCH(PRODUCT(C60:Z60,B60),2,\"HEADING\",1,\"SHOW\",0,\"HIDE\"))","v":"HIDE"},null,null,null,{"$f":"_xlfn.IFNA(SUBSTITUTE(IF(AR60=\"AU\",SUBSTITUTE(BE60,\"xxx\",AW60),SUBSTITUTE(SUBSTITUTE(BE60,\"xx\",AW60),\"x\",\"\")),\"LLL\",\"580\"),BE60)","v":"RB91-2336-001000"},null,"RB91-2336-001000","Fabric Wrap Hem Bar Handle",null,{"$f":"IF(ISBLANK(BO60),\"\",IF(OR(BO60=L_Units),\"Y\",\"N\"))","v":"N"},null,{"$f":"IFERROR(IF(BH60=\"Y\",((INDEX(T_Deduc18[Deduction],MATCH(BI60,T_Deduc18[Type],0),0))),\"\"),\"\")","v":""},null,{"$f":"IFERROR(IF(BH60=\"Y\",(INDIRECT(BK60)-BJ60)/IF(AA60=\"\",1,o_nScreens),\"\"),\"\")","v":""},null,null,"Piece",{"$f":"IFERROR(IF(ISBLANK(BC60),\"\",INDEX([1]!T_NAV[Base Unit of Measure],MATCH(BC60,[1]!T_NAV[No.],0))),\"\")","v":""},null,null,"HW",1,1,1,{"$f":"IFERROR(INDEX(INDIRECT(\"T_NAV_\"&i_Location&\"[\"&i_Location&\"]\"),MATCH(1,--(BC60=INDIRECT(\"T_NAV_\"&i_Location&\"[No.]\"))*--((INDIRECT(\"T_NAV_\"&i_Location&\"[\"&i_Location&\"]\"))<>\"\"),0))/IF(AND(BQ60=\"METRE\",BG60<>\"\",BR60=\"\"),BG60,1),\"\")","v":""}]
[null,null,null,null,"",null,"","Pull",{"$f":"IFERROR(IF(ISBLANK(H61),\"\",IF(FIND(H61,INDIRECT($H$52))>0,1,0)),0)","v":0},null,null,null,null,null,null,null,null,null,null,null,null,null,null,null,null,null,null,null,null,null,null,null,null,null,null,null,null,null,null,null,null,null,null,null,null,null,null,null,null,null,{"$f":"IF(AND(ISBLANK(BC61),ISBLANK(C61)),\"HIDE\",_xlfn.SWITCH(PRODUCT(C61:Z61,B61),2,\"HEADING\",1,\"SHOW\",0,\"HIDE\"))","v":"HIDE"},null,null,null,{"$f":"_xlfn.IFNA(SUBSTITUTE(IF(AR61=\"AU\",SUBSTITUTE(BE61,\"xxx\",AW61),SUBSTITUTE(SUBSTITUTE(BE61,\"xx\",AW61),\"x\",\"\")),\"LLL\",\"580\"),BE61)","v":"RB91-2536-069000"},null,"RB91-2536-069000","Hem Bar Pull Hook 2ft/4ft Extn",null,{"$f":"IF(ISBLANK(BO61),\"\",IF(OR(BO61=L_Units),\"Y\",\"N\"))","v":"N"},null,{"$f":"IFERROR(IF(BH61=\"Y\",((INDEX(T_Deduc18[Deduction],MATCH(BI61,T_Deduc18[Type],0),0))),\"\"),\"\")","v":""},null,{"$f":"IFERROR(IF(BH61=\"Y\",(INDIRECT(BK61)-BJ61)/IF(AA61=\"\",1,o_nScreens),\"\"),\"\")","v":""},null,null,"Piece",{"$f":"IFERROR(IF(ISBLANK(BC61),\"\",INDEX([1]!T_NAV[Base Unit of Measure],MATCH(BC61,[1]!T_NAV[No.],0))),\"\")","v":""},null,null,"HW",1,1,1,{"$f":"IFERROR(INDEX(INDIRECT(\"T_NAV_\"&i_Location&\"[\"&i_Location&\"]\"),MATCH(1,--(BC61=INDIRECT(\"T_NAV_\"&i_Location&\"[No.]\"))*--((INDIRECT(\"T_NAV_\"&i_Location&\"[\"&i_Location&\"]\"))<>\"\"),0))/IF(AND(BQ61=\"METRE\",BG61<>\"\",BR61=\"\"),BG61,1),\"\")","v":""},{"$f":"IFERROR(IF(AND(AY61=\"SHOW\",BW61<>\"\"),BW61*BV61*IF(AND(BM61<>\"\",OR(BP61=\"LENGTH\",BP61=\"METRE\",BP61=\"ROLL\")),(BL61/1000),1),\"\"),\"\")","v":""},{"$f":"IF(BX61<>\"\",(INDIRECT(\"i_\"&BS61&\"discount\"))*BX61,\"\")","v":""},{"$f":"IFERROR(IF(BX61<>\"\",BX61-BY61,\"\"),\"\")","v":""}]
[null,null,null,"Fabric Wrap",0,"Wrap",0,null,{"$f":"IFERROR(IF(ISBLANK(H62),\"\",IF(FIND(H62,INDIRECT($H$52))>0,1,0)),0)","v":""},null,null,null,null,null,null,null,null,null,null,null,null,null,null,null,null,null,"i_wbSpline",null,"or",null,{"$f":"IFERROR(IF(ISBLANK(AC62),1,IF(FIND(AC62,INDIRECT($AA$62))>0,2,1)),1)","v":1},null,null,null,null,null,null,null,null,null,null,null,null,null,null,null,null,null,null,null,{"$f":"IF(AND(ISBLANK(BC62),ISBLANK(C62)),\"HIDE\",_xlfn.SWITCH(PRODUCT(C62:Z62,B62),2,\"HEADING\",1,\"SHOW\",0,\"HIDE\"))","v":"HIDE"},null,null,null,{"$f":"_xlfn.IFNA(SUBSTITUTE(IF(AR62=\"AU\",SUBSTITUTE(BE62,\"xxx\",AW62),SUBSTITUTE(SUBSTITUTE(BE62,\"xx\",AW62),\"x\",\"\")),\"LLL\",\"580\"),BE62)","v":"SS91-5350-069000"},null,"SS91-5350-069000","Smooth Round Spline | 5.0mm x 820ft Roll (250m)",250,"Y","wb",{"$f":"IFERROR(IF(BH62=\"Y\",((INDEX(T_Deduc18[Deduction],MATCH(BI62,T_Deduc18[Type],0),0))),\"\"),\"\")","v":25},"o_widthmm",{"$f":"IFERROR(IF(BH62=\"Y\",INDIRECT(BK62)-BJ62,\"\"),\"\")","v":-25},{"$f":"IFERROR(IF(BH62=\"Y\",BL62,\"\"),\"\")","v":-25},{"$f":"IFERROR(IF(BH62=\"Y\",TEXT(BL62/25.4,\"0\"&IF(ABS(BL62/25.4-ROUND(BL62/25.4,0))>1/32,\"-0/\"&CHOOSE(ROUND(MOD(BL62/25.4,1)*16,0),16,8,16,4,16,8,16,2,16,8,16,4,16,8,16),\"\")),\"\"),\"\")","v":"-1"},{"$f":"INDEX(T_UnitSelection[Units],MATCH(i_Units,T_UnitSelection[UnitSelection],0))","v":{"$error":"#N/A"}},"ROLL","METRE","Y","HW",1,1,{"$f":"IF(ISBLANK(BT62),\"\",PRODUCT(AE62,BT62,i_systemQTY))","v":1}]
[null,null,null,"Fabric Wrap",0,"One Side",0,null,"",null,null,null,null,null,null,null,null,null,null,null,null,null,null,null,null,null,null,null,null,null,null,null,null,null,null,null,null,null,null,null,null,null,null,null,null,null,null,null,null,null,{"$f":"IF(AND(ISBLANK(BC63),ISBLANK(C63)),\"HIDE\",_xlfn.SWITCH(PRODUCT(C63:Z63,B63),2,\"HEADING\",1,\"SHOW\",0,\"HIDE\"))","v":"HIDE"},null,null,null,{"$f":"_xlfn.IFNA(SUBSTITUTE(IF(AR63=\"AU\",SUBSTITUTE(BE63,\"xxx\",AW63),SUBSTITUTE(SUBSTITUTE(BE63,\"xx\",AW63),\"x\",\"\")),\"LLL\",\"580\"),BE63)","v":"RB92-0901-001100"},null,"RB92-0901-001100","9mm ACM Flat Spline - No Tape",100,"Y","wb",40,"o_widthmm",-40,-40,"-1-9/16",{"$f":"INDEX(T_UnitSelection[Units],MATCH(i_Units,T_UnitSelection[UnitSelection],0))","v":{"$error":"#N/A"}},"ROLL",null,null,"HW",1,1,1]
[null,null,null,"Fabric Wrap",0,"NO",{"$f":"IFERROR(IF(ISBLANK(F64),\"\",IF(FIND(F64,INDIRECT($F$52))>0,1,0)),0)","v":0},null,"",null,"",null,null,null,null,null,null,null,null,null,null,null,null,null,null,null,null,null,null,null,{"$f":"IFERROR(IF(AND(AA64=\"Y\",PRODUCT(AB64:AD64)=0),o_nScreens,IF(PRODUCT(AB64:AD64)=0,\"\",PRODUCT(AB64:AD64))),\"\")","v":""},null,null,null,null,null,null,null,null,null,null,null,null,"AU",{"$f":"IF(ISNUMBER(FIND(\"x\",BE64)),IFERROR(INDEX(AI64:AQ64,0,MATCH(AT64,AI64:AQ64,0)),IF(AI64<>\"\",AI64,i_DefaultColour)),\"\")","v":""},0,null,{"$f":"IF(ISNUMBER(FIND(\"x\",BE64)),IFERROR(INDEX(AI64:AQ64,0,MATCH(AT64,AI64:AQ64,0)),AS64),\"\")","v":""},{"$f":"IF(ISNUMBER(FIND(\"x\",BE64)),IFERROR(INDEX(INDIRECT(\"T_FinishColour[ColourCode-\"&IF(ISNUMBER(FIND(\"xxx\",BE64)),\"xxx\",IF(ISNUMBER(FIND(\"xx\",BE64)),\"xx\",\"error\"))&AR64&\"]\"),MATCH(AV64,T_FinishColour[Finish / Colour],0)),\"\"),\"\")","v":""},null,{"$f":"IF(AND(ISBLANK(BC64),ISBLANK(C64)),\"HIDE\",_xlfn.SWITCH(PRODUCT(C64:Z64,B64),2,\"HEADING\",1,\"SHOW\",0,\"HIDE\"))","v":"HIDE"},null,null,null,"SB91-0018-050040",null,"SB91-0018-050040","9mm Flat Spline",null,{"$f":"IF(ISBLANK(BO64),\"\",IF(OR(BO64=L_Units),\"Y\",\"N\"))","v":{"$error":"#N/A"}},"wbSeal",{"$f":"IFERROR(IF(BH64=\"Y\",((INDEX(T_Deduc18[Deduction],MATCH(BI64,T_Deduc18[Type],0),0))),\"\"),\"\")","v":""},"o_widthmm",{"$f":"IFERROR(IF(BH64=\"Y\",INDIRECT(BK64)-BJ64,\"\"),\"\")","v":""},{"$f":"IFERROR(IF(BH64=\"Y\",BL64,\"\"),\"\")","v":""},{"$f":"IFERROR(IF(BH64=\"Y\",TEXT(BL64/25.4,\"0\"&IF(ABS(BL64/25.4-ROUND(BL64/25.4,0))>1/32,\"-0/\"&CHOOSE(ROUND(MOD(BL64/25.4,1)*16,0),16,8,16,4,16,8,16,2,16,8,16,4,16,8,16),\"\")),\"\"),\"\")","v":""},{"$f":"INDEX(T_UnitSelection[Units],MATCH(i_Units,T_UnitSelection[UnitSelection],0))","v":{"$error":"#N/A"}},{"$f":"IFERROR(IF(ISBLANK(BC64),\"\",INDEX(T_NAV_AU[Base Unit of Measure],MATCH(BC64,T_NAV_AU[No.],0))),\"\")","v":"METRE"},"METRE",null,"HW",1,{"$f":"IF(ISBLANK(BT64),\"\",PRODUCT(AE64,BT64))","v":1},1,{"$f":"IFERROR(INDEX(INDIRECT(\"T_NAV_\"&i_Location&\"[\"&i_Location&\"]\"),MATCH(1,--(BC64=INDIRECT(\"T_NAV_\"&i_Location&\"[No.]\"))*--((INDIRECT(\"T_NAV_\"&i_Location&\"[\"&i_Location&\"]\"))<>\"\"),0))/IF(AND(BQ64=\"METRE\",BG64<>\"\",BR64=\"\"),BG64,1),\"\")","v":""},{"$f":"IFERROR(IF(AND(AY64=\"SHOW\",BW64<>\"\"),BW64*BV64*IF(AND(BM64<>\"\",OR(BP64=\"LENGTH\",BP64=\"METRE\",BP64=\"ROLL\")),(BL64/1000),1),\"\"),\"\")","v":""},{"$f":"IF(BX64<>\"\",(INDIRECT(\"i_\"&BS64&\"discount\"))*BX64,\"\")","v":""},{"$f":"IFERROR(IF(BX64<>\"\",BX64-BY64,\"\"),\"\")","v":""}]
[null,null,null,"Fabric Wrap",0,"MP",{"$f":"(IFERROR(IF(ISBLANK(F65),\"\",IF(FIND(F65,INDIRECT($F$52))>0,1,0)),0)+IF(G66=1,-1,0))","v":0},null,"",null,"",null,null,null,null,null,null,null,null,null,null,null,null,null,null,null,null,null,null,null,{"$f":"IFERROR(IF(AND(AA65=\"Y\",PRODUCT(AB65:AD65)=0),o_nScreens,IF(PRODUCT(AB65:AD65)=0,\"\",PRODUCT(AB65:AD65))),\"\")","v":""},null,null,null,null,null,null,null,null,null,null,null,null,"AU",{"$f":"IF(ISNUMBER(FIND(\"x\",BE65)),IFERROR(INDEX(AI65:AQ65,0,MATCH(AT65,AI65:AQ65,0)),IF(AI65<>\"\",AI65,i_DefaultColour)),\"\")","v":""},0,null,{"$f":"IF(ISNUMBER(FIND(\"x\",BE65)),IFERROR(INDEX(AI65:AQ65,0,MATCH(AT65,AI65:AQ65,0)),AS65),\"\")","v":""},{"$f":"IF(ISNUMBER(FIND(\"x\",BE65)),IFERROR(INDEX(INDIRECT(\"T_FinishColour[ColourCode-\"&IF(ISNUMBER(FIND(\"xxx\",BE65)),\"xxx\",IF(ISNUMBER(FIND(\"xx\",BE65)),\"xx\",\"error\"))&AR65&\"]\"),MATCH(AV65,T_FinishColour[Finish / Colour],0)),\"\"),\"\")","v":""},null,{"$f":"IF(AND(ISBLANK(BC65),ISBLANK(C65)),\"HIDE\",_xlfn.SWITCH(PRODUCT(C65:Z65,B65),2,\"HEADING\",1,\"SHOW\",0,\"HIDE\"))","v":"HIDE"},null,null,null,"SB91-0019-050580",null,"SB91-0019-050580","9mm Flat Spline - D/S MP-HR TAPE",null,{"$f":"IF(ISBLANK(BO65),\"\",IF(OR(BO65=L_Units),\"Y\",\"N\"))","v":{"$error":"#N/A"}},"wbSeal",{"$f":"IFERROR(IF(BH65=\"Y\",((INDEX(T_Deduc18[Deduction],MATCH(BI65,T_Deduc18[Type],0),0))),\"\"),\"\")","v":""},"o_widthmm","","","",{"$f":"INDEX(T_UnitSelection[Units],MATCH(i_Units,T_UnitSelection[UnitSelection],0))","v":{"$error":"#N/A"}},{"$f":"IFERROR(IF(ISBLANK(BC65),\"\",INDEX(T_NAV_AU[Base Unit of Measure],MATCH(BC65,T_NAV_AU[No.],0))),\"\")","v":"LENGTH"},"METRE",null,"HW",1,1,1,{"$f":"IFERROR(INDEX(INDIRECT(\"T_NAV_\"&i_Location&\"[\"&i_Location&\"]\"),MATCH(1,--(BC65=INDIRECT(\"T_NAV_\"&i_Location&\"[No.]\"))*--((INDIRECT(\"T_NAV_\"&i_Location&\"[\"&i_Location&\"]\"))<>\"\"),0))/IF(AND(BQ65=\"METRE\",BG65<>\"\",BR65=\"\"),BG65,1),\"\")","v":""},"","",""]
[null,null,null,"Fabric Wrap",0,"B/SIDES",{"$f":"IFERROR(IF(ISBLANK(F66),\"\",IF(FIND(F66,INDIRECT($F$52))>0,1,0)),0)","v":0},null,"",null,"",null,null,null,{"$f":"IFERROR(IF(ISBLANK(N66),\"\",IF(FIND(N66,INDIRECT($N$52))>0,1,0)),0)","v":""},null,null,null,null,null,null,null,null,null,null,null,null,null,null,null,{"$f":"IFERROR(MID(i_wbHandle,10,1)*1,\"\")","v":""},null,null,null,null,null,null,null,null,null,null,null,null,null,"",0,null,"",{"$f":"IF(ISNUMBER(FIND(\"x\",BE66)),IFERROR(INDEX(INDIRECT(\"T_FinishColour[ColourCode-\"&IF(ISNUMBER(FIND(\"xxx\",BE66)),\"xxx\",IF(ISNUMBER(FIND(\"xx\",BE66)),\"xx\",\"error\"))&AR66&\"]\"),MATCH(AV66,T_FinishColour[Finish / Colour],0)),\"\"),\"\")","v":""},null,{"$f":"IF(AND(ISBLANK(BC66),ISBLANK(C66)),\"HIDE\",_xlfn.SWITCH(PRODUCT(C66:Z66,B66),2,\"HEADING\",1,\"SHOW\",0,\"HIDE\"))","v":"HIDE"},null,null,null,{"$f":"_xlfn.IFNA(SUBSTITUTE(IF(AR66=\"AU\",SUBSTITUTE(BE66,\"xxx\",AW66),SUBSTITUTE(SUBSTITUTE(BE66,\"xx\",AW66),\"x\",\"\")),\"LLL\",\"580\"),BE66)","v":"SB07-2201-022001"},null,"SB07-2201-022001","9mm Flat Spline - D/S MP-HR TAPE B/SIDES",null,{"$f":"IF(ISBLANK(BO66),\"\",IF(OR(BO66=L_Units),\"Y\",\"N\"))","v":{"$error":"#N/A"}},"wbSeal",{"$f":"IFERROR(IF(BH66=\"Y\",((INDEX(T_Deduc18[Deduction],MATCH(BI66,T_Deduc18[Type],0),0))),\"\"),\"\")","v":""},"o_widthmm","","","",{"$f":"INDEX(T_UnitSelection[Units],MATCH(i_Units,T_UnitSelection[UnitSelection],0))","v":{"$error":"#N/A"}},{"$f":"IFERROR(IF(ISBLANK(BC66),\"\",INDEX(T_NAV_AU[Base Unit of Measure],MATCH(BC66,T_NAV_AU[No.],0))),\"\")","v":""},"METRE",null,"HW",1,1,1,{"$f":"IFERROR(INDEX(INDIRECT(\"T_NAV_\"&i_Location&\"[\"&i_Location&\"]\"),MATCH(1,--(BC66=INDIRECT(\"T_NAV_\"&i_Location&\"[No.]\"))*--((INDIRECT(\"T_NAV_\"&i_Location&\"[\"&i_Location&\"]\"))<>\"\"),0))/IF(AND(BQ66=\"METRE\",BG66<>\"\",BR66=\"\"),BG66,1),\"\")","v":""},"","","",null,null,{"$f":"2.85*2.64","v":7.5240000000000009}]
[null,null,null,"D30",0,null,null,"Handle",0,null,null,null,{"$f":"IFERROR(IF(ISBLANK(L67),\"\",IF(FIND(L67,INDIRECT($L$85))>0,1,0)),0)","v":""},null,null,null,null,null,null,null,null,null,null,null,null,null,null,null,null,null,null,null,null,null,null,null,null,null,null,null,null,null,null,null,null,null,null,null,null,null,{"$f":"IF(AND(ISBLANK(BC67),ISBLANK(C67)),\"HIDE\",_xlfn.SWITCH(PRODUCT(C67:Z67,B67),2,\"HEADING\",1,\"SHOW\",0,\"HIDE\"))","v":"HIDE"},null,null,null,{"$f":"_xlfn.IFNA(SUBSTITUTE(IF(AR67=\"AU\",SUBSTITUTE(BE67,\"xxx\",AW67),SUBSTITUTE(SUBSTITUTE(BE67,\"xx\",AW67),\"x\",\"\")),\"LLL\",\"580\"),BE67)","v":"RB91-2332-001000"},null,"RB91-2332-001000","D30 Weight Bar Handle",null,{"$f":"IF(ISBLANK(BO67),\"\",IF(OR(BO67=L_Units),\"Y\",\"N\"))","v":"N"},null,{"$f":"IFERROR(_xlfn.SINGLE(IF(BH67=\"Y\",((INDEX(#REF!,MATCH(BI67,#REF!,0),0))),\"\")),\"\")","v":""},null,{"$f":"IFERROR(IF(BH67=\"Y\",INDIRECT(BK67)-BJ67,\"\"),\"\")","v":""},{"$f":"IFERROR(IF(BH67=\"Y\",BL67,\"\"),\"\")","v":""},{"$f":"IFERROR(IF(BH67=\"Y\",TEXT(BL67/25.4,\"0\"&IF(ABS(BL67/25.4-ROUND(BL67/25.4,0))>1/32,\"-0/\"&CHOOSE(ROUND(MOD(BL67/25.4,1)*16,0),16,8,16,4,16,8,16,2,16,8,16,4,16,8,16),\"\")),\"\"),\"\")","v":""},"Piece",{"$f":"IFERROR(IF(ISBLANK(BC67),\"\",INDEX(T_NAV_AU[Base Unit of Measure],MATCH(BC67,T_NAV_AU[No.],0))),\"\")","v":"PIECE"},null,null,"HW",1,{"$f":"IF(ISBLANK(BT67),\"\",PRODUCT(AE67,BT67))","v":1},{"$f":"IF(ISBLANK(BT67),\"\",PRODUCT(AE67,BT67,i_systemQTY))","v":1},{"$f":"IFERROR(INDEX(INDIRECT(\"T_NAV_\"&i_Location&\"[\"&i_Location&\"]\"),MATCH(1,--(BC67=INDIRECT(\"T_NAV_\"&i_Location&\"[No.]\"))*--((INDIRECT(\"T_NAV_\"&i_Location&\"[\"&i_Location&\"]\"))<>\"\"),0))/IF(AND(BQ67=\"METRE\",BG67<>\"\",BR67=\"\"),BG67,1),\"\")","v":""},{"$f":"IFERROR(IF(AND(AY67=\"SHOW\",BW67<>\"\"),BW67*BV67*IF(AND(BM67<>\"\",OR(BP67=\"LENGTH\",BP67=\"METRE\",BP67=\"ROLL\")),(BL67/1000),1),\"\"),\"\")","v":""},{"$f":"IF(BX67<>\"\",(INDIRECT(\"i_\"&BS67&\"discount\"))*BX67,\"\")","v":""},{"$f":"IFERROR(IF(BX67<>\"\",BX67-BY67,\"\"),\"\")","v":""}]
[null,null,1,null,null,null,{"$f":"IFERROR(IF(ISBLANK(F68),\"\",IF(FIND(F68,INDIRECT($F$52))>0,1,0)),0)","v":""},null,{"$f":"IFERROR(IF(ISBLANK(H68),\"\",IF(FIND(H68,INDIRECT($H$52))>0,1,0)),0)","v":""},null,{"$f":"IFERROR(IF(ISBLANK(J68),\"\",IF(FIND(J68,INDIRECT($J$52))>0,1,0)),0)","v":""},"AU",{"$f":"IFERROR(IF(ISBLANK(L68),\"\",IF(FIND(L68,INDIRECT($L$52))>0,1,0)),0)","v":0},null,null,null,null,null,null,null,null,null,null,null,null,null,null,null,null,null,null,null,null,null,null,null,null,null,null,null,null,null,null,"AU","",0,null,"",{"$f":"IF(ISNUMBER(FIND(\"x\",BE68)),IFERROR(INDEX(INDIRECT(\"T_FinishColour[ColourCode-\"&IF(ISNUMBER(FIND(\"xxx\",BE68)),\"xxx\",IF(ISNUMBER(FIND(\"xx\",BE68)),\"xx\",\"error\"))&AR68&\"]\"),MATCH(AV68,T_FinishColour[Finish / Colour],0)),\"\"),\"\")","v":""},null,{"$f":"IF(AND(ISBLANK(BC68),ISBLANK(C68)),\"HIDE\",_xlfn.SWITCH(PRODUCT(C68:Z68,B68),2,\"HEADING\",1,\"SHOW\",0,\"HIDE\"))","v":"HIDE"},null,null,null,{"$f":"_xlfn.IFNA(SUBSTITUTE(IF(AR68=\"AU\",SUBSTITUTE(BE68,\"xxx\",AW68),SUBSTITUTE(SUBSTITUTE(BE68,\"xx\",AW68),\"x\",\"\")),\"LLL\",\"580\"),BE68)","v":"VB05-0301-025200"},null,"VB05-0301-025200","VB05 OVAL Steel Ballast 5x7.5mm x 2mt Length\t",2,{"$f":"IF(ISBLANK(BO68),\"\",IF(OR(BO68=L_Units),\"Y\",\"N\"))","v":{"$error":"#N/A"}},"Ballast",{"$f":"IFERROR(IF(BH68=\"Y\",((INDEX(T_Deduc18[Deduction],MATCH(BI68,T_Deduc18[Type],0),0))),\"\"),\"\")","v":""},"o_widthmm",{"$f":"IFERROR(IF(BH68=\"Y\",IF(INDIRECT(BK68)-BJ68<2001,INDIRECT(BK68)-BJ68,2000),\"\"),\"\")","v":""},{"$f":"IFERROR(IF(BH68=\"Y\",BL68,\"\"),\"\")","v":""},{"$f":"IFERROR(IF(BH68=\"Y\",TEXT(BL68/25.4,\"0\"&IF(ABS(BL68/25.4-ROUND(BL68/25.4,0))>1/32,\"-0/\"&CHOOSE(ROUND(MOD(BL68/25.4,1)*16,0),16,8,16,4,16,8,16,2,16,8,16,4,16,8,16),\"\")),\"\"),\"\")","v":""},{"$f":"INDEX(T_UnitSelection[Units],MATCH(i_Units,T_UnitSelection[UnitSelection],0))","v":{"$error":"#N/A"}},{"$f":"IFERROR(IF(ISBLANK(BC68),\"\",INDEX(T_NAV_AU[Base Unit of Measure],MATCH(BC68,T_NAV_AU[No.],0))),\"\")","v":"LENGTH"},"METRE",null,"HW",1,{"$f":"IF(ISBLANK(BT68),\"\",PRODUCT(AE68,BT68))","v":1},{"$f":"IF(ISBLANK(BT68),\"\",PRODUCT(AE68,BT68,i_systemQTY))","v":1},{"$f":"IFERROR(INDEX(INDIRECT(\"T_NAV_\"&i_Location&\"[\"&i_Location&\"]\"),MATCH(1,--(BC68=INDIRECT(\"T_NAV_\"&i_Location&\"[No.]\"))*--((INDIRECT(\"T_NAV_\"&i_Location&\"[\"&i_Location&\"]\"))<>\"\"),0))/IF(AND(BQ68=\"METRE\",BG68<>\"\",BR68=\"\"),BG68,1),\"\")","v":""},"","",""]
[null,null,null,null,null,null,null,null,null,null,null,"AU",{"$f":"IFERROR(IF(ISBLANK(L69),\"\",IF(FIND(L69,INDIRECT($L$52))>0,1,0)),0)","v":0},null,{"$f":"IF(BL69=0,0,1)","v":1},null,null,null,null,null,null,null,null,null,null,null,null,null,null,null,null,null,null,null,null,null,null,null,null,null,null,null,null,"AU",{"$f":"IF(ISNUMBER(FIND(\"x\",BE69)),IFERROR(INDEX(AI69:AQ69,0,MATCH(AT69,AI69:AQ69,0)),IF(AI69<>\"\",AI69,i_DefaultColour)),\"\")","v":""},0,null,{"$f":"IF(ISNUMBER(FIND(\"x\",BE69)),IFERROR(INDEX(AI69:AQ69,0,MATCH(AT69,AI69:AQ69,0)),AS69),\"\")","v":""},{"$f":"IF(ISNUMBER(FIND(\"x\",BE69)),IFERROR(INDEX(INDIRECT(\"T_FinishColour[ColourCode-\"&IF(ISNUMBER(FIND(\"xxx\",BE69)),\"xxx\",IF(ISNUMBER(FIND(\"xx\",BE69)),\"xx\",\"error\"))&AR69&\"]\"),MATCH(AV69,T_FinishColour[Finish / Colour],0)),\"\"),\"\")","v":""},null,{"$f":"IF(AND(ISBLANK(BC69),ISBLANK(C69)),\"HIDE\",_xlfn.SWITCH(PRODUCT(C69:Z69,B69),2,\"HEADING\",1,\"SHOW\",0,\"HIDE\"))","v":"HIDE"},null,null,null,{"$f":"_xlfn.IFNA(SUBSTITUTE(IF(AR69=\"AU\",SUBSTITUTE(BE69,\"xxx\",AW69),SUBSTITUTE(SUBSTITUTE(BE69,\"xx\",AW69),\"x\",\"\")),\"LLL\",\"580\"),BE69)","v":"VB05-0301-025200"},null,"VB05-0301-025200","VB05 OVAL Steel Ballast 5x7.5mm x 2mt Length\t",2,{"$f":"IF(ISBLANK(BO69),\"\",IF(OR(BO69=L_Units),\"Y\",\"N\"))","v":{"$error":"#N/A"}},"Ballast",{"$f":"IFERROR(IF(BH69=\"Y\",((INDEX(T_Deduc18[Deduction],MATCH(BI69,T_Deduc18[Type],0),0))),\"\"),\"\")","v":""},"o_widthmm",{"$f":"IFERROR(IF(BH68=\"Y\",IF(INDIRECT(BK68)-BJ68>2000,INDIRECT(BK68)-BJ68-2000,0),\"\"),\"\")","v":""},{"$f":"IFERROR(IF(BH69=\"Y\",BL69,\"\"),\"\")","v":""},{"$f":"IFERROR(IF(BH69=\"Y\",TEXT(BL69/25.4,\"0\"&IF(ABS(BL69/25.4-ROUND(BL69/25.4,0))>1/32,\"-0/\"&CHOOSE(ROUND(MOD(BL69/25.4,1)*16,0),16,8,16,4,16,8,16,2,16,8,16,4,16,8,16),\"\")),\"\"),\"\")","v":""},{"$f":"INDEX(T_UnitSelection[Units],MATCH(i_Units,T_UnitSelection[UnitSelection],0))","v":{"$error":"#N/A"}},{"$f":"IFERROR(IF(ISBLANK(BC69),\"\",INDEX(T_NAV_AU[Base Unit of Measure],MATCH(BC69,T_NAV_AU[No.],0))),\"\")","v":"LENGTH"},"METRE",null,"HW",1,{"$f":"IF(ISBLANK(BT69),\"\",PRODUCT(AE69,BT69))","v":1},{"$f":"IF(ISBLANK(BT69),\"\",PRODUCT(AE69,BT69,i_systemQTY))","v":1},{"$f":"IFERROR(INDEX(INDIRECT(\"T_NAV_\"&i_Location&\"[\"&i_Location&\"]\"),MATCH(1,--(BC69=INDIRECT(\"T_NAV_\"&i_Location&\"[No.]\"))*--((INDIRECT(\"T_NAV_\"&i_Location&\"[\"&i_Location&\"]\"))<>\"\"),0))/IF(AND(BQ69=\"METRE\",BG69<>\"\",BR69=\"\"),BG69,1),\"\")","v":""},{"$f":"IFERROR(IF(AND(AY69=\"SHOW\",BW69<>\"\"),BW69*BV69*IF(AND(BM69<>\"\",OR(BP69=\"LENGTH\",BP69=\"METRE\",BP69=\"ROLL\")),(BL69/1000),1),\"\"),\"\")","v":""},{"$f":"IF(BX69<>\"\",(INDIRECT(\"i_\"&BS69&\"discount\"))*BX69,\"\")","v":""},{"$f":"IFERROR(IF(BX69<>\"\",BX69-BY69,\"\"),\"\")","v":""}]
[null,null,null,null,null,null,null,null,null,null,null,"US",{"$f":"IFERROR(IF(ISBLANK(L70),\"\",IF(FIND(L70,INDIRECT($L$52))>0,1,0)),0)","v":0},null,null,null,null,null,null,null,null,null,null,null,null,null,null,null,null,null,null,null,null,null,null,null,null,null,null,null,null,null,null,"US","",0,null,"",{"$f":"IF(ISNUMBER(FIND(\"x\",BE70)),IFERROR(INDEX(INDIRECT(\"T_FinishColour[ColourCode-\"&IF(ISNUMBER(FIND(\"xxx\",BE70)),\"xxx\",IF(ISNUMBER(FIND(\"xx\",BE70)),\"xx\",\"error\"))&AR70&\"]\"),MATCH(AV70,T_FinishColour[Finish / Colour],0)),\"\"),\"\")","v":""},null,{"$f":"IF(AND(ISBLANK(BC70),ISBLANK(C70)),\"HIDE\",_xlfn.SWITCH(PRODUCT(C70:Z70,B70),2,\"HEADING\",1,\"SHOW\",0,\"HIDE\"))","v":"HIDE"},null,null,null,"VB05-0301-025300",null,"VB05-0301-025300","VB05 OVAL Steel Tiltrod 5x7.5mm x 3mt Length\t",3,{"$f":"IF(ISBLANK(BO70),\"\",IF(OR(BO70=L_Units),\"Y\",\"N\"))","v":{"$error":"#N/A"}},"Ballast",{"$f":"IFERROR(IF(BH70=\"Y\",((INDEX(T_Deduc18[Deduction],MATCH(BI70,T_Deduc18[Type],0),0))),\"\"),\"\")","v":""},"o_widthmm",{"$f":"IFERROR(IF(BH70=\"Y\",IF(INDIRECT(BK70)-BJ70<3001,INDIRECT(BK70)-BJ70,3000),\"\"),\"\")","v":""},"","",{"$f":"INDEX(T_UnitSelection[Units],MATCH(i_Units,T_UnitSelection[UnitSelection],0))","v":{"$error":"#N/A"}},{"$f":"IFERROR(IF(ISBLANK(BC70),\"\",INDEX(T_NAV_AU[Base Unit of Measure],MATCH(BC70,T_NAV_AU[No.],0))),\"\")","v":"LENGTH"},"METRE",null,"HW",1,1,1,{"$f":"IFERROR(INDEX(INDIRECT(\"T_NAV_\"&i_Location&\"[\"&i_Location&\"]\"),MATCH(1,--(BC70=INDIRECT(\"T_NAV_\"&i_Location&\"[No.]\"))*--((INDIRECT(\"T_NAV_\"&i_Location&\"[\"&i_Location&\"]\"))<>\"\"),0))/IF(AND(BQ70=\"METRE\",BG70<>\"\",BR70=\"\"),BG70,1),\"\")","v":""},"","",""]
[null,null,1,null,null,null,{"$f":"IFERROR(IF(ISBLANK(F71),\"\",IF(FIND(F71,INDIRECT($F$52))>0,1,0)),0)","v":""},null,{"$f":"IFERROR(IF(ISBLANK(H71),\"\",IF(FIND(H71,INDIRECT($H$52))>0,1,0)),0)","v":""},null,"","US",{"$f":"IFERROR(IF(ISBLANK(L71),\"\",IF(FIND(L71,INDIRECT($L$52))>0,1,0)),0)","v":0},null,{"$f":"IF(BL71=0,0,1)","v":1},null,null,null,null,null,null,null,null,null,null,null,null,null,null,null,{"$f":"IFERROR(IF(AND(AA71=\"Y\",PRODUCT(AB71:AD71)=0),o_nScreens,IF(PRODUCT(AB71:AD71)=0,\"\",PRODUCT(AB71:AD71))),\"\")","v":""},null,null,null,null,null,null,null,null,null,null,null,null,"US",{"$f":"IF(ISNUMBER(FIND(\"x\",BE71)),IFERROR(INDEX(AI71:AQ71,0,MATCH(AT71,AI71:AQ71,0)),IF(AI71<>\"\",AI71,i_DefaultColour)),\"\")","v":""},0,null,{"$f":"IF(ISNUMBER(FIND(\"x\",BE71)),IFERROR(INDEX(AI71:AQ71,0,MATCH(AT71,AI71:AQ71,0)),AS71),\"\")","v":""},{"$f":"IF(ISNUMBER(FIND(\"x\",BE71)),IFERROR(INDEX(INDIRECT(\"T_FinishColour[ColourCode-\"&IF(ISNUMBER(FIND(\"xxx\",BE71)),\"xxx\",IF(ISNUMBER(FIND(\"xx\",BE71)),\"xx\",\"error\"))&AR71&\"]\"),MATCH(AV71,T_FinishColour[Finish / Colour],0)),\"\"),\"\")","v":""},null,{"$f":"IF(AND(ISBLANK(BC71),ISBLANK(C71)),\"HIDE\",_xlfn.SWITCH(PRODUCT(C71:Z71,B71),2,\"HEADING\",1,\"SHOW\",0,\"HIDE\"))","v":"HIDE"},null,null,null,{"$f":"_xlfn.IFNA(SUBSTITUTE(IF(AR71=\"AU\",SUBSTITUTE(BE71,\"xxx\",AW71),SUBSTITUTE(SUBSTITUTE(BE71,\"xx\",AW71),\"x\",\"\")),\"LLL\",\"580\"),BE71)","v":"VB05-0301-025300"},null,"VB05-0301-025300","VB05 OVAL Steel Tiltrod 5x7.5mm x 3mt Length\t",3,{"$f":"IF(ISBLANK(BO71),\"\",IF(OR(BO71=L_Units),\"Y\",\"N\"))","v":{"$error":"#N/A"}},"Ballast",{"$f":"IFERROR(IF(BH71=\"Y\",((INDEX(T_Deduc18[Deduction],MATCH(BI71,T_Deduc18[Type],0),0))),\"\"),\"\")","v":""},"o_widthmm",{"$f":"IFERROR(IF(BH70=\"Y\",IF(INDIRECT(BK70)-BJ70>3000,INDIRECT(BK70)-BJ70-3000,0),\"\"),\"\")","v":""},"","",{"$f":"INDEX(T_UnitSelection[Units],MATCH(i_Units,T_UnitSelection[UnitSelection],0))","v":{"$error":"#N/A"}},{"$f":"IFERROR(IF(ISBLANK(BC71),\"\",INDEX(T_NAV_AU[Base Unit of Measure],MATCH(BC71,T_NAV_AU[No.],0))),\"\")","v":"LENGTH"},"METRE",null,"HW",1,1,1,{"$f":"IFERROR(INDEX(INDIRECT(\"T_NAV_\"&i_Location&\"[\"&i_Location&\"]\"),MATCH(1,--(BC71=INDIRECT(\"T_NAV_\"&i_Location&\"[No.]\"))*--((INDIRECT(\"T_NAV_\"&i_Location&\"[\"&i_Location&\"]\"))<>\"\"),0))/IF(AND(BQ71=\"METRE\",BG71<>\"\",BR71=\"\"),BG71,1),\"\")","v":""},"","",""]
[null,2,1,null,null,null,null,null,null,null,null,null,null,null,null,null,null,null,null,null,null,null,null,null,null,null,null,null,null,null,"",null,null,null,null,null,null,null,null,null,null,null,null,null,"",null,null,"",{"$f":"IF(ISNUMBER(FIND(\"x\",BE72)),IFERROR(INDEX(INDIRECT(\"T_FinishColour[ColourCode-\"&IF(ISNUMBER(FIND(\"xxx\",BE72)),\"xxx\",IF(ISNUMBER(FIND(\"xx\",BE72)),\"xx\",\"error\"))&AR72&\"]\"),MATCH(AV72,T_FinishColour[Finish / Colour],0)),\"\"),\"\")","v":""},null,{"$f":"IF(AND(ISBLANK(BC72),ISBLANK(C72)),\"HIDE\",_xlfn.SWITCH(PRODUCT(C72:Z72,B72),2,\"HEADING\",1,\"SHOW\",0,\"HIDE\"))","v":"HEADING"},null,null,null,{"$f":"_xlfn.IFNA(SUBSTITUTE(IF(AR72=\"AU\",SUBSTITUTE(BE72,\"xxx\",AW72),SUBSTITUTE(SUBSTITUTE(BE72,\"xx\",AW72),\"x\",\"\")),\"LLL\",\"580\"),BE72)","v":""},null,null,null,null,{"$f":"IF(ISBLANK(BO72),\"\",IF(OR(BO72=L_Units),\"Y\",\"N\"))","v":""},null,{"$f":"IFERROR(_xlfn.SINGLE(IF(BH72=\"Y\",((INDEX(#REF!,MATCH(BI72,#REF!,0),0))),\"\")),\"\")","v":""},null,"",{"$f":"IFERROR(IF(BH72=\"Y\",BL72,\"\"),\"\")","v":""},"",null,{"$f":"IFERROR(IF(ISBLANK(BC72),\"\",INDEX(T_NAV_AU[Base Unit of Measure],MATCH(BC72,T_NAV_AU[No.],0))),\"\")","v":""},null,null,null,null,"","",{"$f":"IFERROR(INDEX(INDIRECT(\"T_NAV_\"&i_Location&\"[\"&i_Location&\"]\"),MATCH(1,--(BC72=INDIRECT(\"T_NAV_\"&i_Location&\"[No.]\"))*--((INDIRECT(\"T_NAV_\"&i_Location&\"[\"&i_Location&\"]\"))<>\"\"),0))/IF(AND(BQ72=\"METRE\",BG72<>\"\",BR72=\"\"),BG72,1),\"\")","v":""},{"$f":"IFERROR(IF(AND(AY72=\"SHOW\",BW72<>\"\"),BW72*BV72*IF(AND(BM72<>\"\",OR(BP72=\"LENGTH\",BP72=\"METRE\",BP72=\"ROLL\")),(BL72/1000),1),\"\"),\"\")","v":""},"",{"$f":"IFERROR(IF(BX72<>\"\",BX72-BY72,\"\"),\"\")","v":""}]
[null,2,1,"i_Tube",null,"i_SystemType",null,"i_TubeExtras",null,"i_ControlType",null,"i_Location",null,"i_taped",null,null,null,null,null,null,null,null,null,null,null,null,null,null,null,null,"",null,null,null,null,null,null,null,null,null,null,null,null,null,"",null,null,"",{"$f":"IF(ISNUMBER(FIND(\"x\",BE73)),IFERROR(INDEX(INDIRECT(\"T_FinishColour[ColourCode-\"&IF(ISNUMBER(FIND(\"xxx\",BE73)),\"xxx\",IF(ISNUMBER(FIND(\"xx\",BE73)),\"xx\",\"error\"))&AR73&\"]\"),MATCH(AV73,T_FinishColour[Finish / Colour],0)),\"\"),\"\")","v":""},null,{"$f":"IF(AND(ISBLANK(BC73),ISBLANK(C73)),\"HIDE\",_xlfn.SWITCH(PRODUCT(C73:Z73,B73),2,\"HEADING\",1,\"SHOW\",0,\"HIDE\"))","v":"HEADING"},null,null,null,"TUBE",null,"TUBE",null,null,null,null,{"$f":"IFERROR(_xlfn.SINGLE(IF(BH73=\"Y\",((INDEX(#REF!,MATCH(BI73,#REF!,0),0))),\"\")),\"\")","v":""},null,"","","",null,{"$f":"IFERROR(IF(ISBLANK(BC73),\"\",INDEX(T_NAV_AU[Base Unit of Measure],MATCH(BC73,T_NAV_AU[No.],0))),\"\")","v":""},null,null,null,null,"","",{"$f":"IFERROR(INDEX(INDIRECT(\"T_NAV_\"&i_Location&\"[\"&i_Location&\"]\"),MATCH(1,--(BC73=INDIRECT(\"T_NAV_\"&i_Location&\"[No.]\"))*--((INDIRECT(\"T_NAV_\"&i_Location&\"[\"&i_Location&\"]\"))<>\"\"),0))/IF(AND(BQ73=\"METRE\",BG73<>\"\",BR73=\"\"),BG73,1),\"\")","v":""},"","",""]
[null,null,null,"1.5\"",{"$f":"IFERROR(IF(ISBLANK(D74),\"\",IF(FIND(D74,INDIRECT($D$73))>0,1,0)),0)","v":0},null,{"$f":"IFERROR(IF(ISBLANK(F74),\"\",IF(FIND(F74,INDIRECT($F$73))>0,1,0)),0)","v":""},null,{"$f":"IFERROR(IF(ISBLANK(H74),\"\",IF(FIND(H74,INDIRECT($H$73))>0,1,0)),0)","v":""},null,{"$f":"IFERROR(IF(ISBLANK(J74),\"\",IF(FIND(J74,INDIRECT($J$73))>0,1,0)),0)","v":""},null,null,null,null,null,null,null,null,null,null,null,null,null,null,null,null,null,null,null,"",null,null,null,null,null,null,null,null,null,null,null,null,null,{"$f":"IF(ISNUMBER(FIND(\"x\",BE74)),IFERROR(INDEX(AI74:AQ74,0,MATCH(AT74,AI74:AQ74,0)),IF(AI74<>\"\",AI74,i_DefaultColour)),\"\")","v":""},null,null,{"$f":"IF(ISNUMBER(FIND(\"x\",BE74)),IFERROR(INDEX(AI74:AQ74,0,MATCH(AT74,AI74:AQ74,0)),AS74),\"\")","v":""},{"$f":"IF(ISNUMBER(FIND(\"x\",BE74)),IFERROR(INDEX(INDIRECT(\"T_FinishColour[ColourCode-\"&IF(ISNUMBER(FIND(\"xxx\",BE74)),\"xxx\",IF(ISNUMBER(FIND(\"xx\",BE74)),\"xx\",\"error\"))&AR74&\"]\"),MATCH(AV74,T_FinishColour[Finish / Colour],0)),\"\"),\"\")","v":""},null,{"$f":"IF(AND(ISBLANK(BC74),ISBLANK(C74)),\"HIDE\",_xlfn.SWITCH(PRODUCT(C74:Z74,B74),2,\"HEADING\",1,\"SHOW\",0,\"HIDE\"))","v":"HIDE"},null,null,null,{"$f":"_xlfn.IFNA(SUBSTITUTE(IF(AR74=\"AU\",SUBSTITUTE(BE74,\"xxx\",AW74),SUBSTITUTE(SUBSTITUTE(BE74,\"xx\",AW74),\"x\",\"\")),\"LLL\",\"015\"),BE74)","v":"RTEA4T16"},null,"RTEA4T16","Aluminum Tube 1.5\" Taped",4.9000000000000004,{"$f":"IF(ISBLANK(BO74),\"\",IF(OR(BO74=L_Units),\"Y\",\"N\"))","v":{"$error":"#N/A"}},"Tube",{"$f":"IFERROR(IF(BH74=\"Y\",((INDEX(T_Deduc18[Deduction],MATCH(BI74,T_Deduc18[Type],0),0))),\"\"),\"\")","v":""},"o_widthmm",{"$f":"IFERROR(IF(BH74=\"Y\",INDIRECT(BK74)-BJ74,\"\"),\"\")","v":""},"","",{"$f":"INDEX(T_UnitSelection[Units],MATCH(i_Units,T_UnitSelection[UnitSelection],0))","v":{"$error":"#N/A"}},{"$f":"IFERROR(IF(ISBLANK(BC74),\"\",INDEX(T_NAV_AU[Base Unit of Measure],MATCH(BC74,T_NAV_AU[No.],0))),\"\")","v":"LENGTH"},"METRE",null,"HW",1,1,1,{"$f":"IFERROR(INDEX(INDIRECT(\"T_NAV_\"&i_Location&\"[\"&i_Location&\"]\"),MATCH(1,--(BC74=INDIRECT(\"T_NAV_\"&i_Location&\"[No.]\"))*--((INDIRECT(\"T_NAV_\"&i_Location&\"[\"&i_Location&\"]\"))<>\"\"),0))/IF(AND(BQ74=\"METRE\",BG74<>\"\",BR74=\"\"),BG74,1),\"\")","v":""},"","",""]
[null,null,null,"2\"",{"$f":"IFERROR(IF(ISBLANK(D75),\"\",IF(FIND(D75,INDIRECT($D$73))>0,1,0)),0)","v":0},null,null,null,null,null,null,null,null,null,null,null,null,null,null,null,null,null,null,null,null,null,null,null,null,null,null,null,null,null,null,null,null,null,null,null,null,null,null,null,null,null,null,null,null,null,{"$f":"IF(AND(ISBLANK(BC75),ISBLANK(C75)),\"HIDE\",_xlfn.SWITCH(PRODUCT(C75:Z75,B75),2,\"HEADING\",1,\"SHOW\",0,\"HIDE\"))","v":"HIDE"},null,null,null,{"$f":"_xlfn.IFNA(SUBSTITUTE(IF(AR75=\"AU\",SUBSTITUTE(BE75,\"xxx\",AW75),SUBSTITUTE(SUBSTITUTE(BE75,\"xx\",AW75),\"x\",\"\")),\"LLL\",\"015\"),BE75)","v":"RTEA5T16"},null,"RTEA5T16","Aluminum Tube 2\" Taped",4.9000000000000004,{"$f":"IF(ISBLANK(BO75),\"\",IF(OR(BO75=L_Units),\"Y\",\"N\"))","v":{"$error":"#N/A"}},"Tube",{"$f":"IFERROR(IF(BH75=\"Y\",((INDEX(T_Deduc18[Deduction],MATCH(BI75,T_Deduc18[Type],0),0))),\"\"),\"\")","v":""},"o_widthmm",{"$f":"IFERROR(IF(BH75=\"Y\",INDIRECT(BK75)-BJ75,\"\"),\"\")","v":""},{"$f":"IFERROR(IF(BH75=\"Y\",BL75,\"\"),\"\")","v":""},{"$f":"IFERROR(IF(BH75=\"Y\",TEXT(BL75/25.4,\"0\"&IF(ABS(BL75/25.4-ROUND(BL75/25.4,0))>1/32,\"-0/\"&CHOOSE(ROUND(MOD(BL75/25.4,1)*16,0),16,8,16,4,16,8,16,2,16,8,16,4,16,8,16),\"\")),\"\"),\"\")","v":""},{"$f":"INDEX(T_UnitSelection[Units],MATCH(i_Units,T_UnitSelection[UnitSelection],0))","v":{"$error":"#N/A"}},{"$f":"IFERROR(IF(ISBLANK(BC75),\"\",INDEX(T_NAV_AU[Base Unit of Measure],MATCH(BC75,T_NAV_AU[No.],0))),\"\")","v":"LENGTH"},"METRE",null,"HW",1,{"$f":"IF(ISBLANK(BT75),\"\",PRODUCT(AE75,BT75))","v":1},{"$f":"IF(ISBLANK(BT75),\"\",PRODUCT(AE75,BT75,i_systemQTY))","v":1},{"$f":"IFERROR(INDEX(INDIRECT(\"T_NAV_\"&i_Location&\"[\"&i_Location&\"]\"),MATCH(1,--(BC75=INDIRECT(\"T_NAV_\"&i_Location&\"[No.]\"))*--((INDIRECT(\"T_NAV_\"&i_Location&\"[\"&i_Location&\"]\"))<>\"\"),0))/IF(AND(BQ75=\"METRE\",BG75<>\"\",BR75=\"\"),BG75,1),\"\")","v":""},{"$f":"IFERROR(IF(AND(AY75=\"SHOW\",BW75<>\"\"),BW75*BV75*IF(AND(BM75<>\"\",OR(BP75=\"LENGTH\",BP75=\"METRE\",BP75=\"ROLL\")),(BL75/1000),1),\"\"),\"\")","v":""},{"$f":"IF(BX75<>\"\",(INDIRECT(\"i_\"&BS75&\"discount\"))*BX75,\"\")","v":""},{"$f":"IFERROR(IF(BX75<>\"\",BX75-BY75,\"\"),\"\")","v":""}]
[null,null,null,"S45 LGT",{"$f":"IFERROR(IF(ISBLANK(D76),\"\",IF(FIND(D76,INDIRECT($D$73))>0,1,0)),0)","v":0},null,null,"Without Tape",{"$f":"IFERROR(IF(ISBLANK(H76),\"\",IF(FIND(H76,INDIRECT($H$73))>0,1,0)),0)","v":0},null,null,null,null,null,null,null,null,null,null,null,null,null,null,null,null,null,null,null,null,null,null,null,null,null,null,null,null,null,null,null,null,null,null,null,null,null,null,null,null,null,{"$f":"IF(AND(ISBLANK(BC76),ISBLANK(C76)),\"HIDE\",_xlfn.SWITCH(PRODUCT(C76:Z76,B76),2,\"HEADING\",1,\"SHOW\",0,\"HIDE\"))","v":"HIDE"},null,null,null,"RB93-0443-000490",null,{"$f":"\"RB93-0443-000\"&(BG76*100)","v":"RB93-0443-000490"},"S45 | LIGHT T-SPLINE Alum. Tube",{"$f":"IF(i_Location=\"AU\",5.8,4.9)","v":4.9000000000000004},{"$f":"IF(ISBLANK(BO76),\"\",IF(OR(BO76=L_Units),\"Y\",\"N\"))","v":{"$error":"#N/A"}},"Tube",{"$f":"IFERROR(IF(BH76=\"Y\",((INDEX(T_Deduc18[Deduction],MATCH(BI76,T_Deduc18[Type],0),0))),\"\"),\"\")","v":""},"o_widthmm",{"$f":"IFERROR(IF(BH76=\"Y\",INDIRECT(BK76)-BJ76,\"\"),\"\")","v":""},{"$f":"IFERROR(IF(BH76=\"Y\",BL76,\"\"),\"\")","v":""},{"$f":"IFERROR(IF(BH76=\"Y\",TEXT(BL76/25.4,\"0\"&IF(ABS(BL76/25.4-ROUND(BL76/25.4,0))>1/32,\"-0/\"&CHOOSE(ROUND(MOD(BL76/25.4,1)*16,0),16,8,16,4,16,8,16,2,16,8,16,4,16,8,16),\"\")),\"\"),\"\")","v":""},{"$f":"INDEX(T_UnitSelection[Units],MATCH(i_Units,T_UnitSelection[UnitSelection],0))","v":{"$error":"#N/A"}},{"$f":"IFERROR(IF(ISBLANK(BC76),\"\",INDEX(T_NAV_AU[Base Unit of Measure],MATCH(BC76,T_NAV_AU[No.],0))),\"\")","v":""},"METRE",null,"HW",1,1,1,{"$f":"IFERROR(INDEX(INDIRECT(\"T_NAV_\"&i_Location&\"[\"&i_Location&\"]\"),MATCH(1,--(BC76=INDIRECT(\"T_NAV_\"&i_Location&\"[No.]\"))*--((INDIRECT(\"T_NAV_\"&i_Location&\"[\"&i_Location&\"]\"))<>\"\"),0))/IF(AND(BQ76=\"METRE\",BG76<>\"\",BR76=\"\"),BG76,1),\"\")","v":""},"","",""]
[null,null,null,"S45 LGT",0,null,null,"With Tape",0,null,null,null,null,null,null,null,null,null,null,null,null,null,null,null,null,null,null,null,null,null,null,null,null,null,null,null,null,null,null,null,null,null,null,null,null,null,null,null,null,null,{"$f":"IF(AND(ISBLANK(BC77),ISBLANK(C77)),\"HIDE\",_xlfn.SWITCH(PRODUCT(C77:Z77,B77),2,\"HEADING\",1,\"SHOW\",0,\"HIDE\"))","v":"HIDE"},null,null,null,"RB93-6443-000490",null,{"$f":"\"RB93-6443-000\"&(BG77*100)","v":"RB93-6443-000490"},"S45 | LIGHT T-SPLINE Alum. Tube (Taped)",4.9000000000000004,{"$f":"IF(ISBLANK(BO77),\"\",IF(OR(BO77=L_Units),\"Y\",\"N\"))","v":{"$error":"#N/A"}},"Tube",{"$f":"IFERROR(IF(BH77=\"Y\",((INDEX(T_Deduc18[Deduction],MATCH(BI77,T_Deduc18[Type],0),0))),\"\"),\"\")","v":""},"o_widthmm","","","",{"$f":"INDEX(T_UnitSelection[Units],MATCH(i_Units,T_UnitSelection[UnitSelection],0))","v":{"$error":"#N/A"}},{"$f":"IFERROR(IF(ISBLANK(BC77),\"\",INDEX(T_NAV_AU[Base Unit of Measure],MATCH(BC77,T_NAV_AU[No.],0))),\"\")","v":""},"METRE",null,"HW",1,{"$f":"IF(ISBLANK(BT77),\"\",PRODUCT(AE77,BT77))","v":1},{"$f":"IF(ISBLANK(BT77),\"\",PRODUCT(AE77,BT77,i_systemQTY))","v":1},{"$f":"IFERROR(INDEX(INDIRECT(\"T_NAV_\"&i_Location&\"[\"&i_Location&\"]\"),MATCH(1,--(BC77=INDIRECT(\"T_NAV_\"&i_Location&\"[No.]\"))*--((INDIRECT(\"T_NAV_\"&i_Location&\"[\"&i_Location&\"]\"))<>\"\"),0))/IF(AND(BQ77=\"METRE\",BG77<>\"\",BR77=\"\"),BG77,1),\"\")","v":""},"","",""]
[null,null,null,"S45 STD",0,null,null,"Without Tape",0,null,null,null,null,null,null,null,null,null,null,null,null,null,null,null,null,null,null,null,null,null,null,null,null,null,null,null,null,null,null,null,null,null,null,null,null,null,null,null,null,null,{"$f":"IF(AND(ISBLANK(BC78),ISBLANK(C78)),\"HIDE\",_xlfn.SWITCH(PRODUCT(C78:Z78,B78),2,\"HEADING\",1,\"SHOW\",0,\"HIDE\"))","v":"HIDE"},null,null,null,"RB93-0444-000490",null,{"$f":"\"RB93-0444-000\"&(BG78*100)","v":"RB93-0444-000490"},"S45 | STD T-SPLINE Alum. Tube",4.9000000000000004,{"$f":"IF(ISBLANK(BO78),\"\",IF(OR(BO78=L_Units),\"Y\",\"N\"))","v":{"$error":"#N/A"}},"Tube",{"$f":"IFERROR(IF(BH78=\"Y\",((INDEX(T_Deduc18[Deduction],MATCH(BI78,T_Deduc18[Type],0),0))),\"\"),\"\")","v":""},"o_widthmm","","","",{"$f":"INDEX(T_UnitSelection[Units],MATCH(i_Units,T_UnitSelection[UnitSelection],0))","v":{"$error":"#N/A"}},{"$f":"IFERROR(IF(ISBLANK(BC78),\"\",INDEX(T_NAV_AU[Base Unit of Measure],MATCH(BC78,T_NAV_AU[No.],0))),\"\")","v":""},"METRE",null,"HW",1,1,1,{"$f":"IFERROR(INDEX(INDIRECT(\"T_NAV_\"&i_Location&\"[\"&i_Location&\"]\"),MATCH(1,--(BC78=INDIRECT(\"T_NAV_\"&i_Location&\"[No.]\"))*--((INDIRECT(\"T_NAV_\"&i_Location&\"[\"&i_Location&\"]\"))<>\"\"),0))/IF(AND(BQ78=\"METRE\",BG78<>\"\",BR78=\"\"),BG78,1),\"\")","v":""},"","",""]
[null,null,null,"S45 STD",0,null,null,"With Tape",0,null,null,null,null,null,null,null,null,null,null,null,null,null,null,null,null,null,null,null,null,null,null,null,null,null,null,null,null,null,null,null,null,null,null,null,null,null,null,null,null,null,{"$f":"IF(AND(ISBLANK(BC79),ISBLANK(C79)),\"HIDE\",_xlfn.SWITCH(PRODUCT(C79:Z79,B79),2,\"HEADING\",1,\"SHOW\",0,\"HIDE\"))","v":"HIDE"},null,null,null,"RB93-6444-000490",null,{"$f":"\"RB93-6444-000\"&(BG79*100)","v":"RB93-6444-000490"},"S45 | STD T-SPLINE Alum. Tube (Taped)",4.9000000000000004,{"$f":"IF(ISBLANK(BO79),\"\",IF(OR(BO79=L_Units),\"Y\",\"N\"))","v":{"$error":"#N/A"}},"Tube",{"$f":"IFERROR(IF(BH79=\"Y\",((INDEX(T_Deduc18[Deduction],MATCH(BI79,T_Deduc18[Type],0),0))),\"\"),\"\")","v":""},"o_widthmm","","","",{"$f":"INDEX(T_UnitSelection[Units],MATCH(i_Units,T_UnitSelection[UnitSelection],0))","v":{"$error":"#N/A"}},{"$f":"IFERROR(IF(ISBLANK(BC79),\"\",INDEX(T_NAV_AU[Base Unit of Measure],MATCH(BC79,T_NAV_AU[No.],0))),\"\")","v":""},"METRE",null,"HW",1,1,1,{"$f":"IFERROR(INDEX(INDIRECT(\"T_NAV_\"&i_Location&\"[\"&i_Location&\"]\"),MATCH(1,--(BC79=INDIRECT(\"T_NAV_\"&i_Location&\"[No.]\"))*--((INDIRECT(\"T_NAV_\"&i_Location&\"[\"&i_Location&\"]\"))<>\"\"),0))/IF(AND(BQ79=\"METRE\",BG79<>\"\",BR79=\"\"),BG79,1),\"\")","v":""},"","",""]
[null,null,null,"S45 HD",0,null,null,"Without Tape",0,null,null,null,null,null,null,null,null,null,null,null,null,null,null,null,null,null,null,null,null,null,null,null,null,null,null,null,null,null,null,null,null,null,null,null,null,null,null,null,null,null,{"$f":"IF(AND(ISBLANK(BC80),ISBLANK(C80)),\"HIDE\",_xlfn.SWITCH(PRODUCT(C80:Z80,B80),2,\"HEADING\",1,\"SHOW\",0,\"HIDE\"))","v":"HIDE"},null,null,null,{"$f":"_xlfn.IFNA(SUBSTITUTE(IF(AR80=\"AU\",SUBSTITUTE(BE80,\"xxx\",AW80),SUBSTITUTE(SUBSTITUTE(BE80,\"xx\",AW80),\"x\",\"\")),\"LLL\",\"015\"),BE80)","v":"RB93-0449-000490"},null,{"$f":"\"RB93-0449-000\"&(BG80*100)","v":"RB93-0449-000490"},"S45 | HD T-SPLINE Alum. Tube",4.9000000000000004,{"$f":"IF(ISBLANK(BO80),\"\",IF(OR(BO80=L_Units),\"Y\",\"N\"))","v":{"$error":"#N/A"}},"Tube",{"$f":"IFERROR(IF(BH80=\"Y\",((INDEX(T_Deduc18[Deduction],MATCH(BI80,T_Deduc18[Type],0),0))),\"\"),\"\")","v":""},"o_widthmm","","","",{"$f":"INDEX(T_UnitSelection[Units],MATCH(i_Units,T_UnitSelection[UnitSelection],0))","v":{"$error":"#N/A"}},{"$f":"IFERROR(IF(ISBLANK(BC80),\"\",INDEX(T_NAV_AU[Base Unit of Measure],MATCH(BC80,T_NAV_AU[No.],0))),\"\")","v":""},"METRE",null,"HW",1,1,1,{"$f":"IFERROR(INDEX(INDIRECT(\"T_NAV_\"&i_Location&\"[\"&i_Location&\"]\"),MATCH(1,--(BC80=INDIRECT(\"T_NAV_\"&i_Location&\"[No.]\"))*--((INDIRECT(\"T_NAV_\"&i_Location&\"[\"&i_Location&\"]\"))<>\"\"),0))/IF(AND(BQ80=\"METRE\",BG80<>\"\",BR80=\"\"),BG80,1),\"\")","v":""},"","",""]
[null,null,null,"S45 HD",0,null,null,"With Tape",0,null,null,null,null,null,null,null,null,null,null,null,null,null,null,null,null,null,null,null,null,null,null,null,null,null,null,null,null,null,null,null,null,null,null,null,null,null,null,null,null,null,{"$f":"IF(AND(ISBLANK(BC81),ISBLANK(C81)),\"HIDE\",_xlfn.SWITCH(PRODUCT(C81:Z81,B81),2,\"HEADING\",1,\"SHOW\",0,\"HIDE\"))","v":"HIDE"},null,null,null,"RB93-6449-000490",null,{"$f":"\"RB93-6449-000\"&(BG81*100)","v":"RB93-6449-000490"},"S45 | HD T-SPLINE Alum. Tube (Taped)",4.9000000000000004,{"$f":"IF(ISBLANK(BO81),\"\",IF(OR(BO81=L_Units),\"Y\",\"N\"))","v":{"$error":"#N/A"}},"Tube",{"$f":"IFERROR(IF(BH81=\"Y\",((INDEX(T_Deduc18[Deduction],MATCH(BI81,T_Deduc18[Type],0),0))),\"\"),\"\")","v":""},"o_widthmm","","","",{"$f":"INDEX(T_UnitSelection[Units],MATCH(i_Units,T_UnitSelection[UnitSelection],0))","v":{"$error":"#N/A"}},{"$f":"IFERROR(IF(ISBLANK(BC81),\"\",INDEX(T_NAV_AU[Base Unit of Measure],MATCH(BC81,T_NAV_AU[No.],0))),\"\")","v":""},"METRE",null,"HW",1,1,1,{"$f":"IFERROR(INDEX(INDIRECT(\"T_NAV_\"&i_Location&\"[\"&i_Location&\"]\"),MATCH(1,--(BC81=INDIRECT(\"T_NAV_\"&i_Location&\"[No.]\"))*--((INDIRECT(\"T_NAV_\"&i_Location&\"[\"&i_Location&\"]\"))<>\"\"),0))/IF(AND(BQ81=\"METRE\",BG81<>\"\",BR81=\"\"),BG81,1),\"\")","v":""},"","",""]
[null,null,null,null,"",null,null,null,null,null,null,null,null,null,null,null,null,null,null,null,null,null,null,null,null,null,null,null,null,null,null,null,null,null,null,null,null,null,null,null,null,null,null,null,null,null,null,null,null,null,{"$f":"IF(AND(ISBLANK(BC82),ISBLANK(C82)),\"HIDE\",_xlfn.SWITCH(PRODUCT(C82:Z82,B82),2,\"HEADING\",1,\"SHOW\",0,\"HIDE\"))","v":"HIDE"},null,null,null,null,null,null,null,null,{"$f":"IF(ISBLANK(BO82),\"\",IF(OR(BO82=L_Units),\"Y\",\"N\"))","v":{"$error":"#N/A"}},"Tube",{"$f":"IFERROR(IF(BH82=\"Y\",((INDEX(T_Deduc18[Deduction],MATCH(BI82,T_Deduc18[Type],0),0))),\"\"),\"\")","v":""},"o_widthmm","","","",{"$f":"INDEX(T_UnitSelection[Units],MATCH(i_Units,T_UnitSelection[UnitSelection],0))","v":{"$error":"#N/A"}},{"$f":"IFERROR(IF(ISBLANK(BC82),\"\",INDEX(T_NAV_AU[Base Unit of Measure],MATCH(BC82,T_NAV_AU[No.],0))),\"\")","v":""},null,null,"HW",1,1,1,{"$f":"IFERROR(INDEX(INDIRECT(\"T_NAV_\"&i_Location&\"[\"&i_Location&\"]\"),MATCH(1,--(BC82=INDIRECT(\"T_NAV_\"&i_Location&\"[No.]\"))*--((INDIRECT(\"T_NAV_\"&i_Location&\"[\"&i_Location&\"]\"))<>\"\"),0))/IF(AND(BQ82=\"METRE\",BG82<>\"\",BR82=\"\"),BG82,1),\"\")","v":""},"","",""]
[null,null,null,null,{"$f":"IFERROR(IF(ISBLANK(D83),\"\",IF(FIND(D83,INDIRECT($D$73))>0,1,0)),0)","v":""},null,null,null,null,null,null,null,null,null,null,null,null,null,null,null,null,null,null,null,null,null,null,null,null,null,null,null,null,null,null,null,null,null,null,null,null,null,null,null,null,null,null,null,null,null,{"$f":"IF(AND(ISBLANK(BC83),ISBLANK(C83)),\"HIDE\",_xlfn.SWITCH(PRODUCT(C83:Z83,B83),2,\"HEADING\",1,\"SHOW\",0,\"HIDE\"))","v":"HIDE"},null,null,null,null,null,null,null,null,{"$f":"IF(ISBLANK(BO83),\"\",IF(OR(BO83=L_Units),\"Y\",\"N\"))","v":{"$error":"#N/A"}},"Tube",{"$f":"IFERROR(IF(BH83=\"Y\",((INDEX(T_Deduc18[Deduction],MATCH(BI83,T_Deduc18[Type],0),0))),\"\"),\"\")","v":""},"o_widthmm","","","",{"$f":"INDEX(T_UnitSelection[Units],MATCH(i_Units,T_UnitSelection[UnitSelection],0))","v":{"$error":"#N/A"}},{"$f":"IFERROR(IF(ISBLANK(BC83),\"\",INDEX(T_NAV_AU[Base Unit of Measure],MATCH(BC83,T_NAV_AU[No.],0))),\"\")","v":""},null,null,"HW",1,1,1,{"$f":"IFERROR(INDEX(INDIRECT(\"T_NAV_\"&i_Location&\"[\"&i_Location&\"]\"),MATCH(1,--(BC83=INDIRECT(\"T_NAV_\"&i_Location&\"[No.]\"))*--((INDIRECT(\"T_NAV_\"&i_Location&\"[\"&i_Location&\"]\"))<>\"\"),0))/IF(AND(BQ83=\"METRE\",BG83<>\"\",BR83=\"\"),BG83,1),\"\")","v":""},"","",""]
[null,2,{"$f":"C85","v":0},null,null,null,null,null,null,null,null,null,null,null,null,null,null,null,null,null,null,null,null,null,null,null,null,null,null,null,"",null,null,null,null,null,null,null,null,null,null,null,null,null,{"$f":"IF(ISNUMBER(FIND(\"x\",BE84)),IFERROR(INDEX(AI84:AQ84,0,MATCH(AT84,AI84:AQ84,0)),IF(AI84<>\"\",AI84,i_DefaultColour)),\"\")","v":""},null,null,{"$f":"IF(ISNUMBER(FIND(\"x\",BE84)),IFERROR(INDEX(AI84:AQ84,0,MATCH(AT84,AI84:AQ84,0)),AS84),\"\")","v":""},{"$f":"IF(ISNUMBER(FIND(\"x\",BE84)),IFERROR(INDEX(INDIRECT(\"T_FinishColour[ColourCode-\"&IF(ISNUMBER(FIND(\"xxx\",BE84)),\"xxx\",IF(ISNUMBER(FIND(\"xx\",BE84)),\"xx\",\"error\"))&AR84&\"]\"),MATCH(AV84,T_FinishColour[Finish / Colour],0)),\"\"),\"\")","v":""},null,{"$f":"IF(AND(ISBLANK(BC84),ISBLANK(C84)),\"HIDE\",_xlfn.SWITCH(PRODUCT(C84:Z84,B84),2,\"HEADING\",1,\"SHOW\",0,\"HIDE\"))","v":"HIDE"},null,null,null,{"$f":"_xlfn.IFNA(SUBSTITUTE(IF(AR84=\"AU\",SUBSTITUTE(BE84,\"xxx\",AW84),SUBSTITUTE(SUBSTITUTE(BE84,\"xx\",AW84),\"x\",\"\")),\"LLL\",\"580\"),BE84)","v":""},null,null,null,null,{"$f":"IF(ISBLANK(BO84),\"\",IF(OR(BO84=L_Units),\"Y\",\"N\"))","v":""},null,{"$f":"IFERROR(_xlfn.SINGLE(IF(BH84=\"Y\",((INDEX(#REF!,MATCH(BI84,#REF!,0),0))),\"\")),\"\")","v":""},null,"","","",null,{"$f":"IFERROR(IF(ISBLANK(BC84),\"\",INDEX(T_NAV_AU[Base Unit of Measure],MATCH(BC84,T_NAV_AU[No.],0))),\"\")","v":""},null,null,null,null,"","",{"$f":"IFERROR(INDEX(INDIRECT(\"T_NAV_\"&i_Location&\"[\"&i_Location&\"]\"),MATCH(1,--(BC84=INDIRECT(\"T_NAV_\"&i_Location&\"[No.]\"))*--((INDIRECT(\"T_NAV_\"&i_Location&\"[\"&i_Location&\"]\"))<>\"\"),0))/IF(AND(BQ84=\"METRE\",BG84<>\"\",BR84=\"\"),BG84,1),\"\")","v":""},"",{"$f":"IF(BX84<>\"\",(INDIRECT(\"i_\"&BS84&\"discount\"))*BX84,\"\")","v":""},{"$f":"IFERROR(IF(BX84<>\"\",BX84-BY84,\"\"),\"\")","v":""}]
[null,2,{"$f":"IF(COUNTIF(AY86:AY89,\"SHOW\")>0,1,0)","v":0},"i_TensionLock",null,"i_TensionTool",null,"i_SpannerTool",null,"i_ControlCap",null,"i_wbAccessories",null,"i_PullStick",null,null,null,null,null,null,null,null,null,null,null,null,null,null,null,null,"",null,null,null,null,null,null,null,null,null,null,null,null,null,"",null,null,"",{"$f":"IF(ISNUMBER(FIND(\"x\",BE85)),IFERROR(INDEX(INDIRECT(\"T_FinishColour[ColourCode-\"&IF(ISNUMBER(FIND(\"xxx\",BE85)),\"xxx\",IF(ISNUMBER(FIND(\"xx\",BE85)),\"xx\",\"error\"))&AR85&\"]\"),MATCH(AV85,T_FinishColour[Finish / Colour],0)),\"\"),\"\")","v":""},null,{"$f":"IF(AND(ISBLANK(BC85),ISBLANK(C85)),\"HIDE\",_xlfn.SWITCH(PRODUCT(C85:Z85,B85),2,\"HEADING\",1,\"SHOW\",0,\"HIDE\"))","v":"HIDE"},null,null,null,{"$f":"_xlfn.IFNA(SUBSTITUTE(IF(AR85=\"AU\",SUBSTITUTE(BE85,\"xxx\",AW85),SUBSTITUTE(SUBSTITUTE(BE85,\"xx\",AW85),\"x\",\"\")),\"LLL\",\"580\"),BE85)","v":"ACCESSORIES"},null,"ACCESSORIES",null,null,null,null,{"$f":"IFERROR(_xlfn.SINGLE(IF(BH85=\"Y\",((INDEX(#REF!,MATCH(BI85,#REF!,0),0))),\"\")),\"\")","v":""},null,"","","",null,{"$f":"IFERROR(IF(ISBLANK(BC85),\"\",INDEX(T_NAV_AU[Base Unit of Measure],MATCH(BC85,T_NAV_AU[No.],0))),\"\")","v":""},null,null,null,null,"","",{"$f":"IFERROR(INDEX(INDIRECT(\"T_NAV_\"&i_Location&\"[\"&i_Location&\"]\"),MATCH(1,--(BC85=INDIRECT(\"T_NAV_\"&i_Location&\"[No.]\"))*--((INDIRECT(\"T_NAV_\"&i_Location&\"[\"&i_Location&\"]\"))<>\"\"),0))/IF(AND(BQ85=\"METRE\",BG85<>\"\",BR85=\"\"),BG85,1),\"\")","v":""},"","",""]
[null,null,null,"Yes",{"$f":"IFERROR(IF(ISBLANK(D86),\"\",IF(FIND(D86,INDIRECT($D$85))>0,1,0)),0)","v":0},null,{"$f":"IFERROR(IF(ISBLANK(F86),\"\",IF(FIND(F86,INDIRECT($F$85))>0,1,0)),0)","v":""},null,{"$f":"IFERROR(IF(ISBLANK(H86),\"\",IF(FIND(H86,INDIRECT($H$85))>0,1,0)),0)","v":""},null,{"$f":"IFERROR(IF(ISBLANK(J86),\"\",IF(FIND(J86,INDIRECT($J$85))>0,1,0)),0)","v":""},null,null,null,null,null,null,null,null,null,null,null,null,null,null,null,null,null,null,null,"",null,null,null,null,null,null,null,null,null,null,null,null,"AU","",{"$f":"i_Finish","v":0},null,"",{"$f":"IF(ISNUMBER(FIND(\"x\",BE86)),IFERROR(INDEX(INDIRECT(\"T_FinishColour[ColourCode-\"&IF(ISNUMBER(FIND(\"xxx\",BE86)),\"xxx\",IF(ISNUMBER(FIND(\"xx\",BE86)),\"xx\",\"error\"))&AR86&\"]\"),MATCH(AV86,T_FinishColour[Finish / Colour],0)),\"\"),\"\")","v":""},null,{"$f":"IF(AND(ISBLANK(BC86),ISBLANK(C86)),\"HIDE\",_xlfn.SWITCH(PRODUCT(C86:Z86,B86),2,\"HEADING\",1,\"SHOW\",0,\"HIDE\"))","v":"HIDE"},null,null,null,{"$f":"_xlfn.IFNA(SUBSTITUTE(IF(AR86=\"AU\",SUBSTITUTE(BE86,\"xxx\",AW86),SUBSTITUTE(SUBSTITUTE(BE86,\"xx\",AW86),\"x\",\"\")),\"LLL\",BG86*100),BE86)","v":"RB12-3835-503038"},null,"RB12-3835-503038","Easy Spring Air - Tension Lock ",null,{"$f":"IF(ISBLANK(BO86),\"\",IF(OR(BO86=L_Units),\"Y\",\"N\"))","v":"N"},null,{"$f":"IFERROR(_xlfn.SINGLE(IF(BH86=\"Y\",((INDEX(#REF!,MATCH(BI86,#REF!,0),0))),\"\")),\"\")","v":""},null,"","","","Piece",{"$f":"IFERROR(IF(ISBLANK(BC86),\"\",INDEX(T_NAV_AU[Base Unit of Measure],MATCH(BC86,T_NAV_AU[No.],0))),\"\")","v":"PIECE"},null,null,"HW",1,1,1,{"$f":"IFERROR(INDEX(INDIRECT(\"T_NAV_\"&i_Location&\"[\"&i_Location&\"]\"),MATCH(1,--(BC86=INDIRECT(\"T_NAV_\"&i_Location&\"[No.]\"))*--((INDIRECT(\"T_NAV_\"&i_Location&\"[\"&i_Location&\"]\"))<>\"\"),0))/IF(AND(BQ86=\"METRE\",BG86<>\"\",BR86=\"\"),BG86,1),\"\")","v":""},"","",""]
[null,null,null,null,{"$f":"IFERROR(IF(ISBLANK(D87),\"\",IF(FIND(D87,INDIRECT($D$85))>0,1,0)),0)","v":""},"Yes",{"$f":"IFERROR(IF(ISBLANK(F87),\"\",IF(FIND(F87,INDIRECT($F$85))>0,1,0)),0)","v":0},null,{"$f":"IFERROR(IF(ISBLANK(H87),\"\",IF(FIND(H87,INDIRECT($H$85))>0,1,0)),0)","v":""},null,{"$f":"IFERROR(IF(ISBLANK(J87),\"\",IF(FIND(J87,INDIRECT($J$85))>0,1,0)),0)","v":""},null,null,null,null,null,null,null,null,null,null,null,null,null,null,null,null,null,null,null,"",null,null,null,null,null,null,null,null,null,null,null,null,"AU","",null,null,"",{"$f":"IF(ISNUMBER(FIND(\"x\",BE87)),IFERROR(INDEX(INDIRECT(\"T_FinishColour[ColourCode-\"&IF(ISNUMBER(FIND(\"xxx\",BE87)),\"xxx\",IF(ISNUMBER(FIND(\"xx\",BE87)),\"xx\",\"error\"))&AR87&\"]\"),MATCH(AV87,T_FinishColour[Finish / Colour],0)),\"\"),\"\")","v":""},null,{"$f":"IF(AND(ISBLANK(BC87),ISBLANK(C87)),\"HIDE\",_xlfn.SWITCH(PRODUCT(C87:Z87,B87),2,\"HEADING\",1,\"SHOW\",0,\"HIDE\"))","v":"HIDE"},null,null,null,{"$f":"_xlfn.IFNA(SUBSTITUTE(IF(AR87=\"AU\",SUBSTITUTE(BE87,\"xxx\",AW87),SUBSTITUTE(SUBSTITUTE(BE87,\"xx\",AW87),\"x\",\"\")),\"LLL\",\"580\"),BE87)","v":"RB12-3836-025000"},null,"RB12-3836-025000","Easy Spring Air - PreTension Tool (5mm Hex)",null,{"$f":"IF(ISBLANK(BO87),\"\",IF(OR(BO87=L_Units),\"Y\",\"N\"))","v":"N"},null,{"$f":"IFERROR(_xlfn.SINGLE(IF(BH87=\"Y\",((INDEX(#REF!,MATCH(BI87,#REF!,0),0))),\"\")),\"\")","v":""},null,"","","","Piece",{"$f":"IFERROR(IF(ISBLANK(BC87),\"\",INDEX(T_NAV_AU[Base Unit of Measure],MATCH(BC87,T_NAV_AU[No.],0))),\"\")","v":"PIECE"},null,null,"HW",1,1,1,{"$f":"IFERROR(INDEX(INDIRECT(\"T_NAV_\"&i_Location&\"[\"&i_Location&\"]\"),MATCH(1,--(BC87=INDIRECT(\"T_NAV_\"&i_Location&\"[No.]\"))*--((INDIRECT(\"T_NAV_\"&i_Location&\"[\"&i_Location&\"]\"))<>\"\"),0))/IF(AND(BQ87=\"METRE\",BG87<>\"\",BR87=\"\"),BG87,1),\"\")","v":""},"","",""]
[null,null,null,null,"",null,"","Yes",0,null,"",null,null,null,null,null,null,null,null,null,null,null,null,null,null,null,null,null,null,null,{"$f":"IFERROR(IF(AND(AA88=\"Y\",PRODUCT(AB88:AD88)=0),o_nScreens,IF(PRODUCT(AB88:AD88)=0,\"\",PRODUCT(AB88:AD88))),\"\")","v":""},null,null,null,null,null,null,null,null,null,null,null,null,"AU",{"$f":"IF(ISNUMBER(FIND(\"x\",BE88)),IFERROR(INDEX(AI88:AQ88,0,MATCH(AT88,AI88:AQ88,0)),IF(AI88<>\"\",AI88,i_DefaultColour)),\"\")","v":""},null,null,{"$f":"IF(ISNUMBER(FIND(\"x\",BE88)),IFERROR(INDEX(AI88:AQ88,0,MATCH(AT88,AI88:AQ88,0)),AS88),\"\")","v":""},{"$f":"IF(ISNUMBER(FIND(\"x\",BE88)),IFERROR(INDEX(INDIRECT(\"T_FinishColour[ColourCode-\"&IF(ISNUMBER(FIND(\"xxx\",BE88)),\"xxx\",IF(ISNUMBER(FIND(\"xx\",BE88)),\"xx\",\"error\"))&AR88&\"]\"),MATCH(AV88,T_FinishColour[Finish / Colour],0)),\"\"),\"\")","v":""},null,{"$f":"IF(AND(ISBLANK(BC88),ISBLANK(C88)),\"HIDE\",_xlfn.SWITCH(PRODUCT(C88:Z88,B88),2,\"HEADING\",1,\"SHOW\",0,\"HIDE\"))","v":"HIDE"},null,null,null,{"$f":"_xlfn.IFNA(SUBSTITUTE(IF(AR88=\"AU\",SUBSTITUTE(BE88,\"xxx\",AW88),SUBSTITUTE(SUBSTITUTE(BE88,\"xx\",AW88),\"x\",\"\")),\"LLL\",\"580\"),BE88)","v":"RB12-3837-025000"},null,"RB12-3837-025000","Easy Spring Air - Spanner Tool",null,{"$f":"IF(ISBLANK(BO88),\"\",IF(OR(BO88=L_Units),\"Y\",\"N\"))","v":"N"},null,{"$f":"IFERROR(_xlfn.SINGLE(IF(BH88=\"Y\",((INDEX(#REF!,MATCH(BI88,#REF!,0),0))),\"\")),\"\")","v":""},null,{"$f":"IFERROR(IF(BH88=\"Y\",INDIRECT(BK88)-BJ88,\"\"),\"\")","v":""},{"$f":"IFERROR(IF(BH88=\"Y\",BL88,\"\"),\"\")","v":""},{"$f":"IFERROR(IF(BH88=\"Y\",TEXT(BL88/25.4,\"0\"&IF(ABS(BL88/25.4-ROUND(BL88/25.4,0))>1/32,\"-0/\"&CHOOSE(ROUND(MOD(BL88/25.4,1)*16,0),16,8,16,4,16,8,16,2,16,8,16,4,16,8,16),\"\")),\"\"),\"\")","v":""},"Piece",{"$f":"IFERROR(IF(ISBLANK(BC88),\"\",INDEX(T_NAV_AU[Base Unit of Measure],MATCH(BC88,T_NAV_AU[No.],0))),\"\")","v":"PIECE"},null,null,"HW",1,{"$f":"IF(ISBLANK(BT88),\"\",PRODUCT(AE88,BT88))","v":1},{"$f":"IF(ISBLANK(BT88),\"\",PRODUCT(AE88,BT88,i_systemQTY))","v":1},{"$f":"IFERROR(INDEX(INDIRECT(\"T_NAV_\"&i_Location&\"[\"&i_Location&\"]\"),MATCH(1,--(BC88=INDIRECT(\"T_NAV_\"&i_Location&\"[No.]\"))*--((INDIRECT(\"T_NAV_\"&i_Location&\"[\"&i_Location&\"]\"))<>\"\"),0))/IF(AND(BQ88=\"METRE\",BG88<>\"\",BR88=\"\"),BG88,1),\"\")","v":""},{"$f":"IFERROR(IF(AND(AY88=\"SHOW\",BW88<>\"\"),BW88*BV88*IF(AND(BM88<>\"\",OR(BP88=\"LENGTH\",BP88=\"METRE\",BP88=\"ROLL\")),(BL88/1000),1),\"\"),\"\")","v":""},"",""]
[null,null,null,null,{"$f":"IFERROR(IF(ISBLANK(D89),\"\",IF(FIND(D89,INDIRECT($D$85))>0,1,0)),0)","v":""},null,{"$f":"IFERROR(IF(ISBLANK(F89),\"\",IF(FIND(F89,INDIRECT($F$85))>0,1,0)),0)","v":""},null,{"$f":"IFERROR(IF(ISBLANK(H89),\"\",IF(FIND(H89,INDIRECT($H$85))>0,1,0)),0)","v":""},"Yes",{"$f":"IFERROR(IF(ISBLANK(J89),\"\",IF(FIND(J89,INDIRECT($J$85))>0,1,0)),0)","v":0},null,null,null,null,null,null,null,null,null,null,null,null,null,null,null,null,null,null,null,"",null,null,null,null,null,null,null,null,null,null,null,null,null,"",null,null,"",{"$f":"IF(ISNUMBER(FIND(\"x\",BE89)),IFERROR(INDEX(INDIRECT(\"T_FinishColour[ColourCode-\"&IF(ISNUMBER(FIND(\"xxx\",BE89)),\"xxx\",IF(ISNUMBER(FIND(\"xx\",BE89)),\"xx\",\"error\"))&AR89&\"]\"),MATCH(AV89,T_FinishColour[Finish / Colour],0)),\"\"),\"\")","v":""},null,{"$f":"IF(AND(ISBLANK(BC89),ISBLANK(C89)),\"HIDE\",_xlfn.SWITCH(PRODUCT(C89:Z89,B89),2,\"HEADING\",1,\"SHOW\",0,\"HIDE\"))","v":"HIDE"},null,null,null,{"$f":"_xlfn.IFNA(SUBSTITUTE(IF(AR89=\"AU\",SUBSTITUTE(BE89,\"xxx\",AW89),SUBSTITUTE(SUBSTITUTE(BE89,\"xx\",AW89),\"x\",\"\")),\"LLL\",\"580\"),BE89)","v":"RB12-8401-001000"},null,"RB12-8401-001000","Easy Spring Air - Control Cap",null,{"$f":"IF(ISBLANK(BO89),\"\",IF(OR(BO89=L_Units),\"Y\",\"N\"))","v":"N"},null,{"$f":"IFERROR(_xlfn.SINGLE(IF(BH89=\"Y\",((INDEX(#REF!,MATCH(BI89,#REF!,0),0))),\"\")),\"\")","v":""},null,"","","","Piece",{"$f":"IFERROR(IF(ISBLANK(BC89),\"\",INDEX(T_NAV_AU[Base Unit of Measure],MATCH(BC89,T_NAV_AU[No.],0))),\"\")","v":""},null,null,"HW",1,1,1,{"$f":"IFERROR(INDEX(INDIRECT(\"T_NAV_\"&i_Location&\"[\"&i_Location&\"]\"),MATCH(1,--(BC89=INDIRECT(\"T_NAV_\"&i_Location&\"[No.]\"))*--((INDIRECT(\"T_NAV_\"&i_Location&\"[\"&i_Location&\"]\"))<>\"\"),0))/IF(AND(BQ89=\"METRE\",BG89<>\"\",BR89=\"\"),BG89,1),\"\")","v":""},"",{"$f":"IF(BX89<>\"\",(INDIRECT(\"i_\"&BS89&\"discount\"))*BX89,\"\")","v":""},{"$f":"IFERROR(IF(BX89<>\"\",BX89-BY89,\"\"),\"\")","v":""}]
[null,2,1,null,null,null,null,null,null,null,{"$f":"IFERROR(IF(ISBLANK(J90),\"\",IF(FIND(J90,INDIRECT($J$73))>0,1,0)),0)","v":""},null,null,null,null,null,null,null,null,null,null,null,null,null,null,null,null,null,null,null,"",null,null,null,null,null,null,null,null,null,null,null,null,null,"",null,null,"",{"$f":"IF(ISNUMBER(FIND(\"x\",BE90)),IFERROR(INDEX(INDIRECT(\"T_FinishColour[ColourCode-\"&IF(ISNUMBER(FIND(\"xxx\",BE90)),\"xxx\",IF(ISNUMBER(FIND(\"xx\",BE90)),\"xx\",\"error\"))&AR90&\"]\"),MATCH(AV90,T_FinishColour[Finish / Colour],0)),\"\"),\"\")","v":""},null,{"$f":"IF(AND(ISBLANK(BC90),ISBLANK(C90)),\"HIDE\",_xlfn.SWITCH(PRODUCT(C90:Z90,B90),2,\"HEADING\",1,\"SHOW\",0,\"HIDE\"))","v":"HEADING"},null,null,null,{"$f":"_xlfn.IFNA(SUBSTITUTE(IF(AR90=\"AU\",SUBSTITUTE(BE90,\"xxx\",AW90),SUBSTITUTE(SUBSTITUTE(BE90,\"xx\",AW90),\"x\",\"\")),\"LLL\",\"580\"),BE90)","v":""},null,null,null,null,{"$f":"IF(ISBLANK(BO90),\"\",IF(OR(BO90=L_Units),\"Y\",\"N\"))","v":""},null,{"$f":"IFERROR(_xlfn.SINGLE(IF(BH90=\"Y\",((INDEX(#REF!,MATCH(BI90,#REF!,0),0))),\"\")),\"\")","v":""},null,"","","",null,{"$f":"IFERROR(IF(ISBLANK(BC90),\"\",INDEX(T_NAV_AU[Base Unit of Measure],MATCH(BC90,T_NAV_AU[No.],0))),\"\")","v":""},null,null,null,null,"",{"$f":"IF(ISBLANK(BT90),\"\",PRODUCT(AE42,BT90))","v":""},{"$f":"IFERROR(INDEX(INDIRECT(\"T_NAV_\"&i_Location&\"[\"&i_Location&\"]\"),MATCH(1,--(BC90=INDIRECT(\"T_NAV_\"&i_Location&\"[No.]\"))*--((INDIRECT(\"T_NAV_\"&i_Location&\"[\"&i_Location&\"]\"))<>\"\"),0))/IF(AND(BQ90=\"METRE\",BG90<>\"\",BR90=\"\"),BG90,1),\"\")","v":""},"",{"$f":"IF(BX90<>\"\",(INDIRECT(\"i_\"&BS90&\"discount\"))*BX90,\"\")","v":""}]
[null,2,1,null,null,null,null,null,null,null,"",null,null,null,null,null,null,null,null,null,null,null,null,null,null,null,null,null,null,null,"",null,null,null,null,null,null,null,null,null,null,null,null,null,"",null,null,"",{"$f":"IF(ISNUMBER(FIND(\"x\",BE91)),IFERROR(INDEX(INDIRECT(\"T_FinishColour[ColourCode-\"&IF(ISNUMBER(FIND(\"xxx\",BE91)),\"xxx\",IF(ISNUMBER(FIND(\"xx\",BE91)),\"xx\",\"error\"))&AR91&\"]\"),MATCH(AV91,T_FinishColour[Finish / Colour],0)),\"\"),\"\")","v":""},null,{"$f":"IF(AND(ISBLANK(BC91),ISBLANK(C91)),\"HIDE\",_xlfn.SWITCH(PRODUCT(C91:Z91,B91),2,\"HEADING\",1,\"SHOW\",0,\"HIDE\"))","v":"HEADING"},null,null,null,"FABRIC",null,"FABRIC",null,null,null,null,{"$f":"IFERROR(_xlfn.SINGLE(IF(BH91=\"Y\",((INDEX(#REF!,MATCH(BI91,#REF!,0),0))),\"\")),\"\")","v":""},null,"","","",null,{"$f":"IFERROR(IF(ISBLANK(BC91),\"\",INDEX(T_NAV_AU[Base Unit of Measure],MATCH(BC91,T_NAV_AU[No.],0))),\"\")","v":""},null,null,null,null,"",null,{"$f":"IFERROR(INDEX(INDIRECT(\"T_NAV_\"&i_Location&\"[\"&i_Location&\"]\"),MATCH(1,--(BC91=INDIRECT(\"T_NAV_\"&i_Location&\"[No.]\"))*--((INDIRECT(\"T_NAV_\"&i_Location&\"[\"&i_Location&\"]\"))<>\"\"),0))/IF(AND(BQ91=\"METRE\",BG91<>\"\",BR91=\"\"),BG91,1),\"\")","v":""},"",""]
[null,2,1,null,null,null,null,null,null,null,"",null,null,null,null,null,null,null,null,null,null,null,null,null,null,null,null,null,null,null,"",null,null,null,null,null,null,null,null,null,null,null,null,null,"",null,null,"",{"$f":"IF(ISNUMBER(FIND(\"x\",BE92)),IFERROR(INDEX(INDIRECT(\"T_FinishColour[ColourCode-\"&IF(ISNUMBER(FIND(\"xxx\",BE92)),\"xxx\",IF(ISNUMBER(FIND(\"xx\",BE92)),\"xx\",\"error\"))&AR92&\"]\"),MATCH(AV92,T_FinishColour[Finish / Colour],0)),\"\"),\"\")","v":""},null,{"$f":"IF(AND(ISBLANK(BC92),ISBLANK(C92)),\"HIDE\",_xlfn.SWITCH(PRODUCT(C92:Z92,B92),2,\"HEADING\",1,\"SHOW\",0,\"HIDE\"))","v":"HEADING"},null,null,null,"NOT SUPPLIED",null,"Not Supplied","Fabric Width",null,{"$f":"IF(ISBLANK(BO92),\"\",IF(OR(BO92=L_Units),\"Y\",\"N\"))","v":{"$error":"#N/A"}},"Fabric",{"$f":"IFERROR(IF(BH92=\"Y\",((INDEX(T_Deduc18[Deduction],MATCH(BI92,T_Deduc18[Type],0),0))),\"\"),\"\")","v":""},"o_widthmm","","","",{"$f":"INDEX(T_UnitSelection[Units],MATCH(i_Units,T_UnitSelection[UnitSelection],0))","v":{"$error":"#N/A"}},{"$f":"IFERROR(IF(ISBLANK(BC92),\"\",INDEX(T_NAV_AU[Base Unit of Measure],MATCH(BC92,T_NAV_AU[No.],0))),\"\")","v":""},null,null,null,1,1,{"$f":"IF(ISBLANK(BT92),\"\",PRODUCT(AE92,BT92,i_systemQTY))","v":1},{"$f":"IFERROR(INDEX(INDIRECT(\"T_NAV_\"&i_Location&\"[\"&i_Location&\"]\"),MATCH(1,--(BC92=INDIRECT(\"T_NAV_\"&i_Location&\"[No.]\"))*--((INDIRECT(\"T_NAV_\"&i_Location&\"[\"&i_Location&\"]\"))<>\"\"),0))/IF(AND(BQ92=\"METRE\",BG92<>\"\",BR92=\"\"),BG92,1),\"\")","v":""},"","",{"$f":"IFERROR(IF(BX92<>\"\",BX92-BY92,\"\"),\"\")","v":""}]
[null,2,1,null,null,null,null,null,null,null,"",null,null,null,null,null,null,null,null,null,null,null,null,null,null,null,null,null,null,null,"",null,null,null,null,null,null,null,null,null,null,null,null,null,"",null,null,"",{"$f":"IF(ISNUMBER(FIND(\"x\",BE93)),IFERROR(INDEX(INDIRECT(\"T_FinishColour[ColourCode-\"&IF(ISNUMBER(FIND(\"xxx\",BE93)),\"xxx\",IF(ISNUMBER(FIND(\"xx\",BE93)),\"xx\",\"error\"))&AR93&\"]\"),MATCH(AV93,T_FinishColour[Finish / Colour],0)),\"\"),\"\")","v":""},null,{"$f":"IF(AND(ISBLANK(BC93),ISBLANK(C93)),\"HIDE\",_xlfn.SWITCH(PRODUCT(C93:Z93,B93),2,\"HEADING\",1,\"SHOW\",0,\"HIDE\"))","v":"HEADING"},null,null,null,null,null,null,"Fabric Drop",null,{"$f":"IF(ISBLANK(BO93),\"\",IF(OR(BO93=L_Units),\"Y\",\"N\"))","v":{"$error":"#N/A"}},"FabricDrop",{"$f":"IFERROR(IF(BH93=\"Y\",((INDEX(T_Deduc18[Deduction],MATCH(BI93,T_Deduc18[Type],0),0))),\"\"),\"\")","v":""},"o_dropmm","","","",{"$f":"INDEX(T_UnitSelection[Units],MATCH(i_Units,T_UnitSelection[UnitSelection],0))","v":{"$error":"#N/A"}},{"$f":"IFERROR(IF(ISBLANK(BC93),\"\",INDEX(T_NAV_AU[Base Unit of Measure],MATCH(BC93,T_NAV_AU[No.],0))),\"\")","v":""},null,null,null,null,null,null,{"$f":"IFERROR(INDEX(INDIRECT(\"T_NAV_\"&i_Location&\"[\"&i_Location&\"]\"),MATCH(1,--(BC93=INDIRECT(\"T_NAV_\"&i_Location&\"[No.]\"))*--((INDIRECT(\"T_NAV_\"&i_Location&\"[\"&i_Location&\"]\"))<>\"\"),0))/IF(AND(BQ93=\"METRE\",BG93<>\"\",BR93=\"\"),BG93,1),\"\")","v":""},"","",{"$f":"IFERROR(IF(BX93<>\"\",BX93-BY93,\"\"),\"\")","v":""}]
[null,2,1,null,null,null,null,null,null,null,"",null,null,null,null,null,null,null,null,null,null,null,null,null,null,null,null,null,null,null,null,null,null,null,null,null,null,null,null,null,null,null,null,null,null,null,null,null,null,null,{"$f":"IF(AND(ISBLANK(BC94),ISBLANK(C94)),\"HIDE\",_xlfn.SWITCH(PRODUCT(C94:Z94,B94),2,\"HEADING\",1,\"SHOW\",0,\"HIDE\"))","v":"HEADING"}]
[null,2,1,null,null,null,null,null,null,null,"",null,null,null,null,null,null,null,null,null,null,null,null,null,null,null,null,null,null,null,null,null,null,null,null,null,null,null,null,null,null,null,null,null,null,null,null,null,null,null,{"$f":"IF(AND(ISBLANK(BC95),ISBLANK(C95)),\"HIDE\",_xlfn.SWITCH(PRODUCT(C95:Z95,B95),2,\"HEADING\",1,\"SHOW\",0,\"HIDE\"))","v":"HEADING"},null,null,null,null,null,"CUSTOM NOTES"]
[null,null,1,null,null,null,null,null,null,null,"",null,null,null,null,null,null,null,null,null,null,null,null,null,null,null,null,null,null,null,null,null,null,null,null,null,null,null,null,null,null,null,null,null,null,null,null,null,null,null,{"$f":"IF(AND(ISBLANK(BC96),ISBLANK(C96)),\"HIDE\",_xlfn.SWITCH(PRODUCT(C96:Z96,B96),2,\"HEADING\",1,\"SHOW\",0,\"HIDE\"))","v":"SHOW"},null,null,null,null,null,{"$f":"\"Recommended \"&IF(i_Location=\"US\",\"Hem Bar\",\"Bottom Rail\")&\" total mass: \"&IF(i_Units=\"Metric\",ROUND(o_wbRecMass_Metric,2)&\" kg\",ROUND(o_wbRecMass_Imperial,2)&\" lb\")&\" (\"&IF(i_Units=\"Metric\",ROUND(o_ReqdwbMass,2)&\" kg/m\",ROUND(o_ReqdwbMass_Imperial,2)&\" lb/ft\")&\")\"","v":{"$error":"#VALUE!"}}]
[null,null,1,null,null,null,null,null,null,null,"",null,null,null,null,null,null,null,null,null,null,null,null,null,null,null,null,null,null,null,null,null,null,null,null,null,null,null,null,null,null,null,null,null,null,null,null,null,null,null,{"$f":"IF(AND(ISBLANK(BC97),ISBLANK(C97)),\"HIDE\",_xlfn.SWITCH(PRODUCT(C97:Z97,B97),2,\"HEADING\",1,\"SHOW\",0,\"HIDE\"))","v":"SHOW"}]
[null,null,1,null,null,null,null,null,null,null,"",null,null,null,null,null,null,null,null,null,null,null,null,null,null,null,null,null,null,null,null,null,null,null,null,null,null,null,null,null,null,null,null,null,null,null,null,null,null,null,{"$f":"IF(AND(ISBLANK(BC98),ISBLANK(C98)),\"HIDE\",_xlfn.SWITCH(PRODUCT(C98:Z98,B98),2,\"HEADING\",1,\"SHOW\",0,\"HIDE\"))","v":"SHOW"}]
[null,null,1,null,null,null,null,null,null,null,{"$f":"IFERROR(IF(ISBLANK(J99),\"\",IF(FIND(J99,INDIRECT($J$73))>0,1,0)),0)","v":""},null,null,null,null,null,null,null,null,null,null,null,null,null,null,null,null,null,null,null,null,null,null,null,null,null,null,null,null,null,null,null,null,null,null,null,null,null,null,null,{"$f":"IF(AND(ISBLANK(BC99),ISBLANK(C99)),\"HIDE\",_xlfn.SWITCH(PRODUCT(C99:Z99,B99),2,\"HEADING\",1,\"SHOW\",0,\"HIDE\"))","v":"SHOW"}]
[null,null,1,null,null,null,null,null,null,null,{"$f":"IFERROR(IF(ISBLANK(J100),\"\",IF(FIND(J100,INDIRECT($J$73))>0,1,0)),0)","v":""},null,null,null,null,null,null,null,null,null,null,null,null,null,null,null,null,null,null,null,null,null,null,null,null,null,null,null,null,null,null,null,null,null,null,null,null,null,null,null,{"$f":"IF(AND(ISBLANK(BC100),ISBLANK(C100)),\"HIDE\",_xlfn.SWITCH(PRODUCT(C100:Z100,B100),2,\"HEADING\",1,\"SHOW\",0,\"HIDE\"))","v":"SHOW"}]
[null,null,null,null,null,null,null,null,null,null,null,null,null,null,null,null,null,null,null,null,null,null,null,null,null,null,null,null,null,null,null,null,null,null,null,null,null,null,null,null,null,null,null,null,{"$f":"IF(ISNUMBER(FIND(\"x\",BE101)),IFERROR(INDEX(AI101:AQ101,0,MATCH(AT101,AI101:AQ101,0)),IF(AI101<>\"\",AI101,i_DefaultColour)),\"\")","v":""},null,null,{"$f":"IF(ISNUMBER(FIND(\"x\",BE101)),IFERROR(INDEX(AI101:AQ101,0,MATCH(AT101,AI101:AQ101,0)),AS101),\"\")","v":""},{"$f":"IF(ISNUMBER(FIND(\"x\",BE101)),IFERROR(INDEX(INDIRECT(\"T_FinishColour[ColourCode-\"&IF(ISNUMBER(FIND(\"xxx\",BE101)),\"xxx\",IF(ISNUMBER(FIND(\"xx\",BE101)),\"xx\",\"error\"))&AR101&\"]\"),MATCH(AV101,T_FinishColour[Finish / Colour],0)),\"\"),\"\")","v":""},null,{"$f":"IF(AND(ISBLANK(BC101),ISBLANK(C101)),\"HIDE\",_xlfn.SWITCH(PRODUCT(C101:Z101,B101),2,\"HEADING\",1,\"SHOW\",0,\"HIDE\"))","v":"HIDE"}]
[null,null,null,null,null,null,null,null,null,null,null,null,null,null,null,null,null,null,null,null,null,null,null,null,null,null,null,null,null,null,null,null,null,null,null,null,null,null,null,null,null,null,null,null,"",null,null,"",{"$f":"IF(ISNUMBER(FIND(\"x\",BE102)),IFERROR(INDEX(INDIRECT(\"T_FinishColour[ColourCode-\"&IF(ISNUMBER(FIND(\"xxx\",BE102)),\"xxx\",IF(ISNUMBER(FIND(\"xx\",BE102)),\"xx\",\"error\"))&AR102&\"]\"),MATCH(AV102,T_FinishColour[Finish / Colour],0)),\"\"),\"\")","v":""},null,{"$f":"IF(i_Pricing=\"No\",\"HIDE\",\"SHOW\")","v":"SHOW"}]
[null,null,null,null,null,null,null,null,null,null,null,null,null,null,null,null,null,null,null,null,null,null,null,null,null,null,null,null,null,null,null,null,null,null,null,null,null,null,null,null,null,null,null,null,"",null,null,"",{"$f":"IF(ISNUMBER(FIND(\"x\",BE103)),IFERROR(INDEX(INDIRECT(\"T_FinishColour[ColourCode-\"&IF(ISNUMBER(FIND(\"xxx\",BE103)),\"xxx\",IF(ISNUMBER(FIND(\"xx\",BE103)),\"xx\",\"error\"))&AR103&\"]\"),MATCH(AV103,T_FinishColour[Finish / Colour],0)),\"\"),\"\")","v":""},null,{"$f":"IF(i_Location=\"US\",\"HIDE\",IF(i_Pricing=\"No\",\"HIDE\",\"SHOW\"))","v":"SHOW"},null,null,null,null,null,null,null,null,null,null,null,null,null,null,null,{"$f":"\"LIST PRICE: (\"&IF(CustomCurrency=\"\",i_Currency,CustomCurrency)&\")\"","v":{"$error":"#N/A"}},null,null,null,null,null,null,{"$f":"SUM(BX15:BX93)*(IF(CustomCurrencyRate<>\"\",CustomCurrencyRate,1))","v":0}]
[null,null,null,null,null,null,null,null,null,null,null,null,null,null,null,null,null,null,null,null,null,null,null,null,null,null,null,null,null,null,null,null,null,null,null,null,null,null,null,null,null,null,null,null,"",null,null,"",{"$f":"IF(ISNUMBER(FIND(\"x\",BE104)),IFERROR(INDEX(INDIRECT(\"T_FinishColour[ColourCode-\"&IF(ISNUMBER(FIND(\"xxx\",BE104)),\"xxx\",IF(ISNUMBER(FIND(\"xx\",BE104)),\"xx\",\"error\"))&AR104&\"]\"),MATCH(AV104,T_FinishColour[Finish / Colour],0)),\"\"),\"\")","v":""},null,{"$f":"IF(i_Location=\"US\",\"HIDE\",IF(i_Pricing=\"No\",\"HIDE\",\"SHOW\"))","v":"SHOW"},null,null,null,null,null,null,null,null,null,null,null,null,null,null,null,{"$f":"\"Discounts Applied: \"","v":"Discounts Applied: "},null,null,null,null,null,null,{"$f":"SUM(BY15:BY93)","v":0}]
[null,null,null,null,null,null,null,null,null,null,null,null,null,null,null,null,null,null,null,null,null,null,null,null,null,null,null,null,null,null,null,null,null,null,null,null,null,null,null,null,null,null,null,null,"",null,null,"",{"$f":"IF(ISNUMBER(FIND(\"x\",BE105)),IFERROR(INDEX(INDIRECT(\"T_FinishColour[ColourCode-\"&IF(ISNUMBER(FIND(\"xxx\",BE105)),\"xxx\",IF(ISNUMBER(FIND(\"xx\",BE105)),\"xx\",\"error\"))&AR105&\"]\"),MATCH(AV105,T_FinishColour[Finish / Colour],0)),\"\"),\"\")","v":""},null,{"$f":"IF(i_Location=\"US\",\"HIDE\",IF(i_Pricing=\"No\",\"HIDE\",\"SHOW\"))","v":"SHOW"},null,null,null,null,null,null,null,null,null,null,null,null,null,null,null,{"$f":"\"TOTAL ex. GST: (\"&IF(CustomCurrency=\"\",i_Currency,CustomCurrency)&\")\"","v":{"$error":"#N/A"}},null,null,null,null,null,null,{"$f":"BV103-BV104","v":0}]
[null,null,null,null,null,null,null,null,null,null,null,null,null,null,null,null,null,null,null,null,null,null,null,null,null,null,null,null,null,null,null,null,null,null,null,null,null,null,null,null,null,null,null,null,"",null,null,"",{"$f":"IF(ISNUMBER(FIND(\"x\",BE106)),IFERROR(INDEX(INDIRECT(\"T_FinishColour[ColourCode-\"&IF(ISNUMBER(FIND(\"xxx\",BE106)),\"xxx\",IF(ISNUMBER(FIND(\"xx\",BE106)),\"xx\",\"error\"))&AR106&\"]\"),MATCH(AV106,T_FinishColour[Finish / Colour],0)),\"\"),\"\")","v":""},null,{"$f":"IF(i_Pricing=\"No\",\"HIDE\",\"SHOW\")","v":"SHOW"}]
[null,null,null,null,null,null,null,null,null,null,null,null,null,null,null,null,null,null,null,null,null,null,null,null,null,null,null,null,null,null,null,null,null,null,null,null,null,null,null,null,null,null,null,null,"",null,null,"",{"$f":"IF(ISNUMBER(FIND(\"x\",BE107)),IFERROR(INDEX(INDIRECT(\"T_FinishColour[ColourCode-\"&IF(ISNUMBER(FIND(\"xxx\",BE107)),\"xxx\",IF(ISNUMBER(FIND(\"xx\",BE107)),\"xx\",\"error\"))&AR107&\"]\"),MATCH(AV107,T_FinishColour[Finish / Colour],0)),\"\"),\"\")","v":""},null,{"$f":"IF(AND(ISBLANK(BE107),ISBLANK(C107)),\"HIDE\",IF(PRODUCT(C107:Z107)=1,\"SHOW\",\"HIDE\"))","v":"HIDE"}]
[null,null,null,null,null,null,null,null,null,null,null,null,null,null,null,null,null,null,null,null,null,null,null,null,null,null,null,null,null,null,null,null,null,null,null,null,null,null,null,null,null,null,null,null,"",null,null,"",{"$f":"IF(ISNUMBER(FIND(\"x\",BE108)),IFERROR(INDEX(INDIRECT(\"T_FinishColour[ColourCode-\"&IF(ISNUMBER(FIND(\"xxx\",BE108)),\"xxx\",IF(ISNUMBER(FIND(\"xx\",BE108)),\"xx\",\"error\"))&AR108&\"]\"),MATCH(AV108,T_FinishColour[Finish / Colour],0)),\"\"),\"\")","v":""},null,"HIDE",null,null,null,null,null,null,null,null,null,null,null,null,null,null,null,"System unit cost",null,null,null,null,null,null,{"$f":"BV105/i_systemQTY","v":0}]
[null,null,null,null,null,null,null,null,null,null,null,null,null,null,null,null,null,null,null,null,null,null,null,null,null,null,null,null,null,null,null,null,null,null,null,null,null,null,null,null,null,null,null,null,"",null,null,"",{"$f":"IF(ISNUMBER(FIND(\"x\",BE109)),IFERROR(INDEX(INDIRECT(\"T_FinishColour[ColourCode-\"&IF(ISNUMBER(FIND(\"xxx\",BE109)),\"xxx\",IF(ISNUMBER(FIND(\"xx\",BE109)),\"xx\",\"error\"))&AR109&\"]\"),MATCH(AV109,T_FinishColour[Finish / Colour],0)),\"\"),\"\")","v":""},null,"HIDE"]
[null,null,null,null,null,null,null,null,null,null,null,null,null,null,null,null,null,null,null,null,null,null,null,null,null,null,null,null,null,null,null,null,null,null,null,null,null,null,null,null,null,null,null,null,"",null,null,"",{"$f":"IF(ISNUMBER(FIND(\"x\",BE110)),IFERROR(INDEX(INDIRECT(\"T_FinishColour[ColourCode-\"&IF(ISNUMBER(FIND(\"xxx\",BE110)),\"xxx\",IF(ISNUMBER(FIND(\"xx\",BE110)),\"xx\",\"error\"))&AR110&\"]\"),MATCH(AV110,T_FinishColour[Finish / Colour],0)),\"\"),\"\")","v":""},null,"HIDE"]
[null,null,null,null,null,null,null,null,null,null,null,null,null,null,null,null,null,null,null,null,null,null,null,null,null,null,null,null,null,null,null,null,null,null,null,null,null,null,null,null,null,null,null,null,"",null,null,"",{"$f":"IF(ISNUMBER(FIND(\"x\",BE111)),IFERROR(INDEX(INDIRECT(\"T_FinishColour[ColourCode-\"&IF(ISNUMBER(FIND(\"xxx\",BE111)),\"xxx\",IF(ISNUMBER(FIND(\"xx\",BE111)),\"xx\",\"error\"))&AR111&\"]\"),MATCH(AV111,T_FinishColour[Finish / Colour],0)),\"\"),\"\")","v":""},null,"HIDE"]
[null,null,null,null,null,null,null,null,null,null,null,null,null,null,null,null,null,null,null,null,null,null,null,null,null,null,null,null,null,null,null,null,null,null,null,null,null,null,null,null,null,null,null,null,"",null,null,"",{"$f":"IF(ISNUMBER(FIND(\"x\",BE112)),IFERROR(INDEX(INDIRECT(\"T_FinishColour[ColourCode-\"&IF(ISNUMBER(FIND(\"xxx\",BE112)),\"xxx\",IF(ISNUMBER(FIND(\"xx\",BE112)),\"xx\",\"error\"))&AR112&\"]\"),MATCH(AV112,T_FinishColour[Finish / Colour],0)),\"\"),\"\")","v":""},null,"HIDE"]
[null,null,null,null,null,null,null,null,null,null,null,null,null,null,null,null,null,null,null,null,null,null,null,null,null,null,null,null,null,null,null,null,null,null,null,null,null,null,null,null,null,null,null,null,null,null,null,"",{"$f":"IF(ISNUMBER(FIND(\"x\",BE113)),IFERROR(INDEX(INDIRECT(\"T_FinishColour[ColourCode-\"&IF(ISNUMBER(FIND(\"xxx\",BE113)),\"xxx\",IF(ISNUMBER(FIND(\"xx\",BE113)),\"xx\",\"error\"))&AR113&\"]\"),MATCH(AV113,T_FinishColour[Finish / Colour],0)),\"\"),\"\")","v":""},null,"HIDE"]
[null,null,null,null,null,null,null,null,null,null,null,null,null,null,null,null,null,null,null,null,null,null,null,null,null,null,null,null,null,null,null,null,null,null,null,null,null,null,null,null,null,null,null,null,null,null,null,null,null,null,"HIDE"]
[]
[]
[]
[]
[]
[]
[]
[]
[]
[]
[]
[]
[]
[]
[]
[]
[]
[]
[]
[]
[]
[]
[]
[]
[]
[]
[]
[]
[]
[]
[]
[]
[]
[]
[]
[]
[]
[]
[]
[]
[]
[]
[]
[]
[]
[]
[]
[]
[]
[]
[]
[]
[]
[]
[]
[]
[]
[]
[]
[]
[]
[]
[]
[]
[]
[]
[]
[]
[]
[]
[]
[]
[]
[]
[]
[]
[]
[]
[]
[]
[]
[]
[]
[]
[]
[]
[]
[]
[]
[]
[]
[]
[]
[]
[]
[]
[]
[]
[]
[]
[]
[]
[]
[]
[]
[]
[]
[]
[]
[]
[]
[]
[]
[]
[]
[null,null,null,null,"Ultra-Lock Wire Guide","Ultra-Lock Zipscreen"]
[]
[]
[]
[]
[]
[]
[]
[]
[]
[]
[]
[]
[]
[]
[]
[]
[]
[]
[]
[]
[]
[]
[]
[]
[]
[]
[]
[]
[]
[]
[null,null,null,null,null,"Ultra-Lock Zipscreen"]
[null,null,null,null,"Ultra-Lock Wire Guide"]

{"sheet":"Ctrl_Lists","index":3,"n_rows":57,"n_cols":37,"rows_kept":57,"cut":false,"hidden":true,"merged":[[20,25,20,26],[1,0,1,1],[19,13,19,15],[19,8,19,11],[20,8,20,11],[5,20,5,22],[6,20,6,22],[5,17,5,18]]}
[null,null,null,null,null,null,"TO BE FINISHED LATER>"]
["List Summary",null,null,null,null,null,null,null,null,null,null,null,null,null,null,null,null,null,null,null,"L_SelectUnitsSingle"]
[null,null,null,"i_Currency",null,null,null,null,null,null,null,null,null,null,"o_nScreens",null,null,null,null,null,{"$f":"IF(i_Units=\"Metric\",\"Imperial\",\"Metric\")","v":"Metric"}]
[null,null,null,{"$f":"INDEX(T_Currency[Currency],MATCH(i_Location,T_Location[Location],0))","v":{"$error":"#N/A"}},null,null,null,null,null,null,null,null,null,null,{"$f":"IF(OR(i_LinkedScreens=\"No\",i_LinkedScreens=\"\"),1,i_nScreens)","v":{"$error":"#NAME?"}},null,null,null,null,null,{"$f":"IF(i_Units=\"\",\"Imperial\",0)","v":"Imperial"}]
[null,"Activate List ->"]
[null,"Table/List Name (MUST MATCH) ->",{"$f":"\"T_\"&SUBSTITUTE((OFFSET(C6,2,0)),\" \",\"\")","v":"T_Installation"},"T_Currency","T_Location","T_BlindType","T_SystemType","T_InstallationType","T_ControlType","T_SideGuideFixing",null,{"$f":"\"T_\"&SUBSTITUTE((OFFSET(L6,2,0)),\" \",\"\")","v":"T_ControlSide"},"T_YesNo","T_BoxShape","T_nScreens","T_CassetteBrush","T_wbBallast","T_PivotArmLength",null,"T_Linked",{"$f":"\"T_\"&SUBSTITUTE((OFFSET(U6,2,0)),\" \",\"\")","v":"T_UnitSelection"},null,null,"T_SheetStatus",null,"T_Motor",null,{"$f":"\"T_\"&SUBSTITUTE((OFFSET(AB6,2,0)),\" \",\"\")","v":"T_RemoteList"},"T_ZipscreenSideGuides","T_WGTopTerminal","T_Booster","T_GearArm","T_GearRatio","T_BracketOptions","T_IdlerType","T_OpenBktOrientation","T_Sensors"]
[null,"List Test ->"]
[null,"Header Name ->","Installation","Currency","Location","Blind Type","System Type","Installation Type","Control Type","SideGuideFixing","Outcome","Control Side","YesNo","Box Shape","nScreens","CassetteBrush","wbBallast","PivotArmLength","Converted","Linked","UnitSelection","Units","Fabric","Status",null,"Motor",null,"RemoteList","ZipscreenSideGuides","WGTopTerminal","Booster","GearArm","GearRatio","BracketOptions","IdlerType","OpenBktOrientation","Sensors"]
[null,null,"Internal","AUD","AU","Single","Zipscreen","Open","Spring","Side Guide - Face Fix (Wall / Outside Mount)","No Clip","Left","Yes","Round",2,"Yes","Yes","1.0m (40\")",1000,"No","Metric","mm","gsm","Development",null,"AUTOMATE | ARC FT Motor",null,"PUSH Five Ch. | White","L-Fixing Rail","Hook Saddle Bracket","Short","1m (40\")","5:1 (7.5 Nm)","Mild Steel","Bearing Idler 63mm","Bracket - Face Fix Orientation","No Sensor"]
[null,null,"External","USD","US","Dual","VEUE - Straight Drop",null,"Gear","Side Guide - Recess Fix (Inside Mount)","Top Fix","Right","No","Square",3,"No","No","1.4m (55\")",1400,"Easy Link","Imperial","in","oz/yd²","Release",null,"Somfy Motor (Round Head)",null,"PUSH Five Ch. | Black","Face Fix U-Rail (Wall Mount)","Round Clamp Terminal","Standard","1.5m (60\")","8:1 (20 Nm)","Stainless Steel","Idler Housing & Pin Kit","Bracket - Top Fix Orientation","AUTOMATE | ARC Solar Sun & Wind Sensor"]
[null,null,null,"EUR",null,null,"VEUE - Wire Guide",null,"Motor",null,null,null,null,null,null,null,null,"1.6m",1600,"Multi Infinite Link",null,null,null,null,null,"Somfy Motor (Star Head)",null,"PUSH Fifteen Ch. | White",null,null,"Heavy","2m (80\")",null,null,"Extreme Bearing Idler"]
[null,null,null,null,null,null,"VEUE - Pivot Arm",null,null,null,null,null,null,null,null,null,null,null,null,null,null,null,null,null,null,null,null,"PUSH Fifteen Ch. | Black",null,null,"Extra Heavy"]
[null,null,null,null,null,null,"VEUE - Channel Guide",null,null,null,null,null,null,null,null,null,null,null,null,null,null,null,null,null,null,null,null,"No Remote",null,null,"Dual Heavy"]
[null,null,null,null,null,null,"EXTREME - Zipscreen"]
[null,null,null,null,null,null,"EXTREME - Wire Guide"]
[]
[]
[]
[]
[null,null,{"$f":"\"T_\"&SUBSTITUTE((OFFSET(C20,2,0)),\" \",\"\")","v":"T_Tube"},{"$f":"\"T_\"&SUBSTITUTE((OFFSET(D20,2,0)),\" \",\"\")","v":"T_WeightBar"},{"$f":"\"T_\"&SUBSTITUTE((OFFSET(E20,2,0)),\" \",\"\")","v":"T_wbSpline"},"T_TubeExtras","T_Chain","T_Finish","T_FinishColour",null,null,null,null,"T_Fabric",null,null,null,{"$f":"\"T_\"&SUBSTITUTE((OFFSET(R20,2,0)),\" \",\"\")","v":"T_ChainTensioner"},null,"T_ChainType",null,"T_CostCalc"]
[null,null,null,null,{"$f":"INDEX(Ctrl_Lists!$E$23:$E$30,MATCH(i_WeightBar,T_WeightBar[],0))","v":{"$error":"#N/A"}},null,null,null,null,null,null,null,null,"gsm","oz/yd²","mm",null,null,null,null,null,null,null,null,null,"Translate",null,null,{"$f":"\"T_\"&SUBSTITUTE((OFFSET(AC21,2,0)),\" \",\"\")","v":"T_HandleOptions"}]
[null,null,"Tube","WeightBar","wbSpline","TubeExtras","Chain","Finish","Finish / Colour","ColourCode-xxxAU","ColourCode-xxUS","ColourCode-xxxUS",null,"Metric","Imperial","Thickness",null,"ChainTensioner",null,"ChainType",null,"CostCalc",null,null,null,"US","AU"]
[null,null,"1.5\"","D30","9mm Flat Spline (D/S Tape)","With Tape","50 cm","Mill",{"$f":"T_Finish[[#This Row],[Finish]]","v":"Mill"},"000","U",null,null,180,{"$f":"ROUND(T_Fabric[[#This Row],[Metric]]/33.9,2)","v":5.31},0.4,null,"Face Fix",null,"Plastic",null,"Pro-rata'd lengths",null,null,null,"Pin End","Idler End",null,"HandleOptions"]
[null,null,"S45 LT","Fabric Wrap","7.2mm Round Spline w/ 15mm Tail","Without Tape","75 cm","Anodised","Anodised","018","A",null,null,320,{"$f":"ROUND(T_Fabric[[#This Row],[Metric]]/33.9,2)","v":9.44},0.55000000000000004,null,"Recess Fix",null,"Metal",null,"Charge full lengths",null,null,null,"Edge","dim-OUT",null,"No"]
[null,null,"S45 STD","F4115",null,null,"100 cm","Power Coat","Stainless","013",null,null,null,420,{"$f":"ROUND(T_Fabric[[#This Row],[Metric]]/33.9,2)","v":12.39},0.55000000000000004,null,"Universal",null,null,null,"Minimum pack sizes???",null,null,null,null,null,null,"Handle (x1)"]
[null,null,"S45 HD","Oval",null,null,"125 cm",null,"Black","050","BK","050",null,500,{"$f":"ROUND(T_Fabric[[#This Row],[Metric]]/33.9,2)","v":14.75},0.9,null,"Chain Hold",null,null,null,null,null,null,null,null,null,null,"Handle (x2)"]
[null,null,null,"Round",null,null,"150 cm",null,"White","069","W","075"]
[null,null,null,"No Weight Bar",null,null,"175 cm",null,"Silver Grey","338"]
[null,null,null,"HB16",null,null,"200 cm",null,"Bronze","082","BR",472]
[null,null,null,null,null,null,null,null,"Vanilla",null,"V",414]
[null,null,null,null,null,null,null,null,"Cream",null,"CR"]
[null,null,null,null,null,null,null,null,"Sandstone","269"]
[null,null,null,null,null,null,null,null,"Barley","283"]
[null,null,null,null,null,null,null,null,"Gray","340","G"]
[null,null,null,null,null,null,null,null,"Brown",null,"GR"]
[null,null,null,null,null,null,null,null,"Zinc Plated","025",{"$f":"1/0","v":{"$error":"#DIV/0!"}},"025"]
[null,null,null,null,null,null,null,null,"Monument"]
[null,null,null,null,null,null,null,null,"Woodland Grey"]
[]
[null,null,null,null,null,null,null,null,null,"Test"]
[null,null,null,null,null,null,null,null,"L_ColourList"]
[]
[]
[]
[]
[]
[]
[null,null,null,null,null,null,null,null,{"$f":"_xlfn._xlws.FILTER(T_FinishColour[Finish / Colour],T_FinishColour[ColourCode-xxxUS]<>\"\")","v":"Black"},null,null,null,null,{"$f":"\"T_\"&SUBSTITUTE((OFFSET(N48,2,0)),\" \",\"\")","v":"T_wbBrush"},{"$f":"\"T_\"&SUBSTITUTE((OFFSET(O48,2,0)),\" \",\"\")","v":"T_wbBubbleSeal"},null,{"$f":"\"T_\"&SUBSTITUTE((OFFSET(Q48,2,0)),\" \",\"\")","v":"T_ChainLength"}]
[null,null,null,null,null,null,null,null,"White"]
[null,null,null,null,null,null,null,null,"Bronze",null,null,null,null,"wbBrush","wbBubbleSeal",null,"ChainLength"]
[null,null,null,null,null,null,null,null,"Vanilla",null,null,null,null,"Yes","No Bubble Seal",null,50]
[null,null,null,null,null,null,null,null,"Zinc Plated",null,null,null,null,"No","Yes - Bottom/Back Seal (1x)",null,75]
[null,null,null,null,null,null,null,null,null,null,null,null,null,null,"Yes - Bottom + Back Seal (2x)",null,100]
[null,null,null,null,null,null,null,null,null,null,null,null,null,null,null,null,125]
[null,null,null,null,null,null,null,null,null,null,null,null,null,null,null,null,150]
[null,null,null,null,null,null,null,null,null,null,null,null,null,null,null,null,175]
[null,null,null,null,null,null,null,null,null,null,null,null,null,null,null,null,200]

{"sheet":"Ctrl_Selections","index":4,"n_rows":717,"n_cols":14,"rows_kept":717,"cut":false,"hidden":true,"merged":[[509,4,509,13],[425,3,426,3],[14,3,18,3],[14,2,18,2],[84,3,87,3],[88,2,90,2],[88,3,90,3],[481,3,485,3],[527,3,527,13],[514,3,515,3],[514,2,515,2],[244,2,247,2],[248,2,250,2],[262,3,262,13],[387,3,389,3],[468,3,468,13],[360,3,360,13],[248,3,250,3],[37,4,37,13],[177,3,177,13],[382,3,386,3],[202,2,206,2],[202,3,206,3],[207,2,210,2],[207,3,210,3],[166,2,168,2],[166,3,168,3],[62,3,62,13],[70,3,70,13],[82,4,82,13],[84,2,87,2],[499,3,499,13],[272,3,272,13],[219,3,219,13],[326,4,326,13],[328,2,331,2],[328,3,331,3],[332,2,337,2],[332,3,337,3],[486,3,490,3],[486,2,490,2],[449,3,450,3],[289,3,292,3],[244,3,247,3],[418,4,418,13],[420,2,424,2],[420,3,424,3],[434,3,434,13],[425,2,426,2],[4,4,4,13],[27,3,27,13],[242,4,242,13],[449,2,450,2],[479,4,479,13],[481,2,485,2],[6,2,10,2],[6,3,10,3],[11,3,13,3],[111,3,111,13],[39,2,44,2],[39,3,44,3],[227,3,227,13],[200,4,200,13],[123,4,123,13],[125,2,129,2],[125,3,129,3],[145,3,145,13],[130,3,135,3],[130,2,135,2],[185,3,185,13],[11,2,13,2],[162,3,165,3],[162,2,165,2],[616,3,618,3],[616,2,618,2],[619,3,622,3],[623,3,625,3],[623,2,625,2],[647,4,647,13],[2,0,2,1],[709,3,709,13],[680,4,680,13],[693,3,693,13],[701,3,701,13],[287,4,287,13],[289,2,292,2],[307,3,307,13],[293,2,295,2],[447,4,447,13],[460,3,460,13],[400,3,400,13],[387,2,389,2],[160,4,160,13],[564,3,564,13],[99,3,99,13],[380,4,380,13],[382,2,386,2],[293,3,295,3],[543,3,545,3],[655,2,657,2],[655,3,657,3],[667,3,667,13],[350,3,350,13],[338,2,340,2],[338,3,340,3],[603,3,603,13],[577,2,579,2],[649,2,651,2],[649,3,651,3],[652,2,654,2],[539,4,539,13],[546,3,548,3],[575,2,576,2],[573,4,573,13],[575,3,576,3],[577,3,578,3],[595,3,595,13],[652,3,654,3],[614,4,614,13],[619,2,622,2],[635,3,635,13],[556,3,556,13],[580,2,582,2],[583,2,587,2],[543,2,545,2],[546,2,548,2],[541,2,542,2],[541,3,542,3],[511,2,513,2],[511,3,513,3]]}
[null,null,"=IF(INDIRECT(\"i_\"&SUBSTITUTE(D55,\" \",\"\")),0,\"No\") if a default value is required"]
[]
["Configuration Matrix"]
[]
[null,null,"Enter DEPENDENCIES","SELECTION OPTIONS","CONFIGURATIONS"]
[null,null,"Ref Position →",{"$f":"COUNTA(D7:D20)","v":1},{"$f":"SUM(COUNTIF(E7:E20,$C7:$C20))","v":0},{"$f":"SUM(COUNTIF(F7:F20,$C7:$C20))","v":0},{"$f":"SUM(COUNTIF(G7:G20,$C7:$C20))","v":0},{"$f":"SUM(COUNTIF(H7:H20,$C7:$C20))","v":0},{"$f":"SUM(COUNTIF(I7:I20,$C7:$C20))","v":0},{"$f":"SUM(COUNTIF(J7:J20,$C7:$C20))","v":0},{"$f":"SUM(COUNTIF(K7:K20,$C7:$C20))","v":0},{"$f":"SUM(COUNTIF(L7:L20,$C7:$C20))","v":0},{"$f":"SUM(COUNTIF(M7:M20,$C7:$C20))","v":0},{"$f":"SUM(COUNTIF(N7:N20,$C7:$C20))","v":0}]
[null,"Enter Selection 1 ->",{"$f":"i_InstallationType","v":0},"Installation Type","Open"]
[]
[]
[]
[]
[null,"Enter Selection 2->"]
[]
[]
[]
[]
[]
[]
[null,"Enter Selection 3->"]
[null,"Enter Selection 4->"]
[]
[null,null,null,{"$f":"MAX(E22:N22)","v":0},{"$f":"IF(E6<>$D6,0,COUNTA(E23:E27))","v":0},0,0,0,0,0,0,0,0,0]
[null,"Dependent (Output List) 1 -> "]
[]
[]
[]
[]
[null,null,null,"DO NOT FILL"]
[]
[null,null,null,{"$f":"D23","v":0},null,null,{"$f":"SUBSTITUTE(\" \",\"\",$D7)","v":" "},{"$f":"IFERROR(INDEX(#REF!, MATCH(0, COUNTIF($D30:G$445,#REF!) + ( COUNTIF(#REF!,#REF!)<>1), 0)), \"\")","v":""},{"$f":"IFERROR(INDEX(#REF!, MATCH(0, COUNTIF($D30:H$445,#REF!) + ( COUNTIF(#REF!,#REF!)<>1), 0)), \"\")","v":""}]
[null,null,"row",{"$f":"MATCH(D30,$D6:$D29,0)","v":17}]
[null,null,"column",{"$f":"MATCH(OFFSET($D6,MATCH(D30,$D6:$D29,0)-2,0),OFFSET($D6,MATCH(D30,$D6:$D29,0)-2,1,1,11),0)+1","v":{"$error":"#N/A"}}]
[null,null,"Size",{"$f":"OFFSET($D6,MATCH(D30,$D6:$D29,0)-2,0,)","v":0}]
[null,null,"Test →"]
[null,null,"Data Validation Name",{"$f":"\"L_\"&SUBSTITUTE(D30,\" \",\"\")","v":"L_0"}]
[]
[]
[null,null,"Enter DEPENDENCIES","SELECTION OPTIONS","CONFIGURATIONS"]
[null,null,"Ref Position →",{"$f":"COUNTA(D40:D51)","v":1},{"$f":"SUM(COUNTIF(E40:E51,$C40:$C51))","v":0},{"$f":"SUM(COUNTIF(F40:F51,$C40:$C51))","v":0},{"$f":"SUM(COUNTIF(G40:G51,$C40:$C51))","v":0},{"$f":"SUM(COUNTIF(H40:H51,$C40:$C51))","v":0},{"$f":"SUM(COUNTIF(I40:I51,$C40:$C51))","v":0},{"$f":"SUM(COUNTIF(J40:J51,$C40:$C51))","v":0},{"$f":"SUM(COUNTIF(K40:K51,$C40:$C51))","v":0},{"$f":"SUM(COUNTIF(L40:L51,$C40:$C51))","v":0},{"$f":"SUM(COUNTIF(M40:M51,$C40:$C51))","v":0},{"$f":"SUM(COUNTIF(N40:N51,$C40:$C51))","v":0}]
[null,"Enter Selection 2->",{"$f":"i_InstallationType","v":0},"Installation Type","Open"]
[]
[]
[]
[]
[]
[]
[]
[]
[]
[null,"Enter Selection 3->"]
[null,"Enter Selection 4->"]
[]
[null,null,null,{"$f":"MAX(E53:N53)","v":0},{"$f":"IF(E39<>$D39,0,COUNTA(E54:E62))","v":0},0,0,0,0,0,0,0,0,0]
[null,"Dependent (Output List) 1 -> ",null,"Tension Tool","Not Required"]
[null,null,null,null,"Tension Lock"]
[null,null,null,null,"PreTension Tool"]
[null,null,null,null,"Spanner Tool"]
[null,null,null,null,"Tension Lock + PreTension + Spanner"]
[null,null,null,null,"Tension Lock + PreTension"]
[null,null,null,null,"Tension Lock + Spanner"]
[null,null,null,null,"PreTension + Spanner"]
[null,null,null,null,"Control Cap"]
[null,null,null,"DO NOT FILL"]
[]
[null,null,null,{"$f":"MAX(E65:N65)","v":0},{"$f":"IF(E39<>$D39,0,COUNTA(E66:E70))","v":0},0,0,0,0,0,0,0,0,0]
[null,"Dependent (Output List) 1 -> "]
[]
[]
[]
[]
[null,null,null,"DO NOT FILL"]
[]
[null,null,null,{"$f":"D54","v":"Tension Tool"},{"$f":"D66","v":0},null,null,{"$f":"IFERROR(INDEX(#REF!, MATCH(0, COUNTIF($D73:G$445,#REF!) + ( COUNTIF(#REF!,#REF!)<>1), 0)), \"\")","v":""},{"$f":"IFERROR(INDEX(#REF!, MATCH(0, COUNTIF($D73:H$445,#REF!) + ( COUNTIF(#REF!,#REF!)<>1), 0)), \"\")","v":""}]
[null,null,"row",{"$f":"MATCH(D73,$D39:$D71,0)","v":16},{"$f":"MATCH(E73,$D39:$D71,0)","v":15}]
[null,null,"column",{"$f":"MATCH(OFFSET($D39,MATCH(D73,$D39:$D64,0)-2,0),OFFSET($D39,MATCH(D73,$D39:$D64,0)-2,1,1,11),0)+1","v":2},{"$f":"MATCH(OFFSET($D39,MATCH(E73,$D39:$D71,0)-2,0),OFFSET($D39,MATCH(E73,$D39:$D71,0)-2,1,1,11),0)+1","v":{"$error":"#N/A"}}]
[null,null,"Size",{"$f":"OFFSET($D39,MATCH(D73,$D39:$D64,0)-2,0,)","v":0},{"$f":"OFFSET($D39,MATCH(E73,$D39:$D71,0)-2,0,)","v":0}]
[null,null,"Test →"]
[null,null,"Data Validation Name",{"$f":"\"L_\"&SUBSTITUTE(D73,\" \",\"\")","v":"L_TensionTool"},{"$f":"\"L_\"&SUBSTITUTE(E73,\" \",\"\")","v":"L_0"}]
[]
[]
[]
[]
[null,null,"Enter DEPENDENCIES","SELECTION OPTIONS","CONFIGURATIONS"]
[null,null,"Ref Position →",{"$f":"COUNTA(D85:D91)","v":1},{"$f":"SUM(COUNTIF(E85:E91,$C85:$C91))","v":0},{"$f":"SUM(COUNTIF(F85:F91,$C85:$C91))","v":0},{"$f":"SUM(COUNTIF(G85:G91,$C85:$C91))","v":0},{"$f":"SUM(COUNTIF(H85:H91,$C85:$C91))","v":0},{"$f":"SUM(COUNTIF(I85:I91,$C85:$C91))","v":0},{"$f":"SUM(COUNTIF(J85:J91,$C85:$C91))","v":0},{"$f":"SUM(COUNTIF(K85:K91,$C85:$C91))","v":0},{"$f":"SUM(COUNTIF(L85:L91,$C85:$C91))","v":0},{"$f":"SUM(COUNTIF(M85:M91,$C85:$C91))","v":0},{"$f":"SUM(COUNTIF(N85:N91,$C85:$C91))","v":0}]
[null,"Enter Selection 1 ->",{"$f":"i_Location","v":0},"Location","AU","US"]
[]
[]
[]
[]
[]
[]
[]
[null,null,null,{"$f":"MAX(E93:N93)","v":0},{"$f":"IF(E84<>$D84,0,COUNTA(E94:E99))","v":0},{"$f":"IF(F84<>$D84,0,COUNTA(F94:F99))","v":0},0,0,0,0,0,0,0,0]
[null,"Dependent (Output List) 1 -> ",null,"Pricing","Yes","No"]
[null,null,null,null,"No"]
[]
[]
[]
[]
[null,null,null,"DO NOT FILL"]
[]
[null,null,null,{"$f":"MAX(E102:N102)","v":0},{"$f":"IF(E84<>$D84,0,COUNTA(E103:E111))","v":0},{"$f":"IF(F84<>$D84,0,COUNTA(F103:F111))","v":0},0,0,0,0,0,0,0,0]
[null,"Dependent (Output List) 1 -> "]
[]
[]
[]
[]
[]
[]
[]
[]
[null,null,null,"DO NOT FILL"]
[]
[null,null,null,{"$f":"D94","v":"Pricing"},{"$f":"D103","v":0},null,{"$f":"SUBSTITUTE(\" \",\"\",$D85)","v":" "},{"$f":"IFERROR(INDEX(#REF!, MATCH(0, COUNTIF($D114:G$445,#REF!) + ( COUNTIF(#REF!,#REF!)<>1), 0)), \"\")","v":""},{"$f":"IFERROR(INDEX(#REF!, MATCH(0, COUNTIF($D114:H$445,#REF!) + ( COUNTIF(#REF!,#REF!)<>1), 0)), \"\")","v":""}]
[null,null,"row",{"$f":"MATCH(D114,$D84:$D101,0)","v":11},{"$f":"MATCH(E114,$D84:$D112,0)","v":10}]
[null,null,"column",{"$f":"MATCH(OFFSET($D84,MATCH(D114,$D84:$D101,0)-2,0),OFFSET($D84,MATCH(D114,$D84:$D101,0)-2,1,1,11),0)+1","v":2},{"$f":"MATCH(OFFSET($D84,MATCH(E114,$D84:$D112,0)-2,0),OFFSET($D84,MATCH(E114,$D84:$D112,0)-2,1,1,11),0)+1","v":{"$error":"#N/A"}}]
[null,null,"Size",{"$f":"OFFSET($D84,MATCH(D114,$D84:$D101,0)-2,0,)","v":0},{"$f":"OFFSET($D84,MATCH(E114,$D84:$D112,0)-2,0,)","v":0}]
[null,null,"Test →"]
[null,null,"Data Validation Name",{"$f":"\"L_\"&SUBSTITUTE(D114,\" \",\"\")","v":"L_Pricing"},{"$f":"\"L_\"&SUBSTITUTE(E114,\" \",\"\")","v":"L_0"}]
[]
[]
[]
[]
[null,null,"Enter DEPENDENCIES","SELECTION OPTIONS","CONFIGURATIONS"]
[null,null,"Ref Position →",{"$f":"COUNTA(D126:D137)","v":1},{"$f":"SUM(COUNTIF(E126:E137,$C126:$C137))","v":0},{"$f":"SUM(COUNTIF(F126:F137,$C126:$C137))","v":0},{"$f":"SUM(COUNTIF(G126:G137,$C126:$C137))","v":0},{"$f":"SUM(COUNTIF(H126:H137,$C126:$C137))","v":0},{"$f":"SUM(COUNTIF(I126:I137,$C126:$C137))","v":0},{"$f":"SUM(COUNTIF(J126:J137,$C126:$C137))","v":0},{"$f":"SUM(COUNTIF(K126:K137,$C126:$C137))","v":0},{"$f":"SUM(COUNTIF(L126:L137,$C126:$C137))","v":0},{"$f":"SUM(COUNTIF(M126:M137,$C126:$C137))","v":0},{"$f":"SUM(COUNTIF(N126:N137,$C126:$C137))","v":0}]
[null,"Enter Selection 1 ->",{"$f":"i_InstallationType","v":0},"Installation Type","Open"]
[]
[]
[]
[]
[]
[]
[]
[]
[]
[]
[]
[]
[null,null,null,{"$f":"MAX(E139:N139)","v":0},{"$f":"IF(E125<>$D125,0,COUNTA(E140:E145))","v":0},0,0,0,0,0,0,0,0,0]
[null,"Dependent (Output List) 1 -> ",null,"Bkt Fix Orientation","Bracket - Face Fix Orientation"]
[null,null,null,null,"Bracket - Top Fix Orientation"]
[]
[]
[]
[]
[null,null,null,"DO NOT FILL"]
[]
[null,null,null,{"$f":"D140","v":"Bkt Fix Orientation"},null,null,{"$f":"SUBSTITUTE(\" \",\"\",$D126)","v":" "},{"$f":"IFERROR(INDEX(#REF!, MATCH(0, COUNTIF($D148:G$445,#REF!) + ( COUNTIF(#REF!,#REF!)<>1), 0)), \"\")","v":""},{"$f":"IFERROR(INDEX(#REF!, MATCH(0, COUNTIF($D148:H$445,#REF!) + ( COUNTIF(#REF!,#REF!)<>1), 0)), \"\")","v":""}]
[null,null,"row",{"$f":"MATCH(D148,$D125:$D147,0)","v":16}]
[null,null,"column",{"$f":"MATCH(OFFSET($D125,MATCH(D148,$D125:$D147,0)-2,0),OFFSET($D125,MATCH(D148,$D125:$D147,0)-2,1,1,11),0)+1","v":2}]
[null,null,"Size",{"$f":"OFFSET($D125,MATCH(D148,$D125:$D147,0)-2,0,)","v":0}]
[null,null,"Test →"]
[null,null,"Data Validation Name",{"$f":"\"L_\"&SUBSTITUTE(D148,\" \",\"\")","v":"L_BktFixOrientation"}]
[]
[]
[]
[]
[]
[]
[]
[null,null,"Enter DEPENDENCIES","SELECTION OPTIONS","CONFIGURATIONS"]
[null,null,"Ref Position →",{"$f":"COUNTA(D163:D169)","v":1},{"$f":"SUM(COUNTIF(E163:E169,$C163:$C169))","v":0},{"$f":"SUM(COUNTIF(F163:F169,$C163:$C169))","v":0},{"$f":"SUM(COUNTIF(G163:G169,$C163:$C169))","v":0},{"$f":"SUM(COUNTIF(H163:H169,$C163:$C169))","v":0},{"$f":"SUM(COUNTIF(I163:I169,$C163:$C169))","v":0},{"$f":"SUM(COUNTIF(J163:J169,$C163:$C169))","v":0},{"$f":"SUM(COUNTIF(K163:K169,$C163:$C169))","v":0},{"$f":"SUM(COUNTIF(L163:L169,$C163:$C169))","v":0},{"$f":"SUM(COUNTIF(M163:M169,$C163:$C169))","v":0},{"$f":"SUM(COUNTIF(N163:N169,$C163:$C169))","v":0}]
[null,"Enter Selection 1 ->",{"$f":"i_SystemType","v":0},"System Type"]
[]
[]
[]
[]
[]
[]
[]
[null,null,null,{"$f":"MAX(E171:N171)","v":0},{"$f":"IF(E162<>$D162,0,COUNTA(E172:E177))","v":0},0,0,0,0,0,0,0,0,0]
[null,"Dependent (Output List) 1 -> ",null,"Installation Type"]
[]
[]
[]
[]
[]
[null,null,null,"DO NOT FILL"]
[]
[null,null,null,{"$f":"MAX(E180:N180)","v":0},{"$f":"IF(E162<>$D162,0,COUNTA(E181:E185))","v":0},0,0,0,0,0,0,0,0,0]
[null,"Dependent (Output List) 1 -> "]
[]
[]
[]
[]
[null,null,null,"DO NOT FILL"]
[]
[null,null,null,{"$f":"D172","v":"Installation Type"},{"$f":"D181","v":0},null,{"$f":"SUBSTITUTE(\" \",\"\",$D163)","v":" "},{"$f":"IFERROR(INDEX(#REF!, MATCH(0, COUNTIF($D188:G$445,#REF!) + ( COUNTIF(#REF!,#REF!)<>1), 0)), \"\")","v":""},{"$f":"IFERROR(INDEX(#REF!, MATCH(0, COUNTIF($D188:H$445,#REF!) + ( COUNTIF(#REF!,#REF!)<>1), 0)), \"\")","v":""}]
[null,null,"row",{"$f":"MATCH(D188,$D162:$D179,0)","v":11},{"$f":"MATCH(E188,$D162:$D186,0)","v":10}]
[null,null,"column",{"$f":"MATCH(OFFSET($D162,MATCH(D188,$D162:$D179,0)-2,0),OFFSET($D162,MATCH(D188,$D162:$D179,0)-2,1,1,11),0)+1","v":2},{"$f":"MATCH(OFFSET($D162,MATCH(E188,$D162:$D186,0)-2,0),OFFSET($D162,MATCH(E188,$D162:$D186,0)-2,1,1,11),0)+1","v":{"$error":"#N/A"}}]
[null,null,"Size",{"$f":"OFFSET($D162,MATCH(D188,$D162:$D179,0)-2,0,)","v":0},{"$f":"OFFSET($D162,MATCH(E188,$D162:$D186,0)-2,0,)","v":0}]
[null,null,"Test →"]
[null,null,"Data Validation Name",{"$f":"\"L_\"&SUBSTITUTE(D188,\" \",\"\")","v":"L_InstallationType"},{"$f":"\"L_\"&SUBSTITUTE(E188,\" \",\"\")","v":"L_0"}]
[]
[]
[]
[]
[]
[]
[]
[null,null,"Enter DEPENDENCIES","SELECTION OPTIONS","CONFIGURATIONS"]
[null,null,"Ref Position →",{"$f":"COUNTA(D203:D211)","v":1},{"$f":"SUM(COUNTIF(E203:E211,$C203:$C211))","v":0},{"$f":"SUM(COUNTIF(F203:F211,$C203:$C211))","v":0},{"$f":"SUM(COUNTIF(G203:G211,$C203:$C211))","v":0},{"$f":"SUM(COUNTIF(H203:H211,$C203:$C211))","v":0},{"$f":"SUM(COUNTIF(I203:I211,$C203:$C211))","v":0},{"$f":"SUM(COUNTIF(J203:J211,$C203:$C211))","v":0},{"$f":"SUM(COUNTIF(K203:K211,$C203:$C211))","v":0},{"$f":"SUM(COUNTIF(L203:L211,$C203:$C211))","v":0},{"$f":"SUM(COUNTIF(M203:M211,$C203:$C211))","v":0},{"$f":"SUM(COUNTIF(N203:N211,$C203:$C211))","v":0}]
[null,"Enter Selection 1 ->",{"$f":"i_Tube","v":0},"Tube","1.5\"","2\"","S45 LGT"]
[null,null,null,null,null,null,"S45 STD"]
[null,null,null,null,null,null,"S45 HD"]
[]
[]
[]
[]
[]
[]
[]
[null,null,null,{"$f":"MAX(E213:N213)","v":0},{"$f":"IF(E202<>$D202,0,COUNTA(E214:E219))","v":0},{"$f":"IF(F202<>$D202,0,COUNTA(F214:F219))","v":0},0,0,0,0,0,0,0,0]
[null,"Dependent (Output List) 1 -> ",null,"Idler Type","Limiter - Single Stop | STD 1.5\"","Skyline Heavy Duty Pin End 1.5\"","Limiter - Single Stop | STD S45"]
[null,null,null,null,"Limiter - Single Stop | COMPACT 1.5\""]
[]
[]
[]
[]
[null,null,null,"DO NOT FILL"]
[]
[null,null,null,{"$f":"MAX(E222:N222)","v":0},{"$f":"IF(E202<>$D202,0,COUNTA(E223:E227))","v":0},0,0,0,0,0,0,0,0,0]
[null,"Dependent (Output List) 1 -> "]
[]
[]
[]
[]
[null,null,null,"DO NOT FILL"]
[]
[null,null,null,{"$f":"D214","v":"Idler Type"},{"$f":"D223","v":0},null,{"$f":"SUBSTITUTE(\" \",\"\",$D203)","v":" "},{"$f":"IFERROR(INDEX(#REF!, MATCH(0, COUNTIF($D230:G$445,#REF!) + ( COUNTIF(#REF!,#REF!)<>1), 0)), \"\")","v":""},{"$f":"IFERROR(INDEX(#REF!, MATCH(0, COUNTIF($D230:H$445,#REF!) + ( COUNTIF(#REF!,#REF!)<>1), 0)), \"\")","v":""}]
[null,null,"row",{"$f":"MATCH(D230,$D202:$D221,0)","v":13},{"$f":"MATCH(E230,$D202:$D228,0)","v":12}]
[null,null,"column",{"$f":"MATCH(OFFSET($D202,MATCH(D230,$D202:$D221,0)-2,0),OFFSET($D202,MATCH(D230,$D202:$D221,0)-2,1,1,11),0)+1","v":2},{"$f":"MATCH(OFFSET($D202,MATCH(E230,$D202:$D228,0)-2,0),OFFSET($D202,MATCH(E230,$D202:$D228,0)-2,1,1,11),0)+1","v":{"$error":"#N/A"}}]
[null,null,"Size",{"$f":"OFFSET($D202,MATCH(D230,$D202:$D221,0)-2,0,)","v":0},{"$f":"OFFSET($D202,MATCH(E230,$D202:$D228,0)-2,0,)","v":0}]
[null,null,"Test →"]
[null,null,"Data Validation Name",{"$f":"\"L_\"&SUBSTITUTE(D230,\" \",\"\")","v":"L_IdlerType"},{"$f":"\"L_\"&SUBSTITUTE(E230,\" \",\"\")","v":"L_0"}]
[]
[null,null,null,{"$f":"OFFSET($D$202,$D$231-1,$D$232-1,$D$233)","v":{"$error":"#REF!"}}]
[null,null,null,{"$f":"OFFSET(Ctrl_Selections!$D$202,Ctrl_Selections!$D$231-1,Ctrl_Selections!$D$232-1,Ctrl_Selections!$D$233)","v":{"$error":"#REF!"}}]
[]
[]
[]
[]
[null,null,"Enter DEPENDENCIES","SELECTION OPTIONS","CONFIGURATIONS"]
[null,null,"Ref Position →",{"$f":"COUNTA(D245:D253)","v":1},{"$f":"SUM(COUNTIF(E245:E253,$C$245:$C$253))","v":0},{"$f":"SUM(COUNTIF(F245:F253,$C$245:$C$253))","v":0},{"$f":"SUM(COUNTIF(G245:G253,$C$245:$C$253))","v":0},{"$f":"SUM(COUNTIF(H245:H253,$C$245:$C$253))","v":0},{"$f":"SUM(COUNTIF(I245:I253,$C$245:$C$253))","v":0},{"$f":"SUM(COUNTIF(J245:J253,$C$245:$C$253))","v":0},{"$f":"SUM(COUNTIF(K245:K253,$C$245:$C$253))","v":0},{"$f":"SUM(COUNTIF(L245:L253,$C$245:$C$253))","v":0},{"$f":"SUM(COUNTIF(M245:M253,$C$245:$C$253))","v":0},{"$f":"SUM(COUNTIF(N245:N253,$C$245:$C$253))","v":0}]
[null,"Enter Selection 3->",{"$f":"i_InstallationType","v":0},"Installation Type","Open"]
[]
[]
[]
[null,null,{"$f":"i_Tube","v":0}]
[]
[]
[]
[]
[]
[null,null,null,{"$f":"MAX(E255:N255)","v":0},{"$f":"IF(E244<>$D244,0,COUNTA(E256:E262))","v":0},0,0,0,0,0,0,0,0,0]
[null,"Dependent (Output List) 1 -> ",null,"Control Type","Easy Spring Air - MICRO - LH"]
[null,null,null,null,"Easy Spring Air - MINI - LH"]
[null,null,null,null,"Easy Spring Air - SMALL - LH"]
[null,null,null,null,"Easy Spring Air - LIGHT - LH"]
[null,null,null,null,"Easy Spring Air - MEDIUM - LH"]
[null,null,null,null,"Easy Spring Air - HEAVY - LH"]
[]
[null,null,null,"DO NOT FILL"]
[]
[null,null,null,{"$f":"MAX(E265:N265)","v":0},{"$f":"IF(E244<>$D244,0,COUNTA(E266:E272))","v":0},{"$f":"IF(F244<>$D244,0,COUNTA(F266:F272))","v":0},0,0,0,0,0,0,0,0]
[null,"Dependent (Output List) 1 -> ",null,"Gear Ratio"]
[]
[]
[]
[]
[]
[]
[null,null,null,"DO NOT FILL"]
[]
[null,null,null,{"$f":"D256","v":"Control Type"},{"$f":"D266","v":"Gear Ratio"}]
[null,null,"row",{"$f":"MATCH(D275,$D244:$D264,0)","v":13},{"$f":"MATCH(E275,$D244:$D273,0)","v":23}]
[null,null,"column",{"$f":"MATCH(OFFSET($D244,MATCH(D275,$D244:$D264,0)-2,0),OFFSET($D244,MATCH(D275,$D244:$D264,0)-2,1,1,11),0)+1","v":2},{"$f":"MATCH(OFFSET($D244,MATCH(E275,$D244:$D272,0)-2,0),OFFSET($D244,MATCH(E275,$D244:$D272,0)-2,1,1,11),0)+1","v":2}]
[null,null,"Size",{"$f":"OFFSET($D244,MATCH(D275,$D244:$D264,0)-2,0,)","v":0},{"$f":"OFFSET($D243,MATCH(E275,$D243:$D273,0)-2,0,)","v":0}]
[null,null,"Test →"]
[null,null,"Data Validation Name",{"$f":"\"L_\"&SUBSTITUTE(D275,\" \",\"\")","v":"L_ControlType"},{"$f":"\"L_\"&SUBSTITUTE(E275,\" \",\"\")","v":"L_GearRatio"}]
[]
[]
[]
[]
[]
[]
[]
[null,null,"Enter DEPENDENCIES","SELECTION OPTIONS","CONFIGURATIONS"]
[null,null,"Ref Position →",{"$f":"COUNTA(D290:D298)","v":1},{"$f":"SUM(COUNTIF(E290:E298,$C$290:$C$298))","v":0},{"$f":"SUM(COUNTIF(F290:F298,$C$290:$C$298))","v":0},{"$f":"SUM(COUNTIF(G290:G298,$C$290:$C$298))","v":0},{"$f":"SUM(COUNTIF(H290:H298,$C$290:$C$298))","v":0},{"$f":"SUM(COUNTIF(I290:I298,$C$290:$C$298))","v":0},{"$f":"SUM(COUNTIF(J290:J298,$C$290:$C$298))","v":0},{"$f":"SUM(COUNTIF(K290:K298,$C$290:$C$298))","v":0},{"$f":"SUM(COUNTIF(L290:L298,$C$290:$C$298))","v":0},{"$f":"SUM(COUNTIF(M290:M298,$C$290:$C$298))","v":0},{"$f":"SUM(COUNTIF(N290:N298,$C$290:$C$298))","v":0}]
[null,"Enter Selection 3->",{"$f":"i_Location","v":0},"Location","US","AU"]
[]
[]
[]
[]
[]
[]
[]
[]
[]
[null,null,null,{"$f":"MAX(E300:N300)","v":0},{"$f":"IF(E289<>$D289,0,COUNTA(E301:E307))","v":0},0,0,0,0,0,0,0,0,0]
[null,"Dependent (Output List) 1 -> ",null,"Tube","1.5\"","S45 LGT"]
[null,null,null,null,"2\"","S45 STD"]
[null,null,null,null,"S45 LGT","S45 HD"]
[null,null,null,null,"S45 STD"]
[null,null,null,null,"S45 HD"]
[]
[]
[null,null,null,"DO NOT FILL"]
[]
[]
[null,null,null,{"$f":"D301","v":"Tube"}]
[null,null,"row",{"$f":"MATCH(D311,$D289:$D309,0)","v":13}]
[null,null,"column",{"$f":"MATCH(OFFSET($D289,MATCH(D311,$D289:$D309,0)-2,0),OFFSET($D289,MATCH(D311,$D289:$D309,0)-2,1,1,11),0)+1","v":2}]
[null,null,"Size",{"$f":"OFFSET($D289,MATCH(D311,$D289:$D309,0)-2,0,)","v":0}]
[null,null,"Test →"]
[null,null,"Data Validation Name",{"$f":"\"L_\"&SUBSTITUTE(D311,\" \",\"\")","v":"L_Tube"}]
[]
[]
[null,null,null,"=OFFSET($D$134,OFFSET(INDIRECT(ADDRESS(ROW(),COLUMN(),4)),-3,0)-1,OFFSET(INDIRECT(ADDRESS(ROW(),COLUMN(),4)),-2,0)-1,OFFSET(INDIRECT(ADDRESS(ROW(),COLUMN(),4)),-1,0))"]
[]
[]
[]
[]
[]
[]
[]
[null,null,"Enter DEPENDENCIES","SELECTION OPTIONS","CONFIGURATIONS"]
[null,null,"Ref Position →",{"$f":"COUNTA(D329:D341)","v":2},{"$f":"SUM(COUNTIF(E329:E341,$C$329:$C$341))","v":0},{"$f":"SUM(COUNTIF(F329:F341,$C$329:$C$341))","v":0},{"$f":"SUM(COUNTIF(G329:G341,$C$329:$C$341))","v":0},{"$f":"SUM(COUNTIF(H329:H341,$C$329:$C$341))","v":0},{"$f":"SUM(COUNTIF(I329:I341,$C$383:$C$391))","v":0},{"$f":"SUM(COUNTIF(J329:J341,$C$383:$C$391))","v":0},{"$f":"SUM(COUNTIF(K329:K341,$C$383:$C$391))","v":0},{"$f":"SUM(COUNTIF(L329:L341,$C$383:$C$391))","v":0},{"$f":"SUM(COUNTIF(M329:M341,$C$383:$C$391))","v":0},{"$f":"SUM(COUNTIF(N329:N341,$C$383:$C$391))","v":0}]
[null,"Enter Selection 3->",{"$f":"i_Location","v":0},"i_Location"]
[]
[]
[]
[null,null,{"$f":"i_SystemType","v":0},"i_SystemType"]
[]
[]
[]
[]
[]
[]
[]
[null,"Enter Selection 4->"]
[]
[null,null,null,{"$f":"MAX(E343:N343)","v":0},{"$f":"IF(E328<>$D328,0,COUNTA(#REF!))","v":0},{"$f":"IF(F328<>$D328,0,COUNTA(F344:F350))","v":0},0,0,{"$f":"IF(I328<>$D328,0,COUNTA(E344:E350))","v":0},0,0,0,0,0]
[null,"Dependent (Output List) 1 -> "]
[]
[]
[]
[]
[]
[]
[null,null,null,"DO NOT FILL"]
[]
[null,null,null,{"$f":"MAX(E353:N353)","v":0},{"$f":"IF(E328<>$D328,0,COUNTA(E354:E360))","v":0},{"$f":"IF(F328<>$D328,0,COUNTA(F354:F360))","v":0},0,0,0,0,0,0,0,0]
[null,"Dependent (Output List) 1 -> "]
[]
[]
[]
[]
[]
[]
[null,null,null,"DO NOT FILL"]
[]
[]
[null,null,null,{"$f":"D344","v":0},{"$f":"D354","v":0}]
[null,null,"row",{"$f":"MATCH(D364,$D328:$D362,0)","v":16},{"$f":"MATCH(E364,$D328:$D362,0)","v":16}]
[null,null,"column",{"$f":"MATCH(OFFSET($D328,MATCH(D364,$D328:$D362,0)-2,0),OFFSET($D328,MATCH(D364,$D328:$D362,0)-2,1,1,11),0)+1","v":{"$error":"#N/A"}},{"$f":"MATCH(OFFSET($D328,MATCH(E364,$D328:$D362,0)-2,0),OFFSET($D328,MATCH(E364,$D328:$D362,0)-2,1,1,11),0)+1","v":{"$error":"#N/A"}}]
[null,null,"Size",{"$f":"OFFSET($D328,MATCH(D364,$D328:$D362,0)-2,0,)","v":0},{"$f":"OFFSET($D328,MATCH(E364,$D328:$D362,0)-2,0,)","v":0}]
[null,null,"Test →",null,"L-Fixing Rail"]
[null,null,"Data Validation Name",{"$f":"\"L_\"&SUBSTITUTE(D364,\" \",\"\")","v":"L_0"},{"$f":"\"L_\"&SUBSTITUTE(E364,\" \",\"\")","v":"L_0"}]
[]
[]
[null,null,null,{"$f":"OFFSET($D$328,$D$365-1,$D$366-1,$D$367)","v":{"$error":"#N/A"}}]
[]
[null,null,null,{"$f":"OFFSET(Ctrl_Selections!$D$328,Ctrl_Selections!$D$365-1,Ctrl_Selections!$D$366-1,Ctrl_Selections!$D$367)","v":{"$error":"#N/A"}}]
[]
[]
[]
[]
[null,null,null,null,null,null,"have not set up deductions for pivot arm / wire guide systems. "]
[]
[null,null,"Enter DEPENDENCIES","SELECTION OPTIONS","CONFIGURATIONS"]
[null,null,"Ref Position →",{"$f":"COUNTA(D383:D391)","v":1},{"$f":"SUM(COUNTIF(E383:E391,$C$383:$C$391))","v":0},{"$f":"SUM(COUNTIF(F383:F391,$C$383:$C$391))","v":0},{"$f":"SUM(COUNTIF(G383:G391,$C$383:$C$391))","v":0},{"$f":"SUM(COUNTIF(H383:H391,$C$383:$C$391))","v":0},{"$f":"SUM(COUNTIF(I383:I391,$C$383:$C$391))","v":0},{"$f":"SUM(COUNTIF(J383:J391,$C$383:$C$391))","v":0},{"$f":"SUM(COUNTIF(K383:K391,$C$383:$C$391))","v":0},{"$f":"SUM(COUNTIF(L383:L391,$C$383:$C$391))","v":0},{"$f":"SUM(COUNTIF(M383:M391,$C$383:$C$391))","v":0},{"$f":"SUM(COUNTIF(N383:N391,$C$383:$C$391))","v":0}]
[null,"Enter Selection 3->",{"$f":"i_Location","v":0},"Location","AU","US"]
[]
[]
[]
[]
[]
[]
[]
[null,"Enter Selection 4->"]
[]
[null,null,null,{"$f":"MAX(E393:N393)","v":0},{"$f":"IF(E382<>$D382,0,COUNTA(E394:E400))","v":0},{"$f":"IF(F382<>$D382,0,COUNTA(F394:F400))","v":0},0,0,0,0,0,0,0,0]
[null,"Dependent (Output List) 1 -> ",null,"Open Bkt Style","LX Skyline","Skyline 1.5\""]
[null,null,null,null,null,"LX Skyline"]
[null,null,null,null,null,"Opulence Round Skyline"]
[null,null,null,null,null,"Opulence Square Skyline"]
[]
[]
[]
[null,null,null,"DO NOT FILL"]
[]
[]
[null,null,null,{"$f":"D394","v":"Open Bkt Style"}]
[null,null,"row",{"$f":"MATCH(D404,$D382:$D402,0)","v":13}]
[null,null,"column",{"$f":"MATCH(OFFSET($D382,MATCH(D404,$D382:$D402,0)-2,0),OFFSET($D382,MATCH(D404,$D382:$D402,0)-2,1,1,11),0)+1","v":2}]
[null,null,"Size",{"$f":"OFFSET($D382,MATCH(D404,$D382:$D402,0)-2,0,)","v":0}]
[null,null,"Test →"]
[null,null,"Data Validation Name",{"$f":"\"L_\"&SUBSTITUTE(D404,\" \",\"\")","v":"L_OpenBktStyle"}]
[]
[]
[null,null,null,"=OFFSET($D$134,OFFSET(INDIRECT(ADDRESS(ROW(),COLUMN(),4)),-3,0)-1,OFFSET(INDIRECT(ADDRESS(ROW(),COLUMN(),4)),-2,0)-1,OFFSET(INDIRECT(ADDRESS(ROW(),COLUMN(),4)),-1,0))"]
[]
[null,null,null,{"$f":"OFFSET($D$382,$D$405-1,$D$406-1,$D$407)","v":{"$error":"#REF!"}}]
[]
[]
[]
[]
[null,null,"Enter DEPENDENCIES","SELECTION OPTIONS","CONFIGURATIONS"]
[null,null,"Ref Position →",{"$f":"COUNTA(D421:D426)","v":1},{"$f":"SUM(COUNTIF($E$421:$E$427,$C$421:$C$427))","v":0},{"$f":"SUM(COUNTIF($F$421:$F$427,$C$421:$C$427))","v":0}]
[null,"Enter Selection 1 ->",{"$f":"i_OpenBktStyle","v":0},"Open Bkt Style","Skyline 1.5\"","Opulence Round"]
[null,null,null,null,"LX Skyline","Opulence Square"]
[]
[]
[null,"Enter Selection 2->"]
[null,"Enter Selection 3->",{"$f":"i_ControlType","v":0}]
[null,"Enter Selection 4->"]
[]
[null,null,null,{"$f":"MAX(E429:N429)","v":0},{"$f":"IF(E420<>$D420,0,COUNTA(E430:E434))","v":0},0,0,0,0,0,0,0,0,0]
[null,"Dependent (Output List) 1 -> ",null,"Open Bkt Covers","Yes","No"]
[null,null,null,null,"No"]
[]
[]
[]
[null,null,null,"DO NOT FILL"]
[]
[null,null,null,{"$f":"D430","v":"Open Bkt Covers"},null,null,null,{"$f":"IFERROR(INDEX(#REF!, MATCH(0, COUNTIF($D437:G$445,#REF!) + ( COUNTIF(#REF!,#REF!)<>1), 0)), \"\")","v":""},{"$f":"IFERROR(INDEX(#REF!, MATCH(0, COUNTIF($D437:H$445,#REF!) + ( COUNTIF(#REF!,#REF!)<>1), 0)), \"\")","v":""}]
[null,null,"row",{"$f":"MATCH(D437,$D420:$D436,0)","v":11}]
[null,null,"column",{"$f":"MATCH(OFFSET($D420,MATCH(D437,$D420:$D436,0)-2,0),OFFSET($D420,MATCH(D437,$D420:$D436,0)-2,1,1,11),0)+1","v":2}]
[null,null,"Size",{"$f":"OFFSET($D420,MATCH(D437,$D420:$D436,0)-2,0,)","v":0}]
[null,null,"Test →","No"]
[null,null,"Data Validation Name",{"$f":"\"L_\"&SUBSTITUTE(D437,\" \",\"\")","v":"L_OpenBktCovers"}]
[]
[]
[]
[]
[]
[null,null,"Enter DEPENDENCIES","SELECTION OPTIONS","CONFIGURATIONS"]
[null,null,"Ref Position →",{"$f":"COUNTA(D450:D452)","v":1},{"$f":"SUM(COUNTIF(E450:E453,$C$450:$C$453))","v":0},{"$f":"SUM(COUNTIF(F450:F453,$C$450:$C$453))","v":0},{"$f":"SUM(COUNTIF(G450:G453,$C$450:$C$453))","v":0},{"$f":"SUM(COUNTIF(H450:H453,$C$450:$C$453))","v":0},{"$f":"SUM(COUNTIF(I450:I453,$C$450:$C$453))","v":0},{"$f":"SUM(COUNTIF(J450:J453,$C$450:$C$453))","v":0},{"$f":"SUM(COUNTIF(K450:K453,$C$450:$C$453))","v":0},{"$f":"SUM(COUNTIF(L450:L453,$C$450:$C$453))","v":0},{"$f":"SUM(COUNTIF(M450:M453,$C$450:$C$453))","v":0},{"$f":"SUM(COUNTIF(N450:N453,$C$450:$C$453))","v":0}]
[null,"Enter Selection 1 ->",{"$f":"i_Location","v":0},"Location","AU"]
[null,"Enter Selection 2->",null,null,"EU"]
[null,"Enter Selection 3->",null,null,"US"]
[null,"Enter Selection 4->"]
[]
[null,null,null,{"$f":"MAX(E455:N455)","v":0},{"$f":"IF(E449<>$D449,0,COUNTA(E456:E460))","v":0},0,0,0,0,0,0,0,0,0]
[null,"Dependent (Output List) 1 -> "]
[]
[]
[]
[]
[null,null,null,"DO NOT FILL"]
[]
[null,null,null,{"$f":"MAX(E463:N463)","v":0},{"$f":"IF(E449<>$D449,0,COUNTA(E464:E468))","v":0},{"$f":"IF(F449<>$D449,0,COUNTA(F464:F468))","v":0},{"$f":"IF(G449<>$D449,0,COUNTA(G464:G468))","v":0},0,0,0,0,0,0,0]
[null,"Dependent (Output List) 1 -> "]
[]
[]
[]
[]
[null,null,null,"DO NOT FILL"]
[]
[null,null,null,{"$f":"D456","v":0},{"$f":"D464","v":0},null,null,{"$f":"IFERROR(INDEX(#REF!, MATCH(0, COUNTIF($D$445:G471,#REF!) + ( COUNTIF(#REF!,#REF!)<>1), 0)), \"\")","v":""},{"$f":"IFERROR(INDEX(#REF!, MATCH(0, COUNTIF($D$445:H471,#REF!) + ( COUNTIF(#REF!,#REF!)<>1), 0)), \"\")","v":""}]
[null,null,"row",{"$f":"MATCH(D471,$D449:$D470,0)","v":7},{"$f":"MATCH(E471,$D449:$D470,0)","v":7}]
[null,null,"column",{"$f":"MATCH(OFFSET($D449,MATCH(D471,$D449:$D470,0)-2,0),OFFSET($D449,MATCH(D471,$D449:$D470,0)-2,1,1,11),0)+1","v":{"$error":"#N/A"}},{"$f":"MATCH(OFFSET($D449,MATCH(E471,$D449:$D470,0)-2,0),OFFSET($D449,MATCH(E471,$D449:$D470,0)-2,1,1,11),0)+1","v":{"$error":"#N/A"}}]
[null,null,"Size",{"$f":"OFFSET($D449,MATCH(D471,$D449:$D470,0)-2,0,)","v":0},{"$f":"OFFSET($D449,MATCH(E471,$D449:$D470,0)-2,0,)","v":0}]
[null,null,"Test →","White","1.0 m"]
[null,null,"Data Validation Name",{"$f":"\"L_\"&SUBSTITUTE(D471,\" \",\"\")","v":"L_0"},{"$f":"\"L_\"&SUBSTITUTE(E471,\" \",\"\")","v":"L_0"}]
[]
[]
[]
[null,null,"Enter DEPENDENCIES","SELECTION OPTIONS","CONFIGURATIONS"]
[null,null,"Ref Position →",{"$f":"COUNTA(D482:D487)","v":1},{"$f":"SUM(COUNTIF(E482:E492,$C$482:$C$492))","v":0},{"$f":"SUM(COUNTIF(F482:F492,$C$482:$C$492))","v":0},{"$f":"SUM(COUNTIF(G482:G492,$C$482:$C$492))","v":0},{"$f":"SUM(COUNTIF(H482:H492,$C$482:$C$492))","v":0},{"$f":"SUM(COUNTIF(I482:I492,$C$482:$C$492))","v":0},{"$f":"SUM(COUNTIF(J482:J492,$C$482:$C$492))","v":0},{"$f":"SUM(COUNTIF(K482:K492,$C$482:$C$492))","v":0},{"$f":"SUM(COUNTIF(L482:L492,$C$482:$C$492))","v":0},{"$f":"SUM(COUNTIF(M482:M492,$C$482:$C$492))","v":0},{"$f":"SUM(COUNTIF(N482:N492,$C$482:$C$492))","v":0}]
[null,"Enter Selection 1 ->",null,"Tube"]
[]
[]
[]
[]
[null,"Enter Selection 3->"]
[]
[]
[]
[]
[null,"Enter Selection 4->"]
[]
[null,null,null,{"$f":"MAX(E494:N494)","v":0},{"$f":"IF(E481<>$D481,0,COUNTA(E495:E499))","v":0},{"$f":"IF(F481<>$D481,0,COUNTA(F495:F499))","v":0},0,{"$f":"IF(H481<>$D481,0,COUNTA(H495:H499))","v":0},0,0,0,0,0,0]
[null,"Dependent (Output List) 1 -> "]
[]
[]
[]
[]
[null,null,null,"DO NOT FILL"]
[]
[null,null,null,{"$f":"D495","v":0},null,null,null,{"$f":"IFERROR(INDEX(#REF!, MATCH(0, COUNTIF($D$445:G502,#REF!) + ( COUNTIF(#REF!,#REF!)<>1), 0)), \"\")","v":""},{"$f":"IFERROR(INDEX(#REF!, MATCH(0, COUNTIF($D$445:H502,#REF!) + ( COUNTIF(#REF!,#REF!)<>1), 0)), \"\")","v":""}]
[null,null,"row",{"$f":"MATCH(D502,$D481:$D501,0)","v":14}]
[null,null,"column",{"$f":"MATCH(OFFSET($D481,MATCH(D502,$D481:$D501,0)-2,0),OFFSET($D481,MATCH(D502,$D481:$D501,0)-2,1,1,11),0)+1","v":{"$error":"#N/A"}}]
[null,null,"Size",{"$f":"OFFSET($D481,MATCH(D502,$D481:$D501,0)-2,0,)","v":0}]
[null,null,"Test →"]
[null,null,"Data Validation Name",{"$f":"\"L_\"&SUBSTITUTE(D502,\" \",\"\")","v":"L_0"}]
[]
[]
[null,null,"Enter DEPENDENCIES","SELECTION OPTIONS","CONFIGURATIONS"]
[null,null,"Ref Position →",{"$f":"COUNTA(D512:D520)-IF(i_ControlType=\"Chain\",1,0)","v":1},{"$f":"SUM(COUNTIF(E512:E520,$C$512:$C$520))","v":0},{"$f":"SUM(COUNTIF(F512:F520,$C$512:$C$520))","v":0},{"$f":"SUM(COUNTIF(G512:G520,$C$512:$C$520))","v":0},{"$f":"SUM(COUNTIF(H512:H520,$C$512:$C$520))","v":0},{"$f":"SUM(COUNTIF(I512:I520,$C$512:$C$520))","v":0},{"$f":"SUM(COUNTIF(J512:J520,$C$512:$C$520))","v":0},{"$f":"SUM(COUNTIF(K512:K520,$C$512:$C$520))","v":0},{"$f":"SUM(COUNTIF(L512:L520,$C$512:$C$520))","v":0},{"$f":"SUM(COUNTIF(M512:M520,$C$512:$C$520))","v":0},{"$f":"SUM(COUNTIF(N512:N520,$C$512:$C$520))","v":0}]
[null,"Enter Selection 1 ->",{"$f":"i_Location","v":0},"Location","AU","US"]
[]
[]
[null,"Enter Selection 3->"]
[]
[]
[]
[]
[null,"Enter Selection 4->"]
[]
[null,null,null,{"$f":"MAX(E522:N522)","v":0},{"$f":"IF(E511<>$D511,0,COUNTA(E523:E527))","v":0},0,0,0,0,0,0,0,0,0]
[null,"Dependent (Output List) 1 -> ",null,"Weight Bar","D30 Medium Bottom Rail","D30 Medium Bottom Rail"]
[null,null,null,null,null,"Fabric Wrap"]
[]
[]
[]
[null,null,null,"DO NOT FILL"]
[]
[null,null,null,{"$f":"D523","v":"Weight Bar"},null,null,null,{"$f":"IFERROR(INDEX(#REF!, MATCH(0, COUNTIF($D$445:G530,#REF!) + ( COUNTIF(#REF!,#REF!)<>1), 0)), \"\")","v":""},{"$f":"IFERROR(INDEX(#REF!, MATCH(0, COUNTIF($D$445:H530,#REF!) + ( COUNTIF(#REF!,#REF!)<>1), 0)), \"\")","v":""}]
[null,null,"row",{"$f":"MATCH(D530,$D511:$D529,0)","v":13}]
[null,null,"column",{"$f":"MATCH(OFFSET($D511,MATCH(D530,$D511:$D529,0)-2,0),OFFSET($D511,MATCH(D530,$D511:$D529,0)-2,1,1,11),0)+1","v":2}]
[null,null,"Size",{"$f":"OFFSET($D511,MATCH(D530,$D511:$D529,0)-2,0,)","v":0}]
[null,null,"Test →"]
[null,null,"Data Validation Name",{"$f":"\"L_\"&SUBSTITUTE(D530,\" \",\"\")","v":"L_WeightBar"}]
[]
[]
[]
[]
[null,null,"Enter DEPENDENCIES","SELECTION OPTIONS","CONFIGURATIONS"]
[null,null,"Ref Position →",{"$f":"COUNTA(D542:D547)","v":3},{"$f":"SUM(COUNTIF(E542:E549,$C542:$C549))","v":0},{"$f":"SUM(COUNTIF(F542:F549,$C542:$C549))","v":0},{"$f":"SUM(COUNTIF(G542:G549,$C542:$C549))","v":0},{"$f":"SUM(COUNTIF(H542:H549,$C542:$C549))","v":0},{"$f":"SUM(COUNTIF(I542:I549,$C542:$C549))","v":0},{"$f":"SUM(COUNTIF(J542:J549,$C542:$C549))","v":0},{"$f":"SUM(COUNTIF(K542:K549,$C542:$C549))","v":0},{"$f":"SUM(COUNTIF(L542:L549,$C542:$C549))","v":0},{"$f":"SUM(COUNTIF(M542:M549,$C542:$C549))","v":0},{"$f":"SUM(COUNTIF(N542:N549,$C542:$C549))","v":0}]
[null,"Enter Selection 1 ->",{"$f":"i_SystemType","v":0},"System Type"]
[null,"Enter Selection 2->"]
[null,"Enter Selection 3->",{"$f":"i_WeightBar","v":0},"Weight Bar"]
[]
[]
[null,"Enter Selection 4->",{"$f":"i_Location","v":0},"Region"]
[]
[]
[]
[null,null,null,{"$f":"MAX(E551:N551)","v":0},{"$f":"IF(E541<>$D541,0,COUNTA(E552:E556))","v":0},0,0,0,0,0,0,0,0,0]
[null,"Dependent (Output List) 1 -> "]
[]
[]
[]
[]
[null,null,null,"DO NOT FILL"]
[]
[null,null,null,{"$f":"MAX(E559:N559)","v":0},{"$f":"IF(E541<>$D541,0,COUNTA(E560:E564))","v":0},0,0,0,0,0,0,0,0,0]
[null,"Dependent (Output List) 1 -> "]
[]
[]
[]
[]
[null,null,null,"DO NOT FILL"]
[]
[null,null,null,{"$f":"D552","v":0},{"$f":"D560","v":0},null,{"$f":"SUBSTITUTE(\" \",\"\",$D542)","v":" "},{"$f":"IFERROR(INDEX(#REF!, MATCH(0, COUNTIF($D$445:G567,#REF!) + ( COUNTIF(#REF!,#REF!)<>1), 0)), \"\")","v":""},{"$f":"IFERROR(INDEX(#REF!, MATCH(0, COUNTIF($D$445:H567,#REF!) + ( COUNTIF(#REF!,#REF!)<>1), 0)), \"\")","v":""}]
[null,null,"row",{"$f":"MATCH(D567,$D541:$D558,0)","v":11},{"$f":"MATCH(E567,$D541:$D565,0)","v":11}]
[null,null,"column",{"$f":"MATCH(OFFSET($D541,MATCH(D567,$D541:$D564,0)-2,0),OFFSET($D541,MATCH(D567,$D541:$D558,0)-2,1,1,11),0)+1","v":{"$error":"#N/A"}},{"$f":"MATCH(OFFSET($D541,MATCH(E567,$D541:$D564,0)-2,0),OFFSET($D541,MATCH(E567,$D541:$D564,0)-2,1,1,11),0)+1","v":{"$error":"#N/A"}}]
[null,null,"Size",{"$f":"OFFSET($D541,MATCH(D567,$D541:$D558,0)-2,0,)","v":0},{"$f":"OFFSET($D541,MATCH(E567,$D541:$D564,0)-2,0,)","v":0}]
[null,null,"Test →"]
[null,null,"Data Validation Name",{"$f":"\"L_\"&SUBSTITUTE(D567,\" \",\"\")","v":"L_0"},{"$f":"\"L_\"&SUBSTITUTE(E567,\" \",\"\")","v":"L_0"}]
[]
[null,null,"Enter DEPENDENCIES","SELECTION OPTIONS","CONFIGURATIONS"]
[null,null,"Ref Position →",{"$f":"COUNTA(D576:D588)","v":1},{"$f":"SUM(COUNTIF(E576:E588,$C576:$C588))","v":0},{"$f":"SUM(COUNTIF(F576:F588,$C576:$C588))","v":0},{"$f":"SUM(COUNTIF(G576:G588,$C576:$C588))","v":0},{"$f":"SUM(COUNTIF(H576:H588,$C576:$C588))","v":0},{"$f":"SUM(COUNTIF(I576:I588,$C576:$C588))","v":0},{"$f":"SUM(COUNTIF(J576:J588,$C576:$C588))","v":0},{"$f":"SUM(COUNTIF(K576:K588,$C576:$C588))","v":0},{"$f":"SUM(COUNTIF(L576:L588,$C576:$C588))","v":0},{"$f":"SUM(COUNTIF(M576:M588,$C576:$C588))","v":0},{"$f":"SUM(COUNTIF(N576:N588,$C576:$C588))","v":0}]
[null,"Enter Selection 1 ->",{"$f":"i_wbLock","v":0},"Weight Bar Lock"]
[null,"Enter Selection 2->"]
[null,"Enter Selection 3->"]
[]
[]
[null,"Enter Selection 4->"]
[]
[]
[null,"Enter Selection 5->"]
[]
[]
[]
[]
[]
[null,null,null,{"$f":"MAX(E590:N590)","v":0},{"$f":"IF(E575<>$D575,0,COUNTA(E591:E595))","v":0},0,0,0,0,0,0,0,0,0]
[null,"Dependent (Output List) 1 -> "]
[]
[]
[]
[]
[null,null,null,"DO NOT FILL"]
[]
[null,null,null,{"$f":"MAX(E598:N598)","v":0},{"$f":"IF(E575<>$D575,0,COUNTA(E599:E603))","v":0},0,0,0,0,0,0,0,0,0]
[null,"Dependent (Output List) 1 -> "]
[]
[]
[]
[]
[null,null,null,"DO NOT FILL"]
[]
[null,null,null,{"$f":"D591","v":0},{"$f":"D599","v":0},null,{"$f":"SUBSTITUTE(\" \",\"\",$D576)","v":" "},{"$f":"IFERROR(INDEX(#REF!, MATCH(0, COUNTIF($D$445:G606,#REF!) + ( COUNTIF(#REF!,#REF!)<>1), 0)), \"\")","v":""},{"$f":"IFERROR(INDEX(#REF!, MATCH(0, COUNTIF($D$445:H606,#REF!) + ( COUNTIF(#REF!,#REF!)<>1), 0)), \"\")","v":""}]
[null,null,"row",{"$f":"MATCH(D606,$D575:$D597,0)","v":16},{"$f":"MATCH(E606,$D575:$D604,0)","v":16}]
[null,null,"column",{"$f":"MATCH(OFFSET($D575,MATCH(D606,$D575:$D603,0)-2,0),OFFSET($D575,MATCH(D606,$D575:$D597,0)-2,1,1,11),0)+1","v":{"$error":"#N/A"}},{"$f":"MATCH(OFFSET($D575,MATCH(E606,$D575:$D603,0)-2,0),OFFSET($D575,MATCH(E606,$D575:$D603,0)-2,1,1,11),0)+1","v":{"$error":"#N/A"}}]
[null,null,"Size",{"$f":"OFFSET($D575,MATCH(D606,$D575:$D597,0)-2,0,)","v":0},{"$f":"OFFSET($D575,MATCH(E606,$D575:$D603,0)-2,0,)","v":0}]
[null,null,"Test →"]
[null,null,"Data Validation Name",{"$f":"\"L_\"&SUBSTITUTE(D606,\" \",\"\")","v":"L_0"},{"$f":"\"L_\"&SUBSTITUTE(E606,\" \",\"\")","v":"L_0"}]
[]
[]
[]
[null,null,"Enter DEPENDENCIES","SELECTION OPTIONS","CONFIGURATIONS"]
[null,null,"Ref Position →",{"$f":"COUNTA(D617:D626)","v":1},{"$f":"SUM(COUNTIF(E617:E626,$C617:$C626))","v":0},{"$f":"SUM(COUNTIF(F617:F626,$C617:$C626))","v":0},{"$f":"SUM(COUNTIF(G617:G626,$C617:$C626))","v":0},{"$f":"SUM(COUNTIF(H617:H626,$C617:$C626))","v":0},{"$f":"SUM(COUNTIF(I617:I626,$C617:$C626))","v":0},{"$f":"SUM(COUNTIF(J617:J626,$C617:$C626))","v":0},{"$f":"SUM(COUNTIF(K617:K626,$C617:$C626))","v":0},{"$f":"SUM(COUNTIF(L617:L626,$C617:$C626))","v":0},{"$f":"SUM(COUNTIF(M617:M626,$C617:$C626))","v":0},{"$f":"SUM(COUNTIF(N617:N626,$C617:$C626))","v":0}]
[null,"Enter Selection 1 ->"]
[]
[null,"Enter Selection 2->"]
[null,"Enter Selection 3->"]
[]
[]
[]
[null,null,{"$f":"i_WeightBar","v":0},"Weight Bar","D30 Medium Bottom Rail","Fabric Wrap"]
[]
[null,"Enter Selection 4->"]
[]
[null,null,null,{"$f":"MAX(E628:N628)","v":0},{"$f":"IF(E616<>$D616,0,COUNTA(E629:E635))","v":0},{"$f":"IF(F616<>$D616,0,COUNTA(F629:F635))","v":0},{"$f":"IF(G616<>$D616,0,COUNTA(G629:G635))","v":0},0,0,0,0,0,0,0]
[null,"Dependent (Output List) 1 -> ",null,"wbSpline","15mm Flat Spline - NO TAPE","No Wrap"]
[null,null,null,null,"15mm Flat Spline - D/S MP-HR TAPE","Half or Full Wrap"]
[null,null,null,null,"15mm Flat Spline - D/S MP-HR TAPE B/SIDES"]
[]
[]
[]
[]
[null,null,null,"DO NOT FILL"]
[]
[null,null,null,{"$f":"D629","v":"wbSpline"}]
[null,null,"row",14]
[null,null,"column",{"$f":"MATCH(OFFSET($D616,MATCH(D638,$D616:$D637,0)-2,0),OFFSET($D616,MATCH(D638,$D616:$D637,0)-2,1,1,11),0)+1","v":2}]
[null,null,"Size",{"$f":"OFFSET($D616,MATCH(D638,$D616:$D637,0)-2,0,)","v":0}]
[null,null,"Test →","15mm Flat Spline - D/S MP-HR TAPE"]
[null,null,"Data Validation Name",{"$f":"\"L_\"&SUBSTITUTE(D638,\" \",\"\")","v":"L_wbSpline"}]
[]
[]
[]
[]
[null,null,"Enter DEPENDENCIES","SELECTION OPTIONS","CONFIGURATIONS"]
[null,null,"Ref Position →",{"$f":"COUNTA(D650:D658)","v":1},{"$f":"SUM(COUNTIF(E650:E658,$C650:$C658))","v":0},{"$f":"SUM(COUNTIF(F650:F658,$C650:$C658))","v":0},{"$f":"SUM(COUNTIF(G650:G658,$C650:$C658))","v":0},{"$f":"SUM(COUNTIF(H650:H658,$C650:$C658))","v":0},{"$f":"SUM(COUNTIF(I650:I658,$C650:$C658))","v":0},{"$f":"SUM(COUNTIF(J650:J658,$C650:$C658))","v":0},{"$f":"SUM(COUNTIF(K650:K658,$C650:$C658))","v":0},{"$f":"SUM(COUNTIF(L650:L658,$C650:$C658))","v":0},{"$f":"SUM(COUNTIF(M650:M658,$C650:$C658))","v":0},{"$f":"SUM(COUNTIF(N650:N658,$C650:$C658))","v":0}]
[null,"Enter Selection 1 ->"]
[]
[]
[null,"Enter Selection 2 ->"]
[]
[]
[null,"Enter Selection 3 ->",{"$f":"i_WeightBar","v":0},"Bottom Rail","D30 Medium Bottom Rail","Fabric Wrap"]
[]
[]
[]
[null,null,null,{"$f":"MAX(E660:N660)","v":0},{"$f":"IF(E649<>$D649,0,COUNTA(E661:E667))","v":0},{"$f":"IF(F649<>$D649,0,COUNTA(F661:F667))","v":0},null,null,null,{"$f":"IF(J649<>$D649,0,COUNTA(J661:J667))","v":0},{"$f":"IF(K649<>$D649,0,COUNTA(K661:K667))","v":0},{"$f":"IF(L649<>$D649,0,COUNTA(L661:L667))","v":0},{"$f":"IF(M649<>$D649,0,COUNTA(M661:M667))","v":0},{"$f":"IF(N649<>$D649,0,COUNTA(N661:N667))","v":0}]
[null,"Dependent (Output List) 1 -> ",null,"wbAccessories","No Accessories","No accessories","No accessories"]
[null,null,null,null,"Hem Bar Handle","Hem Bar Handle","Hem Bar Handle"]
[null,null,null,null,"Hem Bar Handle + Pull Hook","Hem Bar Handle + Pull Hook","Hem Bar Handle + Pull Hook"]
[null,null,null,null,null,null,"Ballast"]
[null,null,null,null,null,null,"Ballast + Handle"]
[null,null,null,null,null,null,"Ballast + Handle + Pull Hook"]
[]
[null,null,null,"DO NOT FILL"]
[]
[null,null,null,{"$f":"D661","v":"wbAccessories"},null,null,{"$f":"OFFSET($D$649,$D$671-1,$D$672-1,$D$673)","v":{"$error":"#REF!"}},{"$f":"IFERROR(INDEX(#REF!, MATCH(0, COUNTIF($D$445:G670,#REF!) + ( COUNTIF(#REF!,#REF!)<>1), 0)), \"\")","v":""},{"$f":"IFERROR(INDEX(#REF!, MATCH(0, COUNTIF($D$445:H670,#REF!) + ( COUNTIF(#REF!,#REF!)<>1), 0)), \"\")","v":""}]
[null,null,"row",{"$f":"MATCH(D670,$D649:$D669,0)","v":13}]
[null,null,"column",{"$f":"MATCH(OFFSET($D649,MATCH(D670,$D649:$D669,0)-2,0),OFFSET($D649,MATCH(D670,$D649:$D669,0)-2,1,1,11),0)+1","v":2}]
[null,null,"Size",{"$f":"OFFSET($D649,MATCH(D670,$D649:$D669,0)-2,0,)","v":0}]
[null,null,"Test →"]
[null,null,"Data Validation Name",{"$f":"\"L_\"&SUBSTITUTE(D670,\" \",\"\")","v":"L_wbAccessories"}]
[]
[]
[]
[]
[]
[null,null,"Enter DEPENDENCIES","SELECTION OPTIONS","CONFIGURATIONS"]
[null,null,"Ref Position →",{"$f":"COUNTA(D683:D686)","v":0},{"$f":"SUM(COUNTIF(E683:E686,$C683:$C686))","v":0},{"$f":"SUM(COUNTIF(F683:F686,$C683:$C686))","v":0},{"$f":"SUM(COUNTIF(G683:G686,$C683:$C686))","v":0},{"$f":"SUM(COUNTIF(H683:H686,$C683:$C686))","v":0},{"$f":"SUM(COUNTIF(I683:I686,$C683:$C686))","v":0},{"$f":"SUM(COUNTIF(J683:J686,$C683:$C686))","v":0},{"$f":"SUM(COUNTIF(K683:K686,$C683:$C686))","v":0},{"$f":"SUM(COUNTIF(L683:L686,$C683:$C686))","v":0},{"$f":"SUM(COUNTIF(M683:M686,$C683:$C686))","v":0},{"$f":"SUM(COUNTIF(N683:N686,$C683:$C686))","v":0}]
[null,"Enter Selection 1 ->"]
[null,"Enter Selection 2->"]
[null,"Enter Selection 3->"]
[null,"Enter Selection 4->"]
[]
[null,null,null,{"$f":"MAX(E688:N688)","v":0},{"$f":"IF(E682<>$D682,0,COUNTA(E689:E693))","v":0},0,0,0,0,0,0,0,0,0]
[null,"Dependent (Output List) 1 -> ",null,"Option 1"]
[]
[]
[]
[]
[null,null,null,"DO NOT FILL"]
[]
[null,null,null,{"$f":"MAX(E696:N696)","v":0},{"$f":"IF(E682<>$D682,0,COUNTA(E697:E701))","v":0},{"$f":"IF(F682<>$D682,0,COUNTA(F697:F701))","v":0},0,0,0,0,0,0,0,0]
[null,"Dependent (Output List) 2 -> ",null,"Option 2"]
[]
[]
[]
[]
[null,null,null,"DO NOT FILL"]
[]
[null,null,null,{"$f":"MAX(E704:N704)","v":0},{"$f":"IF(E682<>$D682,0,COUNTA(E705:E709))","v":0},{"$f":"IF(F682<>$D682,0,COUNTA(F705:F709))","v":0},0,0,0,0,0,0,0,0]
[null,"Dependent (Output List) 3 -> ",null,"Option 3"]
[]
[]
[]
[]
[null,null,null,"DO NOT FILL"]
[]
[null,null,null,{"$f":"D689","v":"Option 1"},{"$f":"D697","v":"Option 2"},{"$f":"D705","v":"Option 3"},null,{"$f":"IFERROR(INDEX(#REF!, MATCH(0, COUNTIF($D$445:G712,#REF!) + ( COUNTIF(#REF!,#REF!)<>1), 0)), \"\")","v":""},{"$f":"IFERROR(INDEX(#REF!, MATCH(0, COUNTIF($D$445:H712,#REF!) + ( COUNTIF(#REF!,#REF!)<>1), 0)), \"\")","v":""}]
[null,null,"row",{"$f":"MATCH(D712,$D682:$D710,0)","v":8},{"$f":"MATCH(E712,$D682:$D710,0)","v":16},{"$f":"MATCH(F712,$D682:$D710,0)","v":24}]
[null,null,"column",{"$f":"MATCH(OFFSET($D682,MATCH(D712,$D682:$D710,0)-2,0),OFFSET($D682,MATCH(D712,$D682:$D710,0)-2,1,1,11),0)+1","v":2},{"$f":"MATCH(OFFSET($D682,MATCH(E712,$D682:$D710,0)-2,0),OFFSET($D682,MATCH(E712,$D682:$D710,0)-2,1,1,11),0)+1","v":2},{"$f":"MATCH(OFFSET($D682,MATCH(F712,$D682:$D710,0)-2,0),OFFSET($D682,MATCH(F712,$D682:$D710,0)-2,1,1,11),0)+1","v":2}]
[null,null,"Size",{"$f":"OFFSET($D682,MATCH(D712,$D682:$D710,0)-2,0,)","v":0},{"$f":"OFFSET($D682,MATCH(E712,$D682:$D710,0)-2,0,)","v":0},{"$f":"OFFSET($D682,MATCH(F712,$D682:$D710,0)-2,0,)","v":0}]
[null,null,"Test →"]
[null,null,"Data Validation Name",{"$f":"\"L_\"&SUBSTITUTE(D712,\" \",\"\")","v":"L_Option1"},{"$f":"\"L_\"&SUBSTITUTE(E712,\" \",\"\")","v":"L_Option2"},{"$f":"\"L_\"&SUBSTITUTE(F712,\" \",\"\")","v":"L_Option3"}]

{"sheet":"Ctrl_Deductions","index":5,"n_rows":63,"n_cols":47,"rows_kept":63,"cut":false,"hidden":true,"merged":[[14,23,18,23],[14,24,18,24],[1,25,1,26],[2,25,2,46],[9,23,13,23],[4,23,8,23],[9,24,13,24],[4,24,8,24]]}
[null,null,null,null,null,null,null,null,"LXSKYLINE",4.8899999999999997,4.8899999999999997,{"$f":"K1+K3","v":12.19},null,null,null,null,null,null,null,null,null,null,null,null,null,null,null,null,null,null,null,null,null,null,null,null,null,{"$f":"i_BktFixType","v":0}]
[null,null,null,"Does",null,"Apply to ",null,null,"SLB660",4.57,4.57,{"$f":"K2+K3","v":11.870000000000001},null,null,null,null,null,null,null,null,null,null,null,null,null,null,null,null,null,null,null,null,null,null,null,"assumes top/face is BASELINE",null,{"$f":"i_ZipscreenSideGuideFix","v":{"$error":"#NAME?"}}]
[null,null,null,null,null,null,null,null,"MINI",339.9,7.3,null,null,null,null,null,null,null,null,null,null,null,null,"Enter DEPENDENCIES","SELECTION OPTIONS","CONFIGURATIONS"]
[null,null,null,null,null,null,null,null,"LIGHT",541.9,7.3,null,null,null,null,null,null,null,null,null,null,null,null,null,{"$f":"MAX(Z4:AU4)","v":0},{"$f":"SUM(COUNTIF(Z5:Z19,$X$5:$X$19))","v":0},{"$f":"SUM(COUNTIF(AA5:AA19,$X$5:$X$19))","v":0},{"$f":"SUM(COUNTIF(AB5:AB19,$X$5:$X$19))","v":0},{"$f":"SUM(COUNTIF(AC5:AC19,$X$5:$X$19))","v":0},{"$f":"SUM(COUNTIF(AD5:AD19,$X$5:$X$19))","v":0},{"$f":"SUM(COUNTIF(AE5:AE19,$X$5:$X$19))","v":0},{"$f":"SUM(COUNTIF(AF5:AF19,$X$5:$X$19))","v":0},{"$f":"SUM(COUNTIF(AG5:AG19,$X$5:$X$19))","v":0},{"$f":"SUM(COUNTIF(AH5:AH19,$X$5:$X$19))","v":0},{"$f":"SUM(COUNTIF(AI5:AI19,$X$5:$X$19))","v":0},{"$f":"SUM(COUNTIF(AJ5:AJ14,$X$5:$X$14))","v":0},{"$f":"SUM(COUNTIF(AK5:AK14,$X$5:$X$14))","v":0},{"$f":"SUM(COUNTIF(AL5:AL14,$X$5:$X$14))","v":0},{"$f":"SUM(COUNTIF(AM5:AM14,$X$5:$X$14))","v":0},{"$f":"SUM(COUNTIF(AN5:AN14,$X$5:$X$14))","v":0},{"$f":"SUM(COUNTIF(AO5:AO14,$X$5:$X$14))","v":0},{"$f":"SUM(COUNTIF(AP5:AP14,$X$5:$X$14))","v":0},{"$f":"SUM(COUNTIF(AQ5:AQ14,$X$5:$X$14))","v":0},{"$f":"SUM(COUNTIF(AR5:AR14,$X$5:$X$14))","v":0},{"$f":"SUM(COUNTIF(AS5:AS14,$X$5:$X$14))","v":0},{"$f":"SUM(COUNTIF(AT5:AT14,$X$5:$X$14))","v":0},{"$f":"SUM(COUNTIF(AU5:AU14,$X$5:$X$14))","v":0}]
[null,null,null,null,null,null,null,null,"MED",851.9,7.3]
[null,null,null,null,null,null,null,null,"HEAVY",951.9,7.3]
[null,null,null,null,null,null,null,null,null,5]
[null,null,null,null,null,null,null,null,"SLB660",4.57,4.57,{"$f":"K8+K9","v":12.190000000000001}]
[null,null,null,null,null,null,null,null,"SLPEV653xx",41.15,7.62,{"$f":"K8+K11","v":18.57}]
[null,null,null,null,null,null,null,null,"SLPEHD53xx",78.34,9,null,null,null,null,null,null,null,null,null,null,null,null,{"$f":"INDIRECT(\"i_\"&SUBSTITUTE($Y10,\" \",\"\"))","v":0},"Open Bkt Style","Skyline 1.5\"","Skyline 1.5\"","Skyline 1.5\"","LX Skyline","LX Skyline","LX Skyline","Opulence Round Skyline","Opulence Round Skyline","Opulence Round Skyline"]
[null,null,null,null,null,null,null,null,"Universal Limiter",142.69,14,null,null,null,null,null,null,null,null,null,null,null,null,null,null,null,null,null,null,null,null,"Opulence Square Skyline","Opulence Square Skyline","Opulence Square Skyline"]
[null,null,null,null,null,null,null,{"$f":"J11-J12","v":17.739999999999995},"Short Limiter",124.95,14,null,null,null,null,null,null,null,null,null,null,null,null,null,null,null,null,null,null,null,null,"Opulence Round RB09","Opulence Round RB09","Opulence Round RB09"]
[null,null,null,null,null,null,null,null,"LXSKYLINE",4.8899999999999997,4.8899999999999997,null,null,null,null,null,null,null,null,null,null,null,null,null,null,null,null,null,null,null,null,"Opulence Square RB09","Opulence Square RB09","Opulence Square RB09"]
[]
[null,null,null,null,null,null,null,"SLB660","MINIMUM SHADE WIDTH","STD 1.5","HD 1.5","Universal","Short",null,null,null,null,null,null,null,null,null,null,{"$f":"INDIRECT(\"i_\"&SUBSTITUTE($Y15,\" \",\"\"))","v":0},"Idler Type","Skyline Pin End 1.5\"","Skyline Heavy Duty Pin End 1.5\"","Limiter - Single Stop | STD 1.5\"","Skyline Pin End 1.5\"","Skyline Heavy Duty Pin End 1.5\"","Limiter - Single Stop | STD 1.5\"","Skyline Pin End 1.5\"","Skyline Heavy Duty Pin End 1.5\"","Limiter - Single Stop | STD 1.5\""]
[null,null,null,null,null,null,null,null,"MINI",{"$f":"$J$2+$J$3+$J$7+$J$8+$J$9","v":395.18999999999994},{"$f":"$J$2+$J$3+$J$7+$J$8+$J$10","v":432.38},{"$f":"$J$2+$J$3+$J$7+$J$8+$J$11","v":496.72999999999996},{"$f":"$J$2+$J$3+$J$7+$J$8+$J$12","v":478.98999999999995},null,null,null,null,null,null,null,null,null,null,null,null,null,null,"Limiter - Single Stop | COMPACT 1.5\"",null,null,"Limiter - Single Stop | COMPACT 1.5\"",null,null,"Limiter - Single Stop | COMPACT 1.5\""]
[null,null,null,null,null,null,null,null,"LIGHT",{"$f":"$J$2+$J$4+$J$7+$J$8+$J$9","v":597.19000000000005},{"$f":"$J$2+$J$4+$J$7+$J$8+$J$10","v":634.38000000000011},{"$f":"$J$2+$J$4+$J$7+$J$8+$J$11","v":698.73},{"$f":"$J$2+$J$4+$J$7+$J$8+$J$12","v":680.99000000000012},null,null,null,null,null,null,null,null,null,null,null,null,null,null,"Limiter - Single Stop | STD S45",null,null,"Limiter - Single Stop | STD S45",null,null,"Limiter - Single Stop | STD S45"]
[null,null,null,null,null,null,null,null,"MEDIUM",{"$f":"$J$2+$J$5+$J$7+$J$8+$J$9","v":907.19},{"$f":"$J$2+$J$5+$J$7+$J$8+$J$10","v":944.38000000000011},{"$f":"$J$2+$J$5+$J$7+$J$8+$J$11","v":1008.73},{"$f":"$J$2+$J$5+$J$7+$J$8+$J$12","v":990.99000000000012},null,null,null,null,null,null,null,null,null,null,null,null,null,null,"Limiter - Single Stop | COMPACT S45",null,null,"Limiter - Single Stop | COMPACT S45",null,null,"Limiter - Single Stop | COMPACT S45"]
[null,null,null,null,null,null,null,null,"HEAVY",{"$f":"$J$2+$J$6+$J$7+$J$8+$J$9","v":1007.19},{"$f":"$J$2+$J$6+$J$7+$J$8+$J$10","v":1044.3800000000001},{"$f":"$J$2+$J$6+$J$7+$J$8+$J$11","v":1108.73},{"$f":"$J$2+$J$6+$J$7+$J$8+$J$12","v":1090.99}]
[]
[null,null,null,null,null,null,null,null,null,null,null,null,null,null,null,null,null,null,null,null,null,null,null,null,null,null,null,null,null,null,null,null,null,null,null,"open bkt assumes TOP FIX for heights, modifier for face fix"]
[null,null,null,null,null,null,null,"SLB660","TUBE DEDUCTION","STD 1.5","HD 1.5","Universal","Short",null,null,null,null,null,null,null,null,null,null,null,null,null,null,null,null,null,null,null,null,null,null,"assumes top/face is BASELINE for box190- modifier subtracts 6mm (accounts for L fixing side channels"]
[null,null,null,null,null,null,null,null,"ALL",{"$f":"$K$2+$K$3+$K$8+$K$9","v":24.060000000000002},{"$f":"$K$2+$K$3+$K$8+$K$10","v":25.44},{"$f":"$K$2+$K$3+$K$8+$K$11","v":30.44},{"$f":"$K$2+$K$3+$K$8+$K$12","v":30.44}]
[null,null,null,null,null,null,null,null,null,null,null,null,null,null,null,null,null,null,null,null,null,null,null,"Type","Deduction",{"$f":"IF(Z4<>$Y$4,0,1)","v":1},1,{"$f":"IF(AB4<>$Y$4,0,1)","v":1},1,1,1,1,1,1,1,1,1,1,1,1,1,1,1,1,1,1,1]
[null,null,null,null,null,null,null,null,null,null,null,null,null,null,null,null,null,null,null,null,null,null,null,"Fabric",{"$f":"INDEX(Z25:AU25,0,MATCH(1,$Z$24:$AU$24,0))","v":25},25,27,32,25,27,32,29,31,36]
[null,null,null,"HAS FORMULAS",null,null,null,"LXSKYLINE","MINIMUM SHADE WIDTH","STD 1.5","HD 1.5","Universal","Short",null,null,null,null,null,null,null,null,null,null,"Tube",25,{"$f":"Z25","v":25},27,32,25,27,32,29,31,36]
[null,null,null,null,null,null,null,null,"MINI",{"$f":"$J$1+$J$3+$J$7+$J$13+$J$9","v":395.82999999999993},{"$f":"$J$1+$J$3+$J$7+$J$13+$J$10","v":433.02},{"$f":"$J$1+$J$3+$J$7+$J$13+$J$11","v":497.36999999999995},{"$f":"$J$1+$J$3+$J$7+$J$13+$J$12","v":479.62999999999994},null,null,null,null,null,null,null,null,null,null,"Box",0]
[null,null,null,null,null,null,null,null,"LIGHT",{"$f":"$J$1+$J$4+$J$7+$J$13+$J$9","v":597.82999999999993},{"$f":"$J$1+$J$4+$J$7+$J$13+$J$10","v":635.02},{"$f":"$J$1+$J$4+$J$7+$J$13+$J$11","v":699.36999999999989},{"$f":"$J$1+$J$4+$J$7+$J$13+$J$12","v":681.63},null,null,null,null,null,null,null,null,null,null,"ControlType",0]
[null,null,null,null,null,null,null,null,"MEDIUM",{"$f":"$J$1+$J$5+$J$7+$J$13+$J$9","v":907.82999999999993},{"$f":"$J$1+$J$5+$J$7+$J$13+$J$10","v":945.02},{"$f":"$J$1+$J$5+$J$7+$J$13+$J$11","v":1009.3699999999999},{"$f":"$J$1+$J$5+$J$7+$J$13+$J$12","v":991.63},null,null,null,null,null,null,null,null,null,null,"Idler",0]
[null,null,null,null,null,null,null,null,"HEAVY",{"$f":"$J$1+$J$6+$J$7+$J$13+$J$9","v":1007.8299999999999},{"$f":"$J$1+$J$6+$J$7+$J$13+$J$10","v":1045.02},{"$f":"$J$1+$J$6+$J$7+$J$13+$J$11","v":1109.3699999999999},{"$f":"$J$1+$J$6+$J$7+$J$13+$J$12","v":1091.6299999999999},null,null,null,null,null,null,null,null,null,null,"wb",25,{"$f":"Z25","v":25},27,32,25,27,32,29,31,36]
[null,null,null,null,null,null,null,null,null,null,null,null,null,null,null,null,null,null,null,null,null,null,null,"Ballast",{"$f":"INDEX(Z31:AU31,0,MATCH(1,$Z$24:$AU$24,0))","v":55},{"$f":"Z26+30","v":55},{"$f":"AA26+30","v":57},62,55,57,62,59,311,66]
[null,null,null,null,null,null,null,null,null,null,null,null,null,null,null,null,null,null,null,null,null,null,null,"TubeSpline",25,{"$f":"Z25","v":25},27,32,25,27,32,29,31,36]
[null,null,null,null,null,null,null,"LXSKYLINE","TUBE DEDUCTION","STD 1.5","HD 1.5","Universal","Short",null,null,null,null,null,null,null,null,null,null,"wbSpline",25,{"$f":"Z25","v":25},27,32,25,27,32,29,31,36]
[null,null,null,{"$f":"COUNTA(D43:D52)","v":6},null,null,null,null,"ALL",{"$f":"$K$1+$K$3+$K$13+$K$9","v":24.7},{"$f":"$K$1+$K$3+$K$13+$K$10","v":26.08},{"$f":"$K$1+$K$3+$K$13+$K$11","v":31.08},{"$f":"$K$1+$K$3+$K$13+$K$12","v":31.08},null,null,null,null,null,null,null,null,null,null,"wbSeal",25,{"$f":"Z25","v":25},27,32,25,27,32,29,31,36]
[null,null,null,null,null,null,null,null,null,null,null,null,null,null,null,null,null,null,null,null,null,null,null,"Brush",0]
[null,null,null,null,null,null,null,null,null,null,null,null,null,null,null,null,null,null,null,null,null,null,null,"FabricDrop",{"$f":"INDEX(Z36:AU36,0,MATCH(1,$Z$24:$AU$24,0))","v":-150},-150,-150,-150,-150,-150,-150,-150,-150,-150]
[]
[null,null,null,null,null,null,null,null,null,null,null,null,null,null,null,null,null,null,null,null,null,null,null,null,null,"=o_Widthmm-((((o_Widthmm*o_ReqdwbMass/1000)-(o_Widthmm*XLOOKUP(i_WeightBar,T_refWeightBar[Description],T_refWeightBar[Mass/m],0,0)/1000))*1000)/o_BallastMass)",null,null,null,null,null,null,null,null,null,"top/face vs. recess has diff rail HEIGHTS?"]
[null,null,null,null,null,null,null,null,null,null,null,null,null,null,null,null,null,null,null,null,null,null,null,null,null,"ballast used to use this formula for EXACT calc"]
[null,null,null,null,null,null,null,null,null,null,null,null,null,null,null,null,"Lookup",null,null,null,null,null,null,null,null,"22-Jan-24; changed to maximum ballast length for simplicity"]
[null,null,null,null,null,null,null,null,null,null,null,null,null,null,null,null,"Deduction"]
[null,null,null,{"$f":"X25","v":"Fabric"},{"$f":"X26","v":"Tube"},{"$f":"X27","v":"Box"},{"$f":"X28","v":"ControlType"},{"$f":"X29","v":"Idler"},{"$f":"X30","v":"wb"},{"$f":"X31","v":"Ballast"},{"$f":"X32","v":"TubeSpline"},{"$f":"X33","v":"wbSpline"},{"$f":"X34","v":"wbSeal"},{"$f":"X35","v":"Brush"},{"$f":"X36","v":"FabricDrop"},null,"Modifiers",null,"QTY","ON/OFF",null,"Comments",null,null,null,{"$f":"IF(Z4<>$Y$4,0,1)","v":1},1,1,1,1,1,1,1,1,1,1,1,1,1,1,1,1,1,1,1,1,1]
[null,null,null,1,1,1,0,0,1,1,1,1,1,0,0,null,{"$f":"INDEX($Z$43:$AU$49,0,MATCH(1,$Z$42:$AU$42,0))","v":3},null,1,{"$f":"IFERROR(IF(ISBLANK(X43),\"\",IF(FIND(Y43,INDIRECT(\"i_\"&$X43))>0,1,0)),0)","v":0},null,null,null,"OpenBktCovers","Yes",3,3,3,2,2,2]
[null,null,null,0,0,0,0,0,0,0,0,0,0,0,1,null,{"$f":"INDEX($Z$43:$AU$49,0,MATCH(1,$Z$42:$AU$42,0))","v":-140},null,1,{"$f":"IFERROR(IF(ISBLANK(X44),\"\",IF(FIND(Y44,INDIRECT(\"i_\"&$X44))>0,1,0)),0)","v":0},null,null,null,"WeightBar","Fabric Wrap",-140,-140,-140,-140,-140,-140,-140,-140,-140]
[null,null,null,0,0,0,1,1,0,0,0,0,0,0,0,null,0,null,0,{"$f":"IFERROR(IF(ISBLANK(X45),\"\",IF(FIND(Y45,INDIRECT(\"i_\"&$X45))>0,1,0)),0)","v":""}]
[null,null,null,1,1,0,0,0,1,1,1,1,1,0,0,null,0,null,0,""]
[null,null,null,1,1,0,0,0,1,1,1,1,1,0,0,null,0,null,0,""]
[null,null,null,1,1,1,0,0,1,1,1,1,1,0,0,null,0,null,0,{"$f":"IFERROR(IF(ISBLANK(X48),\"\",IF(FIND(Y48,INDIRECT(\"i_\"&$X48))>0,1,0)),0)","v":""}]
[]
[]
[]
[]
[null,null,null,null,null,null,null,null,null,null,null,null,null,null,null,null,null,null,null,null,null,null,null,"Type","Deduction",{"$f":"IF(Z4<>$Y$4,0,1)","v":1},1,1,1,1,1,1,1,1,1,1,1,1,1,1,1,1,1,1,1,1,1]
[null,null,null,null,null,null,null,null,null,null,null,null,null,null,null,null,null,null,null,null,null,null,null,"Fabric",{"$f":"INDEX(Z54:AU54,0,MATCH(1,$Z$24:$AU$24,0))","v":25},{"$f":"IFERROR(IF(Z$53=0,\"\",Z25+SUMPRODUCT($T$43:$T$48,$S$43:$S$48,$Q$43:$Q$48,OFFSET($D$42,1,MATCH($X54,$D$42:$O$42,0)-1,$D$34,1))),\"\")","v":25},27,32,25,27,{"$f":"IFERROR(IF(AE$53=0,\"\",AE25+SUMPRODUCT($T$43:$T$48,$S$43:$S$48,$Q$43:$Q$48,OFFSET($D$42,1,MATCH($X54,$D$42:$O$42,0)-1,$D$34,1))),\"\")","v":32},29,31,36,0,0,0,0,0,0,0,0,0,0,0,0,0]
[null,null,null,null,null,null,null,null,null,null,null,null,null,null,null,null,null,null,null,null,null,null,null,"Tube",{"$f":"INDEX(Z55:AU55,0,MATCH(1,$Z$24:$AU$24,0))","v":25},{"$f":"IFERROR(IF(Z$53=0,\"\",Z26+SUMPRODUCT($T$43:$T$48,$S$43:$S$48,$Q$43:$Q$48,OFFSET($D$42,1,MATCH($X55,$D$42:$O$42,0)-1,$D$34,1))),\"\")","v":25},{"$f":"IFERROR(IF(AA$53=0,\"\",AA26+SUMPRODUCT($T$43:$T$48,$S$43:$S$48,$Q$43:$Q$48,OFFSET($D$42,1,MATCH($X55,$D$42:$O$42,0)-1,$D$34,1))),\"\")","v":27},32,25,27,32,29,31,36,0,0,0,0,0,0,0,0,0,0,0,0,0]
[null,null,null,null,null,null,null,null,null,null,null,null,null,null,null,null,null,null,null,null,null,null,null,"Box",{"$f":"INDEX(Z56:AU56,0,MATCH(1,$Z$24:$AU$24,0))","v":0},{"$f":"IFERROR(IF(Z$53=0,\"\",Z27+SUMPRODUCT($T$43:$T$48,$S$43:$S$48,$Q$43:$Q$48,OFFSET($D$42,1,MATCH($X56,$D$42:$O$42,0)-1,$D$34,1))),\"\")","v":0},0,0,0,0,0,0,0,0,0,0,0,0,0,0,0,0,0,0,0,0,0]
[null,null,null,null,null,null,null,null,null,null,null,null,null,null,null,null,null,null,null,null,null,null,null,"wb",{"$f":"INDEX(Z57:AU57,0,MATCH(1,$Z$24:$AU$24,0))","v":25},{"$f":"IFERROR(IF(Z$53=0,\"\",Z30+SUMPRODUCT($T$43:$T$48,$S$43:$S$48,$Q$43:$Q$48,OFFSET($D$42,1,MATCH($X57,$D$42:$O$42,0)-1,$D$34,1))),\"\")","v":25},27,32,25,27,32,29,31,36,0,0,0,0,0,0,0,0,0,0,0,0,0]
[null,null,null,null,null,null,null,null,null,null,null,null,null,null,null,null,null,null,null,null,null,null,null,"Ballast",{"$f":"INDEX(Z58:AU58,0,MATCH(1,$Z$24:$AU$24,0))","v":55},{"$f":"IFERROR(IF(Z$53=0,\"\",Z31+SUMPRODUCT($T$43:$T$48,$S$43:$S$48,$Q$43:$Q$48,OFFSET($D$42,1,MATCH($X58,$D$42:$O$42,0)-1,$D$34,1))),\"\")","v":55},57,62,55,57,62,59,311,66,0,0,0,0,0,0,0,0,0,0,0,0,0]
[null,null,null,null,null,null,null,null,null,null,null,null,null,null,null,null,null,null,null,null,null,null,null,"TubeSpline",{"$f":"INDEX(Z59:AU59,0,MATCH(1,$Z$24:$AU$24,0))","v":25},{"$f":"IFERROR(IF(Z$53=0,\"\",Z32+SUMPRODUCT($T$43:$T$48,$S$43:$S$48,$Q$43:$Q$48,OFFSET($D$42,1,MATCH($X59,$D$42:$O$42,0)-1,$D$34,1))),\"\")","v":25},27,32,25,27,32,29,31,36,0,0,0,0,0,0,0,0,0,0,0,0,0]
[null,null,null,null,null,null,null,null,null,null,null,null,null,null,null,null,null,null,null,null,null,null,null,"wbSpline",{"$f":"INDEX(Z60:AU60,0,MATCH(1,$Z$24:$AU$24,0))","v":25},{"$f":"IFERROR(IF(Z$53=0,\"\",Z33+SUMPRODUCT($T$43:$T$48,$S$43:$S$48,$Q$43:$Q$48,OFFSET($D$42,1,MATCH($X60,$D$42:$O$42,0)-1,$D$34,1))),\"\")","v":25},27,32,25,27,32,29,31,36,0,0,0,0,0,0,0,0,0,0,0,0,0]
[null,null,null,null,null,null,null,null,null,null,null,null,null,null,null,null,null,null,null,null,null,null,null,"wbSeal",{"$f":"INDEX(Z61:AU61,0,MATCH(1,$Z$24:$AU$24,0))","v":25},{"$f":"IFERROR(IF(Z$53=0,\"\",Z34+SUMPRODUCT($T$43:$T$48,$S$43:$S$48,$Q$43:$Q$48,OFFSET($D$42,1,MATCH($X61,$D$42:$O$42,0)-1,$D$34,1))),\"\")","v":25},27,32,25,27,32,29,31,36,0,0,0,0,0,0,0,0,0,0,0,0,0]
[null,null,null,null,null,null,null,null,null,null,null,null,null,null,null,null,null,null,null,null,null,null,null,"Brush",{"$f":"INDEX(Z62:AU62,0,MATCH(1,$Z$24:$AU$24,0))","v":0},null,null,null,null,null,null,null,null,null,null,{"$f":"IFERROR(IF(AJ$53=0,\"\",AJ35+SUMPRODUCT($T$43:$T$48,$S$43:$S$48,$Q$43:$Q$48,OFFSET($D$42,1,MATCH($X62,$D$42:$O$42,0)-1,$D$34,1))),\"\")","v":0},0,0,0,0,0,0,0,0,0,0,0]
[null,null,null,null,null,null,null,null,null,null,null,null,null,null,null,null,null,null,null,null,null,null,null,"FabricDrop",{"$f":"INDEX(Z63:AU63,0,MATCH(1,$Z$24:$AU$24,0))","v":-150},{"$f":"IFERROR(IF(Z$53=0,\"\",Z36+SUMPRODUCT($T$43:$T$48,$S$43:$S$48,$Q$43:$Q$48,OFFSET($D$42,1,MATCH($X63,$D$42:$O$42,0)-1,$D$34,1))),\"\")","v":-150},{"$f":"IFERROR(IF(AA$53=0,\"\",AA36+SUMPRODUCT($T$43:$T$48,$S$43:$S$48,$Q$43:$Q$48,OFFSET($D$42,1,MATCH($X63,$D$42:$O$42,0)-1,$D$34,1))),\"\")","v":-150},-150,-150,-150,-150,-150,-150,-150,0,{"$f":"IFERROR(IF(AJ$53=0,\"\",AJ36+SUMPRODUCT($T$43:$T$48,$S$43:$S$48,$Q$43:$Q$48,OFFSET($D$42,1,MATCH($X63,$D$42:$O$42,0)-1,$D$34,1))),\"\")","v":0},0,0,0,0,0,0,0,0,0,0,0]

{"sheet":"Ctrl_Recommendations","index":6,"n_rows":111,"n_cols":23,"rows_kept":111,"cut":false,"hidden":true,"merged":[[1,6,2,6],[1,7,2,7],[1,2,1,3],[1,4,1,5],[20,1,21,1],[13,2,13,3],[73,1,73,2],[54,1,54,2],[61,1,61,3],[17,1,18,1],[30,2,30,3],[31,2,31,3],[23,1,24,1],[21,10,21,21],[39,10,39,12],[39,13,39,15],[39,16,39,18],[39,19,39,21]]}
[]
[null,null,"Absolute Min",null,"Absolute Max",null,{"$f":"\"Current Value (\"&i_Units&\")\"","v":"Current Value ()"},"Outside Specs\n(0 = No, 1 = Yes)",null,null,null,null,null,null,null,null,null,null,null,null,null,"sorted by priority"]
[null,null,"mm",{"$f":"\"Min (\"&i_Units&\")\"","v":"Min ()"},"mm",{"$f":"\"Max (\"&i_Units&\")\"","v":"Max ()"},null,null,null,null,null,null,"FORMULA drive min-max",null,null,null,null,null,null,null,null,"Warning cells are NAMED."]
[null,"Width",{"$f":"o_MinWidthReqd","v":{"$error":"#N/A"}},{"$f":"IF(i_Units=\"Metric\",C4,CONVERT(C4,\"mm\",\"in\"))","v":{"$error":"#N/A"}},3000,{"$f":"IF(i_Units=\"Metric\",E4,CONVERT(E4,\"mm\",\"in\"))","v":118.11023622047243},{"$f":"i_Width","v":0},{"$f":"IF(AND(AND(i_Width<>\"\",i_Width>=0),OR(i_Width<MinWidth,i_Width>MaxWidth)),1,0)","v":{"$error":"#N/A"}}]
[null,"Drop",500,{"$f":"IF(i_Units=\"Metric\",C5,CONVERT(C5,\"mm\",\"in\"))","v":19.685039370078741},3000,{"$f":"IF(i_Units=\"Metric\",E5,CONVERT(E5,\"mm\",\"in\"))","v":118.11023622047243},{"$f":"i_Drop","v":0},{"$f":"IF(AND(AND(i_Drop<>\"\",i_Drop>=0),OR(i_Drop<MinDrop,i_Drop>MaxDrop)),1,0)","v":0},null,null,"#","Dim","Min","Max",null,"i_installationType",null,null,null,null,null,"on / off","Warning"]
[null,null,null,null,null,null,null,null,null,null,"w_BlindDrop","o_dropmm",null,3000,null,null,null,null,null,{"$f":"IFERROR(PRODUCT(IF(o_Dropmm>N6,\"1\",\"0\"),Q6),\"-\")","v":0},null,{"$f":"IFERROR(IF(T6>0,\"on\",\"off\"),\"-\")","v":"off"},{"$f":"\"Warning! Blind Drop is too large, recommended limit is \"&IF(i_Units=\"Metric\",ROUND(E5/1000,2) &\" m\", ROUND(CONVERT(E5,\"mm\",\"in\"),0)&\" in\")&\". Refer Specifications Manual.\"","v":"Warning! Blind Drop is too large, recommended limit is 118 in. Refer Specifications Manual."}]
[null,null,null,null,null,null,null,null,null,null,"w_BlindDrop","o_dropmm",null,3000,null,"Open",{"$f":"IFERROR(IF(ISBLANK(P7),\"\",IF(FIND(P7,INDIRECT($P$5))>0,0,1)),1)","v":1},null,null,{"$f":"IFERROR(PRODUCT(IF(o_Dropmm>N7,\"1\",\"0\"),Q7),\"-\")","v":0},null,{"$f":"IFERROR(IF(T7>0,\"on\",\"off\"),\"-\")","v":"off"},{"$f":"\"Warning! Blind Drop is greater than \"&IF(i_Units=\"Metric\",ROUND(N7/1000,2) &\" m\", ROUND(CONVERT(N7,\"mm\",\"in\"),0)&\" in\")","v":"Warning! Blind Drop is greater than 118 in"}]
[null,"Weight lookup_metric",{"$f":"IFERROR(INDEX(T_wbMassReq[wbMass],MATCH(i_ControlType,T_wbMassReq[Spring],0))/1000,\"\")","v":""},"kg/m",null,null,null,null,null,null,"w_BlindDrop","o_dropmm",{"$f":"C5","v":500},null,null,null,null,null,null,{"$f":"IFERROR(PRODUCT(IF(AND(o_Dropmm<>0,o_Dropmm<M8),\"1\",\"0\"),Q8),\"-\")","v":0},null,{"$f":"IFERROR(IF(T8>0,\"on\",\"off\"),\"-\")","v":"off"},{"$f":"\"Warning! Blind drop recommended to be greater than \"&IF(i_Units=\"Metric\",ROUND(M8,2) &\" mm\", ROUND(CONVERT(M8,\"mm\",\"in\"),1)&\" in\")&\".\"","v":"Warning! Blind drop recommended to be greater than 19.7 in."}]
[null,"Weight lookup_imperial",{"$f":"ROUND(o_ReqdwbMass*0.672,2)","v":{"$error":"#VALUE!"}},"lb/ft"]
[null,"Total Rec wb mass",{"$f":"(C8/1000)*o_Widthmm","v":{"$error":"#VALUE!"}},"kg",null,null,null,null,null,null,null,null,null,null,null,null,null,null,null,{"$f":"SUM($T$6:$T$8)","v":0},null,"w_BlindDrop"]
[null,"Total Rec wb mass",{"$f":"(C10)*c_kgPounds","v":{"$error":"#VALUE!"}},"lbs"]
[]
[null,null,null,null,null,null,null,null,null,null,"w_BlindWidth","o_widthmm",null,{"$f":"IFERROR(INDEX(T_Limit[Limit],MATCH(\"Width_Max\",T_Limit[Type],0),0),\"\")","v":3000},null,null,{"$f":"IFERROR(IF(ISBLANK(P13),\"\",IF(FIND(P13,INDIRECT($P$5))>0,0,1)),1)","v":""},null,null,{"$f":"IFERROR(PRODUCT(IF(o_Widthmm>N13,\"1\",\"0\")),\"-\")","v":0},null,{"$f":"IFERROR(IF(o_Widthmm>N13,\"on\",\"off\"),\"-\")","v":"off"},{"$f":"\"Warning! Blind Width is too wide, recommended limit is \"&IF(i_Units=\"Metric\",ROUND(N13/1000,2) &\" m\", ROUND(CONVERT(N13,\"mm\",\"in\"),1)&\" in\")&\". Refer Specifications Manual.\"","v":"Warning! Blind Width is too wide, recommended limit is 118.1 in. Refer Specifications Manual."}]
[null,null,null,null,null,null,null,null,null,null,"w_ControlWidth","o_widthmm",{"$f":"o_MinWidthReqd","v":{"$error":"#N/A"}},null,null,null,{"$f":"IFERROR(IF(ISBLANK(P14),\"\",IF(FIND(P14,INDIRECT($P$5))>0,0,1)),1)","v":""},null,null,{"$f":"IFERROR(PRODUCT(IF(o_Widthmm<M14,\"1\",\"0\")),\"-\")","v":"-"},null,{"$f":"IFERROR(IF(AND(i_ControlType<>\"\",o_Widthmm<M14),\"on\",\"off\"),\"-\")","v":"-"},{"$f":"\"Warning! Blind width too small for selected Control Type. Minimum Width: \"&IF(i_Units=\"Imperial\",ROUND(CONVERT(o_MinWidthReqd,\"mm\",\"in\"),1)&\" in\",o_MinWidthReqd&\" mm\")","v":{"$error":"#N/A"}}]
[null,"Width Range","400mm - 2400mm","15.75in - 94.49in",null,null,null,null,null,null,null,null,null,null,null,null,null,null,null,{"$f":"SUM(T13:T14)","v":0}]
[null,"Drop Range","500mm - 3400mm","19.69in - 133.86in"]
[]
[null,"Blind Width","mm","in"]
[null,null,{"$f":"IF(i_Units=\"Metric\",i_Width,CONVERT(i_Width,\"in\",\"mm\"))","v":0},{"$f":"IF(i_Units=\"Imperial\",i_Width,CONVERT(i_Width,\"mm\",\"in\"))","v":0}]
[]
[null,"Blind Drop","mm","in"]
[null,null,{"$f":"IF(i_Units=\"Metric\",i_Drop,CONVERT(i_Drop,\"in\",\"mm\"))","v":0},{"$f":"IF(i_Units=\"Imperial\",i_Drop,CONVERT(i_Drop,\"mm\",\"in\"))","v":0},null,null,null,null,null,null,"Removed from inputs page, Control Type:",null,null,null,null,null,null,null,null,null,null,null,{"$f":"IFERROR(IF(o_SystemSpecChart=\"X\", \"Outside Spring specifications.\", \"Recommended Spring: \"&o_SpringSize),\"\")","v":""}]
[]
[null,"Blind Area","m²","yd²"]
[null,null,{"$f":"ROUND((o_Widthmm*o_Dropmm)/(1000*1000),2)","v":0},{"$f":"ROUND((D19*D22)*0.000772,2)","v":0}]
[]
[]
[null,"Min Width Required",{"$f":"INDEX(H41:H64,MATCH(1,J41:J64,0))","v":{"$error":"#N/A"}},"mm"]
[]
[]
[null,"Control Selection",{"$f":"i_ControlType","v":0}]
[null,"Tube Selection",{"$f":"i_Tube","v":0}]
[null,"Width Input",{"$f":"ROUND((IF(i_Units=\"Metric\",i_Width,CONVERT(i_Width,\"in\",\"mm\"))),-2)/1000","v":0},"m","*round up 100mm"]
[null,"Drop Input",{"$f":"ROUND((IF(i_Units=\"Metric\",i_Drop,CONVERT(i_Drop,\"in\",\"mm\"))),-2)/1000","v":0},"m"]
[null,null,null,null,null,null,null,null,null,null,null,null,null,null,null,null,null,"SLB Skyline Bkts 4.89mm/side"]
[null,null,null,null,null,null,null,null,null,null,null,null,null,null,null,null,null,"LX Skyline Bkts 4.57mm/side"]
[null,null,null,null,null,null,null,null,null,null,null,null,null,null,null,null,null,"OpenBkt style fixed to 10mm for roundiung + global consistency"]
[]
[null,"T_wbMassReq","g/m",null,null,null,null,null,"Clearance"]
[null,"Spring","wbMass",null,null,null,null,"Min Width",null,null,"i_ControlType",null,null,"i_IdlerType",null,null,"i_OpenBktStyle",null,null,"i_OpenBktCovers"]
[null,"Easy Spring Air - MICRO - LH",500,null,null,null,null,{"$f":"ROUNDUP(SUM(M41+P41+S41+V41+I41),0)","v":397},5,{"$f":"L41*O41","v":0},"MINI",{"$f":"IFERROR(IF(ISBLANK(K41),\"\",IF(FIND(K41,INDIRECT($K$40))>0,1,0)),0)","v":0},340,null,{"$f":"IF(i_IdlerType=\"Skyline Pin End 1.5\"\"\",1,0)","v":0},41.15,null,null,10,"Yes",{"$f":"IFERROR(IF(ISBLANK(T41),\"\",IF(FIND(T41,INDIRECT($T$40))>0,1,0)),0)","v":0},{"$f":"IF(AND(R41=1,U41=1),2,IF(AND(R41=0,U41=1),3,0))","v":0}]
[null,"Easy Spring Air - MINI - LH",500,null,null,null,null,{"$f":"ROUNDUP(SUM(M42+P42+S42+V42+I42),0)","v":434},5,{"$f":"L42*O42","v":0},"MINI",0,340,"Heavy",{"$f":"IFERROR(IF(ISBLANK(N42),\"\",IF(FIND(N42,INDIRECT($N$40))>0,1,0)),0)","v":0},78.34,null,null,10,"Yes",{"$f":"IFERROR(IF(ISBLANK(T42),\"\",IF(FIND(T42,INDIRECT($T$40))>0,1,0)),0)","v":0},{"$f":"IF(AND(R42=1,U42=1),2,IF(AND(R42=0,U42=1),3,0))","v":0}]
[null,"Easy Spring Air - SMALL - LH",500,null,null,null,null,498,5,0,"MINI",0,340,"Stop | STD",{"$f":"IFERROR(IF(ISBLANK(N43),\"\",IF(FIND(N43,INDIRECT($N$40))>0,1,0)),0)","v":0},142.69,null,null,10,"Yes",0,0]
[null,"Easy Spring Air - LIGHT - LH",500,null,null,null,null,480,5,0,"MINI",0,340,"Stop | COM",{"$f":"IFERROR(IF(ISBLANK(N44),\"\",IF(FIND(N44,INDIRECT($N$40))>0,1,0)),0)","v":0},124.95,null,null,10,"Yes",0,0]
[null,"Easy Spring Air - MEDIUM - LH",500,null,null,null,null,397,5,{"$f":"L45*O45","v":0},"MICRO",0,340,null,{"$f":"IF(i_IdlerType=\"Skyline Pin End 1.5\"\"\",1,0)","v":0},41.15,null,null,10,"Yes",{"$f":"IFERROR(IF(ISBLANK(T45),\"\",IF(FIND(T45,INDIRECT($T$40))>0,1,0)),0)","v":0},{"$f":"IF(AND(R45=1,U45=1),2,IF(AND(R45=0,U45=1),3,0))","v":0}]
[null,"Easy Spring Air - HEAVY - LH",500,null,null,null,null,434,5,0,"MICRO",0,340,"Heavy",{"$f":"IFERROR(IF(ISBLANK(N46),\"\",IF(FIND(N46,INDIRECT($N$40))>0,1,0)),0)","v":0},78.34,null,null,10,"Yes",{"$f":"IFERROR(IF(ISBLANK(T46),\"\",IF(FIND(T46,INDIRECT($T$40))>0,1,0)),0)","v":0},{"$f":"IF(AND(R46=1,U46=1),2,IF(AND(R46=0,U46=1),3,0))","v":0}]
[null,null,{"$f":"IFERROR(IF(AND(#REF!=1,FIND(T_wbMassReq[[#This Row],[Spring]],i_Booster)>0),1,\"\"),\"\")","v":""},null,null,null,null,498,5,0,"MICRO",0,340,"Stop | STD",{"$f":"IFERROR(IF(ISBLANK(N47),\"\",IF(FIND(N47,INDIRECT($N$40))>0,1,0)),0)","v":0},142.69,null,null,10,"Yes",0,0]
[null,null,null,null,null,null,null,480,5,0,"MICRO",0,340,"Stop | COM",{"$f":"IFERROR(IF(ISBLANK(N48),\"\",IF(FIND(N48,INDIRECT($N$40))>0,1,0)),0)","v":0},124.95,null,null,10,"Yes",0,0]
[null,null,null,null,null,null,null,599,5,0,"SMALL",0,542,null,{"$f":"IF(i_IdlerType=\"Skyline Pin End 1.5\"\"\",1,0)","v":0},41.15,null,null,10,"Yes",{"$f":"IFERROR(IF(ISBLANK(T49),\"\",IF(FIND(T49,INDIRECT($T$40))>0,1,0)),0)","v":0},{"$f":"IF(AND(R49=1,U49=1),2,IF(AND(R49=0,U49=1),3,0))","v":0}]
[null,null,null,null,null,null,null,636,5,0,"SMALL",0,542,"Heavy",{"$f":"IFERROR(IF(ISBLANK(N50),\"\",IF(FIND(N50,INDIRECT($N$40))>0,1,0)),0)","v":0},78.34,null,null,10,"Yes",{"$f":"IFERROR(IF(ISBLANK(T50),\"\",IF(FIND(T50,INDIRECT($T$40))>0,1,0)),0)","v":0},{"$f":"IF(AND(R50=1,U50=1),2,IF(AND(R50=0,U50=1),3,0))","v":0}]
[null,null,null,null,null,null,null,700,5,0,"SMALL",0,542,"Stop | STD",{"$f":"IFERROR(IF(ISBLANK(N51),\"\",IF(FIND(N51,INDIRECT($N$40))>0,1,0)),0)","v":0},142.69,null,null,10,"Yes",0,0]
[null,null,null,null,null,null,null,682,5,0,"SMALL",0,542,"Stop | COM",{"$f":"IFERROR(IF(ISBLANK(N52),\"\",IF(FIND(N52,INDIRECT($N$40))>0,1,0)),0)","v":0},124.95,null,null,10,"Yes",0,0]
[null,null,null,null,null,null,null,599,5,0,"LIGHT",0,542,null,{"$f":"IF(i_IdlerType=\"Skyline Pin End 1.5\"\"\",1,0)","v":0},41.15,null,null,10,"Yes",0,0]
[null,null,null,null,null,null,null,636,5,{"$f":"L54*O54","v":0},"LIGHT",0,542,"Heavy",{"$f":"IFERROR(IF(ISBLANK(N54),\"\",IF(FIND(N54,INDIRECT($N$40))>0,1,0)),0)","v":0},78.34,null,null,10,"Yes",0,0]
[null,"T_ConvertTube",null,null,null,null,null,700,5,0,"LIGHT",0,542,"Stop | STD",{"$f":"IFERROR(IF(ISBLANK(N55),\"\",IF(FIND(N55,INDIRECT($N$40))>0,1,0)),0)","v":0},142.69,null,null,10,"Yes",0,0]
[null,"Input","Output",null,null,null,null,682,5,0,"LIGHT",0,542,"Stop | COM",{"$f":"IFERROR(IF(ISBLANK(N56),\"\",IF(FIND(N56,INDIRECT($N$40))>0,1,0)),0)","v":0},124.95,null,null,10,"Yes",0,0]
[null,null,null,null,null,null,null,909,5,0,"MEDIUM",0,852,null,{"$f":"IF(i_IdlerType=\"Skyline Pin End 1.5\"\"\",1,0)","v":0},41.15,null,null,10,"Yes",0,0]
[null,null,null,null,null,null,null,946,5,0,"MEDIUM",0,852,"Heavy",{"$f":"IFERROR(IF(ISBLANK(N58),\"\",IF(FIND(N58,INDIRECT($N$40))>0,1,0)),0)","v":0},78.34,null,null,10,"Yes",0,0]
[null,null,null,null,null,null,null,1010,5,0,"MEDIUM",0,852,"Stop | STD",{"$f":"IFERROR(IF(ISBLANK(N59),\"\",IF(FIND(N59,INDIRECT($N$40))>0,1,0)),0)","v":0},142.69,null,null,10,"Yes",0,0]
[null,null,null,null,null,null,null,992,5,0,"MEDIUM",0,852,"Stop | COM",{"$f":"IFERROR(IF(ISBLANK(N60),\"\",IF(FIND(N60,INDIRECT($N$40))>0,1,0)),0)","v":0},124.95,null,null,10,"Yes",0,0]
[null,null,null,null,null,null,null,1009,5,0,"HEAVY",0,952,null,{"$f":"IF(i_IdlerType=\"Skyline Pin End 1.5\"\"\",1,0)","v":0},41.15,null,null,10,"Yes",0,0]
[null,"T_ConvertBooster",null,null,null,null,null,1046,5,0,"HEAVY",0,952,"Heavy",{"$f":"IFERROR(IF(ISBLANK(N62),\"\",IF(FIND(N62,INDIRECT($N$40))>0,1,0)),0)","v":0},78.34,null,null,10,"Yes",0,0]
[null,"ID","D_Show","D_Booster",null,null,null,1110,5,0,"HEAVY",0,952,"Stop | STD",{"$f":"IFERROR(IF(ISBLANK(N63),\"\",IF(FIND(N63,INDIRECT($N$40))>0,1,0)),0)","v":0},142.69,null,null,10,"Yes",0,0]
[null,null,null,null,null,null,null,1092,5,0,"HEAVY",0,952,"Stop | COM",{"$f":"IFERROR(IF(ISBLANK(N64),\"\",IF(FIND(N64,INDIRECT($N$40))>0,1,0)),0)","v":0},124.95,null,null,10,"Yes",0,0]
[]
[]
[]
[]
[]
[]
[]
[]
[]
[null,"T_ConvertSystemType"]
[null,"Input","Output"]
[null,"Zipscreen","_Zipscreen_"]
[]
[]
[]
[]
[]
[]
[]
[]
[]
[]
[]
[]
[]
[]
[]
[]
[null,"SLB660",null,null,"IDLER","SLB660"]
[null,4.57,952,5,41.58,4.57,{"$f":"SUM(B94:F94)","v":1007.7200000000001}]
[null,4.57,{"$f":"C94","v":952},5,78.34,4.57,{"$f":"SUM(B95:F95)","v":1044.48}]
[null,4.57,{"$f":"C94","v":952},5,142.69,4.57,1108.83]
[null,4.57,{"$f":"C94","v":952},5,124.95,4.57,1091.0899999999999]
[]
[null,"LX Skyline"]
[null,4.8899999999999997,{"$f":"(B100-B94)*2","v":0.63999999999999879}]
[]
[null,"HEAVY",952]
[null,"LIGHT",542]
[null,"MED",852]
[null,"MINI",340]
[]
[]
[null,"STD 1.5\"",41.15]
[null,"HD 1.5\"",78.34]
[null,"Universal Limiter",142.69]
[null,"Short Limiter",124.95]

{"sheet":"Calc_Torque","index":7,"n_rows":26,"n_cols":16,"rows_kept":26,"cut":false,"hidden":true,"merged":[]}
[]
[]
[]
[null,"Fabric Density",0.39,"kg/m²",null,"Total Fabric Length",{"$f":"IF(C17=\"Yes\",C7+PI()*C8/1000,C7)","v":4.1358738822677585},"m",null,null,null,"mm","Nm",null,"Nm"]
[null,"Fabric Thickness",0.6,"mm",null,"Fabric mass per metre of drop",{"$f":"C6*C4","v":1.56},"kg/m",null,null,null,"Diameter","Holding Capacity","Gear Ratio","Friction"]
[null,"Width",4,"m",null,"Blind mass per metre of width",{"$f":"C10+C11","v":0.28999999999999998},"kg/m",null,null,"RB09",46,1,1,0.2]
[null,"Drop",4,"m",null,"TOTAL Fabric + Weight Bar mass",{"$f":"((C4*G4)+G6)*C6*g","v":74.673359544672877},"N"]
[null,"Tube OD",43.25,"mm",null,null,{"$f":"G7/g","v":7.6119632563377033},"kg"]
[null,"Tube Mass",0.41,"kg/m",null,"Tube Rotations",{"$f":"(-C8+SQRT(C8^2+4*C5*C7*1000/PI()))/(2*C5)","v":22.448226853522343},"Turns",null,null,null,"mm","kg/m","(mm⁴)","(Nm²)"]
[null,"Weight Bar Mass",0.28999999999999998,"kg/m",null,"TOTAL Fabric + wb + tube mass",{"$f":"((C4*G4)+G6+C9)*C6*g","v":90.76175954467287},"N",null,null,null,"OD","Mass/m","I_min","EI"]
[null,"Ballast Mass",0,"kg/m",null,null,{"$f":"G10/g","v":9.251963256337703},"kg",null,null,"S45 LIGHT",43.25,0.41,33442,2274]
[null,"Booster",0,"Nm",null,null,{"$f":"CONVERT(G11,\"kg\",\"lbm\")","v":20.397087491435766},"lbs"]
[null,"Control Capacity",1,"Nm",null,"Drop (function of # turns)",{"$f":"G9*PI()*C8+PI()*C5*G9^2","v":3999.9999999999986},"mm"]
[null,null,null,null,null,"Control Capacity",{"$f":"ROUND(((C13+C12)/((C8/2/1000)))/g,2)","v":4.71},"kg",null,null,null,"(mm²)","kg/m","(mm⁴)","(mm⁴)","(Nm²)"]
[null,null,null,null,null,"Friction",null,null,null,null,null,"CSA","Mass/m","I_y","I_x","EI"]
[null,null,null,null,null,"Friction additive",null,"Nm",null,null,"D30",107,0.30599999999999999,9647,2486,656]
[null,"Pre-wrap","Yes",null,null,"T_Max",null,"Nm"]
[]
[null,"Max Roll Diameter",105,"mm",null,null,null,null,null,null,null,null,"kg/m"]
[null,"Max Area",50,"m²",null,null,null,null,null,null,null,null,"Mass/m"]
[null,"Link System Capacity",3,"Nm",null,null,null,null,null,null,"BALLAST",null,0.97]
[]
[]
[null,null,null,null,null,null,null,null,null,null,null,null,"T_Max"]
[null,null,null,null,null,null,null,null,null,null,null,null,"Nm"]
[null,null,null,null,null,null,null,null,null,null,"BOOSTER",null,0]

{"sheet":"Ctrl_Limitations","index":8,"n_rows":76,"n_cols":42,"rows_kept":76,"cut":false,"hidden":true,"merged":[[2,26,2,41],[4,24,8,24],[4,25,8,25],[9,24,13,24],[9,25,13,25]]}
[]
[null,null,null,"Does",null,"Apply to "]
[null,null,null,null,null,null,null,null,null,null,null,null,null,null,null,null,null,null,null,null,null,null,null,null,"Enter DEPENDENCIES","SELECTION OPTIONS","CONFIGURATIONS"]
[null,null,null,null,null,null,null,null,null,null,null,null,null,null,null,null,null,null,null,null,null,null,null,null,null,{"$f":"MAX(AA4:AP4)","v":1},1,{"$f":"SUM(COUNTIF(AB5:AB19,$Y$5:$Y$19))","v":0},{"$f":"SUM(COUNTIF(AC5:AC19,$Y$5:$Y$19))","v":0},{"$f":"SUM(COUNTIF(AD5:AD19,$Y$5:$Y$19))","v":0},{"$f":"SUM(COUNTIF(AE5:AE19,$Y$5:$Y$19))","v":0},{"$f":"SUM(COUNTIF(AF5:AF19,$Y$5:$Y$19))","v":0},{"$f":"SUM(COUNTIF(AG5:AG19,$Y$5:$Y$19))","v":0},{"$f":"SUM(COUNTIF(AH5:AH19,$Y$5:$Y$19))","v":0},{"$f":"SUM(COUNTIF(AI5:AI19,$Y$5:$Y$19))","v":0},{"$f":"SUM(COUNTIF(AJ5:AJ19,$Y$5:$Y$19))","v":0},{"$f":"SUM(COUNTIF(AK5:AK19,$Y$5:$Y$19))","v":0},{"$f":"SUM(COUNTIF(AL5:AL19,$Y$5:$Y$19))","v":0},{"$f":"SUM(COUNTIF(AM5:AM19,$Y$5:$Y$19))","v":0},{"$f":"SUM(COUNTIF(AN5:AN19,$Y$5:$Y$19))","v":0},{"$f":"SUM(COUNTIF(AO5:AO19,$Y$5:$Y$19))","v":0},{"$f":"SUM(COUNTIF(AP5:AP19,$Y$5:$Y$19))","v":0}]
[null,null,null,null,null,null,null,null,null,null,null,null,null,null,null,null,null,null,null,null,null,null,null,null,{"$f":"INDIRECT(\"i_\"&SUBSTITUTE($Z5,\" \",\"\"))","v":0},"System Type"]
[]
[]
[]
[]
[null,null,null,null,null,null,null,null,null,null,null,null,null,null,null,null,null,null,null,null,null,null,null,null,{"$f":"INDIRECT(\"i_\"&SUBSTITUTE($Z10,\" \",\"\"))","v":0},"Installation Type"]
[]
[]
[]
[]
[]
[]
[]
[]
[]
[]
[]
[]
[]
[null,null,null,null,null,null,null,null,null,null,null,null,null,null,null,null,null,null,null,null,null,null,null,null,"Type","Limitation Value",{"$f":"IF(AA4<>$Z$4,0,1)","v":1},0,0,0,0,0,0,0,0,0,0,0,0,0,0,0]
[null,null,null,null,null,null,null,null,null,null,null,null,null,null,null,null,null,null,null,null,null,null,null,null,"Width_Max",{"$f":"INDEX(AA25:AP25,0,MATCH(1,$AA$24:$AP$24,0))","v":3000},{"$f":"Ctrl_Recommendations!E4","v":3000}]
[null,null,null,null,null,null,null,null,null,null,null,null,null,null,null,null,null,null,null,null,null,null,null,null,"Drop_Max",3000,{"$f":"Ctrl_Recommendations!E5","v":3000}]
[null,null,null,null,null,null,null,null,null,null,null,null,null,null,null,null,null,null,null,null,null,null,null,null,"Area_Max",0]
[null,null,null,null,null,null,null,null,null,null,null,null,null,null,null,null,null,null,null,null,null,null,null,null,"Drop_Max_hard",3000,{"$f":"AA26","v":3000}]
[null,null,null,null,null,null,null,null,null,null,null,null,null,null,null,null,null,null,null,null,null,null,null,null,null,0]
[null,null,null,null,null,null,null,null,null,null,null,null,null,null,null,null,null,null,null,null,null,null,null,null,null,0]
[null,null,null,null,null,null,null,null,null,null,null,null,null,null,null,null,null,null,null,null,null,null,null,null,null,0]
[null,null,null,null,null,null,null,null,null,null,null,null,null,null,null,null,null,null,null,null,null,null,null,null,null,0]
[null,null,null,null,null,null,null,null,null,null,null,null,null,null,null,null,null,null,null,null,null,null,null,null,null,0]
[null,null,null,{"$f":"COUNTA($D$44:$D$69)","v":16},null,null,null,null,null,null,null,null,null,null,null,null,null,null,null,null,null,null,null,null,null,0]
[null,null,null,null,null,null,null,null,null,null,null,null,null,null,null,null,null,null,null,null,null,null,null,null,null,0]
[null,null,null,null,null,null,null,null,null,null,null,null,null,null,null,null,null,null,null,null,null,null,null,null,null,0]
[null,null,null,null,null,null,null,null,null,null,null,null,null,null,null,null,null,null,null,null,null,null,"weight bar, ",null,null,0]
[null,null,null,null,null,null,null,null,null,null,null,null,null,null,null,null,null,null,null,null,null,null,"tubes?"]
[]
[]
[null,null,null,null,null,null,null,null,null,null,null,null,null,null,null,null,null,"Lookup",null,null,null,null,null,null,"Recommendations?"]
[null,null,null,null,null,null,null,null,null,null,null,null,null,null,null,null,null,"Deduction"]
[null,null,null,{"$f":"Y25","v":"Width_Max"},{"$f":"Y26","v":"Drop_Max"},{"$f":"Y27","v":"Area_Max"},{"$f":"Y28","v":"Drop_Max_hard"},{"$f":"Y29","v":0},{"$f":"Y30","v":0},{"$f":"Y31","v":0},{"$f":"Y32","v":0},{"$f":"Y33","v":0},{"$f":"Y34","v":0},{"$f":"Y35","v":0},{"$f":"Y36","v":0},{"$f":"Y37","v":0},null,"Modifiers",null,"QTY","ON/OFF",null,"Comments",null,null,null,{"$f":"IF(AA4<>$Z$4,0,1)","v":1},0,0,0,0,0,0,0,0,0,0,0,0,0,0,0]
[null,null,null,0,0,1,0,0,0,0,0,0,0,0,0,0,null,{"$f":"INDEX($AA$44:$AP$59,0,MATCH(1,$AA$43:$AP$43,0))","v":0},null,1,{"$f":"IFERROR(IF(ISBLANK(Y44),\"\",IF(FIND(Z44,INDIRECT(\"i_\"&$Y44))>0,1,0)),0)","v":0},null,null,null,"Tube","AL HD"]
[null,null,null,0,1,0,0,0,0,0,0,0,0,0,0,0,null,0,null,1,0,null,"if box120 cover",null,"InstallationType","Cover"]
[null,null,null,0,1,0,0,0,0,0,0,0,0,0,0,0,null,0,null,1,0,null,null,null,"InstallationType","Box 190"]
[null,null,null,0,1,0,0,0,0,0,0,0,0,0,0,0,null,0,null,1,0,null,null,null,"InstallationType","Box 190"]
[null,null,null,0,0,0,0,0,0,0,0,0,0,0,0,0,null,0,null,1,""]
[null,null,null,0,0,0,0,0,0,0,0,0,0,0,0,0,null,0,null,1,""]
[null,null,null,0,0,0,0,0,0,0,0,0,0,0,0,0,null,0,null,1,""]
[null,null,null,0,0,0,0,0,0,0,0,0,0,0,0,0,null,0,null,1,""]
[null,null,null,0,0,0,0,0,0,0,0,0,0,0,0,0,null,0,null,1,""]
[null,null,null,0,0,0,0,0,0,0,0,0,0,0,0,0,null,0,null,1,""]
[null,null,null,0,0,0,0,0,0,0,0,0,0,0,0,0,null,0,null,1,""]
[null,null,null,0,0,0,0,0,0,0,0,0,0,0,0,0,null,0,null,1,""]
[null,null,null,0,0,0,0,0,0,0,0,0,0,0,0,0,null,0,null,1,""]
[null,null,null,0,0,0,0,0,0,0,0,0,0,0,0,0,null,0,null,1,""]
[null,null,null,0,0,0,0,0,0,0,0,0,0,0,0,0,null,0,null,1,""]
[null,null,null,0,0,0,0,0,0,0,0,0,0,0,0,0,null,0,null,1,""]
[]
[]
[]
[null,null,null,null,null,null,null,null,null,null,null,null,null,null,null,null,null,null,null,null,null,null,null,null,"Type","Limit",{"$f":"IF(AA4<>$Z$4,0,1)","v":1},0,0,0,0,0,0,0,0,0,0,0,0,0,0,0]
[null,null,null,null,null,null,null,null,null,null,null,null,null,null,null,null,null,null,null,null,null,null,null,null,{"$f":"Y25","v":"Width_Max"},{"$f":"INDEX(AA64:AP64,0,MATCH(1,$AA$24:$AP$24,0))","v":3000},{"$f":"IFERROR(IF(AA$63=0,\"\",AA25+SUMPRODUCT($U$44:$U$59,$T$44:$T$59,$R$44:$R$59,OFFSET($D$43,1,MATCH($Y64,$D$43:$P$43,0)-1,$D$34,1))),\"\")","v":3000},"","","","","","","","","","","","","","",""]
[null,null,null,null,null,null,null,null,null,null,null,null,null,null,null,null,null,null,null,null,null,null,null,null,"Drop_Max",{"$f":"INDEX(AA65:AP65,0,MATCH(1,$AA$24:$AP$24,0))","v":3000},{"$f":"IFERROR(IF(AA$63=0,\"\",AA26+SUMPRODUCT($U$44:$U$59,$T$44:$T$59,$R$44:$R$59,OFFSET($D$43,1,MATCH($Y65,$D$43:$P$43,0)-1,$D$34,1))),\"\")","v":3000},"","","","","","","","","","","","","","",""]
[null,null,null,null,null,null,null,null,null,null,null,null,null,null,null,null,null,null,null,null,null,null,null,null,"Area_Max",{"$f":"INDEX(AA66:AP66,0,MATCH(1,$AA$24:$AP$24,0))","v":0},{"$f":"IFERROR(IF(AA$63=0,\"\",AA27+SUMPRODUCT($U$44:$U$59,$T$44:$T$59,$R$44:$R$59,OFFSET($D$43,1,MATCH($Y66,$D$43:$P$43,0)-1,$D$34,1))),\"\")","v":0},"","","","","","","","","","","","","","",""]
[null,null,null,null,null,null,null,null,null,null,null,null,null,null,null,null,null,null,null,null,null,null,null,null,"Drop_Max_hard",{"$f":"INDEX(AA67:AP67,0,MATCH(1,$AA$24:$AP$24,0))","v":3000},{"$f":"IFERROR(IF(AA$63=0,\"\",AA28+SUMPRODUCT($U$44:$U$59,$T$44:$T$59,$R$44:$R$59,OFFSET($D$43,1,MATCH($Y67,$D$43:$P$43,0)-1,$D$34,1))),\"\")","v":3000},"","","","","","","","","","","","","","",""]
[null,null,null,null,null,null,null,null,null,null,null,null,null,null,null,null,null,null,null,null,null,null,null,null,0,{"$f":"INDEX(AA68:AP68,0,MATCH(1,$AA$24:$AP$24,0))","v":0},{"$f":"IFERROR(IF(AA$63=0,\"\",AA29+SUMPRODUCT($U$44:$U$59,$T$44:$T$59,$R$44:$R$59,OFFSET($D$43,1,MATCH($Y68,$D$43:$P$43,0)-1,$D$34,1))),\"\")","v":0},"","","","","","","","","","","","","","",""]
[null,null,null,null,null,null,null,null,null,null,null,null,null,null,null,null,null,null,null,null,null,null,null,null,0,{"$f":"INDEX(AA69:AP69,0,MATCH(1,$AA$24:$AP$24,0))","v":0},{"$f":"IFERROR(IF(AA$63=0,\"\",AA30+SUMPRODUCT($U$44:$U$59,$T$44:$T$59,$R$44:$R$59,OFFSET($D$43,1,MATCH($Y69,$D$43:$P$43,0)-1,$D$34,1))),\"\")","v":0},"","","","","","","","","","","","","","",""]
[null,null,null,null,null,null,null,null,null,null,null,null,null,null,null,null,null,null,null,null,null,null,null,null,0,{"$f":"INDEX(AA70:AP70,0,MATCH(1,$AA$24:$AP$24,0))","v":0},{"$f":"IFERROR(IF(AA$63=0,\"\",AA31+SUMPRODUCT($U$44:$U$59,$T$44:$T$59,$R$44:$R$59,OFFSET($D$43,1,MATCH($Y70,$D$43:$P$43,0)-1,$D$34,1))),\"\")","v":0},"","","","","","","","","","","","","","",""]
[null,null,null,null,null,null,null,null,null,null,null,null,null,null,null,null,null,null,null,null,null,null,null,null,0,{"$f":"INDEX(AA71:AP71,0,MATCH(1,$AA$24:$AP$24,0))","v":0},{"$f":"IFERROR(IF(AA$63=0,\"\",AA32+SUMPRODUCT($U$44:$U$59,$T$44:$T$59,$R$44:$R$59,OFFSET($D$43,1,MATCH($Y71,$D$43:$P$43,0)-1,$D$34,1))),\"\")","v":0},"","","","","","","","","","","","","","",""]
[null,null,null,null,null,null,null,null,null,null,null,null,null,null,null,null,null,null,null,null,null,null,null,null,0,{"$f":"INDEX(AA72:AP72,0,MATCH(1,$AA$24:$AP$24,0))","v":0},{"$f":"IFERROR(IF(AA$63=0,\"\",AA33+SUMPRODUCT($U$44:$U$59,$T$44:$T$59,$R$44:$R$59,OFFSET($D$43,1,MATCH($Y72,$D$43:$P$43,0)-1,$D$34,1))),\"\")","v":0},"","","","","","","","","","","","","","",""]
[null,null,null,null,null,null,null,null,null,null,null,null,null,null,null,null,null,null,null,null,null,null,null,null,0,{"$f":"INDEX(AA73:AP73,0,MATCH(1,$AA$24:$AP$24,0))","v":0},{"$f":"IFERROR(IF(AA$63=0,\"\",AA34+SUMPRODUCT($U$44:$U$59,$T$44:$T$59,$R$44:$R$59,OFFSET($D$43,1,MATCH($Y73,$D$43:$P$43,0)-1,$D$34,1))),\"\")","v":0},"","","","","","","","","","","","","","",""]
[null,null,null,null,null,null,null,null,null,null,null,null,null,null,null,null,null,null,null,null,null,null,null,null,{"$f":"Y36","v":0},{"$f":"INDEX(AA74:AP74,0,MATCH(1,$AA$24:$AP$24,0))","v":0},{"$f":"IFERROR(IF(AA$63=0,\"\",AA36+SUMPRODUCT($U$44:$U$59,$T$44:$T$59,$R$44:$R$59,OFFSET($D$43,1,MATCH($Y74,$D$43:$P$43,0)-1,$D$34,1))),\"\")","v":0},"","","","","","","","","","","","","","",""]
[null,null,null,null,null,null,null,null,null,null,null,null,null,null,null,null,null,null,null,null,null,null,null,null,{"$f":"Y37","v":0},{"$f":"INDEX(AA75:AP75,0,MATCH(1,$AA$24:$AP$24,0))","v":0},{"$f":"IFERROR(IF(AA$63=0,\"\",AA37+SUMPRODUCT($U$44:$U$59,$T$44:$T$59,$R$44:$R$59,OFFSET($D$43,1,MATCH($Y75,$D$43:$P$43,0)-1,$D$34,1))),\"\")","v":0},"","","","","","","","","","","","","","",""]
[null,null,null,null,null,null,null,null,null,null,null,null,null,null,null,null,null,null,null,null,null,null,null,null,{"$f":"Y38","v":0}]

{"sheet":"PriceList_AU_hide","index":9,"n_rows":130,"n_cols":11,"rows_kept":130,"cut":false,"hidden":true,"merged":[]}
[null,"HIDE",null,"HIDE","HIDE","HIDE"]
[null,"No.","Description","Colour Description","Base Unit of Measure","AU",null,null,null,"Last Update:","2023-11-13"]
[null,"AW91-1401-338000","Idler Housing - 78mm tube","Silver Grey","PIECE",5.44]
[null,"AW91-1501-050000","Fabric Brush T Slot Fit - 7 x 4.8mm | 350m Roll","Black, Satin","METRE",1.59]
[null,"MG10-6001-010909","Idler Spring - O/D 7x43 - 0.71 GALV. wire (RB10)","S/S 304, Natural","PIECE",0.78]
[null,"MG10-6001-025908","Idler Shaft 8 x 8 x 45mm (RB10)","Silver ZINC Plated","PIECE",0.89]
[null,"MG10-6001-029908","Idler Shaft 8 x 8 x 45mm (RB10) - External Plating","Silver CHROME Plated","PIECE",0]
[null,"MG10-6001-050920","Idler Bracket Adaptor | Universal","Black, Satin","PIECE",1.66]
[null,"MG10-6001-069910","Idler Spindle (RB10)","Pure White","PIECE",0.85]
[null,"MG56-0127-343904","Idler Hex Liner for Bearing - 17OD Capped Bore","Gun Grey","PIECE",0.43]
[null,"MK02-RB12-069007","EASY SPRING ULTRA Sample Kit","Pure White","KIT",62.35]
[null,"MK02-RB12-069008","EASY SPRING ULTRA Sample Kit – S45 - White","Pure White","KIT",0]
[null,"MK02-RB12-069009","EASY SPRING ULTRA Sample Kit – 1.5” - White","Pure White","KIT",63.48]
[null,"MK02-RB12-069010","Easy Spring Air Accessories Kit (AU)","","KIT",12]
[null,"MK02-RB91-1239069","Fabric wrap/Bottom up hem bar sample 400x400mm","Pure White","KIT",0]
[null,"MW91-1301-025903","Idler Pin","Silver ZINC Plated","PIECE",0]
[null,"MZ56-0127-025000","Idler Bearing HOUSING for ACM Boxes with Uni-Sys I","Silver ZINC Plated","PIECE",4.0199999999999996]
[null,"RB08-4141-050040","AX Bracket Cover Caps - 40mm | S40/45","Black, Satin","PAIR",0.79]
[null,"RB08-4151-050040","LX/VX Bracket Cover Caps - 40mm | S40/S45","Black, Satin","PAIR",0.85]
[null,"RB08-4151-050055","LX/VX Bracket Cover Caps - 55mm | S40/S45","Black, Satin","PAIR",1]
[null,"RB08-4151-069040","LX/VX Bracket Cover Caps - 40mm | S40/S45","Pure White","PAIR",0.85]
[null,"RB08-4151-069055","LX/VX Bracket Cover Caps - 55mm | S40/S45","Pure White","PAIR",1]
[null,"RB08-4151-269040","LX/VX Bracket Cover Caps - 40mm | S40/S45","Sandstone","PAIR",0.85]
[null,"RB08-4151-269055","LX/VX Bracket Cover Caps - 55mm | S40/S45","Sandstone","PAIR",1]
[null,"RB08-4151-283040","LX/VX Bracket Cover Caps - 40mm | S40/S45","Barley","PAIR",0.85]
[null,"RB08-4151-283055","LX/VX Bracket Cover Caps - 55mm | S40/S45","Barley","PAIR",1]
[null,"RB08-4151-338040","LX/VX Bracket Cover Caps - 40mm | S40/S45","Silver Grey","PAIR",0.85]
[null,"RB08-4151-338055","LX/VX Bracket Cover Caps - 55mm | S40/S45","Silver Grey","PAIR",1]
[null,"RB12-3301-069138","Easy Spring Wand Control | LH (Blue Collar)","Pure White","PIECE",22.25]
[null,"RB12-3301-069238","Easy Spring Wand Control | RH (Red Collar)","Pure White","PIECE",22.25]
[null,"RB12-3511-069090","Easy Spring Wand Control+Wand | LH (Blue) Wht","Pure White","PIECE",0]
[null,"RB12-3521-069090","Easy Spring Wand Control+Wand | RH (Red) Wht","Pure White","PIECE",0]
[null,"RB12-3835-503038","Easy Spring Air - Tension Lock","Orange","PIECE",0.99]
[null,"RB12-3836-025000","Easy Spring Air – PreTension Tool (5mm Hex)","Silver ZINC Plated","PIECE",1.29]
[null,"RB12-3837-025000","Easy Spring Air – Spanner Tool","Silver ZINC Plated","PIECE",1.99]
[null,"RB12-4528-069045","Easy Spring Air - MICRO w Adjust - S45 LH ","Pure White","PIECE",28.2]
[null,"RB12-4529-069045","Easy Spring Air - SMALL w Adjust - S45 LH ","Pure White","PIECE",33.1]
[null,"RB12-4531-069045","Easy Spring Air - MINI w Adjust - S45 LH ","Pure White","PIECE",28.2]
[null,"RB12-4532-069045","Easy Spring Air - LIGHT w Adjust - S45 LH ","Pure White","PIECE",33.1]
[null,"RB12-4533-069045","Easy Spring Air - MED w Adjust - S45 LH","Pure White","PIECE",39.4]
[null,"RB12-4534-069045","Easy Spring Air - HEAVY w Adjust - S45 LH","Pure White","PIECE",42.1]
[null,"RB12-6101-050038","Limiter – Single Stop | Universal 1.5\" (38mm) V2","Black, Satin","PIECE",8.33]
[null,"RB12-6101-050045","Limiter – Single Stop | Universal S45 V2","Black, Satin","PIECE",8.33]
[null,"RB12-6101-069038","Limiter – Single Stop | Universal 1.5\" (38mm) V2","Pure White","PIECE",8.33]
[null,"RB12-6101-069045","Limiter – Single Stop | Universal S45 V2","Pure White","PIECE",8.33]
[null,"RB12-6101-338038","Limiter – Single Stop | Universal 1.5\" (38mm) V2","Silver Grey","PIECE",8.33]
[null,"RB12-6101-338045","Limiter – Single Stop | Universal S45 V2","Silver Grey","PIECE",8.33]
[null,"RB12-6102-050038","Limiter – Single Stop | Universal COMPACT 38mm V2","Black, Satin","PIECE",0]
[null,"RB12-6102-050045","Limiter – Single Stop | Universal COMPACT S45 V2","Black, Satin","PIECE",8.2200000000000006]
[null,"RB12-6102-069038","Limiter – Single Stop | Universal COMPACT 38mm V2","Pure White","PIECE",0]
[null,"RB12-6102-069045","Limiter – Single Stop | Universal COMPACT S45 V2","Pure White","PIECE",8.2200000000000006]
[null,"RB12-6102-338038","Limiter – Single Stop | Universal COMPACT 38mm V2","Silver Grey","PIECE",0]
[null,"RB12-6102-338045","Limiter – Single Stop | Universal COMPACT S45 V2","Silver Grey","PIECE",8.2200000000000006]
[null,"RB12-9001-050090","Easy Spring Wand | Universal - 36\" (90cm)","Black, Satin","PIECE",2.38]
[null,"RB12-9001-069090","Easy Spring Wand | Universal - 36\" (90cm)","Pure White","PIECE",2.38]
[null,"RB91-1232-000580","D30 SILENT Alum. Bottom Rail | 14 x 31mm x 5.8m","Mill Finish","LENGTH",37.409999999999997]
[null,"RB91-1232-020580","D30 SILENT Alum. Bottom Rail | 14 x 31mm x 5.8m","Anodised 15","LENGTH",38.909999999999997]
[null,"RB91-1232-050580","D30 SILENT Alum. Bottom Rail | 14 x 31mm x 5.8m","Black, Satin","LENGTH",38.909999999999997]
[null,"RB91-1232-069580","D30 SILENT Alum. Bottom Rail | 14 x 31mm x 5.8m","Pure White","LENGTH",38.909999999999997]
[null,"RB91-1232-082580","D30 SILENT Alum. Bottom Rail | 14 x 31mm x 5.8m","Metro. Bronze Pearl","LENGTH",38.909999999999997]
[null,"RB91-1232-150580","D30 SILENT Alum. Bottom Rail | 14 x 31mm x 5.8m","Textured Black","LENGTH",38.909999999999997]
[null,"RB91-1232-169580","D30 SILENT Alum. Bottom Rail | 14 x 31mm x 5.8m","Textured Pure White","LENGTH",38.909999999999997]
[null,"RB91-1232-269580","D30 SILENT Alum. Bottom Rail | 14 x 31mm x 5.8m","Sandstone","LENGTH",38.909999999999997]
[null,"RB91-1232-280580","D30 SILENT Alum. Bottom Rail | 14 x 31mm x 5.8m","Bone","LENGTH",38.909999999999997]
[null,"RB91-1232-283580","D30 SILENT Alum. Bottom Rail | 14 x 31mm x 5.8m","Barley","LENGTH",38.909999999999997]
[null,"RB91-1232-297580","D30 SILENT Alum. Bottom Rail | 14 x 31mm x 5.8m","Canvas Cloth Matt","LENGTH",0]
[null,"RB91-1232-428580","D30 SILENT Alum. Bottom Rail | 14 x 31mm x 5.8m","Dune","LENGTH",38.909999999999997]
[null,"RB91-2131-050002","D30 Medium Bottom Rail End Caps | LH & RH","Black, Satin","PAIR",0.57999999999999996]
[null,"RB91-2131-069002","D30 Medium Bottom Rail End Caps | LH & RH","Pure White","PAIR",0.57999999999999996]
[null,"RB91-2131-082002","D30 Medium Bottom Rail End Caps | LH & RH","Metro. Bronze Pearl","PAIR",0.57999999999999996]
[null,"RB91-2131-269002","D30 Medium Bottom Rail End Caps | LH & RH","Sandstone","PAIR",0.57999999999999996]
[null,"RB91-2131-280002","D30 Medium Bottom Rail End Caps | LH & RH","Bone","PAIR",0.57999999999999996]
[null,"RB91-2131-283002","D30 Medium Bottom Rail End Caps | LH & RH","Barley","PAIR",0.57999999999999996]
[null,"RB91-2131-338002","D30 Medium Bottom Rail End Caps | LH & RH","Silver Grey","PAIR",0.57999999999999996]
[null,"RB91-2131-428002","D30 Medium Bottom Rail End Caps | LH & RH","Dune","PAIR",0.57999999999999996]
[null,"RB91-2136-050001","Fabric Wrap Bottom Rail End Cap | Universal","Black, Satin","PIECE",0]
[null,"RB91-2136-069001","Fabric Wrap Bottom Rail End Cap | Universal","Pure White","PIECE",0]
[null,"RB91-2136-338001","Fabric Wrap Bottom Rail End Cap | Universal","Silver Grey","PIECE",0]
[null,"RB91-2336-069000","Bottom Rail Handle Pull Hook","Pure White","PIECE",0]
[null,"RB91-2536-069000","Bottom Rail Handle Pull Hook 60cm","Pure White","PIECE",8.8000000000000007]
[null,"RB92-0901-001100","9mm ACM Flat Spline | 100m Roll","Clear","ROLL",117.84]
[null,"RB92-1501-001100","15mm ACM Flat Spline | 100 Lm Roll","Clear","ROLL",167.82]
[null,"RB92-1502-001075","15mm ACM Flat Spline - D/S MP-HR TAPE ∙ 75 Lm Roll","Clear","ROLL",159.49]
[null,"RB92-1503-001075","15mm ACM Flat Spline D/S MP-HR TAPE B/S 75 Lm Roll","Clear","ROLL",234.49]
[null,"RB93-0443-000302","S45 / LIGHT T-SPLINE Alum. Tube | 43mm x 3.0m","Mill Finish","LENGTH",0]
[null,"RB93-0443-000580","S45 / LIGHT T-SPLINE Alum. Tube | 43mm x 5.8m","Mill Finish","LENGTH",48.63]
[null,"RB93-0443-000582","S45 / LIGHT T-SPLINE Alum. Tube | 43mm x 5.8m","Mill Finish","LENGTH",48.63]
[null,"RB93-0443-00058C","S45 / LIGHT T-SPLINE Alum. Tube | 43mm x 5.8m","Mill Finish","LENGTH",0]
[null,"RB93-0444-000580","S45 / STD T-SPLINE Alum. Tube | 44mm x 5.8m","Mill Finish","LENGTH",64.84]
[null,"RB93-0444-000582","S45 / STD T-SPLINE Alum. Tube | 44mm x 5.8m","Mill Finish","LENGTH",64.84]
[null,"RB93-0444-00058C","S45 / STD T-SPLINE Alum. Tube | 44mm x 5.8m","Mill Finish","LENGTH",0]
[null,"RB93-0444-066580","S45 / STD T-SPLINE Alum. Tube | 44mm x 5.8m","Off White","LENGTH",91.03]
[null,"RB93-0449-000580","S45 / HD T-SPLINE Alum. Tube | 49mm x 5.8m","Mill Finish","LENGTH",112.23]
[null,"RB93-0449-000582","S45 / HD T-SPLINE Alum. Tube | 49mm x 5.8m","Mill Finish","LENGTH",112.23]
[null,"RB93-0449-00058C","S45 / HD T-SPLINE Alum. Tube | 49mm x 5.8m","Mill Finish","LENGTH",0]
[null,"RB93-6443-000580","S45 / LGT T-SPLINE Alum. Tube | 43mm x 5.8m | TAPED","Mill Finish","LENGTH",57.61]
[null,"RB93-6443-000582","S45 / LGT T-SPLINE Alum. Tube | 43mm x 5.8m | TAPED","Mill Finish","LENGTH",57.61]
[null,"RB93-6443-00058C","S45 / LGT T-SPLINE Alum. Tube | 43mm x 5.8m | TAPED","Mill Finish","LENGTH",57.61]
[null,"RB93-6444-000580","S45 / STD T-SPLINE Alum. Tube | 44mm x 5.8m |TAPED","Mill Finish","LENGTH",74.819999999999993]
[null,"RB93-6444-000582","S45 / STD T-SPLINE Alum. Tube | 44mm x 5.8m | TAPED","Mill Finish","LENGTH",74.819999999999993]
[null,"RB93-6444-00058C","S45 / STD T-SPLINE Alum. Tube | 44mm x 5.8m | TAPED","Mill Finish","LENGTH",74.819999999999993]
[null,"RB93-6449-000580","S45 / HD T-SPLINE Alum. Tube | 49mm x 5.8m | TAPED ","Mill Finish","LENGTH",123.45]
[null,"RB93-6449-000582","S45 / HD T-SPLINE Alum. Tube | 49mm x 5.8m | TAPED","Mill Finish","LENGTH",123.45]
[null,"RB93-6449-00058C","S45 / HD T-SPLINE Alum. Tube | 49mm x 5.8m | TAPED","Mill Finish","LENGTH",123.45]
[null,"RC02-0203-001090","Easy Spring Wand Guide CF90 | RH & LH","Clear","PIECE",7.74]
[null,"RE01-0204-050000","Idler/Spring Adaptor + Screws","Black, Satin","SET",3.57]
[null,"RE01-0212-050063","Idler Housing & Pin Kit | 63mm","Black, Satin","PIECE",11.91]
[null,"RE01-0214-050004","Idler/Spring Adapter MKII | Retainer Clip + Screw","Black, Satin","SET",1.41]
[null,"RTEA2T16","Tube Aluminum 1-1/8 \" x 16' Taped","Mill Finish","CASE",0]
[null,"RTEA3T16","Tube Aluminum 1-1/4\" x 16' Taped","Mill Finish","CASE",0]
[null,"RTEA4T16","Tube Aluminum 1-1/2\" x 16' Taped","Mill Finish","LENGTH",48.8]
[null,"RTEA4U12","Tube Aluminum 1-1/2\" x 12' NO TAPE","Mill Finish","LENGTH",0]
[null,"RTEA4U16","Tube Aluminum 1-1/2\" x 16' NO TAPE","Mill Finish","LENGTH",0]
[null,"RTEA5T16","Tube Aluminum 2\" x 16' Taped","Mill Finish","LENGTH",70.23]
[null,"RTEA5U12","Tube Aluminum 2\" x 12' NO TAPE","Mill Finish","LENGTH",0]
[null,"RTEASW5U14","Tube Aluminum 2\" x 14' Smooth Wall NO TAPE","Mill Finish","LENGTH",0]
[null,"SB91-0011-050500","Fabric Brush T Slot Fit 5mm x 4.8mm | 500 Lm Roll","Black, Satin","METRE",0.93]
[null,"SB91-0011-311500","Fabric Brush T Slot Fit 5mm x 4.8mm | 500 Lm Roll","Light Grey","METRE",0.93]
[null,"SB91-0012-050300","Fabric Brush T Slot Fit 10mm x 4.8mm | 300 Lm roll","Black, Satin","METRE",2.5099999999999998]
[null,"SB91-0018-050040","16mm Bubble Seal | F72 | 40 Lm Rolls","Black, Satin","METRE",5.67]
[null,"SB91-0019-050580","16mm Bubble Seal | F56 | 5.8 metre Lengths","Black, Satin","LENGTH",36.28]
[null,"SB91-0022-050300","Fabric Brush Round Slot 20mm x 3.3mm | 300m Roll","Black, Satin","METRE",274.7]
[null,"SC6750H500","Brackets screw Hex/Slot 6G x 3/4\" (19mm) ","Silver ZINC Plated","PIECE",0]
[null,"SL01-0306-050040","LX Skyline Bracket | 40mm projection","Black, Satin","PIECE",1.92]
[null,"SL01-0306-069040","LX Skyline Bracket | 40mm projection","Pure White","PIECE",1.92]
[null,"SL01-0306-338040","LX Skyline Bracket | 40mm projection","Silver Grey","PIECE",1.92]
[null,"VB05-0301-025300","VB05 OVAL Steel Tiltrod 5.00 x 7.5mm x 3mt Length","Silver ZINC Plated","LENGTH",7.92]
[null,"VB05-0301-025200","VB05 OVAL Steel Tiltrod 5.00 x 7.5mm x 2mt Length","Silver ZINC Plated","LENGTH",5.28]
[null,"RB91-2332-001000","D30 Weight Bar Handle","Clear","PIECE",2.6]
[null,"RB91-2536-069000","Internal Pull Stick","Pure White","PIECE",8.8000000000000007]

{"sheet":"ToDo","index":10,"n_rows":12,"n_cols":3,"rows_kept":12,"cut":false,"hidden":true,"merged":[]}
[]
[]
[null,null,"ToDo"]
[null,"NOW"]
[]
[]
[]
[]
[]
[]
[]
[null,"LATER"]

{"sheet":"ChangeLog","index":11,"n_rows":18,"n_cols":6,"rows_kept":18,"cut":false,"hidden":true,"merged":[]}
[]
[]
[]
[null,"xxx"]
[null,0.04,"Added 2\" components",null,null,{"$f":"_xlfn.TEXTJOIN(\"*|\",TRUE,_xlfn.UNIQUE(LEFT(L_AllCodes,9)))","v":{"$error":"#VALUE!"}}]
[null,null,"Formatting & Headings"]
[null,null,"Changed Spring names from \"Balanced\" to \"Easy Spring Air - …\""]
[null,null,null,null,null,"SLB660xx*|SLBCxx*|SL01-0306*|RB08-4151*|EASY SPRI*|RB12-3828*|RB12-3829*|RB12-3831*|RB12-3832*|RB12-3833*|RB12-3834*|RS01-0107*|RB12-4528*|RB12-4529*|RB12-4531*|RB12-4532*|RB12-4533*|RB12-4534*|IDLER*|SLPEV653x*|SLPEHD53x*|RB12-6101*|RB12-6102*|RA2xx*|HEM BAR*|RB91-1232*|RB91-2131*|RB92-1501*|RB92-1502*|RB92-1503*|RB91-1236*|RB91-2136*|RB91-2336*|RB91-2536*|SS91-5350*|RB92-0901*|SB91-0018*|SB91-0019*|SB07-2201*|VB05-0301*|TUBE*|RTEA4T16*|RTEA5T16*|RB93-0443*|RB93-6443*|RB93-0444*|RB93-6444*|RB93-0449*|RB93-6449*|RB12-3835*|RB12-3836*|RB12-3837*"]
[]
[null,1.01,"Added AU region, "]
[null,null,"Added S45 tube options (AU & US configs)"]
[null,null,"Ballast is always required. (500g/m for all spring sizes)"]
[null,null,"AU offering STD limiter only (no reference to COM)"]
[null,1.02]
[null,1.03,"RB09 & Skyline Opulence Brackets added"]
[null,null,"Control Cap added to accessories"]
[null,1.04,"RB09 Opulence Removed"]
[null,null,"Pull Stick and Handle added"]

{"sheet":"Ctrl_SpringData_excl","index":12,"n_rows":40,"n_cols":25,"rows_kept":40,"cut":false,"hidden":true,"merged":[]}
[]
[null,"TABLE NOT USED."]
[null,null,null,null,{"$f":"IF(AND(o_Widthmm>D4,o_Widthmm<=E4),1,0)","v":0},0,0,0,0,0,0,0,0,0,0,0,0,0,0,0,0,0,0,0,0]
[null,null,"Up to",400,500,600,700,800,900,1000,1100,1200,1300,1400,1500,1600,1700,1800,1900,2000,2100,2200,2300,2400,4000]
[null,null,800,"8/3/Mini","8/3/Mini","14/8/L","14/8/L","14/7/L","16/7/L","15/6/L","10/6/M","10/6/M","10/6/M","11/6/M","12/6/M","12/6/M","12/6/M","13/6/M","13/6/M","14/7/M","14/7/M","14/7/M","16/9/M","16/9/M"]
[null,{"$f":"IF(AND(o_Dropmm>C5,o_Dropmm<=C6),1,0)","v":0},1000,"8/4/Mini","8/3/Mini","14/8/L","14/8/L","15/7/L","17/7/L","17/7/L","10/8/M","11/8/M","11/8/M","11/8/M","12/8/M","12/8/M","12/8/M","13/8/M","13/8/M","14/8/M","14/8/M","14/8/M","16/9/M","16/9/M"]
[null,0,1200,"9/5/Mini","9/4/Mini","15/9/L","15/9/L","16/8/L","17/8/L","17/7/L","10/12/M","11/10/M","11/10/M","11/10/M","12/10/M","12/10/M","12/10/M","14/10/M","14/10/M","14/9/M","14/9/M","15/9/M","16/10/M","16/10/M"]
[null,0,1400,"X","9/4/Mini","15/9/L","15/9/L","17/8/L","18/8/L","18/8/L","10/14/M","11/12/M","11/12/M","11/12/M","12/12/M","14/12/M","14/12/M","16/12/M","16/12/M","14/10/M","14/10/M","16/10/M","16/10/M","16/10/M"]
[null,0,1600,"X","9/5/Mini","16/10/L","16/10/L","17/9/L","18/9/L","18/8/L","11/16/M","11/14/M","11/14/M","11/14/M","12/14/M","15/14/M","15/14/M","16/14/M","16/14/M","14/11/M","14/11/M","16/11/M","17/11/M","17/11/M"]
[null,0,1800,"X","9/5/Mini","16/10/L","16/10/L","17/9/L","18/9/L","19/9/L","11/18/M","11/16/M","11/16/M","11/16/M","12/16/M","16/16/M","16/16/M","17/16/M","17/16/M","16/12/M","16/12/M","17/12/M","17/11/M","17/11/M"]
[null,0,2000,"X","X","17/11/L","17/11/L","17/10/L","19/10/L","19/9/L","11/20/M","12/18/M","12/18/M","14/18/M","14/18/M","17/18/M","17/18/M","17/18/M","17/18/M","17/13/M","17/13/M","17/13/M","18/12/M","18/12/M"]
[null,0,2200,"X","X","18/11/L","18/11/L","17/10/L","20/10/L","20/10/L","12/22/M","12/20/M","12/20/M","15/20/M","15/20/M","17/20/M","17/20/M","19/20/M","19/20/M","18/14/M","18/14/M","17/14/M","18/12/M","18/12/M"]
[null,0,2400,"X","X","18/12/L","18/12/L","18/11/L","20/11/L","20/10/L","12/23/M","13/22/M","13/22/M","15/22/M","15/22/M","19/22/M","19/22/M","19/22/M","19/22/M","18/15/M","18/15/M","18/15/M","18/13/M","18/13/M"]
[null,0,2600,"X","X","18/12/L","18/12/L","18/11/L","22/11/L","22/11/L","12/24/M","13/24/M","13/24/M","15/22/M","15/22/M","19/22/M","19/22/M","19/22/M","19/22/M","19/16/M","19/16/M","18/16/M","18/13/M","18/13/M"]
[null,0,2800,"X","X","18/13/L","18/13/L","19/12/L","22/12/L","22/11/L","12/25/M","13/24/M","13/24/M","15/24/M","15/24/M","20/24/M","20/24/M","19/24/M","21/24/M","19/17/M","19/17/M","18/17/M","18/14/M","18/14/M"]
[null,0,3000,"X","X","X","18/13/L","19/12/L","22/12/L","22/12/L","X","14/25/M","14/25/M","15/24/M","15/24/M","21/24/M","20/24/M","20/24/M","21/24/M","19/18/M","19/18/M","20/18/M","18/14/M","18/14/M"]
[null,0,3200,"X","X","X","X","19/13/L","22/13/L","22/13/L","X","X","X","X","15/25/M","21/25/M","21/25/M","20/25/M","21/25/M","19/19/M","19/19/M","20/19/M","18/14/M","18/14/M"]
[null,0,3400,"X","X","X","X","19/13/L","X","X","X","X","X","X","15/25/M","21/25/M","21/25/M","21/25/M","21/25/M","20/20/M","20/20/M","21/20/M","X","X"]
[]
[null,null,"Weight Bar requirement (g/m)",500,500,350,350,350,350,350,350,350,350,350,350,350,350,350,350,350,350,350,350,350,350]
[]
[null,null,"Cell Out",{"$f":"IFERROR(IF(AND(i_Width<>\"\",i_Drop<>\"\",SUM(BlindSize)>0),INDEX(D5:X18,MATCH(1,B5:B18,0),MATCH(1,D3:X3,0))),\"X\")","v":false}]
[]
[null,null,"Position",{"$f":"_xlfn.TEXTSPLIT(o_SystemSpecChart,,\"/\")","v":"FALSE"},null,"Warning: ",{"$f":"IF(o_SystemSpecChart=\"X\",\"Outside Spring Capacity, refer system specifications.\",\"\")","v":""},null,null,null,null,"Mini","MINI"]
[null,null,"Preturns",null,null,null,null,null,null,null,null,"L","LIGHT"]
[null,null,"Spring",null,null,null,{"$f":"INDEX($M$24:$M$26,MATCH($D$26,$L$24:$L$26,0))","v":{"$error":"#N/A"}},null,null,null,null,"M","MEDIUM"]
[]
[null,null,null,null,null,null,null,"grams:pounds"]
[null,null,null,null,null,null,null,2.2040000000000002]
[]
[]
[]
[null,null,null,null,null,null,null,{"$f":"IF(o_SystemSpecChart=\"X\", \"Outside spring specifications.\", \"Recommended Spring: \"&o_SpringSize)","v":{"$error":"#N/A"}}]
[]
[]
[]
[]
[]
[]
[null,"NOTES FOR BOM",{"$f":"IF(o_SystemSpecChart=\"X\", \"Spring outside specifications.\", \"Recommended Spring Position: \"&o_SpringPosn&\"; Recommended Spring Pre-turns: \"&o_SpringPreturns)","v":"Recommended Spring Position: FALSE; Recommended Spring Pre-turns: "}]

{"sheet":"Calc_Reference_excl","index":13,"n_rows":54,"n_cols":65,"rows_kept":54,"cut":false,"hidden":true,"merged":[[47,51,48,51],[44,51,45,51],[6,45,6,46],[30,1,30,3],[45,1,45,3],[52,1,52,3],[6,25,6,27],[6,29,6,32],[6,34,6,38],[6,40,6,43],[10,1,10,3],[11,1,11,3],[13,1,13,3],[6,20,6,23],[1,1,1,3],[6,16,6,18],[6,13,6,14],[8,1,8,3],[9,1,9,3]]}
[]
[null,"Input Constants"]
[null,"Maximum User Effort",null,"kg",null,null,null,null,null,null,null,null,null,null,null,null,null,null,null,null,null,null,null,null,null,null,null,null,null,null,null,null,null,null,null,null,null,null,null,null,null,null,null,null,null,null,null,null,null,null,null,"Selected Fabric",{"$f":"i_FabricSelection","v":0}]
[null,"Tube Deflection Limit (internal)",null,"mm/m",null,null,null,null,null,null,null,null,null,null,null,null,null,null,null,null,null,null,null,null,null,null,null,null,null,null,null,null,null,null,null,null,null,null,null,null,null,null,null,null,null,null,null,null,null,null,null,"lookup thickness",{"$f":"INDEX(#REF!,MATCH(i_FabricSelection,#REF!,0))","v":{"$error":"#REF!"}},"mm",null,null,null,null,null,null,null,null,"#6 zip",1.45,"mm"]
[null,"Tube Deflection Limit (external)",null,"mm/m",null,null,null,null,null,null,null,null,null,null,null,null,null,null,null,null,null,null,null,null,null,null,null,null,null,null,null,null,null,null,null,null,null,null,null,null,null,null,null,null,null,null,null,null,null,null,null,"lookup density",{"$f":"INDEX(#REF!,MATCH(i_FabricSelection,#REF!,0))","v":{"$error":"#REF!"}},"gsm"]
[null,"Zip Thickness",null,"mm"]
[null,null,null,null,null,null,null,null,null,null,null,null,null,"Live Data",null,null,"Bottom Tube",null,null,null,"Top Tube",null,null,null,null,"Boosters",null,null,null,"No Boosters",null,null,null,null,"Bottom Booster Only (motor)",null,null,null,null,null,"Including Both Boosters \n(as nominated in inputs)",null,null,null,null,"* Safety Factor",null,null,null,null,null,"Deflection Limit internal",{"$f":"o_BlindWidthm*Deflection_Limit_Int","v":0},"mm"]
[null,null,null,null,null,null,null,null,null,null,null,null,null,"Bottom Tube # Rotations","Lift Height \n(m)",null,"Load \n(N)","Active Diameter (mm)","Radius \n(mm)",null,"Top Tube # Rotations","Load \n(N)","Active Spool Diameter\n(mm)","Spool Radius\n(mm)",null,"Spring Booster Top Torque (Nm)","Spring Booster Bottom Torque (Nm)","Booster Equivalent Force \n(N)",null,"Top Tube/Spool Torque Required \n(Nm)","Control Torque Required @ Ratio + FRICTION\n(Nm)","User Effort\nLIFTING\n(kg)","User Effort\nLOWERING\n(kg)",null,"Top Tube Load \n(N)","Top Tube Torque\n(Nm)","Control Torque Required (Nm)","User Effort\nLIFTING\n(kg)","User Effort\nLOWERING\n(kg)",null,"Top Tube/Spool Torque Required \n(Nm)","Control Torque Required @ Ratio\n(Nm)","User Effort\nLIFTING\n(kg)","User Effort\nLOWERING\n(kg)",null,"User Effort\nLIFTING\n(kg)","User Effort\nLOWERING\n(kg)",null,null,null,null,"Deflection Limit external",{"$f":"o_BlindWidthm*Deflection_Limit_Ext","v":0},"mm"]
[null,"Material Data",null,null,"kg/m³","GPa",null,null,null,null,null,null,null,0,0,null,{"$f":"9.81*((BT_UnitMass*o_BlindWidthm)+Fabric_TotalMass-Fabric_UnitMassLift*N9)","v":{"$error":"#NAME?"}},{"$f":"S9*2","v":{"$error":"#N/A"}},{"$f":"(Fabric_Roll_Diameter*0.5)-Fabric_Thickness*N9","v":{"$error":"#N/A"}},null,{"$f":"N9*(Spool_OD/R9)","v":{"$error":"#NAME?"}},{"$f":"9.81*((wb_UnitMass*o_BlindWidthm)+Fabric_UnitMassLift*N9)","v":{"$error":"#REF!"}},{"$f":"IF(D12>2.14,Spool_OD+8.4,IF(D12>1.38,Spool_OD+5.6,IF(D12>0.67,Spool_OD+2.8,Spool_OD)))","v":{"$error":"#NAME?"}},{"$f":"W9/2","v":{"$error":"#NAME?"}},null,{"$f":"(BoosterTop_Preturns+Rotations_Max-U9)*Booster_k","v":{"$error":"#NAME?"}},{"$f":"(Booster_PreTurns+N9)*BoosterBottom_k","v":{"$error":"#VALUE!"}},{"$f":"(Z9/(X9/1000)-(AA9/(S9/1000)))","v":{"$error":"#NAME?"}},null,{"$f":"V9*X9/1000","v":{"$error":"#REF!"}},{"$f":"(AD9/Control_Ratio)+Control_Friction","v":{"$error":"#REF!"}},{"$f":"(AE9/((Control_D/1000)/2))/9.81","v":{"$error":"#REF!"}},{"$f":"(Control_Friction/(Control_D/2/1000))/9.81","v":{"$error":"#NAME?"}},null,{"$f":"(V9+((Booster_PreTurns+N9)*BoosterBottom_k/(S9/1000)))","v":{"$error":"#REF!"}},{"$f":"(AI9*X9/1000)","v":{"$error":"#REF!"}},{"$f":"IF(AJ9<0,Control_Friction,(AJ9/Control_Ratio)+Control_Friction)","v":{"$error":"#REF!"}},{"$f":"(AJ9/((Control_D/1000)/2))/9.81","v":{"$error":"#REF!"}},{"$f":"(Control_Friction/(Control_D/2/1000))/9.81","v":{"$error":"#NAME?"}},null,{"$f":"(V9-AB9)*X9/1000","v":{"$error":"#REF!"}},{"$f":"IF(AO9<0,Control_Friction,(AO9/Control_Ratio)+Control_Friction)","v":{"$error":"#REF!"}},{"$f":"(AP9/((Control_D/1000)/2))/9.81","v":{"$error":"#REF!"}},{"$f":"IF((((Control_Friction-(AO9/Control_Ratio))/(Control_D/2/1000)))/9.81<(Control_Friction/(Control_D/2/1000))/9.81,(Control_Friction/(Control_D/2/1000))/9.81,(((Control_Friction-(AO9/Control_Ratio))/(Control_D/2/1000)))/9.81)","v":{"$error":"#NAME?"}},null,null,null,null,null,null,null,"Fabric Thickness",{"$f":"IF(i_Units=\"Metric\",i_FabricThickness,CONVERT(i_FabricThickness,\"in\",\"mm\"))","v":{"$error":"#REF!"}},"mm"]
[null,"Material",null,null,"Density","Young's Modulus",null,null,null,null,null,null,null,{"$f":"Rotations_Bottom_Max","v":{"$error":"#NAME?"}},{"$f":"(PI()/1000)*($N$10*BT_OD+Fabric_Thickness*$N$10^2)","v":{"$error":"#NAME?"}},null,{"$f":"9.81*((BT_UnitMass*o_BlindWidthm)+Fabric_TotalMass-Fabric_UnitMassLift*O10)","v":{"$error":"#NAME?"}},{"$f":"S10*2","v":{"$error":"#N/A"}},{"$f":"(Fabric_Roll_Diameter*0.5)-Fabric_Thickness*N10","v":{"$error":"#N/A"}},null,{"$f":"N10*(Spool_OD/R10)","v":{"$error":"#NAME?"}},{"$f":"9.81*((wb_UnitMass*o_BlindWidthm)+Fabric_UnitMassLift*O10)","v":{"$error":"#REF!"}},{"$f":"IF(O10>2.14,Spool_OD+8.4,IF(O10>1.38,Spool_OD+5.6,IF(O10>0.67,Spool_OD+2.8,Spool_OD)))","v":{"$error":"#NAME?"}},{"$f":"W10/2","v":{"$error":"#NAME?"}},null,{"$f":"(BoosterTop_Preturns+Rotations_Max-U10)*Booster_k","v":{"$error":"#NAME?"}},{"$f":"(Booster_PreTurns+N10)*BoosterBottom_k","v":{"$error":"#VALUE!"}},{"$f":"(Z10/(X10/1000)-(AA10/(S10/1000)))","v":{"$error":"#NAME?"}},null,{"$f":"V10*X10/1000","v":{"$error":"#REF!"}},{"$f":"(AD10/Control_Ratio)+Control_Friction","v":{"$error":"#REF!"}},{"$f":"(AE10/((Control_D/1000)/2))/9.81","v":{"$error":"#REF!"}},{"$f":"(Control_Friction/(Control_D/2/1000))/9.81","v":{"$error":"#NAME?"}},null,{"$f":"(V10+((Booster_PreTurns+N10)*BoosterBottom_k/(S10/1000)))","v":{"$error":"#REF!"}},{"$f":"(AI10*X10/1000)","v":{"$error":"#REF!"}},{"$f":"IF(AJ10<0,Control_Friction,(AJ10/Control_Ratio)+Control_Friction)","v":{"$error":"#REF!"}},{"$f":"(AJ10/((Control_D/1000)/2))/9.81","v":{"$error":"#REF!"}},{"$f":"(Control_Friction/(Control_D/2/1000))/9.81","v":{"$error":"#NAME?"}},null,{"$f":"(V10-AB10)*X10/1000","v":{"$error":"#REF!"}},{"$f":"IF(AB12<0,Control_Friction,(AO10/Control_Ratio)+Control_Friction)","v":{"$error":"#REF!"}},{"$f":"(AP10/((Control_D/1000)/2))/9.81","v":{"$error":"#REF!"}},{"$f":"IF((((Control_Friction-(AO10/Control_Ratio))/(Control_D/2/1000)))/9.81<(Control_Friction/(Control_D/2/1000))/9.81,(Control_Friction/(Control_D/2/1000))/9.81,(((Control_Friction-(AO10/Control_Ratio))/(Control_D/2/1000)))/9.81)","v":{"$error":"#NAME?"}},null,null,null,null,null,null,null,"Fabric Density",{"$f":"i_FabricDensity/1000","v":{"$error":"#REF!"}},"kg/m²"]
[null,"Aluminium",null,null,2710,{"$f":"68*10^9","v":68000000000},null,null,null,null,null,null,null,null,null,null,null,null,null,null,null,null,null,null,null,null,null,null,null,null,null,null,null,null,null,null,null,null,null,null,null,null,null,null,null,null,null,null,null,null,null,null,null,null,null,null,null,null,"Tube"]
[null,"Steel",null,null,7860,{"$f":"2*10^11","v":200000000000},null,null,null,null,null,null,null,null,null,null,null,null,null,null,null,null,null,null,null,null,null,null,null,null,null,null,null,null,null,null,null,null,null,null,null,null,null,null,null,null,null,null,null,null,null,null,null,null,null,null,null,null,"Unit Mass",{"$f":"INDEX(T_refTubes[Mass/m],MATCH(i_Tube,T_refTubes[OptionCode],0))","v":{"$error":"#N/A"}},"kg/m"]
[null,null,null,null,null,null,null,null,null,null,null,null,null,null,null,null,null,null,null,null,null,null,null,null,null,null,null,null,null,null,null,null,null,null,null,null,null,null,null,null,null,null,null,null,null,null,null,null,null,null,null,"Blind width (m)",{"$f":"o_Widthmm/1000","v":0},"m",null,null,null,null,"OD",{"$f":"INDEX(T_refTubes[Tube OD],MATCH(i_Tube,T_refTubes[OptionCode],0))","v":{"$error":"#N/A"}},"mm"]
[null,"Tubes",null,null,"mm","kg/m","(mm⁴)","(Nm²)",null,null,null,null,null,null,null,null,null,null,null,null,null,null,null,null,null,null,null,null,null,null,null,null,null,null,null,null,null,null,null,null,null,null,null,null,null,null,null,null,null,null,null,"Blind Drop (m)",{"$f":"o_Dropmm/1000","v":0},"m",null,null,null,null,"IE",{"$f":"INDEX(T_refTubes[EI],MATCH(i_Tube,T_refTubes[OptionCode],0))","v":{"$error":"#N/A"}},"Nm²"]
[null,"OptionCode","Codes","Description","Tube OD","Mass/m","I_min","EI"]
[null,"63 AL","RE01-0363","63 STD Aluminium Tube"]
[null,"63 STEEL"]
[null,"78 AL STD","RE01-0378","78 STD Aluminium Tube - 80mm",null,null,null,null,null,null,null,null,null,null,null,null,null,null,null,null,null,null,null,null,null,null,null,null,null,null,null,null,null,null,null,null,null,null,null,null,null,null,null,null,null,null,null,null,null,null,null,"Tube Max Rotations",{"$f":"(-Tube_OD+SQRT(Tube_OD^2+4*Fabric_Thickness*o_BlindDropm*1000/PI()))/(2*Fabric_Thickness)","v":{"$error":"#N/A"}}]
[null,"78 AL HD","RE01-0379","78 HD Aluminium Tube - 81.6mm",null,null,null,null,null,null,null,null,null,null,null,null,null,null,null,null,null,null,null,null,null,null,null,null,null,null,null,null,null,null,null,null,null,null,null,null,null,null,null,null,null,null,null,null,null,null,null,"Max Roll Diameter",{"$f":"(Rotations_Max)*Fabric_Thickness*2+Tube_OD","v":{"$error":"#N/A"}},"mm","no prewrap"]
[null,"78 STEEL","AW92-0901","78 STEEL Tube - 78mm",null,null,null,null,null,null,null,null,null,null,null,null,null,null,null,null,null,null,null,null,null,null,null,null,null,null,null,null,null,null,null,null,null,null,null,null,null,null,null,null,null,null,null,null,null,null,null,"Max Zip Diameter",{"$f":"((-Tube_OD+SQRT(Tube_OD^2+4*ZipThickness*o_BlindDropm*1000/PI()))/(2*ZipThickness))*ZipThickness*2+Tube_OD","v":{"$error":"#N/A"}},"mm"]
[null,"S100 110 STD","RB93-0110","S100 Aluminium Tube - 110 STD"]
[null,"S100 130 HD","RB93-0130","S100 Aluminium Tube - 130 HD",null,null,null,null,null,null,null,null,null,null,null,null,null,null,null,null,null,null,null,null,null,null,null,null,null,null,null,null,null,null,null,null,null,null,null,null,null,null,null,null,null,null,null,null,null,null,null,null,null,null,null,null,null,null,"Weight Bar & Ballast"]
[null,null,null,null,null,null,null,null,null,null,null,null,null,null,null,null,null,null,null,null,null,null,null,null,null,null,null,null,null,null,null,null,null,null,null,null,null,null,null,null,null,null,null,null,null,null,null,null,null,null,null,"Booster Max Preturns",{"$f":"ROUNDDOWN(BH28-Rotations_Max,0)","v":{"$error":"#N/A"}},"Turns",null,null,null,null,"Unit Mass",{"$f":"IFERROR(INDEX(T_refWeightBar[Mass/m],MATCH(1,T_refWeightBar[Codes],0)),0.00001)","v":1.0000000000000001E-5},"kg/m"]
[]
[]
[null,null,null,null,null,null,null,null,null,null,null,null,null,null,null,null,null,null,null,null,null,null,null,null,null,null,null,null,null,null,null,null,null,null,null,null,null,null,null,null,null,null,null,null,null,null,null,null,null,null,null,null,null,null,null,null,null,null,"Booster"]
[null,null,null,null,null,null,null,null,null,null,null,null,null,null,null,null,null,null,null,null,null,null,null,null,null,null,null,null,null,null,null,null,null,null,null,null,null,null,null,null,null,null,null,null,null,null,null,null,null,null,null,null,null,null,null,null,null,null,"k",{"$f":"IFERROR(INDEX(T_refBoosters[Spring Rate],MATCH(i_Booster,T_refBoosters[Input],0)),0.00001)","v":1.0000000000000001E-5},"Nm/Turn"]
[null,null,null,null,null,null,null,null,null,null,null,null,null,null,null,null,null,null,null,null,null,null,null,null,null,null,null,null,null,null,null,null,null,null,null,null,null,null,null,null,null,null,null,null,null,null,null,null,null,null,null,"Fabric Lift Unit Mass",{"$f":"o_BlindWidthm*Fabric_Density","v":{"$error":"#REF!"}},"kg/m",null,null,null,null,"Max Turns",{"$f":"IFERROR(INDEX(T_refBoosters[Max Turns],MATCH(i_Booster,T_refBoosters[Input],0)),0.00001)","v":1.0000000000000001E-5},"Turns"]
[null,null,null,null,null,null,null,null,null,null,null,null,null,null,null,null,null,null,null,null,null,null,null,null,null,null,null,null,null,null,null,null,null,null,null,null,null,null,null,null,null,null,null,null,null,null,null,null,null,null,null,"Fabric Total Mass",{"$f":"Fabric_UnitMassLift*o_BlindDropm","v":{"$error":"#REF!"}},"kg"]
[]
[null,"Boosters",null,null,"(Nm/Turn)",null,"(Nm)"]
[null,"Input","Codes","Description","Spring Rate","Max Turns","T_Max","MinWidth","BoosterCount",null,null,null,null,null,null,null,null,null,null,null,null,null,null,null,null,null,null,null,null,null,null,null,null,null,null,null,null,null,null,null,null,null,null,null,null,null,null,null,null,null,null,"Fabric Area Mass",{"$f":"Fabric_Density*(o_Dropmm/1000)*(o_Widthmm/1000)","v":{"$error":"#REF!"}},"kg/m²"]
[null,"Short",null,"Short RE01 Spring"]
[null,null,null,"X-Light RE01 Spring"]
[null,"Light",null,"Light RE01 Spring"]
[null,null,null,"Medium Light RE01 Spring",null,null,null,null,null,null,null,null,null,null,null,null,null,null,null,null,null,null,null,null,null,null,null,null,null,null,null,null,null,null,null,null,null,null,null,null,null,null,null,null,null,null,null,null,null,null,null,"Torque @ Midpoint",{"$f":"(((((g*(wb_UnitMass*o_BlindWidthm+Fabric_Density*o_BlindWidthm*((o_BlindDropm-((PI()/1000)*((Rotations_Max/2)*Tube_OD+Fabric_Thickness*(Rotations_Max/2)^2)))))*((((Fabric_Roll_Diameter*0.5)-Fabric_Thickness*(Rotations_Max/2)))/1000))))))","v":{"$error":"#REF!"}},"Nm"]
[null,"Standard","RB10-6040-xxx031/2","Standard RE01 Spring"]
[null,"Heavy","RB10-6040-xxx041/2","Heavy Duty RE01 Spring",null,null,null,null,null,null,null,null,null,null,null,null,null,null,null,null,null,null,null,null,null,null,null,null,null,null,null,null,null,null,null,null,null,null,null,null,null,null,null,null,null,null,null,null,null,null,null,"# preturns recommended",{"$f":"ROUNDUP((BA36-(Booster_k*(Rotations_Max/2)))/Booster_k,0)","v":{"$error":"#REF!"}},"Turns"]
[null,"Extra Heavy",null,"X-Heavy RE01 Spring"]
[null,"Dual Heavy",null,"Dual Heavy RE01 Springs"]
[null,null,null,"Dual X-Heavy RE01 Springs"]
[]
[]
[]
[]
[null,"Weight Bar",null,null,"(mm²)","kg/m","(mm⁴)","(mm⁴)","(Nm²)"]
[null,"Column1","Codes","Description","CSA","Mass/m","I_y","I_x","EI"]
[null,null,null,"Fabric Wrap",null,0.23499999999999999]
[null,null,null,"D30 Medium Bottom Rail",null,0.30599999999999999]
[null,null,null,"VB05 Ballast",null,0.23]
[]
[]
[null,"Controls",null,null,"(mm)","(Nm)",null,"(Nm)"]
[null,"Selection","Codes","Description","Diameter","Holding Capacity","Gear Ratio","Friction"]